Workbook

Sheet Оглавление
A1: Оглавление | D1: Для перехода к бренду щелкните на его название
A2: TNL Новинка
A3: Adricoco Новинка
A4: ICE Salon' Новинка
A5: ICE by Nатура Siberica
A6: WELLA
A7: TEFIA
A8: MATRIX
A9: EPICA
A10: INSIGHT
A11: Infinity NEW
A12: CONCEPT
A13: ConstantDelight
A14: Domix
A15: Schwarzkopf
A16: LONDA
A17: KAPOUS
A18: Selective
A19: BAREX
A20: ESTEL
A21: Расход.мат-лы депиляция
A22: Принадлежности
A23: ANGEL

Sheet TNL
B5: ПРАЙС-ЛИСТ | C5: Проставьте в зеленой ячейке вашу скидку | G5: %
B6: TNL Professional (Россия)
A8: 2026-04-01
A9: Артикул | B9: Наименование | C9: РРЦ полки салона | D9: Цена салона | E9: Цена со скидкой | F9: ЗАКАЗ (шт) | G9: Итого по заазу
A10: 0221-0624 | B10: TNL Масло-флюид для волос 50мл, с маслом перcиковой косточки | C10: 565 | D10: 377 | E10: =D10-D10*$F$5/100 -> 377 | G10: =F10*E10 -> 0
A11: 0221-0660 | B11: TNL Масло-флюид для волос 50мл, с маслом авокадо | C11: 565 | D11: 377 | E11: =D11-D11*$F$5/100 -> 377 | G11: =F11*E11 -> 0
A12: 0221-0677 | B12: TNL Масло-флюид для волос 50мл, с маслом виноградной косточки | C12: 565 | D12: 377 | E12: 377 | G12: 0
A13: 0221-0681 | B13: TNL Expert Липидный шампунь 1000мл для сухих, пористых и поврежденных волос | C13: 1125 | D13: 750 | E13: 750 | G13: 0
A14: 0221-0728 | B14: TNL Expert Липидный шампунь 400мл для сухих, пористых и поврежденных волос | C14: 771 | D14: 514 | E14: 514 | G14: 0
A15: 0221-1341 | B15: TNL Пилинг д/кожи головы 150мл д/стим. роста волос, глуб. очищения, с салиц кисл, алоэ и пант-м | C15: 337 | D15: 225 | E15: 225 | G15: 0
A16: 0221-2517 | B16: TNL Expert Шампунь 1000мл, для глубокого очищения, с дозатором | C16: 748 | D16: 499 | E16: 499 | G16: 0
A17: 0221-2560 | B17: TNL Expert Липидный крем-ревитализант 400мл с натуральными маслами и молочной кислотой | C17: 632 | D17: 421 | E17: 421 | G17: 0
A18: 0221-2563 | B18: TNL Смывка Активатор 200 мл, кислотная, для удаления краски с волос (смывка шаг 1) | C18: 297 | D18: 198 | E18: 198 | G18: 0
A19: 0221-2570 | B19: TNL Смывка Восстановитель 200 мл, кислотная, для удаления краски с волос (смывка шаг 2) | C19: 335 | D19: 224 | E19: 224 | G19: 0
A20: 0221-2624 | B20: TNL Солевой спрей д/волос 250мл д/естественной укладки, с морской солью и коллагеном | C20: 439 | D20: 292 | E20: 292 | G20: 0
A21: 0221-3186 | B21: TNL Крем-спрей для волос 20 в 1 многофункциональный дневной 250мл | C21: 568 | D21: 378 | E21: 378 | G21: 0
A22: 0221-3215 | B22: TNL Шампунь 250мл яркая медь, Flash Copper, оттеночный , с дозатором | C22: 546 | D22: 364 | E22: 364 | G22: 0
A23: 0221-3505 | B23: TNL WILD CURLS Шампунь 400мл для кудрявых, волнистых и непослушных волос, с протеинами шелка и маслом авокадо | C23: 449 | D23: 299 | E23: 299 | G23: 0
A24: 0221-3512 | B24: TNL WILD CURLS Бальзам-маска 400мл для кудрявых, волнистых и непослушных волос, с омолаживающим эффектом | C24: 581 | D24: 387 | E24: 387 | G24: 0
A25: 0221-3529 | B25: TNL WILD CURLS Крем-шелк 250мл для кудрявых, волнистых и непослушных волос, с ухаживающим мультикомплексом | C25: 684 | D25: 455.8 | E25: 455.8 | G25: 0
A26: 0221-4017 | B26: TNL Дегидратирующий тоник для рук 250мл, с эффектом фотошопа | C26: 340 | D26: 226 | E26: 226 | G26: 0
A27: 0221-5082 | B27: TNL WEEL SOS-спрей 200мл Термозащита и лам-е,кератин комплекс, с маслом мурумуру и экстр розмарина | C27: 350 | D27: 245 | E27: 245 | G27: 0
A28: 0221-5099 | B28: TNL WEEL SOS-маска 500мл Термозащита и лам-е,кератин комплекс, с маслом мурумуру и экстр розмарина | C28: 550 | D28: 385 | E28: 385 | G28: 0
A29: 0221-5105 | B29: TNL WEEL Бальзам 1000мл Восстановление и гладкость,кератин комплекс,с маслом мурумуру и экстр розмарина | C29: 595 | D29: 395 | E29: 395 | G29: 0
A30: 0221-5112 | B30: TNL WEEL Бальзам 400мл Восстановление и гладкость,кератин комплекс,с маслом мурумуру и экстр розмарина | C30: 350 | D30: 245 | E30: 245 | G30: 0
A31: 0221-5129 | B31: TNL WEEL Шампунь 1000мл Восстановление и укрепление,кератин комплекс, с маслом мурумуру и розмарином | C31: 505 | D31: 355 | E31: 355 | G31: 0
A32: 0221-5136 | B32: TNL WEEL Шампунь 400мл Восстановление и укрепление,кератин комплекс, с маслом мурумуру и розмарином | C32: 350 | D32: 245 | E32: 245 | G32: 0
A33: 0221-5563 | B33: TNL NUAR Коллагеновый спрей 200мл, с аминокислотами и протеинами риса | C33: 690 | D33: 460 | E33: 460 | G33: 0
A34: 0221-5570 | B34: TNL NUAR Бальзам 400мл Формула защиты цвета с церамидами, гидролизованным шелком и маслом марулы | C34: 570 | D34: 380 | E34: 380 | G34: 0
A35: 0221-5587 | B35: TNL NUAR Бальзам 1000мл Формула защиты цвета с церамидами, гидролизованным шелком и маслом марулы | C35: 1080 | D35: 720 | E35: 720 | G35: 0
A36: 0221-5594 | B36: TNL NUAR Шампунь 400мл Формула защиты цвета с церамидами, гидролизованным шелком и маслом марулы | C36: 555 | D36: 370 | E36: 370 | G36: 0
A37: 0221-5600 | B37: TNL NUAR Шампунь 1000мл Формула защиты цвета с церамидами, гидролизованным шелком и маслом марулы | C37: 1050 | D37: 700 | E37: 700 | G37: 0
A38: 0221-5617 | B38: TNL NUAR Бальзам 400мл Интенс увлажнение, жидкое золото с аргановым маслом, пептидами и гиалуроновой кислотой | C38: 570 | D38: 380 | E38: 380 | G38: 0
A39: 0221-5624 | B39: TNL NUAR Бальзам 1000мл Интенс увлажнение, жидкое золото с аргановым маслом, пептидами и гиалуроновой кислотой | C39: 1080 | D39: 720 | E39: 720 | G39: 0
A40: 0221-5631 | B40: TNL NUAR Шампунь 400мл Интенс увлажнение, жидкое золото с аргановым маслом, пептидами и гиалуроновой кислотой | C40: 555 | D40: 370 | E40: 370 | G40: 0
A41: 0221-5648 | B41: TNL NUAR Шампунь 1000мл Интенс увлажнение, жидкое золото с аргановым маслом, пептидами и гиалуроновой кислотой | C41: 1050 | D41: 700 | E41: =D41-D41*$F$5/100 -> 700 | G41: =F41*E41 -> 0
A42: 0221-5655 | B42: TNL NUAR Маска 300мл Интенс кератиновое восстановление,с маслом ши и экстрактом конского каштана | C42: 1050 | D42: 700 | E42: 700 | G42: 0
A43: 0221-5662 | B43: TNL NUAR Бальзам 400мл Интенс кератиновое восстановление,с маслом ши и экстрактом конского каштана | C43: 570 | D43: 380 | E43: 380 | G43: 0
A44: 0221-5679 | B44: TNL NUAR Бальзам 1000мл Интенс кератиновое восстановление,с маслом ши и экстрактом конского каштана | C44: 1080 | D44: 720 | E44: 720 | G44: 0
A45: 0221-5686 | B45: TNL NUAR Шампунь 400мл Интенс кератиновое восстановление,с маслом ши и экстрактом конского каштана | C45: 555 | D45: 370 | E45: 370 | G45: 0
A46: 0221-5693 | B46: TNL NUAR Шампунь 1000мл Интенс кератиновое восстановление,с маслом ши и экстрактом конского каштана | C46: 1050 | D46: 700 | E46: 700 | G46: 0
A47: 0221-5723 | B47: TNL WEEL Бальзам 1000мл Защита цвета и блеск,с церамидами и фруктовыми кислотами | C47: 595 | D47: 395 | E47: 395 | G47: 0
A48: 0221-5747 | B48: TNL WEEL Шампунь 1000мл Защита цвета и блеск,с церамидами и фруктовыми кислотами | C48: 505 | D48: 355 | E48: 355 | G48: 0
A49: 0221-5937 | B49: TNL Кремовый ремувер Алоэ для снятия нарощенных ресниц (10 гр.) | C49: 340 | D49: 227 | E49: 227 | G49: 0
A50: 0221-5944 | B50: TNL Кремовый ремувер Клубника для снятия нарощенных ресниц (10 гр.) | C50: 340 | D50: 227 | E50: 227 | G50: 0
A51: 0221-8800 | B51: TNL Кремовый ремувер Дыня для снятия нарощенных ресниц(10 гр.) | C51: 340 | D51: 227 | E51: 227 | G51: 0
A52: 0221-9606 | B52: TNL Крем-спрей для волос 18 в 1 многофункциональный дневной 250мл | C52: 513 | D52: 342 | E52: 342 | G52: 0
E53: ИТОГО: | G53: =SUM(G10:G52) -> 0

Sheet Adricoco
B5: ПРАЙС-ЛИСТ | C5: Проставьте в зеленой ячейке вашу скидку | G5: %
B6: АDRICOCO Professional (Россия)
A8: 2026-04-01
A9: Артикул | B9: Наименование | C9: РРЦ полки салона | D9: Цена салона | E9: Цена со скидкой | F9: ЗАКАЗ (шт) | G9: Итого по заазу
A10: 022-1005547 | B10: Adricoco (У) CUTE COLOR Шампунь 250мл для окрашенных волос с ягодами годжи | C10: 258 | D10: 140 | E10: =D10-D10*$F$5/100 -> 140 | G10: =F10*E10 -> 0
A11: 022-1005554 | B11: Adricoco (У) CUTE COLOR Бальзам 250мл для окрашенных волос с ягодами годжи | C11: 323 | D11: 150 | E11: =D11-D11*$F$5/100 -> 150 | G11: =F11*E11 -> 0
A12: 022-1005615 | B12: Adricoco CUTE MULTI Реанимирующая маска 500мл с гиалуроновой кислотой и коллагеном | C12: 632 | D12: 421 | E12: 421 | G12: 0
A13: 022-1005721 | B13: Adricoco CUTE REPAIR Восст шампунь1000мл с морским коллагеном | C13: 735 | D13: 490 | E13: 490 | G13: 0
A14: 022-1005738 | B14: Adricoco CUTE REPAIR Восст бальзам 1000мл с морским коллагеном | C14: 735 | D14: 490 | E14: 490 | G14: 0
A15: 022-1005745 | B15: Adricoco CUTE MOIST Ультраувл. шампунь 1000мл с кокосовым молоком | C15: 735 | D15: 490 | E15: 490 | G15: 0
A16: 022-1005752 | B16: Adricoco CUTE MOIST Ультраувл. бальзам 1000мл с кокосовым молоком | C16: 735 | D16: 490 | E16: 490 | G16: 0
A17: 022-1005769 | B17: Adricoco CUTE VOLUME Шампунь 1000мл для объема волос с бамбуком | C17: 735 | D17: 490 | E17: 490 | G17: 0
A18: 022-1005776 | B18: Adricoco CUTE VOLUME Бальзам 1000мл для объема волос с бамбуком | C18: 735 | D18: 490 | E18: 490 | G18: 0
A19: 022-1005783 | B19: Adricoco CUTE BALANCE Баланс шампунь 1000мл с лемонграссом и бораго | C19: 735 | D19: 490 | E19: 490 | G19: 0
A20: 022-1005790 | B20: Adricoco CUTE BALANCE Баланс бальзам 1000мл с лемонграссом и бораго | C20: 735 | D20: 490 | E20: 490 | G20: 0
A21: 022-1005806 | B21: Adricoco CUTE COLOR Шампунь 1000мл для окрашенных волос с ягодами годжи | C21: 735 | D21: 490 | E21: 490 | G21: 0
A22: 022-1005813 | B22: Adricoco CUTE COLOR Бальзам 1000мл для окрашенных волос с ягодами годжи | C22: 735 | D22: 490 | E22: 490 | G22: 0
A23: 022-1501873 | B23: Adricoco Magic Essence Крем-спрей для волос 21 в 1 многофункциональный 100мл | C23: 323 | D23: 215 | E23: 215 | G23: 0
A24: 022-1631358 | B24: Adricoco CURLY Маска-филлер 200мл д/кудрявых и непослушных волос, с маслом макадамии | C24: 539 | D24: 359 | E24: 359 | G24: 0
A25: 022-1631365 | B25: Adricoco CURLY Восст гель с эффектом мокрых волос, сильная фиксация,100мл | C25: 333 | D25: 222 | E25: 222 | G25: 0
A26: 022-1631501 | B26: Adricoco CURLY Крем-флюид 150мл для кудрявых и непослушных волос, с маслом крамбе | C26: 359 | D26: 239 | E26: 239 | G26: 0
A27: 022-1632539 | B27: Adricoco EXPERT LINE Липидный шампунь 1000мл с компл масел и молочной кислотой | C27: 1161 | D27: 774 | E27: 774 | G27: 0
A28: 022-1633314 | B28: Adricoco EXPERT LINE Липидная маска-реноватор 500мл с компл масел и молочной кислотой | C28: 800 | D28: 533 | E28: 533 | G28: 0
A29: 022-185463 | B29: Adricoco Miss Adri Botox therapy Маска 500мл с эффектом ботокса | C29: 710 | D29: 473 | E29: 473 | G29: 0
A30: 022-6242587 | B30: Adricoco ШАГ 2 Кислотная смывка Восстановитель, 200 мл | C30: 310 | D30: 206 | E30: 206 | G30: 0
A31: 022-6242594 | B31: Adricoco ШАГ 1 Кислотная смывка Активатор 200 мл | C31: 323 | D31: 215 | E31: 215 | G31: 0
A32: 022-6248824 | B32: Adricoco One Minute Сухой шампунь аэрозольный 200мл | C32: 605 | D32: 403 | E32: 403 | G32: 0
A33: 022-74849 | B33: Adricoco Miss Adri Protection & color Шампунь для окрашенных волос, 1000 мл | C33: 903 | D33: 602 | E33: 602 | G33: 0
A34: 022-74863 | B34: Adricoco Miss Adri Botox therapy Шампунь 1000мл с эффектом ботокса | C34: 903 | D34: 602 | E34: 602 | G34: 0
A35: 022-7672617 | B35: Adricoco Ocean Spray Солевой спрей для волос 250мл д/ест укладки с морской солью | C35: 462 | D35: 308 | E35: =D35-D35*$F$5/100 -> 308 | G35: =F35*E35 -> 0
A36: 022-7673676 | B36: Adricoco Magic Essencee Крем-спрей для волос 21 в 1 250мл многофункциональный | C36: 503 | D36: 335 | E36: 335 | G36: 0
A37: 022-76928 | B37: Adricoco Heat Protection Термозащ спрей 250мл с алоэ вера | C37: 452 | D37: 301 | E37: 301 | G37: 0
A38: 022-76959 | B38: Adricoco Двухфазный спрей 250мл для объема с экстр семян цератонии | C38: 606 | D38: 404 | E38: 404 | G38: 0
A39: 022-76980 | B39: Adricoco Однофазный спрей 250мл д/легкого расчесывания с прот семян амаранта | C39: 348 | D39: 232 | E39: =D39-D39*$F$5/100 -> 232 | G39: =F39*E39 -> 0
A40: 022-77017 | B40: Adricoco Двухфазный спрей 250мл д/легкого расчесывания и блеска с витамином B3 | C40: 606 | D40: 404 | E40: 404 | G40: 0
A41: 022-77048 | B41: Adricoco Однофазный спрей 250мл для придания объема с экстрактом жемчуга | C41: 384 | D41: 256 | E41: 256 | G41: 0
A42: 022-77062 | B42: Adricoco WONDER DROP Масло-флюид для волос 50мл с маслом жожоба | C42: 565 | D42: 377 | E42: 377 | G42: 0
A43: 022-77147 | B43: Adricoco MAGIC ELIXIR Мультифункц крем-спрей д/в 22 в 1, 250мл | C43: 593 | D43: 396 | E43: 396 | G43: 0
A44: 022-8714436 | B44: Adricoco CURLY Бальзам 400мл д/кудр, вьющ и непослушных волос,с маслом макадамии | C44: 720 | D44: 480 | E44: 480 | G44: 0
A45: 022-8714443 | B45: Adricoco CURLY Шампунь 400мл д/кудр, вьющ и непослушных волос,с гиалуроновой кислотой | C45: 513 | D45: 342 | E45: 342 | G45: 0
E46: Итого по заказу | G46: =SUM(G10:G45) -> 0

Sheet ICE Salon
B5: ПРАЙС-ЛИСТ | C5: Проставьте в зеленой ячейке вашу скидку | F5: %
B6: ICE Professional SALON Only
B7: (линейка для салонов и проф магазинов)
A8: 2026-04-01
A9: Код для заказа | B9: Номенклатура | C9: Цена салона | E9: ЗАКАЗ (шт) | F9: Итого по заазу
D10: Цена с вашей скидкой,руб
B11: IN SALON
A12: 4630121108338 | B12: ICE by NS/PRO/12 OILS BOOSTER/Бустер-концентрат "12 масел" для волос, 100 мл | C12: 699.47 | D12: =C12-C12*$E$5/100 -> 699.47 | F12: =E12*D12 -> 0
A13: 4630121108260 | B13: ICE by NS/PRO/AFTER COLOR HAIR MASK/Маска после процедуры окрашивания волос ФЛ, 1000 мл | C13: 2540.65 | D13: =C13-C13*$E$5/100 -> 2540.65 | F13: =E13*D13 -> 0
A14: 4630121107904 | B14: ICE by NS/PRO/AFTER COLOR HAIR MASK/Маска после процедуры окрашивания волос, 1000 мл | C14: 2084.17 | D14: 2084.17 | F14: 0
A15: 4630121108239 | B15: ICE by NS/PRO/AFTER COLOR SHAMPOO/Шампунь после процедуры окрашивания волос ФЛ, 1000 мл | C15: 1620.57 | D15: 1620.57 | F15: 0
A16: 4630121107867 | B16: ICE by NS/PRO/AFTER COLOR SHAMPOO/Шампунь после процедуры окрашивания волос, 1000 мл | C16: 1117.32 | D16: 1117.32 | F16: 0
A17: 4630121107966 | B17: ICE by NS/PRO/AFTER COLOR THERAPY CONDITIONER/Кондиционер для окрашенных волос, 250 мл | C17: 825.53 | D17: 825.53 | F17: 0
A18: 4630121108086 | B18: ICE by NS/PRO/AFTER COLOR THERAPY HAIR MASK / Маска для окрашенных волос, 200 мл | C18: 858.07 | D18: 858.07 | F18: 0
A19: 4630121107959 | B19: ICE by NS/PRO/AFTER COLOR THERAPY SHAMPOO/Шампунь для окрашенных волос, 250 мл | C19: 699.47 | D19: 699.47 | F19: 0
A20: 4630121108192 | B20: ICE by NS/PRO/AFTER COLOR THERAPY SHIELD SPRAY/Спрей для окрашенных волос, 200 мл | C20: 572.38 | D20: 572.38 | F20: 0
A21: 4630121108284 | B21: ICE by NS/PRO/AMINO ACIDS BOOSTER/Аминокислотный бустер-концентрат для волос, 100 мл | C21: 699.47 | D21: 699.47 | F21: 0
A22: 4630121108253 | B22: ICE by NS/PRO/BASIC CARE HAIR MASK / Базовая маска для процедуры персон. ухода для волос ФЛ, 1000 мл | C22: 2351.55 | D22: 2351.55 | F22: 0
A23: 4630121107935 | B23: ICE by NS/PRO/BASIC CARE HAIR MASK / Базовая маска для процедуры персонализированного ухода для воло | C23: 1589.05 | D23: 1589.05 | F23: 0
A24: 4630121107881 | B24: ICE by NS/PRO/BASIC CARE SHAMPOO/Базовый шампунь для персонализированного ухода для волос, | C24: 864.17 | D24: 864.17 | F24: 0
A25: 4630121108246 | B25: ICE by NS/PRO/BASIC CARE SHAMPOO/Базовый шампунь для процедуры персон. ухода для волос ФЛ, 1л | C25: 1320.65 | D25: 1320.65 | F25: 0
A26: 4630121108062 | B26: ICE by NS/PRO/BIO-PEPTIDE THERAPY CONDITIONER/Кондиционер для восстанов. и уплотнения волос, 250 мл | C26: 825.53 | D26: 825.53 | F26: 0
A27: 4630121108147 | B27: ICE by NS/PRO/BIO-PEPTIDE THERAPY HAIR CREAM/Крем для восстановления и уплотнения волос, 100 мл | C27: 565.27 | D27: 565.27 | F27: 0
A28: 4630121108154 | B28: ICE by NS/PRO/BIO-PEPTIDE THERAPY HAIR MASK/Маска для восстановления и уплотнения волос, 200 мл | C28: 858.07 | D28: 858.07 | F28: 0
A29: 4630121108055 | B29: ICE by NS/PRO/BIO-PEPTIDE THERAPY SHAMPOO/Шампунь для восстановления и уплотнения волос, 250 мл | C29: 699.47 | D29: 699.47 | F29: 0
A30: 4630121108314 | B30: ICE by NS/PRO/COLLAGEN BOOSTER/Коллагеновый бустер-концентрат для волос, 100 мл | C30: 699.47 | D30: 699.47 | F30: 0
A31: 4630121108185 | B31: ICE by NS/PRO/DEEP CLEANSING SHAMPOO/Шампунь для глубокого очищения кожи головы и волос ФЛ, 1л | C31: 1320.65 | D31: 1320.65 | F31: 0
A32: 4630121107478 | B32: ICE by NS/PRO/DEEP CLEANSING SHAMPOO/Шампунь для глубокого очищения кожи головы и волос, 1000 мл | C32: 864.17 | D32: 864.17 | F32: 0
A33: 4630121108048 | B33: ICE by NS/PRO/KERA-THERM THERAPY CONDITIONER/Кондиционер для реконструкции волос, 250 мл | C33: 825.53 | D33: 825.53 | F33: 0
A34: 4630121108130 | B34: ICE by NS/PRO/KERA-THERM THERAPY HAIR MASK/Маска для реконструкции волос, 200 мл | C34: 858.07 | D34: 858.07 | F34: 0
A35: 4630121108031 | B35: ICE by NS/PRO/KERA-THERM THERAPY SHAMPOO/Шампунь для реконструкции волос, 250 мл | C35: 699.47 | D35: 699.47 | F35: 0
A36: 4630121108208 | B36: ICE by NS/PRO/KERA-THERM THERAPY SPRAY-RECONSTRUCTOR/Сыворотка-спрей для реконструкции волос, 200 мл | C36: 572.38 | D36: 572.38 | F36: 0
A37: 4630121108369 | B37: ICE by NS/PRO/KERATIN BOOSTER/Кератиновый бустер-концентрат для волос, 100 мл | C37: 699.47 | D37: 699.47 | F37: 0
A38: 4630121108024 | B38: ICE by NS/PRO/NUTRI-LIPID THERAPY CONDITIONER/Кондиционер для питания и блеска волос, 250 мл | C38: 825.53 | D38: 825.53 | F38: 0
A39: 4630121108109 | B39: ICE by NS/PRO/NUTRI-LIPID THERAPY HAIR MASK/Маска для питания и блеска волос, 200 мл | C39: 858.07 | D39: 858.07 | F39: 0
A40: 4630121108017 | B40: ICE by NS/PRO/NUTRI-LIPID THERAPY SHAMPOO/Шампунь для питания и блеска волос, 250 мл | C40: 699.47 | D40: 699.47 | F40: 0
A41: 4630121107911 | B41: ICE by NS/PRO/OMNI-BLOND THERAPY SHAMPOO/Тонирующий шампунь для светлых волос, 250 мл | C41: 699.47 | D41: 699.47 | F41: 0
A42: 4630121107928 | B42: ICE by NS/PRO/OMNI-BLONDE THERAPY CONDITIONER/Кондиционер для светлых волос, 250 мл | C42: 825.53 | D42: 825.53 | F42: 0
A43: 4630121108079 | B43: ICE by NS/PRO/OMNI-BLONDE THERAPY HAIR MASK/Тонирующая маска для светлых волос, 200 мл | C43: 858.07 | D43: 858.07 | F43: 0
A44: 4630121108307 | B44: ICE by NS/PRO/PROTEIN BOOSTER/Протеиновый бустер-концентрат для волос, 100 мл | C44: 699.47 | D44: 699.47 | F44: 0
A45: 4630121108277 | B45: ICE by NS/PRO/RESTORING HAIR MASK / Маска для процедуры реконструкции волос ФЛ, 1000 мл | C45: 2540.65 | D45: 2540.65 | F45: 0
A46: 4630121107799 | B46: ICE by NS/PRO/RESTORING HAIR MASK / Маска для процедуры реконструкции волос, 1000 мл | C46: 2084.17 | D46: 2084.17 | F46: 0
A47: 4630121108222 | B47: ICE by NS/PRO/RESTORING SHAMPOO/Шампунь для процедуры реконструкции волос ФЛ,1000 мл | C47: 1620.57 | D47: 1620.57 | F47: 0
A48: 4630121107805 | B48: ICE by NS/PRO/RESTORING SHAMPOO/Шампунь для процедуры реконструкции волос,1000 мл | C48: 1117.32 | D48: 1117.32 | F48: 0
A49: 4630121107980 | B49: ICE by NS/PRO/SCALP-BIOME THERAPY CONDITIONER/Кондиционер для жирной кожи головы, 250 мл | C49: 825.53 | D49: 825.53 | F49: 0
A50: 4630121108093 | B50: ICE by NS/PRO/SCALP-BIOME THERAPY PEELING/Пилинг для кожи головы, 170 мл | C50: 692.35 | D50: 692.35 | F50: 0
A51: 4630121108178 | B51: ICE by NS/PRO/SCALP-BIOME THERAPY SCRUB/Cкраб для кожи головы, 200 мл | C51: 692.35 | D51: 692.35 | F51: 0
A52: 4630121107973 | B52: ICE by NS/PRO/SCALP-BIOME THERAPY SHAMPOO/Шампунь для жирной кожи головы, 250 мл | C52: 699.47 | D52: 699.47 | F52: 0
A53: 4630121109816 | B53: ICE by NS/PRO/NUTRI-LIPID THERAPY HAIR OIL/Масло для питания и блеска волос, 50 мл | C53: 858.07 | D53: 858.07 | F53: 0
A54: 4630121112168 | B54: ICE by NS/ PRO/ Scalp shampoo anti-hair loss therapy / Шампунь против выпадения волос, 250 мл | C54: 825.53 | D54: 825.53 | F54: 0
A55: 4630121112182 | B55: ICE by NS/ PRO/ Scalp shampoo anti-dandruff therapy / Шампунь против перхоти, 250 мл | C55: 825.53 | D55: 825.53 | F55: 0
A56: 4630121112199 | B56: ICE by NS/PRO/Scalp shampoo sebum balancing therapy/Шампунь д. восст. балан. жирн. кож. гол.,250мл | C56: 825.53 | D56: 825.53 | F56: 0
A57: 4630121112212 | B57: ICE by NS/PRO/Scalp shampoo soothing & calming therapy/Шампунь для чувствительной кожи головы,250 мл | C57: 825.53 | D57: 825.53 | F57: 0
A58: 4630121113684 | B58: ICE by NS/ PRO/ pH Changer/ pH-модификатор д. преобр. красителя д. волос, 100 мл | C58: 698.45 | D58: 698.45 | F58: 0
A59: 4630121113967 | B59: ICE by NS/ PRO/ Serum anti-hair loss therapy / Сыворотка против выпадения волос, 150 мл | C59: 819.43 | D59: 819.43 | F59: 0
A60: 4630121113974 | B60: ICE by NS/ PRO/ Oil balancing serum / Сыворотка для восстановления баланса кожи головы, 150 мл | C60: 819.43 | D60: 819.43 | F60: 0
A61: 4630121113981 | B61: ICE by NS/ PRO/ Serum anti-dandruff therapy / Сыворотка против перхоти, 150 мл | C61: 819.43 | D61: 819.43 | F61: 0
A62: 4630121113998 | B62: ICE by NS/ PRO/ Pre-shampoo detox scalp peeling/ "Детокс" - пилинг для кожи головы, 500 мл | C62: 1175.27 | D62: 1175.27 | F62: 0
A63: 4630121114001 | B63: ICE by NS/ PRO/ Pre-shampoo balancing clay mask/ балансирующая маска-глина для кожи головы, 500 мл | C63: 1016.67 | D63: 1016.67 | F63: 0
A64: 4630121114018 | B64: ICE by NS/ PRO/ Pre-shampoo scalp scrub / скраб для кожи головы, 700 г | C64: 1080.72 | D64: 1080.72 | F64: 0
A65: 4630121114025 | B65: ICE by NS/ PRO/ SOS scalp serum / успокаивающая сыворотка для кожи головы, 150 мл | C65: 634.4 | D65: 634.4 | F65: 0
A66: 4630121114032 | B66: ICE by NS/ PRO/ Anti-age scalp serum / Сыворотка для предотвращения появления седых волос, 150 мл | C66: 877.38 | D66: 877.38 | F66: 0
A67: 4630121114087 | B67: ICE by NS/ PRO/ Shampoo for scalp treatment/ Крем-шампунь для процедуры ухода за кожей головы, 500 м | C67: 844.85 | D67: 844.85 | F67: 0
A68: 8057500982260 | B68: ICE by NS/PRO/RC/Перманентная крем-краска для волос, 1.0 чёрный /1.0 black, 60 мл | C68: 780.8 | D68: 780.8 | F68: 0
A69: 8057500982277 | B69: ICE by NS/PRO/RC/Перманентная крем-краска для волос, 3.0 тёмно-каштановый / 3.0 dark brown, 60 мл | C69: 780.8 | D69: 780.8 | F69: 0
A70: 8057500982284 | B70: ICE by NS/PRO/RC/ Перманентная крем-краска для волос, 4.0 каштановый / 4.0 brown, 60 мл | C70: 780.8 | D70: 780.8 | F70: 0
A71: 8057500982291 | B71: ICE by NS/PRO/RC/Перманентная крем-краска для волос, 5.0 светло-каштановый / 5.0 light brown, 60 мл | C71: 780.8 | D71: 780.8 | F71: 0
A72: 8057500982307 | B72: ICE by NS/PRO/RC/Перманентная крем-краска для волос, 6.0 тёмно-русый / 6.0 dark blonde, 60 мл | C72: 780.8 | D72: 780.8 | F72: 0
A73: 8057500982314 | B73: ICE by NS/PRO/RC/Перманентная крем-краска для волос, 7.0 русый / 7.0 blonde, 60 мл | C73: 780.8 | D73: 780.8 | F73: 0
A74: 8057500982321 | B74: ICE by NS/PRO/RC/Перманентная крем-краска для волос, 8.0 светло-русый / 8.0 light blonde, 60 мл | C74: 780.8 | D74: 780.8 | F74: 0
A75: 8057500982338 | B75: ICE by NS/PRO/RC/Перманент.крем-краска для волос,9.0 очень светлый блонд/9.0 very light blonde,60 мл | C75: 780.8 | D75: 780.8 | F75: 0
A76: 8057500982345 | B76: ICE by NS/PRO/RC/Перманентная крем-краска для волос,10.0 платиновый блонд/10.0 platinum blonde,60 мл | C76: 780.8 | D76: 780.8 | F76: 0
A77: 8057500982352 | B77: ICE by NS/PRO/RC/Перманент.крем-краска для волос,11.0 осветляющий блонд/11.0 hight lift blonde,60 мл | C77: 780.8 | D77: =C77-C77*$E$5/100 -> 780.8 | F77: =E77*D77 -> 0
A78: 8057500982369 | B78: ICE by NS/PRO/RC/Перм. кр-крас.д/вол,12.0 супер осветляющий блонд/12.0 super hight lift blonde,60 мл | C78: 780.8 | D78: 780.8 | F78: 0
A79: 8057500982376 | B79: ICE by NS/PRO/RC/Перм. кр-крас.д/вол,4.00 каштановый для седины/4.00 brown extra intense,60 мл | C79: 780.8 | D79: 780.8 | F79: 0
A80: 8057500982383 | B80: ICE by NS/PRO/RC/Перм. кр-крас.д/вол,5.00 светл-каштан.д/седины/5.00 light brown extra intense,60 мл | C80: 780.8 | D80: 780.8 | F80: 0
A81: 8057500982390 | B81: ICE by NS/PRO/RC/Перм. кр-крас.д/вол,6.00 тёмно-русый д/седины/6.00 dark blonde extra intense,60 мл | C81: 780.8 | D81: 780.8 | F81: 0
A82: 8057500982406 | B82: ICE by NS/PRO/RC/Перм. кр-крас.д/вол,7.00 русый для седины/7.00 blonde extra intense,60 мл | C82: 780.8 | D82: 780.8 | F82: 0
A83: 8057500982413 | B83: ICE by NS/PRO/RC/Перм. кр-крас.д/вол,8.00 светл-русый д/седины/8.00 light blonde extra intense,60 мл | C83: 780.8 | D83: 780.8 | F83: 0
A84: 8057500982420 | B84: ICE by NS/PRO/RC/Перм. кр-крас.д/вол,9.00 оч.светл.блонд д/сед.9.00verylightblondeextraintense,60 мл | C84: 780.8 | D84: 780.8 | F84: 0
A85: 8057500982437 | B85: ICE by NS/PRO/RC/Перманентная крем-краска для волос, 4.1 каштановый пепельный / 4.1 brown ash, 60 мл | C85: 780.8 | D85: 780.8 | F85: 0
A86: 8057500982444 | B86: ICE by NS/PRO/RC/Перм. кр-крас.д/вол, 5.1 светло-каштановый пепельный / 5.1 light brown ash, 60 мл | C86: 780.8 | D86: 780.8 | F86: 0
A87: 8057500982451 | B87: ICE by NS/PRO/RC/Перм. кр-крас.д/вол, 6.1 тёмно-русый пепельный / 6.1 dark blonde ash, 60 мл | C87: 780.8 | D87: 780.8 | F87: 0
A88: 8057500982468 | B88: ICE by NS/PRO/RC/Перманентная крем-краска для волос, 7.1 русый пепельный / 7.1 blonde ash, 60 мл | C88: 780.8 | D88: 780.8 | F88: 0
A89: 8057500982475 | B89: ICE by NS/PRO/RC/Перм. кр-крас.д/вол, 8.1 светло-русый пепельный / 8.1 light blonde ash, 60 мл | C89: 780.8 | D89: 780.8 | F89: 0
A90: 8057500982482 | B90: ICE by NS/PRO/RC/Перм. кр-крас.д/вол,9.1 очень светл. блонд пепел/9.1 very light blonde ash,60 мл | C90: 780.8 | D90: 780.8 | F90: 0
A91: 8057500982499 | B91: ICE by NS/PRO/RC/Перм. кр-крас.д/вол,10.1 платин. блонд пепельный/10.1 platinum blonde ash,60 мл | C91: 780.8 | D91: 780.8 | F91: 0
A92: 8057500982505 | B92: ICE by NS/PRO/RC/Перм. кр-крас.д/вол, 11.1 осветл. блонд пепел./11.1 hight lift blonde ash,60 мл | C92: 780.8 | D92: 780.8 | F92: 0
A93: 8057500982512 | B93: ICE by NS/PRO/RC/Перм.кр-крас.д/вол, 12.1суп.осветл.бл.пепел./12.1 super hight lift blonde ash,60 мл | C93: 780.8 | D93: 780.8 | F93: 0
A94: 8057500982529 | B94: ICE by NS/PRO/RC/Перм. кр-крас.д/вол,7.01 русый натуральный пепельный/7.01 blonde natural ash,60 мл | C94: 780.8 | D94: 780.8 | F94: 0
A95: 8057500982536 | B95: ICE by NS/PRO/RC/Перм. кр-крас.д/вол,6.11 тёмн-рус.интенс.-пепел./6.11 dark blonde ash intense,60 мл | C95: 780.8 | D95: 780.8 | F95: 0
A96: 8057500982543 | B96: ICE by NS/PRO/RC/Перм.кр-крас.д/вол,9.11оч.св.бл.интенс-пепел/9.11very light blonde ashintense,60 мл | C96: 780.8 | D96: 780.8 | F96: 0
A97: 8057500982550 | B97: ICE by NS/PRO/RC/Перм. кр-крас.д/вол,10.11плат.бл.интенс-пепел/10.11platinum blonde ashintense,60 мл | C97: 780.8 | D97: 780.8 | F97: 0
A98: 8057500982567 | B98: ICE by NS/PRO/RC/Перм. кр-крас.д/вол,8.02 св-рус.натур-пепел/8.02 light blonde natural violet,60 мл | C98: 780.8 | D98: 780.8 | F98: 0
A99: 8057500982574 | B99: ICE by NS/PRO/RC/Перм. кр-крас.д/вол,10.02плат.бл.нат-пепел/10.02platinum blonde naturalviolet,60 мл | C99: 780.8 | D99: 780.8 | F99: 0
A100: 8057500982581 | B100: ICE by NS/PRO/RC/Перм. кр-крас.д/вол, 3.2 тёмно-каштановый фиолетовый/3.2 dark brown violet,60 мл | C100: 780.8 | D100: 780.8 | F100: 0
A101: 8057500982598 | B101: ICE by NS/PRO/RC/Перм. кр-крас.д/вол,5.2 светло-каштановый фиолетовый/5.2 light brown violet,60 мл | C101: 780.8 | D101: 780.8 | F101: 0
A102: 8057500982604 | B102: ICE by NS/PRO/RC/Перманентная крем-краска для волос, 7.2 русый фиолетовый / 7.2 blonde violet,60 мл | C102: 780.8 | D102: 780.8 | F102: 0
A103: 8057500982611 | B103: ICE by NS/PRO/RC/Перм. кр-крас.д/вол,11.2 освет.блонд перламутр./11.2 hight lift blonde violet,60 мл | C103: 780.8 | D103: 780.8 | F103: 0
A104: 8057500982628 | B104: ICE by NS/PRO/RC/Перм.кр-крас.д/вол,10.22плат.бл.инт-перлам/10.22platinum blonde violetintense,60 мл | C104: 780.8 | D104: 780.8 | F104: 0
A105: 8057500982635 | B105: ICE by NS/PRO/RC/Перм.кр-крас.д/в,12.22су.осв.бл.ин-пер/12.22superhightliftblondevioletintense,60 мл | C105: 780.8 | D105: 780.8 | F105: 0
A106: 8057500982642 | B106: ICE by NS/PRO/RC/Перм. кр-крас.д/вол,6.12 тёмн-рус.пепел-перламутр/6.12 dark blonde ash violet,60 мл | C106: 780.8 | D106: 780.8 | F106: 0
A107: 8057500982659 | B107: ICE by NS/PRO/RC/Перм. кр-крас.д/вол,7.12 русый пепельно-перламутровый/7.12 blonde ash violet,60 мл | C107: 780.8 | D107: 780.8 | F107: 0
A108: 8057500982666 | B108: ICE by NS/PRO/RC/Перм. кр-крас.д/вол,8.12светл-рус.пепел-перламутр/8.12 light blonde ashviolet,60 мл | C108: 780.8 | D108: 780.8 | F108: 0
A109: 8057500982673 | B109: ICE by NS/PRO/RC/Перм.кр-крас.д/вол,9.12оч.св.бл.пепел-перлам/9.12very light blonde ash violet,60 мл | C109: 780.8 | D109: 780.8 | F109: 0
A110: 8057500982680 | B110: ICE by NS/PRO/RC/Перм. кр-крас.д/вол,10.12плат.бл.пепел-перлам/10.12platinum blonde ash violet,60 мл | C110: 780.8 | D110: 780.8 | F110: 0
A111: 8057500982697 | B111: ICE by NS/PRO/RC/Перм. кр-крас.д/вол,7.21 русый перламутрово-пепельный/7.21 blonde violet ash,60 мл | C111: 780.8 | D111: 780.8 | F111: 0
A112: 8057500982703 | B112: ICE by NS/PRO/RC/Перм. кр-крас.д/вол, 8.21 светл-рус.перлам-пепел/8.21 light blonde violet ash,60 мл | C112: 780.8 | D112: 780.8 | F112: 0
A113: 8057500982710 | B113: ICE by NS/PRO/RC/Перм.кр-крас.д/вол,9.21оч.св.бл.перлам-пепел/9.21very light blonde violet ash,60 мл | C113: 780.8 | D113: 780.8 | F113: 0
A114: 8057500982727 | B114: ICE by NS/PRO/RC/Перм.кр-крас.д/вол,10.21платин.бл.перлам-пепел/10.21platinum blonde violetash,60 мл | C114: 780.8 | D114: 780.8 | F114: 0
A115: 8057500982734 | B115: ICE by NS/PRO/RC/Перм.кр-крас.д/вол,11.21осв.бл.перлам-пепел/11.21hight lift blonde violet ash,60 мл | C115: 780.8 | D115: 780.8 | F115: 0
A116: 8057500982741 | B116: ICE by NS/PRO/RC/Перм.кр-крас.д/в,12.21суп.осв.бл.перл-пепе/12.21superhightliftblondevioletash,60 мл | C116: 780.8 | D116: 780.8 | F116: 0
A117: 8057500982758 | B117: ICE by NS/PRO/RC/Перм. кр-крас.д/вол,5.3 светло-каштановый золотистый/5.3 light brown gold,60 мл | C117: 780.8 | D117: 780.8 | F117: 0
A118: 8057500982765 | B118: ICE by NS/PRO/RC/Перм. кр-крас.д/вол, 6.3 тёмно-русый золотистый / 6.3 dark blonde gold, 60 мл | C118: 780.8 | D118: 780.8 | F118: 0
A119: 8057500982772 | B119: ICE by NS/PRO/RC/Перманентная крем-краска для волос, 7.3 русый золотистый / blonde gold, 7.3, 60 мл | C119: 780.8 | D119: 780.8 | F119: 0
A120: 8057500982789 | B120: ICE by NS/PRO/RC/Перм. кр-крас.д/вол, 8.3 светло-русый золотистый / 8.3 light blonde gold, 60 мл | C120: 780.8 | D120: 780.8 | F120: 0
A121: 8057500982796 | B121: ICE by NS/PRO/RC/Перм. кр-крас.д/вол,5.23светл-каштан.перламутр./5.23 light brown violet gold,60 мл | C121: 780.8 | D121: 780.8 | F121: 0
A122: 8057500982802 | B122: ICE by NS/PRO/RC/Перм. кр-крас.д/вол,8.23 светл-рус. перламутров/8.23 light blonde violet gold,60 мл | C122: 780.8 | D122: 780.8 | F122: 0
A123: 8057500982819 | B123: ICE by NS/PRO/RC/Перм.кр-крас.д/вол,9.23оч.светл.бл.перлам/9.23 very light blonde violet gold,60 мл | C123: 780.8 | D123: 780.8 | F123: 0
A124: 8057500982826 | B124: ICE by NS/PRO/RC/Перм.кр-крас.д/вол,10.23платин.бл.перлам./10.23 platinum blonde violet gold,60 мл | C124: 780.8 | D124: 780.8 | F124: 0
A125: 8057500982833 | B125: ICE by NS/PRO/RC/Перм. кр-крас.д/вол,5.32 све-каштан.золот-перлам/5.32 light brown gold violet,60 мл | C125: 780.8 | D125: 780.8 | F125: 0
A126: 8057500982840 | B126: ICE by NS/PRO/RC/Перм. кр-крас.д/вол,6.32тёмно-рус.золотис-перлам/6.32 dark blonde gold violet,60 мл | C126: 780.8 | D126: 780.8 | F126: 0
A127: 8057500982857 | B127: ICE by NS/PRO/RC/Перм. кр-крас.д/вол,7.32 русый золотисто-перламутров./7.32 blonde gold violet,60 мл | C127: 780.8 | D127: 780.8 | F127: 0
A128: 8057500982864 | B128: ICE by NS/PRO/RC/Перм.кр-крас.д/вол,8.32свет-рус.золот-перлам/8.32 light blonde gold violet,60 мл | C128: 780.8 | D128: 780.8 | F128: 0
A129: 8057500982871 | B129: ICE by NS/PRO/RC/Перм.кр-крас.д/вол,9.32оч.св.бл.золот-перл/9.32very light blonde gold violet,60 мл | C129: 780.8 | D129: 780.8 | F129: 0
A130: 8057500982888 | B130: ICE by NS/PRO/RC/Перм.кр-крас.д/вол,9.14оч.св.бл.пепел-карам/9.14 very light blonde ash copper,60 мл | C130: 780.8 | D130: 780.8 | F130: 0
A131: 8057500982895 | B131: ICE by NS/PRO/RC/Перм.кр-крас.д/вол,10.14платинбл.пепел-карам/10.14 platinum blonde ash copper,60 мл | C131: 780.8 | D131: 780.8 | F131: 0
A132: 8057500982901 | B132: ICE by NS/PRO/RC/Перм. кр-крас.д/вол,6.34 тёмн-рус.золот-карамел/6.34 dark blonde gold copper,60 мл | C132: 780.8 | D132: 780.8 | F132: 0
A133: 8057500982918 | B133: ICE by NS/PRO/RC/Перм. кр-крас.д/вол,8.34светл-рус.золот-карамел/8.34 light blonde gold copper,60 мл | C133: 780.8 | D133: 780.8 | F133: 0
A134: 8057500982925 | B134: ICE by NS/PRO/RC/Перм. кр-крас.д/вол, 5.4 светло-каштановый медный / 5.4 light brown copper, 60 мл | C134: 780.8 | D134: 780.8 | F134: 0
A135: 8057500982932 | B135: ICE by NS/PRO/RC/Перм. кр-крас.д/вол, 6.4 тёмно-русый медный / 6.4 dark blonde copper, 60 мл | C135: 780.8 | D135: 780.8 | F135: 0
A136: 8057500982949 | B136: ICE by NS/PRO/RC/Перм. кр-крас.д/вол,7.44 русый интенсивно медный/7.44 blonde copper intense,60 мл | C136: 780.8 | D136: 780.8 | F136: 0
A137: 8057500982956 | B137: ICE by NS/PRO/RC/Перм. кр-крас.д/вол,8.44 св-рус.интен.медный/8.44 light blonde copper intense,60 мл | C137: 780.8 | D137: 780.8 | F137: 0
A138: 8057500982963 | B138: ICE by NS/PRO/RC/Перм.кр-крас.д/вол,9.44оч.св.бл.инт.мед/9.44 very light blonde copper intense,60 мл | C138: 780.8 | D138: 780.8 | F138: 0
A139: 8057500982970 | B139: ICE by NS/PRO/RC/Перм. кр-крас.д/вол,7.46 русый медно-красный/7.46 blonde copper red,60 мл | C139: 780.8 | D139: 780.8 | F139: 0
A140: 8057500982987 | B140: ICE by NS/PRO/RC/Перм. кр-крас.д/вол,8.46 светл-русый медн-красн./8.46 light blonde copper red,60 мл | C140: 780.8 | D140: 780.8 | F140: 0
A141: 8057500982994 | B141: ICE by NS/PRO/RC/Перм.кр-крас.д/вол,10.46платин.бл.медн-красн/10.46 platinum blonde copper red,60 мл | C141: 780.8 | D141: =C141-C141*$E$5/100 -> 780.8 | F141: =E141*D141 -> 0
A142: 8057500983007 | B142: ICE by NS/PRO/RC/Перм. кр-крас.д/вол,5.5 светл-каштановый махагоновый/5.5 light brown mahogany,60 мл | C142: 780.8 | D142: 780.8 | F142: 0
A143: 8057500983014 | B143: ICE by NS/PRO/RC/Перм. кр-крас.д/вол, 6.5 тёмно-русый махагоновый / 6.5 dark blonde mahogany, 60 мл | C143: 780.8 | D143: 780.8 | F143: 0
A144: 8057500983021 | B144: ICE by NS/PRO/RC/Перм.кр-крас.д/вол,9.52оч.св.бл.роз-перла/9.52verylight blonde mahoganyviolet,60 мл | C144: 780.8 | D144: 780.8 | F144: 0
A145: 8057500983038 | B145: ICE by NS/PRO/RC/Перм. кр-крас.д/вол,6.15 тёмно-рус. пепел-розов/6.15 dark blonde ash mahogany,60 мл | C145: 780.8 | D145: 780.8 | F145: 0
A146: 8057500983045 | B146: ICE by NS/PRO/RC/Перм. кр-крас.д/вол,8.15светл-рус. пепел-розов/8.15 light blonde ash mahogany,60 мл | C146: 780.8 | D146: 780.8 | F146: 0
A147: 8057500983052 | B147: ICE by NS/PRO/RC/Перм.кр-крас.д/вол,9.15оч.св.бл.пепел-роз/9.15 very light blonde ash mahogany,60 мл | C147: 780.8 | D147: 780.8 | F147: 0
A148: 8057500983069 | B148: ICE by NS/PRO/RC/Перм. кр-крас.д/вол,10.15плати.бл.пепел-роз/10.15platinum blonde ash mahogany,60 мл | C148: 780.8 | D148: 780.8 | F148: 0
A149: 8057500983076 | B149: ICE by NS/PRO/RC/Перм. кр-крас.д/вол,6.25тём-рус.перлам-розОВ/6.25 dark blonde violet mahogany,60 мл | C149: 780.8 | D149: 780.8 | F149: 0
A150: 8057500983083 | B150: ICE by NS/PRO/RC/Перм.кр-крас.д/вол,8.25св.-рус.перлам-розов/8.25 light blonde violet mahogany,60 мл | C150: 780.8 | D150: 780.8 | F150: 0
A151: 8057500983090 | B151: ICE by NS/PRO/RC/Перм.кр-крас.д/вол,9.25оч.св.бл.перл-роз/9.25verylight blonde violet mahogany,60 мл | C151: 780.8 | D151: 780.8 | F151: 0
A152: 8057500983106 | B152: ICE by NS/PRO/RC/Перм.кр-крас.д/в,10.25плат.бл.перлам-роз/10.25platinum blonde violet mahogany,60 мл | C152: 780.8 | D152: 780.8 | F152: 0
A153: 8057500983113 | B153: ICE by NS/PRO/RC/Перм.кр-крас.д/в,12.25с.ос.бл.пер-роз/12.25superhightliftblondevioletmahogany,60 мл | C153: 780.8 | D153: 780.8 | F153: 0
A154: 8057500983120 | B154: ICE by NS/PRO/RC/Перм.кр-крас.д/вол,5.88св-каштан.интен.шоко/5.88light brown chocolate intense,60 мл | C154: 780.8 | D154: 780.8 | F154: 0
A155: 8057500983137 | B155: ICE by NS/PRO/RC/Перм.кр-крас.д/вол,6.88тёмн-рус.интен.шоко/6.88 dark blonde chocolate intense,60 мл | C155: 780.8 | D155: 780.8 | F155: 0
A156: 8057500983144 | B156: ICE by NS/PRO/RC/Перм. кр-крас.д/вол,7.88 рус.интенсивн.Шоколад./7.88 blonde chocolate intense,60 мл | C156: 780.8 | D156: 780.8 | F156: 0
A157: 8057500983151 | B157: ICE by NS/PRO/RC/Перм. кр-крас.д/вол,8.88св-рус.интенс.шоко/8.88light blonde chocolate intense,60 мл | C157: 780.8 | D157: 780.8 | F157: 0
A158: 8057500983168 | B158: ICE by NS/PRO/RC/Перм.кр-крас.д/вол,9.88 оч.св.бл.инт.шоко/9.88verylightblondechocolateintense,60 мл | C158: 780.8 | D158: 780.8 | F158: 0
A159: 8057500983175 | B159: ICE by NS/PRO/RC/Перм.кр-крас.д/вол,10.88плат.бл.инт.шоко/10.88platinumblonde chocolateintense,60 мл | C159: 780.8 | D159: 780.8 | F159: 0
A160: 8057500983182 | B160: ICE by NS/PRO/RC/Перм. кр-крас.д/вол,4.85 каштан.шоколад-махагон/4.85 brown chocolate mahogany,60 мл | C160: 780.8 | D160: 780.8 | F160: 0
A161: 8057500983199 | B161: ICE by NS/PRO/RC/Перм. кр-крас.д/вол,6.85тём-рус.шоко-махаг/6.85 darkblonde chocolate mahogany,60 мл | C161: 780.8 | D161: 780.8 | F161: 0
A162: 8057500983205 | B162: ICE by NS/PRO/RC/Перм. кр-крас.д/вол,7.85русыйшоколад-махагонов/7.85 blonde chocolate mahogany,60 мл | C162: 780.8 | D162: 780.8 | F162: 0
A163: 8057500983212 | B163: ICE by NS/PRO/RC/Перм. кр-крас.д/вол,8.85св-рус.шоко-махаг/8.85light blonde chocolate mahogany,60 мл | C163: 780.8 | D163: 780.8 | F163: 0
A164: 8057500983229 | B164: ICE by NS/PRO/RC/Перманентная крем-краска д/волос,6.6 тёмно-русый красный/6.6 dark blonde red,60 мл | C164: 780.8 | D164: 780.8 | F164: 0
A165: 8057500983236 | B165: ICE by NS/PRO/RC/Перм. кр-крас.д/вол,7.66 русый интенсивно-красный/7.66 blonde red intense,60 мл | C165: 780.8 | D165: 780.8 | F165: 0
A166: 8057500983243 | B166: ICE by NS/PRO/RC/Перм. кр-крас.д/вол,8.66 светл-рус интенс-красн/8.66 light blonde red intense,60 мл | C166: 780.8 | D166: 780.8 | F166: 0
A167: 8057500983250 | B167: ICE by NS/PRO/RC/Перм. кр-крас.д/вол,8.16 светл-рус пепел-кораллов/8.16 light blonde ash coral,60 мл | C167: 780.8 | D167: 780.8 | F167: 0
A168: 8057500983267 | B168: ICE by NS/PRO/RC/Перм. кр-крас.д/вол,9.16оч.св.бл.пепел-корал/9.16 very light blonde ash coral,60 мл | C168: 780.8 | D168: 780.8 | F168: 0
A169: 8057500983274 | B169: ICE by NS/PRO/RC/Перм.кр-крас.д/вол,10.16платин.бл.пепел-корал/10.16 platinum blonde ash coral,60 мл | C169: 780.8 | D169: 780.8 | F169: 0
A170: 8057500983281 | B170: ICE by NS/PRO/RC/Перманентная крем-краска для волос, 7.9 русый сандрэ / 7.9 blonde cendre, 60 мл | C170: 780.8 | D170: 780.8 | F170: 0
A171: 8057500983298 | B171: ICE by NS/PRO/RC/Перм. кр-крас.д/вол, 8.9 светло-русый сандрэ / 8.9 light blonde cendre, 60 мл | C171: 780.8 | D171: 780.8 | F171: 0
A172: 8057500983304 | B172: ICE by NS/PRO/RC/Перм. кр-крас.д/вол,9.9 оч.светл. блонд сандрэ/9.9 very light blonde cendre,60 мл | C172: 780.8 | D172: 780.8 | F172: 0
A173: 8057500983311 | B173: ICE by NS/PRO/RC/Перм. кр-крас.д/вол,10.9 платиновый блонд сандрэ/10.9 platinum blonde cendre,60 мл | C173: 780.8 | D173: 780.8 | F173: 0
A174: 8057500983328 | B174: ICE by NS/PRO/RC/Перм. кр-крас.д/вол,8.29св-рус.перламу.сандрэ/8.29 light blonde violet cendre,60 мл | C174: 780.8 | D174: 780.8 | F174: 0
A175: 8057500983335 | B175: ICE by NS/PRO/RC/Перм.кр-крас.д/вол,9.29оч.св.бл.перл.сандрэ/9.29verylight blonde violetcendre,60 мл | C175: 780.8 | D175: 780.8 | F175: 0
A176: 8057500983342 | B176: ICE by NS/PRO/RC/Перм.кр-крас.д/вол,10.29плат.бл.перл.сандрэ/10.29platinum blonde violetcendre,60 мл | C176: 780.8 | D176: 780.8 | F176: 0
A177: 8057500983359 | B177: ICE by NS/PRO/RC/Перм. кр-крас.д/вол,4.18 каштановый.пепельн.шоколад/4.18 brown ash chocolate,60 мл | C177: 780.8 | D177: 780.8 | F177: 0
A178: 8057500983366 | B178: ICE by NS/PRO/RC/Перм. кр-крас.д/вол, 5.18свет-каштан.пепел.шок/5.18 light brown ash chocolate,60 мл | C178: 780.8 | D178: 780.8 | F178: 0
A179: 8057500983373 | B179: ICE by NS/PRO/RC/Перм. кр-крас.д/вол,6.18 тёмно-рус.пепел.шоко/6.18 dark blonde ash chocolate,60 мл | C179: 780.8 | D179: 780.8 | F179: 0
A180: 8057500983380 | B180: ICE by NS/PRO/RC/Перм. кр-крас.д/вол,4.38 каштанов золотист-шоколадн/4.38 brown gold chocolate,60 мл | C180: 780.8 | D180: 780.8 | F180: 0
A181: 8057500983397 | B181: ICE by NS/PRO/RC/Перм.кр-крас.д/вол,5.38светл-каштан.золот-шоко/5.38 light gold gold chocolate,60 мл | C181: 780.8 | D181: 780.8 | F181: 0
A182: 8057500983403 | B182: ICE by NS/PRO/RC/Перм. кр-крас.д/вол,6.38 тёмн-рус.золот-шоколад/6.38 dark gold gold chocolate,60 мл | C182: 780.8 | D182: 780.8 | F182: 0
A183: 8057500983410 | B183: ICE by NS/PRO/RC/Перм. кр-крас.д/вол,8.38св-рус.золот-шоколад/8.38 light blonde gold chocolate,60 мл | C183: 780.8 | D183: 780.8 | F183: 0
A184: 8057500983427 | B184: ICE by NS/PRO/RC/Перм. кр-крас.д/вол,10.13платин.блонд.пепел-зол/10.13 platinum blonde ashgold,60 мл | C184: 780.8 | D184: 780.8 | F184: 0
A185: 8057500983434 | B185: ICE by NS/PRO/RC/Перм. кр-крас.д/вол,8.01светл-рус.натурал.пепел/8.01 light blonde natural ash,60 мл | C185: 780.8 | D185: 780.8 | F185: 0
A186: 8057500983441 | B186: ICE by NS/PRO/RC/Перм. кр-крас.д/вол,9.13 оч.св.блонд пепел-золот/9.13very light blondeashgold,60 мл | C186: 780.8 | D186: 780.8 | F186: 0
A187: i057500980662 | B187: ICE by NS / PRO / Крем-окислитель 10 vol (3%), 1000 мл | C187: 976 | D187: 976 | F187: 0
A188: i057500980655 | B188: ICE by NS / PRO / Крем-окислитель 10 vol (3%), 200 мл | C188: 406.67 | D188: 406.67 | F188: 0
A189: i057500980686 | B189: ICE by NS / PRO / Крем-окислитель 20 vol (6%), 1000 мл | C189: 976 | D189: 976 | F189: 0
A190: i057500980679 | B190: ICE by NS / PRO / Крем-окислитель 20 vol (6%), 200 мл | C190: 406.67 | D190: 406.67 | F190: =E190*D190 -> 0
A191: i057500980709 | B191: ICE by NS / PRO / Крем-окислитель 30 vol (9%), 1000 мл | C191: 976 | D191: 976 | F191: 0
A192: i057500980693 | B192: ICE by NS / PRO / Крем-окислитель 30 vol (9%), 200 мл | C192: 406.67 | D192: 406.67 | F192: 0
A193: i057500980723 | B193: ICE by NS / PRO / Крем-окислитель 40 vol (12%), 1000 мл | C193: 976 | D193: 976 | F193: 0
A194: i057500980716 | B194: ICE by NS / PRO /Крем-окислитель 40 vol (12%), 200 мл | C194: 406.67 | D194: 406.67 | F194: 0
A195: i057500980648 | B195: ICE by NS / PRO / Крем-окислитель 6 vol (1,8%), 1000 мл | C195: 976 | D195: 976 | F195: 0
A196: i057500980631 | B196: ICE by NS / PRO / Крем-окислитель 6 vol (1,8%), 200 мл | C196: 406.67 | D196: 406.67 | F196: 0
A197: i057500981676 | B197: ICE by NS / PRO / Обесцвечивающая пудра для волос, 500 г | C197: 2023.17 | D197: 2023.17 | F197: 0
A198: i057500980730 | B198: ICE by NS / PRO / Перманентная крем-краска для волос, тон 1.0 черный натуральный, 100 мл | C198: 781.82 | D198: 781.82 | F198: 0
A199: i057500980747 | B199: ICE by NS / PRO / Перманентная крем-краска для волос, тон 10.0 экстра светлый блонд натурал.,100 мл | C199: 781.82 | D199: 781.82 | F199: 0
A200: i057500980761 | B200: ICE by NS / PRO / Перманентная крем-краска для волос, тон 10.1 экстра светлый блонд пепельный,100 мл | C200: 781.82 | D200: 781.82 | F200: 0
A201: i057500980822 | B201: ICE by NS / PRO / Перманентная крем-краска для волос, тон 10.21 светлый блонд пепельно-фиолет,100 мл | C201: 781.82 | D201: 781.82 | F201: 0
A202: i057500980860 | B202: ICE by NS / PRO / Перманентная крем-краска для волос, тон 10.29 экстра свет блонд фиол сандре,100 мл | C202: 781.82 | D202: 781.82 | F202: 0
A203: i057500980907 | B203: ICE by NS / PRO / Перманентная крем-краска для волос, тон 12.0 супер блонд натуральный, 100 мл | C203: 781.82 | D203: 781.82 | F203: 0
A204: i057500980914 | B204: ICE by NS / PRO / Перманентная крем-краска для волос, тон 12.1 супер блонд пепельный, 100 мл | C204: 781.82 | D204: 781.82 | F204: 0
... 99 more rows

Sheet ICE by Nатура Siberica
C14: ПРАЙС-ЛИСТ | D14: Проставьте в зеленой ячейке вашу скидку | G14: %
C15: ICE Professional by NATURA SIBERICA
A18: 2026-04-01 | C18: АКЦИЯ ПО КРАСИТЕЛЮ (любые) 1+1 = 782 РУБ АКЦИЯ Окислитель 4+2 (бесплатно)!!
A19: Артикул | B19: штрих-код | C19: Наименование | D19: Шт/кор | E19: РРЦ (руб) | F19: Цена с НДС (руб) | G19: Цена с вашей скидкой,руб | H19: ЗАКАЗ шт | I19: Сумма по заказу с вашей скидкой, руб
C20: НОВИНКА !!! Окрашивание волос
A21: 0991-1-0631 | B21: =VLOOKUP(A21,[1]Лист1!$A$3:$B$338,2,0) ->  | C21: ICE Крем-окислитель 1,8% (6 vol) , 200 мл | D21: 6 | E21: 450 | F21: 407 | G21: =F21 -> 407 | I21: =G21*H21 -> 0
A22: 0991-1-0655 | B22: =VLOOKUP(A22,[1]Лист1!$A$3:$B$338,2,0) ->  | C22: ICE Крем-окислитель 3% (10 vol) , 200 мл | D22: 6 | E22: 450 | F22: 407 | G22: =F22 -> 407 | I22: 0
A23: 0991-1-0679 | B23: =VLOOKUP(A23,[1]Лист1!$A$3:$B$338,2,0) ->  | C23: ICE Крем-окислитель 6% (20 vol) , 200 мл | D23: 6 | E23: 450 | F23: 407 | G23: 407 | I23: 0
A24: 0991-1-0693 | B24: =VLOOKUP(A24,[1]Лист1!$A$3:$B$338,2,0) ->  | C24: ICE Крем-окислитель 9% (30 vol), 200 мл | D24: 6 | E24: 450 | F24: 407 | G24: 407 | I24: 0
A25: 0991-1-0716 | B25: =VLOOKUP(A25,[1]Лист1!$A$3:$B$338,2,0) ->  | C25: ICE Крем-окислитель 12% (40 vol) , 200 мл | D25: 6 | E25: 450 | F25: 407 | G25: 407 | I25: 0
A26: 0991-1-2260 | B26: =VLOOKUP(A26,[1]Лист1!$A$3:$B$338,2,0) ->  | C26: ICE Крем-краска д/волос 1.0 чёрный 60 мл | D26: 6 | E26: 590 | F26: 450 | G26: 450 | I26: 0
A27: 0991-1-2277 | B27: =VLOOKUP(A27,[1]Лист1!$A$3:$B$338,2,0) ->  | C27: ICE Крем-краска д/волос 3.0 тёмно-каштановый 60 мл | D27: 6 | E27: 590 | F27: 450 | G27: 450 | I27: 0
A28: 0991-1-2284 | B28: =VLOOKUP(A28,[1]Лист1!$A$3:$B$338,2,0) ->  | C28: ICE Крем-краска д/волос 4.0 каштановый 60 мл | D28: 6 | E28: 590 | F28: 450 | G28: 450 | I28: 0
A29: 0991-1-2291 | B29: =VLOOKUP(A29,[1]Лист1!$A$3:$B$338,2,0) ->  | C29: ICE Крем-краска д/волос 5.0 светло-каштановый 60 мл | D29: 6 | E29: 590 | F29: 450 | G29: 450 | I29: 0
A30: 0991-1-2307 | B30: =VLOOKUP(A30,[1]Лист1!$A$3:$B$338,2,0) ->  | C30: ICE Крем-краска д/волос 6.0 тёмно-русый 60 мл | D30: 6 | E30: 590 | F30: 450 | G30: 450 | I30: 0
A31: 0991-1-2314 | B31: =VLOOKUP(A31,[1]Лист1!$A$3:$B$338,2,0) ->  | C31: ICE Крем-краска д/волос 7.0 русый 60 мл | D31: 6 | E31: 590 | F31: 450 | G31: 450 | I31: 0
A32: 0991-1-2321 | B32: =VLOOKUP(A32,[1]Лист1!$A$3:$B$338,2,0) ->  | C32: ICE Крем-краска д/волос 8.0 светло-русый 60 мл | D32: 6 | E32: 590 | F32: 450 | G32: 450 | I32: 0
A33: 0991-1-2338 | B33: =VLOOKUP(A33,[1]Лист1!$A$3:$B$338,2,0) ->  | C33: ICE Крем-краска д/волос 9.0 очень светлый блонд 60 мл | D33: 6 | E33: 590 | F33: 450 | G33: 450 | I33: 0
A34: 0991-1-2345 | B34: =VLOOKUP(A34,[1]Лист1!$A$3:$B$338,2,0) ->  | C34: ICE Крем-краска д/волос 10.0 платиновый блонд 60 мл | D34: 6 | E34: 590 | F34: 450 | G34: 450 | I34: 0
A35: 0991-1-2352 | B35: =VLOOKUP(A35,[1]Лист1!$A$3:$B$338,2,0) ->  | C35: ICE Крем-краска д/волос 11.0 осветляющий блонд 60 мл | D35: 6 | E35: 590 | F35: 450 | G35: 450 | I35: 0
A36: 0991-1-2369 | B36: =VLOOKUP(A36,[1]Лист1!$A$3:$B$338,2,0) ->  | C36: ICE Крем-краска д/волос 12.0 супер осветляющий блонд 60 мл | D36: 6 | E36: 590 | F36: 450 | G36: 450 | I36: 0
A37: 0991-1-2376 | B37: =VLOOKUP(A37,[1]Лист1!$A$3:$B$338,2,0) ->  | C37: ICE Крем-краска д/волос 4.00 каштановый д/седины 60 мл | D37: 6 | E37: 590 | F37: 450 | G37: 450 | I37: 0
A38: 0991-1-2383 | B38: =VLOOKUP(A38,[1]Лист1!$A$3:$B$338,2,0) ->  | C38: ICE Крем-краска д/волос 5.00 светл-каштан.д/седины 60 мл | D38: 6 | E38: 590 | F38: 450 | G38: 450 | I38: 0
A39: 0991-1-2390 | B39: =VLOOKUP(A39,[1]Лист1!$A$3:$B$338,2,0) ->  | C39: ICE Крем-краска д/волос 6.00 тёмно-русый д/седины 60 мл | D39: 6 | E39: 590 | F39: 450 | G39: 450 | I39: 0
A40: 0991-1-2406 | B40: =VLOOKUP(A40,[1]Лист1!$A$3:$B$338,2,0) ->  | C40: ICE Крем-краска д/волос 7.00 русый д/седины 60мл | D40: 6 | E40: 590 | F40: 450 | G40: 450 | I40: 0
A41: 0991-1-2413 | B41: =VLOOKUP(A41,[1]Лист1!$A$3:$B$338,2,0) ->  | C41: ICE Крем-краска д/волос 8.00 светло-русый д/седины 60 мл | D41: 6 | E41: 590 | F41: 450 | G41: 450 | I41: 0
A42: 0991-1-2420 | B42: =VLOOKUP(A42,[1]Лист1!$A$3:$B$338,2,0) ->  | C42: ICE Крем-краска д/волос 9.00 оч.светл.блонд д/седины 60 мл | D42: 6 | E42: 590 | F42: 450 | G42: 450 | I42: 0
A43: 0991-1-2437 | B43: =VLOOKUP(A43,[1]Лист1!$A$3:$B$338,2,0) ->  | C43: ICE Крем-краска д/волос 4.1 каштановый пепельный 60 мл | D43: 6 | E43: 590 | F43: 450 | G43: 450 | I43: 0
A44: 0991-1-2444 | B44: =VLOOKUP(A44,[1]Лист1!$A$3:$B$338,2,0) ->  | C44: ICE Крем-краска д/волос 5.1 светло-каштановый пепельный 60 мл | D44: 6 | E44: 590 | F44: 450 | G44: 450 | I44: 0
A45: 0991-1-2451 | B45: =VLOOKUP(A45,[1]Лист1!$A$3:$B$338,2,0) ->  | C45: ICE Крем-краска д/волос 6.1 тёмно-русый пепельный 60 мл | D45: 6 | E45: 590 | F45: 450 | G45: 450 | I45: 0
A46: 0991-1-2468 | B46: =VLOOKUP(A46,[1]Лист1!$A$3:$B$338,2,0) ->  | C46: ICE Крем-краска д/волос 7.1 русый пепельный 60 мл | D46: 6 | E46: 590 | F46: 450 | G46: 450 | I46: 0
A47: 0991-1-2475 | B47: =VLOOKUP(A47,[1]Лист1!$A$3:$B$338,2,0) ->  | C47: ICE Крем-краска д/волос 8.1 светло-русый пепельный 60 мл | D47: 6 | E47: 590 | F47: 450 | G47: 450 | I47: 0
A48: 0991-1-2482 | B48: =VLOOKUP(A48,[1]Лист1!$A$3:$B$338,2,0) ->  | C48: ICE Крем-краска д/волос 9.1 оч. светл. блонд пепел 60 мл | D48: 6 | E48: 590 | F48: 450 | G48: 450 | I48: 0
A49: 0991-1-2499 | B49: =VLOOKUP(A49,[1]Лист1!$A$3:$B$338,2,0) ->  | C49: ICE Крем-краска д/волос 10.1 платин.блонд пепельный 60 мл | D49: 6 | E49: 590 | F49: 450 | G49: 450 | I49: 0
A50: 0991-1-2505 | B50: =VLOOKUP(A50,[1]Лист1!$A$3:$B$338,2,0) ->  | C50: ICE Крем-краска д/волос 11.1 осветл. блонд пепел. 60 мл | D50: 6 | E50: 590 | F50: 450 | G50: 450 | I50: 0
A51: 0991-1-2512 | B51: =VLOOKUP(A51,[1]Лист1!$A$3:$B$338,2,0) ->  | C51: ICE Крем-краска д/волос 12.1 суп.осветл.блонд.пепел 60 мл | D51: 6 | E51: 590 | F51: 450 | G51: 450 | I51: 0
A52: 0991-1-2529 | B52: =VLOOKUP(A52,[1]Лист1!$A$3:$B$338,2,0) ->  | C52: ICE Крем-краска д/волос 7.01 русый натуральный пепельный 60мл | D52: 6 | E52: 590 | F52: 450 | G52: 450 | I52: 0
A53: 0991-1-2536 | B53: =VLOOKUP(A53,[1]Лист1!$A$3:$B$338,2,0) ->  | C53: ICE Крем-краска д/волос 6.11 тёмн-рус.интенс.-пепел 60 мл | D53: 6 | E53: 590 | F53: 450 | G53: 450 | I53: 0
A54: 0991-1-2543 | B54: =VLOOKUP(A54,[1]Лист1!$A$3:$B$338,2,0) ->  | C54: ICE Крем-краска д/волос 9.11 оч.светл.блонд.интенс-пепел 60 мл | D54: 6 | E54: 590 | F54: 450 | G54: 450 | I54: 0
A55: 0991-1-2550 | B55: =VLOOKUP(A55,[1]Лист1!$A$3:$B$338,2,0) ->  | C55: ICE Крем-краска д/волос 10.11 платин.блонд интенс-пепел 60 мл | D55: 6 | E55: 590 | F55: 450 | G55: 450 | I55: 0
A56: 0991-1-2567 | B56: =VLOOKUP(A56,[1]Лист1!$A$3:$B$338,2,0) ->  | C56: ICE Крем-краска д/волос 8.02 светл-рус.натур-пепел 60 мл | D56: 6 | E56: 590 | F56: 450 | G56: 450 | I56: 0
A57: 0991-1-2574 | B57: =VLOOKUP(A57,[1]Лист1!$A$3:$B$338,2,0) ->  | C57: ICE Крем-краска д/волос 10.02 платин.блонд нат-пепел 60 мл | D57: 6 | E57: 590 | F57: 450 | G57: 450 | I57: 0
A58: 0991-1-2581 | B58: =VLOOKUP(A58,[1]Лист1!$A$3:$B$338,2,0) ->  | C58: ICE Крем-краска д/волос 3.2 тёмно-каштановый фиолетовый 60 мл | D58: 6 | E58: 590 | F58: 450 | G58: 450 | I58: 0
A59: 0991-1-2598 | B59: =VLOOKUP(A59,[1]Лист1!$A$3:$B$338,2,0) ->  | C59: ICE Крем-краска д/волос 5.2 светло-каштановый фиолетовый 60 мл | D59: 6 | E59: 590 | F59: 450 | G59: 450 | I59: 0
A60: 0991-1-2604 | B60: =VLOOKUP(A60,[1]Лист1!$A$3:$B$338,2,0) ->  | C60: ICE Крем-краска д/волос 7.2 русый фиолетовый 60 мл | D60: 6 | E60: 590 | F60: 450 | G60: 450 | I60: 0
A61: 0991-1-2611 | B61: =VLOOKUP(A61,[1]Лист1!$A$3:$B$338,2,0) ->  | C61: ICE Крем-краска д/волос 11.2 осветл. блонд перламутр 60 мл | D61: 6 | E61: 590 | F61: 450 | G61: 450 | I61: 0
A62: 0991-1-2628 | B62: =VLOOKUP(A62,[1]Лист1!$A$3:$B$338,2,0) ->  | C62: ICE Крем-краска д/волос 10.22 плаин.блонд инт-перлам 60 мл | D62: 6 | E62: 590 | F62: 450 | G62: 450 | I62: 0
A63: 0991-1-2635 | B63: =VLOOKUP(A63,[1]Лист1!$A$3:$B$338,2,0) ->  | C63: ICE Крем-краска д/волос 12.22 суп.осветл.блонд инт-пер 60 мл | D63: 6 | E63: 590 | F63: 450 | G63: 450 | I63: 0
A64: 0991-1-2642 | B64: =VLOOKUP(A64,[1]Лист1!$A$3:$B$338,2,0) ->  | C64: ICE Крем-краска д/волос 6.12 тёмн-рус.пепел-перламутр 60 мл | D64: 6 | E64: 590 | F64: 450 | G64: 450 | I64: 0
A65: 0991-1-2659 | B65: =VLOOKUP(A65,[1]Лист1!$A$3:$B$338,2,0) ->  | C65: ICE Крем-краска д/волос 7.12 русый пепельно-перламутровый 60 мл | D65: 6 | E65: 590 | F65: 450 | G65: 450 | I65: 0
A66: 0991-1-2666 | B66: =VLOOKUP(A66,[1]Лист1!$A$3:$B$338,2,0) ->  | C66: ICE Крем-краска д/волос 8.12 светл-рус.пепел-перламутр 60 мл | D66: 6 | E66: 590 | F66: 450 | G66: 450 | I66: 0
A67: 0991-1-2673 | B67: =VLOOKUP(A67,[1]Лист1!$A$3:$B$338,2,0) ->  | C67: ICE Крем-краска д/волос 9.12 оч.светл.бл.пепел-перлам 60 мл | D67: 6 | E67: 590 | F67: 450 | G67: 450 | I67: 0
A68: 0991-1-2680 | B68: =VLOOKUP(A68,[1]Лист1!$A$3:$B$338,2,0) ->  | C68: ICE Крем-краска д/волос 10.12 платин.блонд пепел-перлам 60 мл | D68: 6 | E68: 590 | F68: 450 | G68: 450 | I68: 0
A69: 0991-1-2697 | B69: =VLOOKUP(A69,[1]Лист1!$A$3:$B$338,2,0) ->  | C69: ICE Крем-краска д/волос 7.21 русый перламутрово-пепельный 60 мл | D69: 6 | E69: 590 | F69: 450 | G69: 450 | I69: 0
A70: 0991-1-2703 | B70: =VLOOKUP(A70,[1]Лист1!$A$3:$B$338,2,0) ->  | C70: ICE Крем-краска д/волос 8.21 светл-рус.перлам-пепел 60 мл | D70: 6 | E70: 590 | F70: 450 | G70: 450 | I70: 0
A71: 0991-1-2710 | B71: =VLOOKUP(A71,[1]Лист1!$A$3:$B$338,2,0) ->  | C71: ICE Крем-краска д/волос 9.21 оч.светл.блонд.перлам-пепел 60 мл | D71: 6 | E71: 590 | F71: 450 | G71: 450 | I71: 0
A72: 0991-1-2727 | B72: =VLOOKUP(A72,[1]Лист1!$A$3:$B$338,2,0) ->  | C72: ICE Крем-краска д/волос 10.21 платин.бл.перлам-пепел 60 мл | D72: 6 | E72: 590 | F72: 450 | G72: 450 | I72: 0
A73: 0991-1-2734 | B73: =VLOOKUP(A73,[1]Лист1!$A$3:$B$338,2,0) ->  | C73: ICE Крем-краска д/волос 11.21 осветл. блонд.перлам-пепел 60 мл | D73: 6 | E73: 590 | F73: 450 | G73: 450 | I73: 0
A74: 0991-1-2741 | B74: =VLOOKUP(A74,[1]Лист1!$A$3:$B$338,2,0) ->  | C74: ICE Крем-краска д/волос 12.21 суп.осветл.бл перл-пепел 60 мл | D74: 6 | E74: 590 | F74: 450 | G74: 450 | I74: 0
A75: 0991-1-2758 | B75: =VLOOKUP(A75,[1]Лист1!$A$3:$B$338,2,0) ->  | C75: ICE Крем-краска д/волос 5.3 светло-каштановый золотистый 60 мл | D75: 6 | E75: 590 | F75: 450 | G75: 450 | I75: 0
A76: 0991-1-2765 | B76: =VLOOKUP(A76,[1]Лист1!$A$3:$B$338,2,0) ->  | C76: ICE Крем-краска д/волос 6.3 тёмно-русый золотистый 60 мл | D76: 6 | E76: 590 | F76: 450 | G76: 450 | I76: 0
A77: 0991-1-2772 | B77: =VLOOKUP(A77,[1]Лист1!$A$3:$B$338,2,0) ->  | C77: ICE Крем-краска д/волос 7.3 русый золотистый 60 мл | D77: 6 | E77: 590 | F77: 450 | G77: 450 | I77: 0
A78: 0991-1-2789 | B78: =VLOOKUP(A78,[1]Лист1!$A$3:$B$338,2,0) ->  | C78: ICE Крем-краска д/волос 8.3 светло-русый золотистый 60 мл | D78: 6 | E78: 590 | F78: 450 | G78: 450 | I78: 0
A79: 0991-1-2796 | B79: =VLOOKUP(A79,[1]Лист1!$A$3:$B$338,2,0) ->  | C79: ICE Крем-краска д/волос 5.23 светл-каштан.перламутр. 60 мл | D79: 6 | E79: 590 | F79: 450 | G79: 450 | I79: 0
A80: 0991-1-2802 | B80: =VLOOKUP(A80,[1]Лист1!$A$3:$B$338,2,0) ->  | C80: ICE Крем-краска д/волос 8.23 светл-рус. перламутров 60 мл | D80: 6 | E80: 590 | F80: 450 | G80: 450 | I80: 0
A81: 0991-1-2819 | B81: =VLOOKUP(A81,[1]Лист1!$A$3:$B$338,2,0) ->  | C81: ICE Крем-краска д/волос 9.23 оч.светл.блонд.перлам 60 мл | D81: 6 | E81: 590 | F81: 450 | G81: 450 | I81: 0
A82: 0991-1-2826 | B82: =VLOOKUP(A82,[1]Лист1!$A$3:$B$338,2,0) ->  | C82: ICE Крем-краска д/волос 10.23 платин.блонд перлам 60 мл | D82: 6 | E82: 590 | F82: 450 | G82: 450 | I82: 0
A83: 0991-1-2833 | B83: =VLOOKUP(A83,[1]Лист1!$A$3:$B$338,2,0) ->  | C83: ICE Крем-краска д/волос 5.32 светл-каштан.золот-перлам 60 мл | D83: 6 | E83: 590 | F83: 450 | G83: 450 | I83: 0
A84: 0991-1-2840 | B84: =VLOOKUP(A84,[1]Лист1!$A$3:$B$338,2,0) ->  | C84: ICE Крем-краска д/волос 6.32 тёмно-рус.золотис-перлам 60мл | D84: 6 | E84: 590 | F84: 450 | G84: 450 | I84: 0
A85: 0991-1-2857 | B85: =VLOOKUP(A85,[1]Лист1!$A$3:$B$338,2,0) ->  | C85: ICE Крем-краска д/волос 7.32 русый золотисто-перламутров.60 мл | D85: 6 | E85: 590 | F85: 450 | G85: 450 | I85: =G85*H85 -> 0
A86: 0991-1-2864 | B86: =VLOOKUP(A86,[1]Лист1!$A$3:$B$338,2,0) ->  | C86: ICE Крем-краска д/волос 8.32 светл-рус.золот-перлам 60 мл | D86: 6 | E86: 590 | F86: 450 | G86: =F86 -> 450 | I86: 0
A87: 0991-1-2871 | B87: =VLOOKUP(A87,[1]Лист1!$A$3:$B$338,2,0) ->  | C87: ICE Крем-краска д/волос 9.32 оч.светл.бленд.золот-перл 60 мл | D87: 6 | E87: 590 | F87: 450 | G87: 450 | I87: 0
A88: 0991-1-2888 | B88: =VLOOKUP(A88,[1]Лист1!$A$3:$B$338,2,0) ->  | C88: ICE Крем-краска д/волос 9.14 оч.светл.блонд.пепел-карам 60 мл | D88: 6 | E88: 590 | F88: 450 | G88: 450 | I88: 0
A89: 0991-1-2895 | B89: =VLOOKUP(A89,[1]Лист1!$A$3:$B$338,2,0) ->  | C89: ICE Крем-краска д/волос 10.14 платин.блонд пепел-карам 60 мл | D89: 6 | E89: 590 | F89: 450 | G89: 450 | I89: 0
A90: 0991-1-2901 | B90: =VLOOKUP(A90,[1]Лист1!$A$3:$B$338,2,0) ->  | C90: ICE Крем-краска д/волос 6.34 тёмн-рус.золот-карамел 60мл | D90: 6 | E90: 590 | F90: 450 | G90: 450 | I90: 0
A91: 0991-1-2918 | B91: =VLOOKUP(A91,[1]Лист1!$A$3:$B$338,2,0) ->  | C91: ICE Крем-краска д/волос 8.34 светл-рус.золот-карамел 60 мл | D91: 6 | E91: 590 | F91: 450 | G91: 450 | I91: 0
A92: 0991-1-2925 | B92: =VLOOKUP(A92,[1]Лист1!$A$3:$B$338,2,0) ->  | C92: ICE Крем-краска д/волос 5.4 светло-каштановый медный 60 мл | D92: 6 | E92: 590 | F92: 450 | G92: 450 | I92: 0
A93: 0991-1-2932 | B93: =VLOOKUP(A93,[1]Лист1!$A$3:$B$338,2,0) ->  | C93: ICE Крем-краска д/волос 6.4 тёмно-русый медный 60 мл | D93: 6 | E93: 590 | F93: 450 | G93: 450 | I93: 0
A94: 0991-1-2949 | B94: =VLOOKUP(A94,[1]Лист1!$A$3:$B$338,2,0) ->  | C94: ICE Крем-краска д/волос 7.44 русый интенсивно медный 60 мл | D94: 6 | E94: 590 | F94: 450 | G94: 450 | I94: 0
A95: 0991-1-2956 | B95: =VLOOKUP(A95,[1]Лист1!$A$3:$B$338,2,0) ->  | C95: ICE Крем-краска д/волос 8.44 светл-рус.интен.медный 60 мл | D95: 6 | E95: 590 | F95: 450 | G95: 450 | I95: 0
A96: 0991-1-2963 | B96: =VLOOKUP(A96,[1]Лист1!$A$3:$B$338,2,0) ->  | C96: ICE Крем-краска д/волос 9.44 оч.светл.блонд.инт.медн 60 мл | D96: 6 | E96: 590 | F96: 450 | G96: 450 | I96: 0
A97: 0991-1-2970 | B97: =VLOOKUP(A97,[1]Лист1!$A$3:$B$338,2,0) ->  | C97: ICE Крем-краска д/волос 7.46 русый медно-красный 60 мл | D97: 6 | E97: 590 | F97: 450 | G97: 450 | I97: 0
A98: 0991-1-2987 | B98: =VLOOKUP(A98,[1]Лист1!$A$3:$B$338,2,0) ->  | C98: ICE Крем-краска д/волос 8.46 светло-русый медн-красн. 60 мл | D98: 6 | E98: 590 | F98: 450 | G98: 450 | I98: 0
A99: 0991-1-2994 | B99: =VLOOKUP(A99,[1]Лист1!$A$3:$B$338,2,0) ->  | C99: ICE Крем-краска д/волос 10.46 платин.блонд.медн-красн 60 мл | D99: 6 | E99: 590 | F99: 450 | G99: 450 | I99: 0
A100: 0991-1-3007 | B100: =VLOOKUP(A100,[1]Лист1!$A$3:$B$338,2,0) ->  | C100: ICE Крем-краска д/волос 5.5 светло-каштановый махагоновый 60 мл | D100: 6 | E100: 590 | F100: 450 | G100: 450 | I100: 0
A101: 0991-1-3014 | B101: =VLOOKUP(A101,[1]Лист1!$A$3:$B$338,2,0) ->  | C101: ICE Крем-краска д/волос 6.5 тёмно-русый махагоновый 60 мл | D101: 6 | E101: 590 | F101: 450 | G101: 450 | I101: 0
A102: 0991-1-3021 | B102: =VLOOKUP(A102,[1]Лист1!$A$3:$B$338,2,0) ->  | C102: ICE Крем-краска д/волос 9.52 оч.светл.блонд.роз-перлам 60 мл | D102: 6 | E102: 590 | F102: 450 | G102: 450 | I102: 0
A103: 0991-1-3038 | B103: =VLOOKUP(A103,[1]Лист1!$A$3:$B$338,2,0) ->  | C103: ICE Крем-краска д/волос 6.15 тёмно-рус. пепел-розов 60 мл | D103: 6 | E103: 590 | F103: 450 | G103: 450 | I103: 0
A104: 0991-1-3045 | B104: =VLOOKUP(A104,[1]Лист1!$A$3:$B$338,2,0) ->  | C104: ICE Крем-краска д/волос 8.15 светл-рус. пепел-розов 60 мл | D104: 6 | E104: 590 | F104: 450 | G104: 450 | I104: 0
A105: 0991-1-3052 | B105: =VLOOKUP(A105,[1]Лист1!$A$3:$B$338,2,0) ->  | C105: ICE Крем-краска д/волос 9.15 оч.светл.блонд.пепел-роз 60 мл | D105: 6 | E105: 590 | F105: 450 | G105: 450 | I105: 0
A106: 0991-1-3069 | B106: =VLOOKUP(A106,[1]Лист1!$A$3:$B$338,2,0) ->  | C106: ICE Крем-краска д/волос 10.15 платин.блонд пепел-роз 60 мл | D106: 6 | E106: 590 | F106: 450 | G106: 450 | I106: 0
A107: 0991-1-3076 | B107: =VLOOKUP(A107,[1]Лист1!$A$3:$B$338,2,0) ->  | C107: ICE Крем-краска д/волос 6.25 тём-рус.перлам-розов 60 мл | D107: 6 | E107: 590 | F107: 450 | G107: 450 | I107: 0
A108: 0991-1-3083 | B108: =VLOOKUP(A108,[1]Лист1!$A$3:$B$338,2,0) ->  | C108: ICE Крем-краска д/волос 8.25 светл.-рус.перлам-розов 60 мл | D108: 6 | E108: 590 | F108: 450 | G108: 450 | I108: 0
A109: 0991-1-3090 | B109: =VLOOKUP(A109,[1]Лист1!$A$3:$B$338,2,0) ->  | C109: ICE Крем-краска д/волос 9.25 оч.светл.блонд.перл-роз 60 мл | D109: 6 | E109: 590 | F109: 450 | G109: 450 | I109: 0
A110: 0991-1-3106 | B110: =VLOOKUP(A110,[1]Лист1!$A$3:$B$338,2,0) ->  | C110: ICE Крем-краска д/волос 10.25 платин.блонд перлам-роз 60 мл | D110: 6 | E110: 590 | F110: 450 | G110: 450 | I110: 0
A111: 0991-1-3113 | B111: =VLOOKUP(A111,[1]Лист1!$A$3:$B$338,2,0) ->  | C111: ICE Крем-краска д/волос 12.25 суп.осветл.блонд пер-роз 60 мл | D111: 6 | E111: 590 | F111: 450 | G111: 450 | I111: 0
A112: 0991-1-3120 | B112: =VLOOKUP(A112,[1]Лист1!$A$3:$B$338,2,0) ->  | C112: ICE Крем-краска д/волос 5.88 светл-каштан.интен.шокол 60 мл | D112: 6 | E112: 590 | F112: 450 | G112: 450 | I112: 0
A113: 0991-1-3137 | B113: =VLOOKUP(A113,[1]Лист1!$A$3:$B$338,2,0) ->  | C113: ICE Крем-краска д/волос 6.88 тёмн-рус.интен.шокол 60 мл | D113: 6 | E113: 590 | F113: 450 | G113: 450 | I113: 0
A114: 0991-1-3144 | B114: =VLOOKUP(A114,[1]Лист1!$A$3:$B$338,2,0) ->  | C114: ICE Крем-краска д/волос 7.88 рус.интенсивн.шоколад 60 мл | D114: 6 | E114: 590 | F114: 450 | G114: 450 | I114: 0
A115: 0991-1-3151 | B115: =VLOOKUP(A115,[1]Лист1!$A$3:$B$338,2,0) ->  | C115: ICE Крем-краска д/волос 8.88 светло-рус.интенс.шокол 60 мл | D115: 6 | E115: 590 | F115: 450 | G115: 450 | I115: 0
A116: 0991-1-3168 | B116: =VLOOKUP(A116,[1]Лист1!$A$3:$B$338,2,0) ->  | C116: ICE Крем-краска д/волос 9.88 оч.светл.блонд.инт.шокол 60 мл | D116: 6 | E116: 590 | F116: 450 | G116: 450 | I116: 0
A117: 0991-1-3175 | B117: =VLOOKUP(A117,[1]Лист1!$A$3:$B$338,2,0) ->  | C117: ICE Крем-краска д/волос 10.88 платин.блонд.инт.шокол 60 мл | D117: 6 | E117: 590 | F117: 450 | G117: 450 | I117: 0
A118: 0991-1-3182 | B118: =VLOOKUP(A118,[1]Лист1!$A$3:$B$338,2,0) ->  | C118: ICE Крем-краска д/волос 4.85 каштан.шоколад-махагоновый 60 мл | D118: 6 | E118: 590 | F118: 450 | G118: 450 | I118: 0
A119: 0991-1-3199 | B119: =VLOOKUP(A119,[1]Лист1!$A$3:$B$338,2,0) ->  | C119: ICE Крем-краска д/волос 6.85 тёмно-рус.шоколад-махагоновый 60мл | D119: 6 | E119: 590 | F119: 450 | G119: 450 | I119: 0
A120: 0991-1-3205 | B120: =VLOOKUP(A120,[1]Лист1!$A$3:$B$338,2,0) ->  | C120: ICE Крем-краска д/волос 7.85 русый шоколад-махагоновый 60 мл | D120: 6 | E120: 590 | F120: 450 | G120: 450 | I120: 0
A121: 0991-1-3212 | B121: =VLOOKUP(A121,[1]Лист1!$A$3:$B$338,2,0) ->  | C121: ICE Крем-краска д/волос 8.85 светло-рус.шоколад-махагоновый 60 мл | D121: 6 | E121: 590 | F121: 450 | G121: 450 | I121: 0
A122: 0991-1-3229 | B122: =VLOOKUP(A122,[1]Лист1!$A$3:$B$338,2,0) ->  | C122: ICE Крем-краска д/волос 6.6 тёмно-русый красный 60 мл | D122: 6 | E122: 590 | F122: 450 | G122: 450 | I122: 0
A123: 0991-1-3236 | B123: =VLOOKUP(A123,[1]Лист1!$A$3:$B$338,2,0) ->  | C123: ICE Крем-краска д/волос 7.66 русый интенсивно-красный 60 мл | D123: 6 | E123: 590 | F123: 450 | G123: 450 | I123: 0
A124: 0991-1-3243 | B124: =VLOOKUP(A124,[1]Лист1!$A$3:$B$338,2,0) ->  | C124: ICE Крем-краска д/волос 8.66 светло-рус интенс-красн 60 мл | D124: 6 | E124: 590 | F124: 450 | G124: 450 | I124: 0
A125: 0991-1-3250 | B125: =VLOOKUP(A125,[1]Лист1!$A$3:$B$338,2,0) ->  | C125: ICE Крем-краска д/волос 8.16 светло-рус пепел-кораллов 60 мл | D125: 6 | E125: 590 | F125: 450 | G125: 450 | I125: 0
A126: 0991-1-3267 | B126: =VLOOKUP(A126,[1]Лист1!$A$3:$B$338,2,0) ->  | C126: ICE Крем-краска д/волос 9.16 оч.светл.блонд пепел-корал 60 мл | D126: 6 | E126: 590 | F126: 450 | G126: 450 | I126: 0
A127: 0991-1-3274 | B127: =VLOOKUP(A127,[1]Лист1!$A$3:$B$338,2,0) ->  | C127: ICE Крем-краска д/волос 10.16 платин.блонд пепел-корал 60 мл | D127: 6 | E127: 590 | F127: 450 | G127: 450 | I127: 0
A128: 0991-1-3281 | B128: =VLOOKUP(A128,[1]Лист1!$A$3:$B$338,2,0) ->  | C128: ICE Крем-краска д/волос 7.9 русый сандрэ 60 мл | D128: 6 | E128: 590 | F128: 450 | G128: 450 | I128: 0
A129: 0991-1-3298 | B129: =VLOOKUP(A129,[1]Лист1!$A$3:$B$338,2,0) ->  | C129: ICE Крем-краска д/волос 8.9 светло-русый сандрэ 60 мл | D129: 6 | E129: 590 | F129: 450 | G129: 450 | I129: 0
A130: 0991-1-3304 | B130: =VLOOKUP(A130,[1]Лист1!$A$3:$B$338,2,0) ->  | C130: ICE Крем-краска д/волос 9.9 оч.светл. блонд сандрэ 60 мл | D130: 6 | E130: 590 | F130: 450 | G130: 450 | I130: 0
A131: 0991-1-3311 | B131: =VLOOKUP(A131,[1]Лист1!$A$3:$B$338,2,0) ->  | C131: ICE Крем-краска д/волос 10.9 платин.блонд сандрэ 60 мл | D131: 6 | E131: 590 | F131: 450 | G131: 450 | I131: 0
A132: 0991-1-3328 | B132: =VLOOKUP(A132,[1]Лист1!$A$3:$B$338,2,0) ->  | C132: ICE Крем-краска д/волос 8.29 светло-рус.перламу.сандрэ 60 мл | D132: 6 | E132: 590 | F132: 450 | G132: 450 | I132: 0
A133: 0991-1-3335 | B133: =VLOOKUP(A133,[1]Лист1!$A$3:$B$338,2,0) ->  | C133: ICE Крем-краска д/волос 9.29 оч.светл.блонд.перл.сандрэ 60 мл | D133: 6 | E133: 590 | F133: 450 | G133: 450 | I133: 0
A134: 0991-1-3342 | B134: =VLOOKUP(A134,[1]Лист1!$A$3:$B$338,2,0) ->  | C134: ICE Крем-краска д/волос 10.29 платин.блонд перл.сандрэ 60 мл | D134: 6 | E134: 590 | F134: 450 | G134: 450 | I134: 0
A135: 0991-1-3359 | B135: =VLOOKUP(A135,[1]Лист1!$A$3:$B$338,2,0) ->  | C135: ICE Крем-краска д/волос 4.18 каштановый.пепельн.шоколад 60 мл | D135: 6 | E135: 590 | F135: 450 | G135: 450 | I135: 0
A136: 0991-1-3366 | B136: =VLOOKUP(A136,[1]Лист1!$A$3:$B$338,2,0) ->  | C136: ICE Крем-краска д/волос 5.18 свет-каштан.пепел.шоколад 60 мл | D136: 6 | E136: 590 | F136: 450 | G136: 450 | I136: 0
A137: 0991-1-3373 | B137: =VLOOKUP(A137,[1]Лист1!$A$3:$B$338,2,0) ->  | C137: ICE Крем-краска д/волос 6.18 тёмно-рус.пепел.шокол 60 мл | D137: 6 | E137: 590 | F137: 450 | G137: 450 | I137: 0
A138: 0991-1-3380 | B138: =VLOOKUP(A138,[1]Лист1!$A$3:$B$338,2,0) ->  | C138: ICE Крем-краска д/волос 4.38 каштанов золотист-шоколадн 60 мл | D138: 6 | E138: 590 | F138: 450 | G138: 450 | I138: 0
A139: 0991-1-3397 | B139: =VLOOKUP(A139,[1]Лист1!$A$3:$B$338,2,0) ->  | C139: ICE Крем-краска д/волос 5.38 светло-каштан.золот-шокол 60 мл | D139: 6 | E139: 590 | F139: 450 | G139: 450 | I139: 0
A140: 0991-1-3403 | B140: =VLOOKUP(A140,[1]Лист1!$A$3:$B$338,2,0) ->  | C140: ICE Крем-краска д/волос 6.38 тёмно-рус.золот-шоколад 60мл | D140: 6 | E140: 590 | F140: 450 | G140: 450 | I140: 0
A141: 0991-1-3410 | B141: =VLOOKUP(A141,[1]Лист1!$A$3:$B$338,2,0) ->  | C141: ICE Крем-краска д/волос 8.38 светло-рус.золот-шоколад 60 мл | D141: 6 | E141: 590 | F141: 450 | G141: 450 | I141: 0
A142: 0991-1-3427 | B142: =VLOOKUP(A142,[1]Лист1!$A$3:$B$338,2,0) ->  | C142: ICE Крем-краска д/волос 10.13 платин.блонд пепел-зол 60 мл | D142: 6 | E142: 590 | F142: 450 | G142: 450 | I142: 0
A143: 0991-1-3434 | B143: =VLOOKUP(A143,[1]Лист1!$A$3:$B$338,2,0) ->  | C143: ICE Крем-краска д/волос 8.01светл-рус.пепел 60 мл | D143: 6 | E143: 590 | F143: 450 | G143: 450 | I143: 0
A144: 0991-1-3441 | B144: =VLOOKUP(A144,[1]Лист1!$A$3:$B$338,2,0) ->  | C144: ICE Крем-краска д/волос 9.13 оч.светл.блонд пепел-золот 60 мл | D144: 6 | E144: 590 | F144: 450 | G144: 450 | I144: 0
C145: REFILL MY HAIR | G145: =F145-F145*$F$14/100 -> 0 | I145: 0
A146: 0991-66730 | B146: 4630079566730 | C146: REFILL MY HAIR SHAMPOO / Шампунь для сухих и повреждённых волос, 250 мл | D146: 12 | E146: 812 | F146: 517.37 | G146: 517.37 | I146: 0
A147: 0991-66822 | B147: 4630079566822 | C147: REFILL MY HAIR CONDITIONER / Кондиционер для сухих и повреждённых волос, 250 мл | D147: 12 | E147: 863 | F147: 549.4 | G147: 549.4 | I147: 0
A148: 0991-67546 | B148: 4630079567546 | C148: REFILL MY HAIR MASK / Маска для сухих и повреждённых волос, 200 мл | D148: 10 | E148: 863 | F148: 549.4 | G148: 549.4 | I148: 0
A149: 0991-66860 | B149: 4630079566860 | C149: REFILL MY HAIR SPRAY / Сыворотка-спрей для сухих и повреждённых волос, 100 мл | D149: 10 | E149: 578 | F149: 367.89 | G149: 367.89 | I149: =G149*H149 -> 0
A150: 0991-67119 | B150: 4630079567119 | C150: REFILL MY HAIR GLOW BOOSTER / Концентрат для усиления блеска волос, 30 мл | D150: 10 | E150: 711 | F150: 452.33 | G150: 452.33 | I150: 0
A151: 0991-67362 | B151: 4630079567362 | C151: REFILL MY HAIR AQUA BOOSTER / Концентрат для интенсивного увлажнения, 30 мл | D151: 10 | E151: 711 | F151: 452.33 | G151: 452.33 | I151: 0
A152: 0991-67508 | B152: 4630079567508 | C152: REFILL MY HAIR POWER BOOSTER / Концентрат для восстановления волос, 30 мл | D152: 10 | E152: 711 | F152: 452.33 | G152: 452.33 | I152: 0
A153: 0991-69229 | B153: 4630079569229 | C153: REFILL MY HAIR BIO MASK / Маска для сухих и повреждённых волос, 750 мл | D153: 6 | E153: 2033 | F153: 1293.91 | G153: 1293.91 | I153: 0
A154: 0991-69175 | B154: 4630079569175 | C154: REFILL MY HAIR BIO SHAMPOO / Шампунь для сухих и повреждённых волос, 1000 мл | D154: 6 | E154: 1719 | F154: 1093.94 | G154: 1093.94 | I154: 0
A155: 0991-66877 | B155: 4630079566877 | C155: REFILL MY HAIR / Сыворотка-спрей для сухих и повреждённых волос, 200 мл | D155: 12 | E155: 660 | F155: 420.31 | G155: 420.31 | I155: 0
G156: 0 | I156: 0
C157: REFRESH MY SCALP | G157: 0 | I157: 0
A158: 0991-66921 | B158: 4630079566921 | C158: REFRESH MY SCALP PEELING / "Детокс"- пилинг для кожи головы, 100 мл | D158: 10 | E158: 711 | F158: 452.33 | G158: 452.33 | I158: 0
A159: 0991-66884 | B159: 4630079566884 | C159: REFRESH MY SCALP SHAMPOO / "Детокс"- шампунь для всех типов волос, 250 мл | D159: 12 | E159: 812 | F159: 517.37 | G159: 517.37 | I159: 0
A160: 0991-66907 | B160: 4630079566907 | C160: REFRESH MY SCALP CONDITIONER / Кондиционер для всех типов волос, 250 мл | D160: 12 | E160: 863 | F160: 549.4 | G160: 549.4 | I160: 0
A161: 0991-66938 | B161: 4630079566938 | C161: LIFT MY HAIR SPRAY/ Спрей-тоник для придания объёма волосам, 100 мл | D161: 10 | E161: 578 | F161: 367.89 | G161: 367.89 | I161: 0
A162: 0991-67003 | B162: 4630079567003 | C162: TREAT MY SCALP TONIC / Тоник-активатор для кожи головы, 100 мл | D162: 10 | E162: 680 | F162: 432.92 | G162: 432.92 | I162: 0
A163: 0991-67515 | B163: 4630079567515 | C163: CALM MY SCALP SERUM / Успокаивающая сыворотка для кожи головы, 100 мл | D163: 10 | E163: 578 | F163: 367.89 | G163: 367.89 | I163: 0
A164: 0991-69069 | B164: 4630079569069 | C164: REFRESH MY SCALP SHAMPOO / "Детокс"- шампунь для всех типов волос, 1000 мл | D164: 6 | E164: 1719 | F164: 1093.94 | G164: 1093.94 | I164: 0
G165: 0 | I165: 0
C166: KEEP MY BLONDE | G166: 0 | I166: 0
A167: 0991-67287 | B167: 4630079567287 | C167: KEEP MY BLONDE SHAMPOO anti-yellow / Тонирующий шампунь для светлых волос, 250 мл | D167: 12 | E167: 812 | F167: 517.37 | G167: 517.37 | I167: 0
A168: 0991-67300 | B168: 4630079567300 | C168: KEEP MY BLONDE CONDITIONER anti-yellow / Тонирующий кондиционер для светлых волос, 250 мл | D168: 12 | E168: 863 | F168: 549.4 | G168: 549.4 | I168: 0
A169: 0991-67324 | B169: 4630079567324 | C169: KEEP MY BLONDE SPRAY / Сыворотка - спрей для светлых волос, 100 мл | D169: 10 | E169: 670 | F169: 426.13 | G169: 426.13 | I169: 0
A170: 0991-67676 | B170: 4630079567676 | C170: KEEP MY BLONDE MASK anti-yellow / Тонирующая маска для светлых волос, 200 мл | D170: 10 | E170: 863 | F170: 549.4 | G170: 549.4 | I170: 0
A171: 0991-69212 | B171: 4630079569212 | C171: KEEP MY BLONDE BIO MASK anty-yellow / Тонирующая маска для светлых волос, 750 мл | D171: 6 | E171: 2033 | F171: 1293.91 | G171: 1293.91 | I171: 0
A172: 0991-69168 | B172: 4630079569168 | C172: KEEP MY BLONDE BIO SHAMPOO anti-yellow / Тонирующий шампунь для светлых волос, 1000 мл | D172: 6 | E172: 1719 | F172: 1093.94 | G172: 1093.94 | I172: 0
A173: 0991-67331 | B173: 4630079567331 | C173: KEEP MY BLONDE / Сыворотка - спрей для светлых волос, 200 мл | D173: 12 | E173: 863 | F173: 549.4 | G173: 549.4 | I173: 0
G174: 0 | I174: 0
C175: KEEP MY COLOR | G175: 0 | I175: 0
A176: 0991-66945 | B176: 4630079566945 | C176: KEEP MY COLOR SHAMPOO / Шампунь для окрашенных и тонированных волос, 250 мл | D176: 12 | E176: 812 | F176: 517.37 | G176: 517.37 | I176: 0
A177: 0991-66969 | B177: 4630079566969 | C177: KEEP MY COLOR CONDITIONER / Кондиционер для окрашенных и тонированных волос, 250 мл | D177: 12 | E177: 863 | F177: 549.4 | G177: 549.4 | I177: 0
A178: 0991-67560 | B178: 4630079567560 | C178: KEEP MY COLOR MASK / Маска для окрашенных и тонированных волос, 200 мл | D178: 10 | E178: 863 | F178: 549.4 | G178: 549.4 | I178: 0
A179: 0991-67492 | B179: 4630079567492 | C179: KEEP MY COLOR CREAM / Крем для окрашенных и тонированных волос, 100 мл | D179: 10 | E179: 578 | F179: 367.89 | G179: 367.89 | I179: 0
A180: 0991-67034 | B180: 4630079567034 | C180: KEEP MY COLOR OIL / Масло для окрашенных и тонированных волос, 50 мл | D180: 12 | E180: 843 | F180: 536.79 | G180: 536.79 | I180: 0
A181: 0991-69199 | B181: 4630079569199 | C181: KEEP MY COLOR BIO MASK / Маска для окрашенных и тонированных волос, 750 мл | D181: 6 | E181: 2033 | F181: 1293.91 | G181: 1293.91 | I181: 0
A182: 0991-69144 | B182: 4630079569144 | C182: KEEP MY COLOR BIO SHAMPOO / Шампунь для окрашенных и тонированных волос, 1000 мл | D182: 6 | E182: 1719 | F182: 1093.94 | G182: 1093.94 | I182: 0
G183: 0 | I183: 0
C184: TAME MY HAIR | G184: 0 | I184: 0
A185: 0991-67065 | B185: 4630079567065 | C185: TAME MY HAIR SHAMPOO / Шампунь для тусклых и вьющихся волос, 250 мл | D185: 12 | E185: 812 | F185: 517.37 | G185: 517.37 | I185: 0
A186: 0991-67089 | B186: 4630079567089 | C186: TAME MY HAIR CONDITIONER / Кондиционер для тусклых и вьющихся волос, 250 мл | D186: 12 | E186: 863 | F186: 549.4 | G186: 549.4 | I186: 0
A187: 0991-67584 | B187: 4630079567584 | C187: TAME MY HAIR MASK / Маска для тусклых и вьющихся волос, 200 мл | D187: 10 | E187: 863 | F187: 549.4 | G187: 549.4 | I187: 0
A188: 0991-67607 | B188: 4630079567607 | C188: TAME MY HAIR SPRAY / Сыворотка - спрей для вьющихся волос, 100 мл | D188: 10 | E188: 578 | F188: 367.89 | G188: 367.89 | I188: 0
A189: 0991-67621 | B189: 4630079567621 | C189: TAME MY HAIR CREAM / Разглаживающий крем волос, 100 мл | D189: 10 | E189: 578 | F189: 367.89 | G189: 367.89 | I189: 0
A190: 0991-67478 | B190: 4630079567478 | C190: TAME MY HAIR PRE-SHAMPOO OIL /Концентрированное масло пре-шампунь, 100 мл | D190: 10 | E190: 578 | F190: 367.89 | G190: 367.89 | I190: 0
A191: 0991-67645 | B191: 4630079567645 | C191: TAME MY HAIR OIL / Масло для тусклых и вьющихся волос, 50 мл | D191: 12 | E191: 843 | F191: 536.79 | G191: 536.79 | I191: 0
A192: 0991-69182 | B192: 4630079569182 | C192: TAME MY HAIR BIO MASK / Маска для тусклых и вьющихся волос, 750 мл | D192: 6 | E192: 2033 | F192: 1293.91 | G192: 1293.91 | I192: 0
A193: 0991-69045 | B193: 4630079569045 | C193: TAME MY HAIR BIO SHAMPOO / Шампунь для тусклых и вьющихся волос, 1000 мл | D193: 6 | E193: 1719 | F193: 1093.94 | G193: 1093.94 | I193: 0
A194: 0991-67614 | B194: 4630079567614 | C194: TAME MY HAIR / Сыворотка - спрей для вьющихся волос, 200 мл | D194: 12 | E194: 660 | F194: 420.31 | G194: 420.31 | I194: 0
G195: 0 | I195: 0
C196: REPAIR MY HAIR | G196: 0 | I196: 0
A197: 0991-67188 | B197: 4630079567188 | C197: REPAIR MY HAIR SHAMPOO / Шампунь для сильно повреждённых волос, 250 мл | D197: 12 | E197: 812 | F197: 517.37 | G197: 517.37 | I197: 0
A198: 0991-67201 | B198: 4630079567201 | C198: REPAIR MY HAIR CONDITIONER / Кондиционер для сильно повреждённых волос, 250 мл | D198: 12 | E198: 863 | F198: 549.4 | G198: 549.4 | I198: 0
A199: 0991-67539 | B199: 4630079567539 | C199: REPAIR MY HAIR SPRAY / Cпрей-кондиционер для сильно повреждённых волос, 100 мл | D199: 10 | E199: 589 | F199: 374.68 | G199: 374.68 | I199: 0
A200: 0991-67720 | B200: 4630079567720 | C200: REPAIR MY HAIR / Cпрей-кондиционер для сильно повреждённых волос, 200 мл | D200: 12 | E200: 660 | F200: 420.31 | G200: 420.31 | I200: 0
A201: 0991-67522 | B201: 4630079567522 | C201: REPAIR MY HAIR KERATIN FILLER / Кератиновый спрей-концентрат для сильно поврежденных волос, 100 мл | D201: 10 | E201: 578 | F201: 367.89 | G201: 367.89 | I201: 0
A202: 0991-67737 | B202: 4630079567737 | C202: REPAIR MY HAIR KERATIN FILLER / Кератиновый спрей-концентрат для сильно поврежденных волос, 200 мл | D202: 12 | E202: 660 | F202: 420.31 | G202: 420.31 | I202: 0
A203: 0991-67652 | B203: 4630079567652 | C203: REPAIR MY HAIR MASK / Маска для сильно повреждённых волос, 200 мл | D203: 10 | E203: 863 | F203: 549.4 | G203: 549.4 | I203: 0
A204: 0991-67270 | B204: 4630079567270 | C204: REPAIR MY HAIR OIL / Масло для сильно повреждённых волос, 50 мл | D204: 12 | E204: 843 | F204: 536.79 | G204: 536.79 | I204: 0
A205: 0991-69205 | B205: 4630079569205 | C205: REPAIR MY HAIR BIO MASK / Маска для сильно повреждённых волос, 750 мл | D205: 6 | E205: 2033 | F205: 1293.91 | G205: 1293.91 | I205: 0
A206: 0991-69151 | B206: 4630079569151 | C206: REPAIR MY HAIR BIO SHAMPOO / Шампунь для сильно повреждённых волос, 1000 мл | D206: 6 | E206: 1719 | F206: 1093.94 | G206: 1093.94 | I206: 0
G207: 0 | I207: 0
C208: COLOR MASK | G208: 0 | I208: 0
A209: 0991-02916 | B209: 4630121102916 | C209: COLOR MASK / Тонирующая маска для волос Beige Blush, 140 мл | D209: 10 | E209: 792 | F209: 503.78 | G209: =F209-F209*$F$14/100 -> 503.78 | I209: 0
A210: 0991-02947 | B210: 4630121102947 | C210: COLOR MASK / Тонирующая маска для волос Black Lava, 140 мл | D210: 10 | E210: 792 | F210: 503.78 | G210: 503.78 | I210: 0
A211: 0991-02909 | B211: 4630121102909 | C211: COLOR MASK / Тонирующая маска для волос Blue Flash, 140 мл | D211: 10 | E211: 792 | F211: 503.78 | G211: 503.78 | I211: 0
A212: 0991-02923 | B212: 4630121102923 | C212: COLOR MASK / Тонирующая маска для волос Choco Late, 140 мл | D212: 10 | E212: 792 | F212: 503.78 | G212: 503.78 | I212: 0
A213: 0991-02886 | B213: 4630121102886 | C213: COLOR MASK / Тонирующая маска для волос Copper Chic, 140 мл | D213: 10 | E213: 792 | F213: 503.78 | G213: 503.78 | I213: =G213*H213 -> 0
A214: 0991-02848 | B214: 4630121102848 | C214: COLOR MASK / Тонирующая маска для волос Coral Flame, 140 мл | D214: 10 | E214: 792 | F214: 503.78 | G214: 503.78 | I214: 0
A215: 0991-02855 | B215: 4630121102855 | C215: COLOR MASK / Тонирующая маска для волос Fuchsia Fun, 140 мл | D215: 10 | E215: 792 | F215: 503.78 | G215: 503.78 | I215: 0
... 17 more rows

Sheet WELLA
A1: Ваш торговый представитель______________________
A2: моб. Тел._________________________________________
A3: 109457 г. Москва,ул. Плеханова, дом 4,стр.3 ООО “Компания "Аквакосметика” тел. 8(495)785-99-54,785-99-53 многоканальный сайт: www.steck.ru, e-mail: prof@akva.ru
B4: Проставьте в зеленой ячейке вашу скидку | F4: %
B5: ПРАЙС-ЛИСТ Wella Professional
A7: 2026-04-01 | B7: АКЦИЯ - 50% от цены
A8: Артикул | B8: Наименование товаров | C8: Цены с НДС , руб. | D8: Цена с вашей скидкой,руб | E8: ЗАКАЗ шт | F8: Сумма по заказу с вашей скидкой, руб
A9: 0992-81650833 | B9: Wella Koleston 8/0 светлый блонд натуральный 60 мл. | C9: 1027 | D9: =C9-C9*$E$4/100 -> 1027 | F9: =D9*E9 -> 0
A10: 1-61650929 | B10: Wella WP Окислитель 6% 60мл | C10: 199 | D10: =C10-C10*$E$4/100 -> 199 | F10: 0
A11: 1-81426544 | B11: Wella Color touch Крем-краска 2/0 черный 60мл | C11: 983 | D11: 983 | F11: 0
A12: 1-8158832 | B12: Wella Color touch 9/0 | C12: 983 | D12: 983 | F12: 0
A13: 1-81588363 | B13: Wella Color touch Крем-краска 6/0 Темный блонд 60мл. | C13: 983 | D13: 983 | F13: 0
A14: 1-81588491 | B14: Wella Color touch 7/0 блондин 60мл | C14: 1026.66 | D14: 1026.66 | F14: 0
A15: 1-81588503 | B15: Wella Color touch 3/0 Темно-коричневый 60 мл | C15: 983 | D15: 983 | F15: 0
A16: 1-81639219 | B16: Wella Color Touch Эмульсия 1,9 % 1000 мл | C16: 1393.33 | D16: 1393.33 | F16: 0
A17: 1-81639220 | B17: Wella Color Touch Эмульсия 4% 1000 мл | C17: 1393.33 | D17: 1393.33 | F17: 0
A18: 1-81646921 | B18: Wella WP Окислитель 1,9% 1000мл 6V | C18: 1393 | D18: 1393 | F18: 0
A19: 1-81646922 | B19: Wella WP Окислитель 4% 1000мл 13V | C19: 1393 | D19: 1393 | F19: 0
A20: 1-81646923 | B20: Wella WP Окислитель 6% 1000мл | C20: 1393 | D20: 1393 | F20: 0
A21: 1-81646924 | B21: Wella WP Окислитель 9% 1000мл | C21: 1393 | D21: 1393 | F21: 0
A22: 1-81650442 | B22: Wella Koleston 12/81 Ультраяркий блонд жемчужный пепельный 60мл (Н/Р) | C22: 1027 | D22: 1027 | F22: 0
A23: 1-81650451 | B23: Wella Koleston 44/0 Коричневый интенсивный натуральный 60мл | C23: 1027.15 | D23: 1027.15 | F23: 0
A24: 1-81650647 | B24: Wella Koleston 4/0 Коричневый натуральный 60мл (Н/Р) | C24: 1027 | D24: 1027 | F24: 0
A25: 1-81650649 | B25: Wella Koleston 4/07 коричневый натуральный коричневый 60мл. | C25: 1026.66 | D25: 1026.66 | F25: 0
A26: 1-81650650 | B26: Wella Koleston 4/71 Тирамису 60мл | C26: 1027 | D26: 1027 | F26: 0
A27: 1-81650670 | B27: Wella Koleston 6/0 Темный блонд натуральный 60мл (Н/Р) срок | C27: 1027.15 | D27: 1027.15 | F27: 0
A28: 1-81650681 | B28: Wella Koleston 6/71 Королевский соболь 60мл (Н/Р) | C28: 1027 | D28: 1027 | F28: 0
A29: 1-81650686 | B29: Wella Koleston 6/97 Кофейный мусс 60мл | C29: 1027 | D29: 1027 | F29: 0
A30: 1-81650832 | B30: Wella Koleston 7/00 Блонд натуральный интенсивный 60мл (Н/Р) срок | C30: 1026.66 | D30: 1026.66 | F30: 0
A31: 1-81650857 | B31: Wella Koleston 8/00 Светлый блонд натуральный интенсивный 60мл | C31: 1027 | D31: 1027 | F31: 0
A32: 1-81650876 | B32: Wella Koleston 9/96 Полярис 60мл | C32: 1027 | D32: 1027 | F32: 0
A33: 1-81650878 | B33: Wella Koleston 9/00 Очень светлый блонд натуральный интенсивный 60мл (Н/Р) | C33: 1027 | D33: 1027 | F33: 0
A34: 1-81650887 | B34: Wella Koleston 10/16 ванильное небо 60мл | C34: 1027 | D34: 1027 | F34: 0
A35: 1-81650930 | B35: Wella WP Окислитель 9% 60мл | C35: 199 | D35: =C35-C35*$E$4/100 -> 199 | F35: =D35*E35 -> 0
A36: 1-81650950 | B36: Wella Koleston 12/89 Ванильный 60мл (Н/Р) | C36: 1027 | D36: 1027 | F36: 0
A37: 1-81650966 | B37: Wella Koleston 66/0 Темный блонд интенсивный натуральный 60мл | C37: 1066.66 | D37: 1066.66 | F37: 0
A38: 1-81650971 | B38: Wella Koleston 77/0 Блонд интенсивный натуральный 60мл | C38: 1027 | D38: 1027 | F38: 0
A39: 1-81650975 | B39: Wella Koleston 88/0 Светлый блонд интенсивный натуральный 60мл | C39: 1066.66 | D39: 1066.66 | F39: 0
A40: 1-99240008189 | B40: Wella Blondor порошок для блондирования, 800 мл | C40: 3887 | D40: 3887 | F40: 0
D41: ИТОГО: | F41: =SUM(F9:F40) -> 0

Sheet TEFIA
A1: Ваш торговый представитель______________________
A2: моб. Тел._________________________________________
A3: 109457 г. Москва,ул. Плеханова, дом 4,стр.3 ООО “Компания "Аквакосметика” тел. 8(495)785-99-54,785-99-53 многоканальный сайт: www.steck.ru, e-mail: prof@akva.ru
B7: ПРАЙС-ЛИСТ TEFIA Professional (Россия) | E7: Проставьте в зеленой ячейке вашу скидку | H7: %
A9: 2026-04-01
A10: Артикул | B10: НАИМЕНОВАНИЕ | C10: Объем, мл. | D10: Розничная цена, руб. (с учетом НДС) | E10: Цена для салонов красоты, руб. (с учетом НДС) | F10: Цена с вашей скидкой,руб | G10: Ваш Заказ | H10: Сумма Вашего заказа (с НДС)
A11: НОВИНКА! BTX FORTE ТРЕХЭТАПНАЯ ПРОГРАММА РЕКОНСТРУКЦИИ ПОВРЕЖДЕННЫХ ВОЛОС С ПРОЛОНГИРОВАННЫМ ЭФФЕКТОМ
A12: FOR68646 | B12: Шаг 1 FORTE Маска-филлер протеиновая | C12: 500 | D12: 1530 | E12: 850 | F12: =E12-E12*$G$7/100 -> 850 | H12: =G12*F12 -> 0
A13: FOR68653 | B13: Шаг 2 FORTE Крем-база липидная, 500 мл | C13: 500 | D13: 1440 | E13: 800 | F13: =E13-E13*$G$7/100 -> 800 | H13: =G13*F13 -> 0
A14: FOR68660 | B14: Шаг 3 FORTE Маска-блеск силиконовая | C14: 500 | D14: 2430 | E14: 1350 | F14: =E14-E14*$G$7/100 -> 1350 | H14: 0
A15: НОВИНКА! CALEIDO COLORS Пигменты прямого действия | F15: 0 | H15: 0
A16: CAL68400 | B16: Пигмент прямого действия для волос Прозрачный | C16: 100 | D16: 567 | E16: 315 | F16: 315 | H16: 0
A17: CAL68462 | B17: Пигмент прямого действия для волос Фиолетовый | C17: 100 | D17: 567 | E17: 315 | F17: 315 | H17: 0
A18: CAL68479 | B18: Пигмент прямого действия для волос Красный | C18: 100 | D18: 567 | E18: 315 | F18: 315 | H18: 0
A19: CAL68486 | B19: Пигмент прямого действия для волос Розовый | C19: 100 | D19: 567 | E19: 315 | F19: 315 | H19: 0
A20: CAL68493 | B20: Пигмент прямого действия для волос Синий | C20: 100 | D20: 567 | E20: 315 | F20: 315 | H20: 0
A21: CAL68509 | B21: Пигмент прямого действия для волос Зелёный | C21: 100 | D21: 567 | E21: 315 | H21: 0
A22: CAL68516 | B22: Пигмент прямого действия для волос Оранжевый | C22: 100 | D22: 567 | E22: 315 | F22: 315 | H22: 0
A23: CAL68523 | B23: Пигмент прямого действия для волос Графит | C23: 100 | D23: 567 | E23: 315 | F23: 315 | H23: 0
A24: CAL68530 | B24: Пигмент прямого действия для волос Желтый | C24: 100 | D24: 567 | E24: 315 | F24: 315 | H24: 0
B25: Перманентная крем-краска для волос AMBIENT Color (150 оттенков) | F25: 0 | H25: 0
A26: AMBCOL-1.0 | B26: 1.0 Черный натуральный | C26: 60 | D26: 473.4 | E26: 263 | F26: 263 | H26: 0
A27: AMBCOL-3.0 | B27: 3.0 Темный брюнет натуральный | C27: 60 | D27: 473.4 | E27: 263 | F27: 263 | H27: 0
A28: AMBCOL-3.11 | B28: 3.11 Темный брюнет интенсивный пепельный | C28: 60 | D28: 473.4 | E28: 263 | F28: 263 | H28: 0
A29: AMBCOL-3.77 | B29: 3.77 Темный брюнет интенсивный фиолетовый | C29: 60 | D29: 473.4 | E29: 263 | F29: 263 | H29: 0
A30: AMBCOL-4.0 | B30: 4.0 Брюнет натуральный | C30: 60 | D30: 473.4 | E30: 263 | F30: 263 | H30: 0
A31: AMBCOL-4.00 | B31: 4.00 Брюнет интенсивный натуральный | C31: 60 | D31: 473.4 | E31: 263 | F31: 263 | H31: 0
A32: AMBCOL-4.5 | B32: 4.5 Брюнет красный | C32: 60 | D32: 473.4 | E32: 263 | F32: 263 | H32: 0
A33: AMBCOL-4.8 | B33: 4.8 Брюнет коричневый | C33: 60 | D33: 473.4 | E33: 263 | F33: 263 | H33: 0
A34: AMBCOL-4.86 | B34: 4.86 Брюнет коричнево-махагоновый | C34: 60 | D34: 473.4 | E34: 263 | F34: 263 | H34: 0
A35: AMBCOL-5.0 | B35: 5.0 Светлый брюнет натуральный | C35: 60 | D35: 473.4 | E35: 263 | F35: 263 | H35: 0
A36: AMBCOL-5.00 | B36: 5.00 Светлый брюнет интенсивный натуральный | C36: 60 | D36: 473.4 | E36: 263 | F36: 263 | H36: 0
A37: AMBCOL-5.11 | B37: 5.11 Светлый брюнет интенсивный пепельный | C37: 60 | D37: 473.4 | E37: 263 | F37: 263 | H37: 0
A38: AMBCOL-5.16 | B38: 5.16 Светлый брюнет пепельно-махагоновый | C38: 60 | D38: 473.4 | E38: 263 | F38: 263 | H38: 0
A39: AMBCOL-5.3 | B39: 5.3 Светлый брюнет золотистый | C39: 60 | D39: 473.4 | E39: 263 | F39: 263 | H39: 0
A40: AMBCOL-5.4 | B40: 5.4 Светлый брюнет медный | C40: 60 | D40: 473.4 | E40: 263 | F40: 263 | H40: 0
A41: AMBCOL-5.5 | B41: 5.5 Светлый брюнет красный | C41: 60 | D41: 473.4 | E41: 263 | F41: 263 | H41: 0
A42: AMBCOL-5.7 | B42: 5.7 Светлый брюнет фиолетовый | C42: 60 | D42: 473.4 | E42: 263 | F42: 263 | H42: 0
A43: AMBCOL-5.8 | B43: 5.8 Светлый брюнет коричневый | C43: 60 | D43: 473.4 | E43: 263 | F43: 263 | H43: 0
A44: AMBCOL-5.86 | B44: 5.86 Светлый брюнет коричнево-махагоновый | C44: 60 | D44: 473.4 | E44: 263 | F44: 263 | H44: 0
A45: AMBCOL-6.0 | B45: 6.0 Темный блондин натуральный | C45: 60 | D45: 473.4 | E45: 263 | F45: 263 | H45: 0
A46: AMBCOL-6.00 | B46: 6.00 Темный блондин интенсивный натуральный | C46: 60 | D46: 473.4 | E46: 263 | F46: 263 | H46: 0
A47: AMBCOL-6.11 | B47: 6.11 Темный блондин интенсивный пепельный | C47: 60 | D47: 473.4 | E47: 263 | F47: 263 | H47: 0
A48: AMBCOL-6.16 | B48: 6.16 Темный блондин пепельно-махагоновый | C48: 60 | D48: 473.4 | E48: 263 | F48: 263 | H48: 0
A49: AMBCOL-6.18 | B49: 6.18 Темный блондин пепельно-коричневый | C49: 60 | D49: 473.4 | E49: 263 | F49: 263 | H49: 0
A50: AMBCOL-6.3 | B50: 6.3 Темный блондин золотистый | C50: 60 | D50: 473.4 | E50: 263 | F50: 263 | H50: 0
A51: AMBCOL-6.4 | B51: 6.4 Темный блондин медный | C51: 60 | D51: 473.4 | E51: 263 | F51: 263 | H51: 0
A52: AMBCOL-6.41 | B52: 6.41 Темный блондин медно-пепельный | C52: 60 | D52: 473.4 | E52: 263 | F52: 263 | H52: 0
A53: AMBCOL-6.43 | B53: 6.43 Темный блондин медно-золотистый | C53: 60 | D53: 473.4 | E53: 263 | F53: 263 | H53: 0
A54: AMBCOL-6.5 | B54: 6.5 Темный блондин красный | C54: 60 | D54: 473.4 | E54: 263 | F54: 263 | H54: 0
A55: AMBCOL-6.7 | B55: 6.7 Темный блондин фиолетовый | C55: 60 | D55: 473.4 | E55: 263 | F55: 263 | H55: 0
A56: AMBCOL-6.71 | B56: 6.71 Темный блондин фиолетово-пепельный | C56: 60 | D56: 473.4 | E56: 263 | F56: 263 | H56: 0
A57: AMBCOL-6.8 | B57: 6.8 Темный блондин коричневый | C57: 60 | D57: 473.4 | E57: 263 | F57: 263 | H57: 0
A58: AMBCOL-6.86 | B58: 6.86 Темный блондин коричнево-махагоновый | C58: 60 | D58: 473.4 | E58: 263 | F58: 263 | H58: 0
A59: AMBCOL-6.877 | B59: 6.877 Темный блондин интенсивный коричнево-фиолетовый | C59: 60 | D59: 473.4 | E59: 263 | F59: 263 | H59: 0
A60: AMBCOL-7.0 | B60: 7.0 Блондин натуральный | C60: 60 | D60: 473.4 | E60: 263 | F60: 263 | H60: 0
A61: AMBCOL-7.00 | B61: 7.00 Блондин интенсивный натуральный | C61: 60 | D61: 473.4 | E61: 263 | F61: 263 | H61: 0
A62: AMBCOL-7.01 | B62: 7.01 Блондин натуральный пепельный | C62: 60 | D62: 473.4 | E62: 263 | F62: 263 | H62: 0
A63: AMBCOL-7.11 | B63: 7.11 Блондин интенсивный пепельный | C63: 60 | D63: 473.4 | E63: 263 | F63: 263 | H63: 0
A64: AMBCOL-7.117 | B64: 7.117 Блондин интенсивный пепельно-фиолетовый | C64: 60 | D64: 473.4 | E64: 263 | F64: 263 | H64: 0
A65: AMBCOL-7.16 | B65: 7.16 Блондин пепельно-махагоновый | C65: 60 | D65: 473.4 | E65: 263 | F65: 263 | H65: 0
A66: AMBCOL-7.18 | B66: 7.18 Блондин пепельно-коричневый | C66: 60 | D66: 473.4 | E66: 263 | F66: 263 | H66: 0
A67: AMBCOL-7.3 | B67: 7.3 Блондин золотистый | C67: 60 | D67: 473.4 | E67: 263 | F67: 263 | H67: 0
A68: AMBCOL-7.4 | B68: 7.4 Блондин медный | C68: 60 | D68: 473.4 | E68: 263 | F68: 263 | H68: 0
A69: AMBCOL-7.41 | B69: 7.41 Блондин медно-пепельный | C69: 60 | D69: 473.4 | E69: 263 | F69: 263 | H69: 0
A70: AMBCOL-7.43 | B70: 7.43 Блондин медно-золотистый | C70: 60 | D70: 473.4 | E70: 263 | F70: 263 | H70: 0
A71: AMBCOL-7.5 | B71: 7.5 Блондин красный | C71: 60 | D71: 473.4 | E71: 263 | F71: 263 | H71: 0
A72: AMBCOL-7.7 | B72: 7.7 Блондин фиолетовый | C72: 60 | D72: 473.4 | E72: 263 | F72: 263 | H72: 0
A73: AMBCOL-7.71 | B73: 7.71 Блондин фиолетово-пепельный | C73: 60 | D73: 473.4 | E73: 263 | F73: 263 | H73: 0
A74: AMBCOL-7.8 | B74: 7.8 Блондин коричневый | C74: 60 | D74: 473.4 | E74: 263 | F74: 263 | H74: 0
A75: AMBCOL-7.83 | B75: 7.83 Блондин коричнево-золотистый | C75: 60 | D75: 473.4 | E75: 263 | F75: 263 | H75: 0
A76: AMBCOL-7.86 | B76: 7.86 Блондин коричнево-махагоновый | C76: 60 | D76: 473.4 | E76: 263 | F76: 263 | H76: 0
A77: AMBCOL-7.877 | B77: 7.877 Блондин интенсивный коричнево-фиолетовый | C77: 60 | D77: 473.4 | E77: 263 | F77: =E77-E77*$G$7/100 -> 263 | H77: =G77*F77 -> 0
A78: AMBCOL-8.0 | B78: 8.0 Светлый блондин натуральный | C78: 60 | D78: 473.4 | E78: 263 | F78: 263 | H78: 0
A79: AMBCOL-8.00 | B79: 8.00 Светлый блондин интенсивный натуральный | C79: 60 | D79: 473.4 | E79: 263 | F79: 263 | H79: 0
A80: AMBCOL-8.01 | B80: 8.01 Светлый блондин натуральный пепельный | C80: 60 | D80: 473.4 | E80: 263 | F80: 263 | H80: 0
A81: AMBCOL-8.11 | B81: 8.11 Светлый блондин интенсивный пепельный | C81: 60 | D81: 473.4 | E81: 263 | F81: 263 | H81: 0
A82: AMBCOL-8.13 | B82: 8.13 Светлый блондин пепельно-золотистый | C82: 60 | D82: 473.4 | E82: 263 | F82: 263 | H82: 0
A83: AMBCOL-8.16 | B83: 8.16 Светлый блондин пепельно-махагоновый | C83: 60 | D83: 473.4 | E83: 263 | F83: 263 | H83: 0
A84: AMBCOL-8.17 | B84: 8.17 Светлый блондин пепельно-фиолетовый | C84: 60 | D84: 473.4 | E84: 263 | F84: 263 | H84: 0
A85: AMBCOL-8.18 | B85: 8.18 Светлый блондин пепельно-коричневый | C85: 60 | D85: 473.4 | E85: 263 | F85: 263 | H85: 0
A86: AMBCOL-8.3 | B86: 8.3 Светлый блондин золотистый | C86: 60 | D86: 473.4 | E86: 263 | F86: 263 | H86: 0
A87: AMBCOL-8.37 | B87: 8.37 Светлый блондин золотисто-фиолетовый | C87: 60 | D87: 473.4 | E87: 263 | F87: 263 | H87: 0
A88: AMBCOL-8.4 | B88: 8.4 Светлый блондин медный | C88: 60 | D88: 473.4 | E88: 263 | F88: 263 | H88: 0
A89: AMBCOL-8.43 | B89: 8.43 Светлый блондин медно-золотистый | C89: 60 | D89: 473.4 | E89: 263 | F89: 263 | H89: 0
A90: AMBCOL-8.47 | B90: 8.47 Светлый блондин медно-фиолетовый | C90: 60 | D90: 473.4 | E90: 263 | F90: 263 | H90: 0
A91: AMBCOL-8.5 | B91: 8.5 Светлый блондин красный | C91: 60 | D91: 473.4 | E91: 263 | F91: 263 | H91: 0
A92: AMBCOL-8.7 | B92: 8.7 Светлый блондин фиолетовый | C92: 60 | D92: 473.4 | E92: 263 | F92: 263 | H92: 0
A93: AMBCOL-8.71 | B93: 8.71 Светлый блондин фиолетово-пепельный | C93: 60 | D93: 473.4 | E93: 263 | F93: 263 | H93: 0
A94: AMBCOL-8.76 | B94: 8.76 Светлый блондин фиолетово-махагоновый | C94: 60 | D94: 473.4 | E94: 263 | F94: 263 | H94: 0
A95: AMBCOL-8.8 | B95: 8.8 Светлый блондин коричневый | C95: 60 | D95: 473.4 | E95: 263 | F95: 263 | H95: 0
A96: AMBCOL-8.83 | B96: 8.83 Светлый блондин коричнево-золотистый | C96: 60 | D96: 473.4 | E96: 263 | F96: 263 | H96: 0
A97: AMBCOL-8.86 | B97: 8.86 Светлый блондин коричнево-махагоновый | C97: 60 | D97: 473.4 | E97: 263 | F97: 263 | H97: 0
A98: AMBCOL-8.877 | B98: 8.877 Светлый блондин интенсивный коричнево-фиолетовый | C98: 60 | D98: 473.4 | E98: 263 | F98: 263 | H98: 0
A99: AMBCOL-9.0 | B99: 9.0 Очень светлый блондин натуральный | C99: 60 | D99: 473.4 | E99: 263 | F99: 263 | H99: 0
A100: AMBCOL-9.00 | B100: 9.00 Очень светлый блондин интенсивный натуральный | C100: 60 | D100: 473.4 | E100: 263 | F100: 263 | H100: 0
A101: AMBCOL-9.01 | B101: 9.01 Очень светлый блондин натуральный пепельный | C101: 60 | D101: 473.4 | E101: 263 | F101: 263 | H101: 0
A102: AMBCOL-9.1 | B102: 9.1 Очень светлый блондин пепельный | C102: 60 | D102: 473.4 | E102: 263 | F102: 263 | H102: 0
A103: AMBCOL-9.13 | B103: 9.13 Очень светлый блондин пепельно-золотистый | C103: 60 | D103: 473.4 | E103: 263 | F103: 263 | H103: 0
A104: AMBCOL-9.15 | B104: 9.15 Очень светлый блондин пепельно-красный | C104: 60 | D104: 473.4 | E104: 263 | F104: 263 | H104: 0
A105: AMBCOL-9.16 | B105: 9.16 Очень светлый блондин пепельно-махагоновый | C105: 60 | D105: 473.4 | E105: 263 | F105: 263 | H105: 0
A106: AMBCOL-9.17 | B106: 9.17 Очень светлый блондин пепельно-фиолетовый | C106: 60 | D106: 473.4 | E106: 263 | F106: 263 | H106: 0
A107: AMBCOL-9.18 | B107: 9.18 Очень светлый блондин пепельно- коричневый | C107: 60 | D107: 473.4 | E107: 263 | F107: 263 | H107: 0
A108: AMBCOL-9.3 | B108: 9.3 Очень светлый блондин золотистый | C108: 60 | D108: 473.4 | E108: 263 | F108: 263 | H108: 0
A109: AMBCOL-9.35 | B109: 9.35 Очень светлый блондин золотисто-красный | C109: 60 | D109: 473.4 | E109: 263 | F109: 263 | H109: 0
A110: AMBCOL-9.37 | B110: 9.37 Очень светлый блондин золотисто-фиолетовый | C110: 60 | D110: 473.4 | E110: 263 | F110: 263 | H110: 0
A111: AMBCOL-9.4 | B111: 9.4 Очень светлый блондин медный | C111: 60 | D111: 473.4 | E111: 263 | F111: 263 | H111: 0
A112: AMBCOL-9.47 | B112: 9.47 Очень светлый блондин медно-фиолетовый | C112: 60 | D112: 473.4 | E112: 263 | F112: 263 | H112: 0
A113: AMBCOL-9.7 | B113: 9.7 Очень светлый блондин фиолетовый | C113: 60 | D113: 473.4 | E113: 263 | F113: 263 | H113: 0
A114: AMBCOL-9.71 | B114: 9.71 Очень светлый блондин фиолетово-пепельный | C114: 60 | D114: 473.4 | E114: 263 | F114: 263 | H114: 0
A115: AMBCOL-9.76 | B115: 9.76 Очень светлый блондин фиолетово-махагоновый | C115: 60 | D115: 473.4 | E115: 263 | F115: 263 | H115: 0
A116: AMBCOL-9.8 | B116: 9.8 Очень светлый блондин коричневый | C116: 60 | D116: 473.4 | E116: 263 | F116: 263 | H116: 0
A117: AMBCOL-9.83 | B117: 9.83 Очень светлый блондин коричнево-золотистый | C117: 60 | D117: 473.4 | E117: 263 | F117: 263 | H117: 0
A118: AMBCOL-9.86 | B118: 9.86 Очень светлый блондин коричнево-махагоновый | C118: 60 | D118: 473.4 | E118: 263 | F118: 263 | H118: 0
A119: AMBCOL-9.877 | B119: 9.877 Очень светлый блондин интенсивный коричнево-фиолетовый | C119: 60 | D119: 473.4 | E119: 263 | F119: 263 | H119: 0
A120: AMBCOL-10.0 | B120: 10.0 Экстра светлый блондин натуральный | C120: 60 | D120: 473.4 | E120: 263 | F120: 263 | H120: 0
A121: AMBCOL-10.00 | B121: 10.00 Экстра светлый блондин интенсивный натуральный | C121: 60 | D121: 473.4 | E121: 263 | F121: 263 | H121: 0
A122: AMBCOL-10.01 | B122: 10.01 Экстра светлый блондин натуральный пепельный | C122: 60 | D122: 473.4 | E122: 263 | F122: 263 | H122: 0
A123: AMBCOL-10.1 | B123: 10.1 Экстра светлый блондин пепельный | C123: 60 | D123: 473.4 | E123: 263 | F123: 263 | H123: 0
A124: AMBCOL-10.13 | B124: 10.13 Экстра светлый блондин пепельно-золотистый | C124: 60 | D124: 473.4 | E124: 263 | F124: 263 | H124: 0
A125: AMBCOL-10.15 | B125: 10.15 Экстра светлый блондин пепельно-красный | C125: 60 | D125: 473.4 | E125: 263 | F125: =E125-E125*$G$7/100 -> 263 | H125: 0
A126: AMBCOL-10.16 | B126: 10.16 Экстра светлый блондин пепельно-махагоновый | C126: 60 | D126: 473.4 | E126: 263 | F126: 263 | H126: 0
A127: AMBCOL-10.17 | B127: 10.17 Экстра светлый блондин пепельно-фиолетовый | C127: 60 | D127: 473.4 | E127: 263 | F127: 263 | H127: 0
A128: AMBCOL-10.18 | B128: 10.18 Экстра светлый блондин пепельно-коричневый | C128: 60 | D128: 473.4 | E128: 263 | F128: 263 | H128: 0
A129: AMBCOL-10.3 | B129: 10.3 Экстра светлый блондин золотистый | C129: 60 | D129: 473.4 | E129: 263 | F129: 263 | H129: 0
A130: AMBCOL-10.35 | B130: 10.35 Экстра светлый блондин золотисто-красный | C130: 60 | D130: 473.4 | E130: 263 | F130: 263 | H130: 0
A131: AMBCOL-10.37 | B131: 10.37 Экстра светлый блондин золотисто-фиолетовый | C131: 60 | D131: 473.4 | E131: 263 | F131: 263 | H131: 0
A132: AMBCOL-10.7 | B132: 10.7 Экстра светлый блондин фиолетовый | C132: 60 | D132: 473.4 | E132: 263 | F132: 263 | H132: 0
A133: AMBCOL-10.71 | B133: 10.71 Экстра светлый блондин фиолетово-пепельный | C133: 60 | D133: 473.4 | E133: 263 | F133: 263 | H133: 0
A134: AMBCOL-10.76 | B134: 10.76 Экстра светлый блондин фиолетово-махагоновый | C134: 60 | D134: 473.4 | E134: 263 | F134: 263 | H134: 0
A135: AMBCOL-10.8 | B135: 10.8 Экстра светлый блондин коричневый | C135: 60 | D135: 473.4 | E135: 263 | H135: 0
A136: AMBCOL-10.83 | B136: 10.83 Экстра светлый блондин коричнево-золотистый | C136: 60 | D136: 473.4 | E136: 263 | F136: 263 | H136: 0
A137: AMBCOL-10.86 | B137: 10.86 Экстра светлый блондин коричнево-махагоновый | C137: 60 | D137: 473.4 | E137: 263 | F137: 263 | H137: 0
A138: AMBCOL-10.877 | B138: 10.877 Экстра светлый блондин интенсивный коричнево-фиолетовый | C138: 60 | D138: 473.4 | E138: 263 | F138: 263 | H138: 0
B139: Специальная серия для окрашивания седых волос Special Grey | F139: 0 | H139: 0
A140: AMBCOL-5.810 | B140: 5.810 Светлый брюнет коричнево-пепельный для седых волос | C140: 60 | D140: 473.4 | E140: 263 | F140: 263 | H140: 0
A141: AMBCOL-5.880 | B141: 5.880 Светлый брюнет интенсивный коричневый для седых волос | C141: 60 | D141: 473.4 | E141: 263 | F141: =E141-E141*$G$7/100 -> 263 | H141: =G141*F141 -> 0
A142: AMBCOL-6.810 | B142: 6.810 Темный блондин коричнево-пепельный для седых волос | C142: 60 | D142: 473.4 | E142: 263 | F142: =E142-E142*$G$7/100 -> 263 | H142: 0
A143: AMBCOL-6.880 | B143: 6.880 Темный блондин интенсивный коричневый для седых волос | C143: 60 | D143: 473.4 | E143: 263 | F143: 263 | H143: 0
A144: AMBCOL-7.880 | B144: 7.880 Блондин интенсивный коричневый для седых волос | C144: 60 | D144: 473.4 | E144: 263 | F144: 263 | H144: 0
A145: AMBCOL-7.810 | B145: 7.810 Блондин коричнево-пепельный для седых волос | C145: 60 | D145: 473.4 | E145: 263 | F145: 263 | H145: 0
A146: AMBCOL-8.810 | B146: 8.810 Светлый блондин коричнево-пепельный для седых волос | C146: 60 | D146: 473.4 | E146: 263 | F146: 263 | H146: 0
A147: AMBCOL-8.880 | B147: 8.880 Светлый блондин интенсивный коричневый для седых волос | C147: 60 | D147: 473.4 | E147: 263 | F147: 263 | H147: 0
A148: AMBCOL-9.310 | B148: 9.310 Очень светлый блондин золотисто-пепельный для седых волос | C148: 60 | D148: 473.4 | E148: 263 | F148: 263 | H148: 0
A149: AMBCOL-9.360 | B149: 9.360 Очень светлый блондин золотисто-махагоновый для седых волос | C149: 60 | D149: 473.4 | E149: 263 | F149: 263 | H149: 0
A150: AMBCOL-9.810 | B150: 9.810 Очень светлый блондин коричнево-пепельный для седых волос | C150: 60 | D150: 473.4 | E150: 263 | F150: 263 | H150: 0
A151: AMBCOL-9.830 | B151: 9.830 Очень светлый блондин коричнево-золотистый для седых волос | C151: 60 | D151: 473.4 | E151: 263 | F151: 263 | H151: 0
A152: AMBCOL-10.310 | B152: 10.310 Экстра светлый блондин золотисто-пепельный для седых волос | C152: 60 | D152: 473.4 | E152: 263 | H152: 0
A153: AMBCOL-10.360 | B153: 10.360 Экстра светлый блондин золотисто-махагоновый для седых волос | C153: 60 | D153: 473.4 | E153: 263 | F153: =E153-E153*$G$7/100 -> 263 | H153: 0
A154: AMBCOL-10.810 | B154: 10.810 Экстра светлый блондин коричнево-пепельный для седых волос | C154: 60 | D154: 473.4 | E154: 263 | F154: 263 | H154: 0
A155: AMBCOL-10.830 | B155: 10.830 Экстра светлый блондин коричнево-золотистый для седых волос | C155: 60 | D155: 473.4 | E155: 263 | F155: 263 | H155: 0
B156: Специальные блондины Special Blond | F156: 0 | H156: 0
A157: AMBCOL-1000 | B157: 1000 Специальный блондин натуральный | C157: 60 | D157: 473.4 | E157: 263 | F157: 263 | H157: 0
A158: AMBCOL-1006 | B158: 1006 Специальный блондин махагоновый | C158: 60 | D158: 473.4 | E158: 263 | F158: 263 | H158: 0
A159: AMBCOL-1007 | B159: 1007 Специальный блондин фиолетовый | C159: 60 | D159: 473.4 | E159: 263 | F159: 263 | H159: 0
A160: AMBCOL-1008 | B160: 1008 Специальный блондин коричневый | C160: 60 | D160: 473.4 | E160: 263 | F160: 263 | H160: 0
A161: AMBCOL-1011 | B161: 1011 Специальный блондин интенсивный пепельный | C161: 60 | D161: 473.4 | E161: 263 | F161: 263 | H161: 0
A162: AMBCOL-1016 | B162: 1016 Специальный блондин пепельно-махагоновый | C162: 60 | D162: 473.4 | E162: 263 | F162: 263 | H162: 0
A163: AMBCOL-1017 | B163: 1017 Специальный блондин пепельно-фиолетовый | C163: 60 | D163: 473.4 | E163: 263 | H163: 0
A164: AMBCOL-1018 | B164: 1018 Специальный блондин пепельно-коричневый | C164: 60 | D164: 473.4 | E164: 263 | F164: 263 | H164: 0
A165: AMBCOL-1037 | B165: 1037 Специальный блондин золотисто-фиолетовый | C165: 60 | D165: 473.4 | E165: 263 | F165: =E165-E165*$G$7/100 -> 263 | H165: 0
A166: AMBCOL-1087 | B166: 1087 Специальный блондин коричнево-фиолетовый | C166: 60 | D166: 473.4 | E166: 263 | F166: 263 | H166: 0
B167: Корректоры | F167: 0 | H167: 0
A168: AMBCOL-Beige | B168: Бежевый корректор | C168: 60 | D168: 473.4 | E168: 263 | F168: 263 | H168: 0
A169: AMBCOL-Blue | B169: Синий корректор | C169: 60 | D169: 473.4 | E169: 263 | F169: 263 | H169: 0
A170: AMBCOL-Brown | B170: Коричневый корректор | C170: 60 | D170: 473.4 | E170: 263 | F170: 263 | H170: 0
A171: AMBCOL-Copper | B171: Медный корректор | C171: 60 | D171: 473.4 | E171: 263 | F171: 263 | H171: 0
A172: AMBCOL-Graphite | B172: Графитовый корректор | C172: 60 | D172: 473.4 | E172: 263 | F172: 263 | H172: 0
A173: AMBCOL-Green | B173: Зеленый корректор | C173: 60 | D173: 473.4 | E173: 263 | F173: 263 | H173: 0
A174: AMBCOL-Red | B174: Красный корректор | C174: 60 | D174: 473.4 | E174: 263 | F174: 263 | H174: 0
A175: AMBCOL-Violet | B175: Фиолетовый корректор | C175: 60 | D175: 473.4 | E175: 263 | H175: 0
A176: AMBCOL-Yellow | B176: Желтый корректор | C176: 60 | D176: 473.4 | E176: 263 | F176: 263 | H176: 0
A177: AMBCOL-0.0N | B177: 0.0N Корректор Нейтральный | C177: 60 | D177: 473.4 | E177: 263 | F177: =E177-E177*$G$7/100 -> 263 | H177: 0
A178: AMBCOL-0.0А | B178: 0.0А Аммиачный корректор | C178: 60 | D178: 473.4 | E178: 263 | F178: 263 | H178: 0
B179: Крем-окислитель AMBIENT Color | F179: 0 | H179: 0
A180: AMB65171 | B180: Крем-окислитель 1,5%/ 5 vol. | C180: 900 | D180: 882 | E180: 490 | F180: 490 | H180: 0
A181: AMB65188 | B181: Крем-окислитель 3%/ 10 vol. | C181: 900 | D181: 882 | E181: 490 | F181: 490 | H181: 0
A182: AMB65195 | B182: Крем-окислитель 6%/ 20 vol. | C182: 900 | D182: 882 | E182: 490 | F182: 490 | H182: 0
A183: AMB65201 | B183: Крем-окислитель 9%/ 30 vol. | C183: 900 | D183: 882 | E183: 490 | F183: 490 | H183: 0
A184: AMB65218 | B184: Крем-окислитель 12%/ 40 vol. | C184: 900 | D184: 882 | E184: 490 | F184: 490 | H184: 0
A185: AMB65225 | B185: Крем-окислитель 1,5%/ 5 vol. | C185: 60 | D185: 153 | E185: 85 | F185: 85 | H185: 0
A186: AMB65232 | B186: Крем-окислитель 3%/ 10 vol. | C186: 60 | D186: 153 | E186: 85 | F186: 85 | H186: 0
A187: AMB65249 | B187: Крем-окислитель 6%/ 20 vol. | C187: 60 | D187: 153 | E187: 85 | H187: 0
A188: AMB65256 | B188: Крем-окислитель 9%/ 30 vol. | C188: 60 | D188: 153 | E188: 85 | F188: 85 | H188: 0
A189: AMB65263 | B189: Крем-окислитель 12%/ 40 vol. | C189: 60 | D189: 153 | E189: 85 | F189: 85 | H189: 0
A190: AMB65270 | B190: Крем-активатор 1% /3.5 vol. | C190: 900 | D190: 936 | E190: 520 | F190: 520 | H190: 0
B191: Средства для обесцвечивания волос AMBIENT Bleach | H191: 0
A192: AMB67786 | B192: Обесцвечивающий порошок белый, экстрабыстрый | C192: 500 г | D192: 2230.2 | E192: 1239 | F192: 1239 | H192: 0
A193: AMB67793 | B193: Обесцвечивающий порошок синий, классический | C193: 500 г | D193: 1994.4 | E193: 1108 | F193: 1108 | H193: 0
A194: AMB68578 | B194: Паста обесцвечивающая (синяя упаковка) NEW | C194: 335 г | D194: 1798.2 | E194: 999 | F194: 999 | H194: 0
A195: AMB65379 | B195: Паста обесцвечивающая (белая упаковка) | C195: 335 г | D195: 1798.2 | E195: 999 | F195: 999 | H195: 0
B196: Технический ассортимент для работы в салоне AMBIENT SERVICE | F196: 0 | H196: 0
A197: AMB68639 | B197: НАБОР AMBIENT Service Лосьон для коррекции косметического цвета волос, Состав 1 и 2, 500+500 НОВИНКА! | C197: 500+500 | D197: 2340 | E197: 1300 | F197: 1300 | H197: 0
A198: AMB67755 | B198: Протеиновая сыворотка для интенсивного восстановления волос | C198: 10 x 10 мл | D198: 1458 | E198: 810 | F198: 810 | H198: 0
A199: AMB67809 | B199: Плекс-реконструктор сыворотка, шаг 1 | C199: 250 мл | D199: 2466 | E199: 1370 | F199: 1370 | H199: 0
A200: AMB67816 | B200: Плекс-фиксатор крем, шаг 2 | C200: 250 мл | D200: 1116 | E200: 620 | F200: 620 | H200: 0
A201: AMB65072 | B201: Шампунь для глубокой очистки волос | C201: 1000 мл | D201: 1134 | E201: 630 | F201: 630 | H201: 0
A202: AMB65089 | B202: Шампунь-стабилизатор процедуры окрашивания волос | C202: 1000 мл | D202: 1134 | E202: 630 | H202: 0
A203: AMB64846 | B203: Спрей-стабилизатор процедуры окрашивания волос | C203: 500 мл | D203: 1494 | E203: 830 | F203: 830 | H203: 0
A204: AMB65331 | B204: Маска липидная для интенсивного восстановления волос | C204: 500 мл | D204: 1278 | E204: 710 | F204: 710 | H204: 0
... 400 more rows

Sheet MATRIX
A1: Ваш торговый представитель______________________
A2: моб. Тел._________________________________________
B3: 109457 г. Москва,ул. Плеханова, дом 4,стр.3 ООО “Компания "Аквакосметика” тел. 8(495)785-99-54,785-99-53 многоканальный сайт: www.steck.ru, e-mail: prof@akva.ru
A7: ПРАЙС-ЛИСТ MATRIX Professional | C7: Проставьте в зеленой ячейке вашу скидку | F7: %
A9: 2026-04-01
A10: Артикул | B10: Наименование | C10: Цена за ед. с НДС | D10: Цена с вашей скидкой,руб | E10: Ваш Заказ | F10: Сумма Вашего заказа (с НДС)
B11: НОВИНКА! Топ-продукты в мини-формате! | D11: =C11-C11*$E$7/100 -> 0 | F11: =E11*D11 -> 0
A12: E4489900 | B12: МХ ФУД ФО СОФТ Маска 75мл | C12: 656.3888889 | D12: 656.3888889 | F12: =E12*D12 -> 0
A13: E4489800 | B13: MX МИРАКЛ НА ПРОДАЖ 100МЛ | C13: 1066.041667 | D13: 1066.041667 | F13: 0
A14: E4489700 | B14: MX TR FFS масло-сыворотка 30мл | C14: 1193.541667 | D14: 1193.541667 | F14: 0
B15: Весенние наборы возвращаются! | C15: 0 | D15: 0 | F15: 0
A16: URU15134 | B16: Набор Food For Soft для увлажнения волос, Шампунь 300 мл и Кондиционер 300 мл, масло-сыворотка 30мл | C16: 2886.215847 | D16: 2886.215847 | F16: 0
A17: URU14912 | B17: Набор Matrix Glow Mania для блеска и защиты цвета окрашенных волос, Шампунь 300 мл и Кондиционер 300 мл | C17: 1931.383694 | D17: 1931.383694 | F17: 0
A18: URU14913 | B18: Набор Instacure Build-A-Bond для восстановления очень поврежденных волос, Шампунь 300 мл и Маска 250 мл | C18: 1931.383694 | D18: 1931.383694 | F18: 0
A19: URU14911 | B19: Набор High Amplify для экстраобъема, Шампунь 300 мл и Кондиционер 300 мл | C19: 1614.061694 | D19: 1614.061694 | F19: 0
A20: URU14910 | B20: Набор Brass Off для нейтрализации нежелательных медных оттенков, Шампунь 300 мл и Кондиционер 300 мл | C20: 1931.383694 | D20: 1931.383694 | F20: 0
A21: URU14914 | B21: Набор A Curl Can Dream для кудрявых и вьющихся волос, Шампунь 300 мл и Маска 250 мл | C21: 1931.383694 | D21: 1931.383694 | F21: 0
A22: URU14915 | B22: Набор Food For Soft для увлажнения, Шампунь 300 мл и Кондиционер 300 мл | C22: 1931.383694 | D22: 1931.383694 | F22: 0
B23: НОВИНКА! Tonal Control BlondeMax/Тонал Контрол Блондмакс. Кислотные тонеры для 10-11 уровней блонд | C23: 0 | D23: 0 | F23: 0
A24: E4272200 | B24: MX TC Гелевый Тонер 11N 90 мл | C24: 824.0277778 | D24: 824.0277778 | F24: 0
A25: E4272500 | B25: MX TC Гелевый Тонер 10GB 90 мл | C25: 824.0277778 | D25: 824.0277778 | F25: 0
A26: E4272800 | B26: MX TC Гелевый Тонер 10AG 90 мл | C26: 824.0277778 | D26: 824.0277778 | F26: 0
A27: E4273100 | B27: MX TC Гелевый Тонер 10VA 90 мл | C27: 824.0277778 | D27: 824.0277778 | F27: 0
A28: E4273700 | B28: MX TC Гелевый Тонер 11NA 90 мл | C28: 824.0277778 | D28: 824.0277778 | F28: 0
A29: E4274000 | B29: MX TC Гелевый Тонер 11NV 90 мл | C29: 824.0277778 | D29: 824.0277778 | F29: 0
A30: E4274300 | B30: MX TC Гелевый Тонер 10N 90 мл | C30: 824.0277778 | D30: 824.0277778 | F30: 0
A31: E4274600 | B31: MX TC Гелевый Тонер 10PA 90 мл | C31: 824.0277778 | D31: 824.0277778 | F31: 0
A32: E4274900 | B32: MX TC Гелевый Тонер 11PA 90 мл | C32: 824.0277778 | D32: 824.0277778 | F32: 0
C33: 0 | D33: 0 | F33: 0
A34: URU14774 | B34: Набор Matrix Brass Off Шампунь + крем-маска Matrix Total Treat для глубокого питания, скидка 25% | C34: 3071.507583 | D34: 3071.507583 | F34: 0
C35: 0 | D35: 0 | F35: 0
A36: E4229400 | B36: Супер Синк 3NN 90мл | C36: 824.0277778 | D36: 824.0277778 | F36: 0
A37: E4227600 | B37: Супер Синк 5NN 90мл | C37: 824.0277778 | D37: 824.0277778 | F37: 0
A38: E4539900 | B38: Супер Синк Экстра 6NN 90мл | C38: 824.0277778 | D38: 824.0277778 | F38: 0
A39: E4539600 | B39: Супер Синк Экстра 8NN 90мл | C39: 824.0277778 | D39: 824.0277778 | F39: 0
A40: URU14947 | B40: Набор Супер Синк оттенки NN 8 x 90мл+ крем оксидант 3% 1000мл | C40: 5392.990514 | D40: =C40-C40*$E$7/100 -> 5392.990514 | F40: =E40*D40 -> 0
C41: 0 | D41: 0 | F41: 0
C42: 0 | D42: 0 | F42: 0
A43: E3779500 | B43: Осветляющий порошок Лайт Мастер с бондером 500 гр | C43: 2074.236111 | D43: 2074.236111 | F43: 0
A44: E4202000 | B44: МХ ЛайтМастер Хай Райзер 500г | C44: 3117.847222 | D44: 3117.847222 | F44: 0
A45: E3779100 | B45: Осветляющий порошок Лайт Мастер 500гр | C45: 1788.541667 | D45: 1788.541667 | F45: 0
C46: 0 | D46: 0 | F46: 0
C47: 0 | D47: 0 | F47: 0
A48: P1580502 | B48: Мх Соколор Культ Королевский Фиолетовый, 118мл | C48: 1527.638889 | D48: 1527.638889 | F48: 0
A49: P1568201 | B49: Мх Соколор Культ Серебро Диско, 118мл | C49: 1527.638889 | D49: 1527.638889 | F49: 0
A50: P1567301 | B50: Мх Соколор Культ Адмирал Нэви, 118мл | C50: 1527.638889 | D50: 1527.638889 | F50: 0
C51: 0 | D51: 0 | F51: 0
C52: 0 | D52: 0 | F52: 0
A53: E4280300 | B53: СоКолор 506NV 90мл | C53: 669.375 | D53: 669.375 | F53: 0
C54: 0 | D54: 0 | F54: 0
A55: E4280500 | B55: СоКолор 506NW 90мл | C55: 669.375 | D55: 669.375 | F55: 0
A56: E3586800 | B56: СоКолор 508NW 90мл | C56: 626.5208333 | D56: 626.5208333 | F56: 0
C57: 0 | D57: 0 | F57: 0
A58: E4280900 | B58: СоКолор 507AV 90мл | C58: 669.375 | D58: 669.375 | F58: 0
A59: E4282500 | B59: СоКолор 509AV 90мл | C59: 669.375 | D59: 669.375 | F59: 0
C60: 0 | D60: 0 | F60: 0
A61: E4278900 | B61: СоКолор 505M 90мл | C61: 669.375 | D61: =C61-C61*$E$7/100 -> 669.375 | F61: 0
A62: E4279700 | B62: СоКолор 506M 90мл | C62: 669.375 | D62: 669.375 | F62: =E62*D62 -> 0
C63: 0 | D63: 0 | F63: 0
A64: E3587800 | B64: СоКолор 506RB 90мл | C64: 626.5208333 | D64: 626.5208333 | F64: 0
C65: 0 | D65: 0 | F65: 0
A66: E4279500 | B66: СоКолор 506BC 90мл | C66: 669.375 | D66: 669.375 | F66: 0
A67: E4281500 | B67: СоКолор 508BC 90мл | C67: 669.375 | D67: 669.375 | F67: 0
C68: 0 | D68: 0 | F68: 0
A69: E3588000 | B69: СоКолор 505G 90мл | C69: 626.5208333 | D69: 626.5208333 | F69: 0
A70: E3588400 | B70: СоКолор 507G 90мл | C70: 626.5208333 | D70: 626.5208333 | F70: 0
A71: E3588800 | B71: СоКолор 509G 90мл | C71: 626.5208333 | D71: 626.5208333 | F71: 0
A72: E4283300 | B72: СоКолор 510G 90мл | C72: 669.375 | D72: 669.375 | F72: 0
C73: 0 | D73: 0 | F73: 0
A74: E3582700 | B74: СоКолор 504N 90мл | C74: 626.5208333 | D74: 626.5208333 | F74: 0
A75: E4279100 | B75: СоКолор 505N 90мл | C75: 669.375 | D75: 669.375 | F75: 0
A76: E4279900 | B76: СоКолор 506N 90мл | C76: 669.375 | D76: 669.375 | F76: 0
A77: E4281300 | B77: СоКолор 507N 90мл | C77: 669.375 | D77: 669.375 | F77: 0
A78: E4281900 | B78: СоКолор 508N 90мл | C78: 669.375 | D78: 669.375 | F78: 0
A79: E4282900 | B79: СоКолор 509N 90мл | C79: 669.375 | D79: 669.375 | F79: 0
A80: E4283500 | B80: СоКолор 510N 90мл | C80: 669.375 | D80: 669.375 | F80: 0
C81: 0 | D81: 0 | F81: 0
A82: E4279300 | B82: СоКолор 505NA 90мл | C82: 669.375 | D82: 669.375 | F82: 0
A83: E4280100 | B83: СоКолор 506NA 90мл | C83: 669.375 | D83: 669.375 | F83: 0
A84: E4282100 | B84: СоКолор 508NA 90мл | C84: 669.375 | D84: 669.375 | F84: 0
A85: E4283100 | B85: СоКолор 509NA 90мл | C85: 669.375 | D85: 669.375 | F85: 0
A86: E4283700 | B86: СоКолор 510NA 90мл | C86: 669.375 | D86: 669.375 | F86: 0
C87: 0 | D87: 0 | F87: 0
C88: 0 | D88: 0 | F88: 0
A89: E4288000 | B89: СоКолор 6NA 90мл | C89: 669.375 | D89: 669.375 | F89: 0
A90: E4289200 | B90: СоКолор 8NA 90мл | C90: 669.375 | D90: 669.375 | F90: 0
A91: E4288200 | B91: СоКолор 6NV 90мл | C91: 669.375 | D91: 669.375 | F91: 0
C92: 0 | D92: 0 | F92: 0
A93: E3535101 | B93: СоКолор 2N 90мл | C93: 626.5208333 | D93: 626.5208333 | F93: 0
A94: E4286800 | B94: СоКолор 3N 90мл | C94: 669.375 | D94: 669.375 | F94: 0
A95: E3533501 | B95: СоКолор 4N 90мл | C95: 626.5208333 | D95: 626.5208333 | F95: 0
A96: E4287400 | B96: СоКолор 5N 90мл | C96: 669.375 | D96: 669.375 | F96: 0
A97: E4287800 | B97: СоКолор 6N 90мл | C97: 669.375 | D97: 669.375 | F97: 0
A98: E4288600 | B98: СоКолор 7N 90мл | C98: 669.375 | D98: 669.375 | F98: 0
A99: E4289000 | B99: СоКолор 8N 90мл | C99: 669.375 | D99: 669.375 | F99: 0
A100: E4289600 | B100: СоКолор 9N 90мл | C100: 669.375 | D100: 669.375 | F100: 0
A101: E4286400 | B101: СоКолор 11N 90мл | C101: 669.375 | D101: 669.375 | F101: 0
C102: 0 | D102: 0 | F102: 0
A103: E4287200 | B103: СоКолор 4NW 90мл | C103: 669.375 | D103: 669.375 | F103: 0
A104: E3535501 | B104: СоКолор 6NW 90мл | C104: 626.5208333 | D104: 626.5208333 | F104: 0
A105: E3536701 | B105: СоКолор 8NW 90мл | C105: 626.5208333 | D105: 626.5208333 | F105: 0
A106: E3538101 | B106: СоКолор 10NW 90мл | C106: 626.5208333 | D106: 626.5208333 | F106: 0
C107: 0 | D107: 0 | F107: 0
A108: E4297600 | B108: СоКолор 6VA 90мл | C108: 669.375 | D108: 669.375 | F108: 0
A109: E3685200 | B109: СоКолор 4AA 90мл | C109: 626.5208333 | D109: 626.5208333 | F109: 0
C110: 0 | D110: 0 | F110: 0
A111: E4332300 | B111: Соколор CLEAR 90мл | C111: 669.375 | D111: 669.375 | F111: 0
C112: 0 | D112: 0 | F112: 0
A113: E4296400 | B113: СоКолор 1A 90мл | C113: 669.375 | D113: 669.375 | F113: 0
A114: E3678400 | B114: СоКолор 5A 90мл | C114: 626.5208333 | D114: 626.5208333 | F114: 0
A115: E3678800 | B115: Соколор 6A 90мл | C115: 626.5208333 | D115: =C115-C115*$E$7/100 -> 626.5208333 | F115: 0
A116: E3679200 | B116: СоКолор 7A 90мл | C116: 626.5208333 | D116: 626.5208333 | F116: =E116*D116 -> 0
A117: E3679600 | B117: СоКолор 9A 90мл | C117: 626.5208333 | D117: 626.5208333 | F117: 0
A118: E4296200 | B118: СоКолор 11A 90мл | C118: 669.375 | D118: 669.375 | F118: 0
C119: 0 | D119: 0 | F119: 0
A120: E3682800 | B120: СоКолор 6P 90мл | C120: 626.5208333 | D120: 626.5208333 | F120: 0
A121: E3683200 | B121: Соколор 8P 90мл | C121: 626.5208333 | D121: 626.5208333 | F121: 0
A122: E3683600 | B122: СоКолор 10P 90мл | C122: 626.5208333 | D122: 626.5208333 | F122: 0
C123: 0 | D123: 0 | F123: 0
A124: E3681600 | B124: Соколор 6SP 90мл | C124: 626.5208333 | D124: 626.5208333 | F124: 0
A125: E4307500 | B125: Соколор 8SP 90мл | C125: 669.375 | D125: 669.375 | F125: 0
A126: E3682400 | B126: СоКолор 10SP 90мл | C126: 626.5208333 | D126: 626.5208333 | F126: 0
C127: 0 | D127: 0 | F127: 0
A128: E3676000 | B128: СоКолор 5AV 90мл | C128: 626.5208333 | D128: 626.5208333 | F128: 0
A129: E4298000 | B129: СоКолор 7AV 90мл | C129: 669.375 | D129: 669.375 | F129: 0
A130: E4298200 | B130: СоКолор 8AV 90мл | C130: 669.375 | D130: 669.375 | F130: 0
A131: E3677200 | B131: СоКолор 9AV 90мл | C131: 626.5208333 | D131: 626.5208333 | F131: 0
C132: 0 | D132: 0 | F132: 0
A133: E3704200 | B133: СоКолор 7G 90мл | C133: 626.5208333 | D133: 626.5208333 | F133: 0
A134: E3704600 | B134: СоКолор 8G 90мл | C134: 626.5208333 | D134: 626.5208333 | F134: 0
A135: E3705000 | B135: СоКолор 9G 90мл | C135: 626.5208333 | D135: 626.5208333 | F135: 0
A136: E3705400 | B136: СоКолор 10G 90мл | C136: 626.5208333 | D136: 626.5208333 | F136: 0
C137: 0 | D137: 0 | F137: 0
A138: E3671200 | B138: СоКолор 6C 90мл | C138: 626.5208333 | D138: 626.5208333 | F138: 0
A139: E4292800 | B139: СоКолор 7C 90мл | C139: 669.375 | D139: 669.375 | F139: 0
A140: E4293400 | B140: Соколор 8C 90мл | C140: 669.375 | D140: 669.375 | F140: 0
C141: 0 | D141: 0 | F141: 0
A142: E4293000 | B142: СоКолор 7CG 90мл | C142: 669.375 | D142: 669.375 | F142: 0
C143: 0 | D143: 0 | F143: 0
A144: E4293600 | B144: СоКолор 8CC 90мл | C144: 669.375 | D144: 669.375 | F144: 0
C145: 0 | D145: 0 | F145: 0
A146: E4300800 | B146: СоКолор 4M 90мл | C146: 669.375 | D146: 669.375 | F146: 0
A147: E4301200 | B147: СоКолор 5M 90мл | C147: 669.375 | D147: 669.375 | F147: 0
A148: E4301600 | B148: СоКолор 6M 90мл | C148: 669.375 | D148: 669.375 | F148: 0
A149: E4302400 | B149: СоКолор 7M 90мл | C149: 669.375 | D149: 669.375 | F149: 0
A150: E4302800 | B150: СоКолор 8M 90мл | C150: 669.375 | D150: 669.375 | F150: 0
A151: E4303400 | B151: СоКолор 9M 90мл | C151: 669.375 | D151: 669.375 | F151: 0
C152: 0 | D152: 0 | F152: 0
A153: E4301000 | B153: СоКолор 4MA 90мл | C153: 669.375 | D153: 669.375 | F153: 0
A154: E4301800 | B154: СоКолор 6MA 90мл | C154: 669.375 | D154: 669.375 | F154: 0
A155: E4303000 | B155: СоКолор 8MA 90мл | C155: 669.375 | D155: 669.375 | F155: 0
C156: 0 | D156: 0 | F156: 0
A157: E4302200 | B157: СоКолор 6MM 90мл | C157: 669.375 | D157: 669.375 | F157: 0
A158: E4303200 | B158: СоКолор 8MM 90мл | C158: 669.375
A159: E4300600 | B159: СоКолор 10MM 90мл | C159: 669.375 | D159: 669.375 | F159: 0
C160: 0 | D160: 0 | F160: 0
A161: E4301400 | B161: СоКолор 5MG 90мл | C161: 669.375 | D161: 669.375 | F161: 0
A162: E3698400 | B162: СоКолор 6MG 90мл | C162: 626.5208333 | D162: 626.5208333 | F162: 0
A163: E4302600 | B163: СоКолор 7MG 90мл | C163: 669.375 | D163: 669.375 | F163: 0
C164: 0 | D164: =C164-C164*$E$7/100 -> 0 | F164: 0
A165: E4292600 | B165: Соколор 6VR 90мл | C165: 669.375 | D165: 669.375 | F165: =E165*D165 -> 0
C166: 0 | D166: 0 | F166: 0
A167: E4309700 | B167: СоКолор 5BC 90мл | C167: 669.375 | D167: 669.375 | F167: 0
A168: E4310100 | B168: СоКолор 6BC 90мл | C168: 669.375 | D168: 669.375 | F168: 0
A169: E3707000 | B169: СоКолор 6BC 90мл | C169: 626.5208333 | D169: 626.5208333 | F169: 0
A170: E4310300 | B170: СоКолор 7BC 90мл | C170: 669.375 | D170: 669.375 | F170: 0
C171: 0 | D171: 0 | F171: 0
A172: E4309900 | B172: СоКолор 5BV 90мл | C172: 669.375 | D172: 669.375 | F172: 0
C173: 0 | D173: 0 | F173: 0
A174: E3675200 | B174: СоКолор 8RC 90мл | C174: 626.5208333 | D174: 626.5208333 | F174: 0
C175: 0 | D175: 0 | F175: 0
A176: E4291600 | B176: СоКолор 5RR+ 90мл | C176: 669.375 | D176: 669.375 | F176: 0
A177: E4293200 | B177: СоКолор 7RR+ 90мл | C177: 669.375 | D177: 669.375 | F177: 0
A178: E4291800 | B178: СоКолор 5RV+ 90мл | C178: 669.375 | D178: 669.375 | F178: 0
C179: 0 | D179: 0 | F179: 0
C180: 0 | D180: 0 | F180: 0
A181: E3686800 | B181: СоКолор UL-A+ 90мл | C181: 626.5208333 | D181: 626.5208333 | F181: 0
A182: E3687200 | B182: СоКолор UL-VV 90мл | C182: 626.5208333 | D182: 626.5208333 | F182: 0
A183: E3687600 | B183: СоКолор UL-V+ 90мл | C183: 626.5208333 | D183: 626.5208333 | F183: 0
A184: E3688000 | B184: СоКолор UL-NV+ 90мл | C184: 626.5208333 | D184: 626.5208333 | F184: 0
A185: E3688400 | B185: СоКолор UL-N 90мл | C185: 626.5208333 | D185: 626.5208333 | F185: 0
A186: E3688800 | B186: СоКолор UL-N+ 90мл | C186: 626.5208333 | D186: 626.5208333 | F186: 0
A187: E3689200 | B187: СоКолор UL-M 90мл | C187: 626.5208333 | D187: 626.5208333 | F187: 0
A188: E3690000 | B188: СоКолор UL-P 90мл | C188: 626.5208333 | D188: 626.5208333 | F188: 0
C189: 0 | D189: 0 | F189: 0
A190: E4005400 | B190: MX TC Гелевый Тонер 11PV 90 мл | C190: 824.0277778 | D190: 824.0277778 | F190: 0
A191: E4005100 | B191: MX TC Гелевый Тонер 10PR 90 мл | C191: 824.0277778 | D191: 824.0277778 | F191: 0
A192: E4049600 | B192: MX Тонал Контрол 10T 90 мл | C192: 824.0277778 | D192: 824.0277778 | F192: 0
A193: E4049300 | B193: MX Тонал Контрол 10P 90 мл | C193: 824.0277778 | D193: 824.0277778 | F193: 0
A194: E4004200 | B194: MX TC Гелевый Тонер 9V 90 мл | C194: 824.0277778 | D194: 824.0277778 | F194: 0
A195: E4005700 | B195: MX TC Гелевый Тонер 9RG 90 мл | C195: 824.0277778 | D195: 824.0277778 | F195: 0
A196: E4004800 | B196: MX TC Гелевый Тонер 9AA 90 мл | C196: 824.0277778 | D196: 824.0277778 | F196: 0
A197: E4007200 | B197: MX TC Гелевый Тонер 8VG 90 мл | C197: 824.0277778 | D197: 824.0277778 | F197: 0
A198: E4048700 | B198: MX Тонал Контрол 8P 90 мл | C198: 824.0277778 | D198: 824.0277778 | F198: 0
A199: E4049000 | B199: MX Тонал Контрол 8T 90 мл | C199: 824.0277778 | D199: 824.0277778 | F199: 0
A200: E4006600 | B200: MX TC Гелевый Тонер 7NA 90 мл | C200: 824.0277778 | D200: 824.0277778 | F200: 0
A201: E4006900 | B201: MX TC Гелевый Тонер 7GM 90 мл | C201: 824.0277778 | D201: 824.0277778 | F201: 0
A202: E4006000 | B202: MX TC Гелевый Тонер 6A 90 мл | C202: 824.0277778 | D202: 824.0277778 | F202: 0
A203: E4006300 | B203: MX TC Гелевый Тонер 6NGA 90 мл | C203: 824.0277778 | D203: 824.0277778 | F203: 0
A204: E4008100 | B204: MX TC Гелевый Тонер 5NGA 90 мл | C204: 824.0277778 | D204: 824.0277778 | F204: 0
... 186 more rows

Sheet EPICA
B2: 109457 г. Москва,ул. Плеханова, дом 4,стр.3 ООО “Компания "Аквакосметика” тел. 8(495)785-99-54,785-99-53 многоканальный сайт: www.steck.ru, e-mail: prof@akva.ru
C3: Проставьте в зеленой ячейке вашу скидку | F3: %
B4: Прайс-лист EPICA (Италия)
A6: 2026-04-01
A7: Артикул | B7: Наименование | C7: Цена, с НДС, руб. | D7: Цена с вашей скидкой,руб | E7: Ваш Заказ | F7: Сумма Вашего заказа (с НДС)
A8: 131-91329 | B8: EPICA Amber Shine ORGANIC Кондиционер 1Л для восстановления и питания волос | C8: 1303.33 | D8: =C8-C8*$E$3/100 -> 1303.33 | F8: =E8*D8 -> 0
A9: 131-91319 | B9: EPICA Amber Shine ORGANIC Конд-р 250мл д/восст, масл. облепихи, макадамии СРОК 10.24 | C9: 612 | D9: =C9-C9*$E$3/100 -> 612 | F9: =E9*D9 -> 0
A10: 131-91359 | B10: EPICA Amber Shine ORGANIC Маска 250мл д/восст и питан, масл. облепихи, макадамии | C10: 680 | D10: =C10-C10*$E$3/100 -> 680 | F10: =E10*D10 -> 0
A11: 131-91369 | B11: EPICA Amber Shine ORGANIC Маска 1Л для восстановления и питания волос | C11: 1337.33 | D11: =C11-C11*$E$3/100 -> 1337.33 | F11: 0
A12: 131-91392 | B12: EPICA Amber Shine ORGANIC Сыворотка 100мл для восстановления волос | C12: 816 | D12: =C12-C12*$E$3/100 -> 816 | F12: 0
A13: 131-91315 | B13: EPICA Amber Shine ORGANIC Шампунь 1Л для восстановления и питания | C13: 1235.33 | D13: =C13-C13*$E$3/100 -> 1235.33 | F13: 0
A14: 131-91308 | B14: EPICA Amber Shine ORGANIC Шампунь 250мл д/восст, масл. облепихи, макадамии | C14: 555.33 | D14: 555.33 | F14: 0
A15: 131-91345 | B15: EPICA Anti-dandruff Ш-нь 300мл от перхоти | C15: 555.33 | D15: 555.33 | F15: 0
A16: 131-91374 | B16: EPICA Argania Rise ORGANIC Кондиционер 1Л д/придания блеска с маслом арганы | C16: 1303.33 | D16: 1303.33 | F16: 0
A17: 131-91375 | B17: EPICA Argania Rise ORGANIC Кондиционер 250мл д/придания блеска с маслом арганы | C17: 612 | D17: 612 | F17: 0
A18: 131-91377 | B18: EPICA Argania Rise ORGANIC Маска 1Л д/придания блеска с маслом арганы | C18: 1337.33 | D18: 1337.33 | F18: 0
A19: 131-91376 | B19: EPICA Argania Rise ORGANIC Маска 250мл д/придания блеска с маслом арганы | C19: 680 | D19: 680 | F19: 0
A20: 131-91378 | B20: EPICA Argania Rise ORGANIC Спрей 250мл д/придания блеска волосам с комплексом масел | C20: 895.33 | D20: 895.33 | F20: 0
A21: 131-91318 | B21: EPICA Argania Rise ORGANIC Шампунь 1Л д/придания блеска | C21: 1235.33 | D21: 1235.33 | F21: 0
A22: 131-91309 | B22: EPICA Argania Rise ORGANIC Шампунь 250мл д/придания блеска с маслом арганы | C22: 555.33 | D22: 555.33 | F22: 0
A23: 131-91354 | B23: EPICA Cold Blond Маска 1Л с фиолетовым пигментом | C23: 1235.33 | D23: 1235.33 | F23: 0
A24: 131-91353 | B24: EPICA Cold Blond Маска 250мл с фиол.пигм,маслом макад.и экст.ромаш. | C24: 578 | D24: 578 | F24: 0
A25: 131-91352 | B25: EPICA Cold Blond Спрей 300мл д/нейтр с фиол пигм,экс меда,вин. кост СРОК 08.24 | C25: 748 | D25: 748 | F25: 0
A26: 131-91351 | B26: EPICA Cold Blond Шампунь 1Л с фиолетовым пигментом | C26: 1020 | D26: 1020 | F26: 0
A27: 131-91350 | B27: EPICA Cold Blond Ш-нь 300мл с фиол пигм,маслом макад,экст ромашки | C27: 532.67 | D27: 532.67 | F27: 0
A28: 131-91339 | B28: EPICA Collagen Pro Конд-р 1Л для увлажнения и реконструкции волос | C28: 1303.33 | D28: 1303.33 | F28: 0
A29: 131-91327 | B29: EPICA Collagen Pro Конд-р 250мл д/ увлажнения и реконструкции волос | C29: 612 | D29: 612 | F29: 0
A30: 131-91317 | B30: EPICA Collagen PRO Шампунь 1Л д/увл и реконструкции волос | C30: 1235.33 | D30: 1235.33 | F30: 0
A31: 131-91307 | B31: EPICA Collagen PRO Шампунь 250мл д/увл и реконструкции волос | C31: 555.33 | D31: 555.33 | F31: 0
A32: 131-91409 | B32: EPICA ComPlex PRO Кондиционер 250мл для защиты и восстановления волос | C32: 612 | D32: 612 | F32: 0
A33: 131-91413 | B33: EPICA ComPlex PRO Шампунь 250мл для защиты и восстановления волос | C33: 555.33 | D33: 555.33 | F33: 0
A34: 131-91313 | B34: EPICA Daily Care Конд-р 1Л д/еж ухода,масло бабассу,экст зел чая | C34: 986 | D34: 986 | F34: 0
A35: 131-91312 | B35: EPICA Daily Care Конд-р 300мл д/еж ух,масло бабассу,экст зел чая | C35: 510 | F35: 0
A36: 131-91311 | B36: EPICA Daily Care Ш-нь 1Л д/еж ух,масло бабассу,экст зел чая | C36: 895.33 | D36: =C36-C36*$E$3/100 -> 895.33 | F36: 0
A37: 131-91310 | B37: EPICA Daily Care Ш-нь 300мл д/еж ух,масло бабассу,экст зел чая | C37: 464.67 | D37: 464.67 | F37: 0
A38: 131-91333 | B38: EPICA Deep Recover Кондиционер 1Л д/восстановления повреждённых волос | C38: 986 | D38: 986 | F38: 0
A39: 131-91335 | B39: EPICA Deep Recover Маска 1Л д/восстановления поврежденных волос | C39: 1122 | D39: 1122 | F39: 0
A40: 131-91334 | B40: EPICA Deep Recover Маска д/восст повр волос 250 мл с маслом сладк миндаля и экстр ламинарии | C40: 555.33 | D40: 555.33 | F40: 0
A41: 131-91331 | B41: EPICA Deep Recover Шампунь 1Л д/восстановления поврежденных волос | C41: 895.33 | D41: 895.33 | F41: 0
A42: 131-91330 | B42: EPICA Deep Recover Ш-нь 300мл д/повр,масл минд и экстр лам-и | C42: 464.67 | D42: 464.67 | F42: 0
A43: 131-91347 | B43: EPICA Delicate Ш-нь 1Л Бессульфат д/дел очищ с гиалур кислотой | C43: 1314.67 | D43: 1314.67 | F43: 0
A44: 131-91343 | B44: EPICA Delicate Ш-нь 300мл Бессульфат д/делик очищ с гиалур кисл | C44: 668.67 | D44: 668.67 | F44: 0
A45: 131-91263 | B45: EPICA Five Elements Спрей д/волос сильной фиксации с термозащитным комплексом, 200 мл. | C45: 578 | D45: 578 | F45: 0
A46: 131-91264 | B46: EPICA Heat Shield Спрей 200мл д/в с термозащ комплексом | C46: 578 | D46: 578 | F46: 0
A47: 131-91342 | B47: EPICA Hemp therapy ORGANIC Активатор роста 100мл волос с комп PROCAPI и вит.РР | C47: 895.33 | D47: 895.33 | F47: 0
A48: 131-91323 | B48: EPICA Intense Moisture Конд-р 1Л д/увл и пит сух волос | C48: 986 | D48: 986 | F48: 0
A49: 131-91322 | B49: EPICA Intense Moisture Конд-р 300мл д/увл и пит сух волос | C49: 510 | D49: 510 | F49: 0
A50: 131-91325 | B50: EPICA Intense Moisture Маска 1Л д/увлажнения и питания сухих волос | C50: 1122 | D50: 1122 | F50: 0
A51: 131-91324 | B51: EPICA Intense Moisture Маска 250мл д/увл и пит сух волос | C51: 555.33 | D51: 555.33 | F51: 0
A52: 131-91320 | B52: EPICA Intense Moisture Ш-нь 300мл д/увл и пит сух волос | C52: 464.67 | D52: 464.67 | F52: 0
A53: 131-91403 | B53: EPICA Keratin Pro Конд-р 1Л д/реконстр-и и глуб восст-я | C53: 1303.33 | D53: =C53-C53*$E$3/100 -> 1303.33 | F53: 0
A54: 131-91402 | B54: EPICA Keratin Pro Конд-р 250мл д/реконстр-и и глуб восст-я | C54: 612 | D54: 612 | F54: 0
A55: 131-91405 | B55: EPICA Keratin PRO Маска 1Л д/реконструкции и глубокого восстановления | C55: 1337.33 | D55: 1337.33 | F55: 0
A56: 131-91404 | B56: EPICA Keratin Pro Маска 250мл д/реконстр-и и глуб восст-я | C56: 680 | D56: 680 | F56: 0
A57: 131-91406 | B57: EPICA Keratin PRO Спрей 250мл д/реконструкции и глубокого восстановления | C57: 895.33 | D57: =C57-C57*$E$3/100 -> 895.33 | F57: 0
A58: 131-91401 | B58: EPICA Keratin Pro Ш-нь 1Л д/реконстр-и и глуб восст-я | C58: 1235.33 | D58: 1235.33 | F58: 0
A59: 131-913149 | B59: Epica Liquid Crystal Флюид для увлажнения и защиты сухих волос, 80 мл | C59: 952 | D59: 952 | F59: 0
A60: 131-91390 | B60: EPICA Men 3в1 Гель д/душа,ш-нь и конд-р с охл эф-м 250мл | C60: 532.67 | D60: 532.67 | F60: 0
A61: 131-91357 | B61: EPICA Men`s 3 in 1 Мужской кондиционер 250 мл. | C61: 532.67 | D61: 532.67 | F61: 0
A62: 131-91349 | B62: EPICA Men`s Мужской шампунь, 1000 мл | C62: 1076.67 | D62: 1076.67 | F62: 0
A63: 131-91348 | B63: EPICA Men`s Мужской шампунь, мл 250мл | C63: 532.67 | D63: 532.67 | F63: =E63*D63 -> 0
A64: 131-91363 | B64: EPICA Multi Care 15 в 1 Несмываемый крем-уход 200мл с комплексом Actipone® ALPHA, | C64: 1439.33 | D64: 1439.33 | F64: 0
A65: 131-913018 | B65: EPICA Organic Конд-р 1Л д/роста,масл.сем конопли, AH и BH к-ми | C65: 1303.33 | D65: 1303.33 | F65: 0
A66: 131-913016 | B66: EPICA Organic Конд-р 250мл д/роста,масл.сем конопли,AH и BH к-ми | C66: 612 | D66: 612 | F66: 0
A67: 131-913015 | B67: EPICA Organic Ш-нь 250мл д/роста,масл.сем конопли, AH и BH к-ми | C67: 555.33 | D67: 555.33 | F67: 0
A68: 131-913021 | B68: Epica Protective Regenerating Крем для рук защитно-регенерирующий, 125 мл. | C68: 337 | D68: 337 | F68: 0
A69: 131-91346 | B69: EPICA Pure Solution Ш-нь 1Л д/глуб очищения с натур бетаином | C69: 895.33 | D69: 895.33 | F69: 0
A70: 131-91093 | B70: EPICA Recovery and nutrition Масло 5 х10 мл.+ Бустер 5 х10 мл. (флаконы) | C70: 952 | D70: 952 | F70: 0
A71: 131-91302 | B71: EPICA Rich Color Конд-р 300мл д/окр волос,масл макад,вин кост | C71: 510 | D71: 510 | F71: 0
A72: 131-91305 | B72: EPICA Rich Color Маска 1Л д/окрашенных волос | C72: 1122 | D72: 1122 | F72: 0
A73: 131-91304 | B73: EPICA Rich Color Маска 250мл д/окр волос,масл макад,вин кост | C73: 555.33 | D73: 555.33 | F73: 0
A74: 131-91306 | B74: EPICA Rich Color Сыв-ка-уход 300мл двухфазная д/окр волос | C74: 748 | D74: 748 | F74: 0
A75: 131-913005 | B75: EPICA Rich Color Шампунь д/окрашенных волос, 5Л | C75: 3150.67 | D75: 3150.67 | F75: 0
A76: 131-91300 | B76: EPICA Rich Color Ш-нь 300мл д/окр волос,масл макад,вин кост | C76: 464.67 | D76: 464.67 | F76: 0
A77: 131-91270 | B77: EPICA Salt texturizing spray Солевой текстурирующий спрей 200мл | C77: 578 | D77: 578 | F77: 0
A78: 131-91266 | B78: EPICA Silk Surface Спрей разглаживающий 200мл д/волос с термозащитным комплексом | C78: 578 | D78: 578 | F78: 0
A79: 131-91398 | B79: EPICA Silk Waves Кондиционер 1Л для вьющихся и кудрявых волос | C79: 986 | D79: 986 | F79: 0
A80: 131-91399 | B80: EPICA Silk Waves Конд-р 300мл д/вьющ. и кудр. волос с прот. шелка, мол. протеинами | C80: 510 | D80: 510 | F80: 0
A81: 131-91395 | B81: EPICA Silk Waves Спрей 300мл д/вьющ. и кудр. волос с прот. шелка, мол. протеинами | C81: 748 | D81: 748 | F81: 0
A82: 131-91396 | B82: EPICA Silk Waves Шампунь 1Л д/вьющ. и кудр. волос с прот. шелка, мол. протеинами | C82: 895.33 | D82: 895.33 | F82: 0
A83: 131-91366 | B83: EPICA Skin Balance Шампунь, регулирующий работу сальных желез, 1000 мл. | C83: 895.33 | D83: 895.33 | F83: 0
A84: 131-91364 | B84: EPICA Softness and shine Спрей–уход 10в1 300мл | C84: 578 | D84: 578 | F84: 0
A85: 131-91338 | B85: EPICA Volume booster Конд-р 1Л д/объема | C85: 986 | D85: 986 | F85: 0
A86: 131-91328 | B86: EPICA Volume booster Конд-р 300мл д/объема | C86: 510 | D86: 510 | F86: 0
A87: 131-91316 | B87: EPICA Volume booster Ш-нь 1Л д/объема | C87: 895.33 | D87: 895.33 | F87: 0
A88: 131-91314 | B88: EPICA Volume booster Ш-нь 300мл д/объема | C88: 464.67 | D88: 464.67 | F88: 0
A89: 131-913111 | B89: EPICA Жидкий лак для волос 200мл сильной фиксации "STRONG" | C89: 906.67 | D89: 906.67 | F89: 0
A90: 131-913109 | B90: EPICA Лак для волос 400мл сверхсильной фиксации "EXTRA STRONG" | C90: 1099.33 | D90: 1099.33 | F90: 0
A91: 131-913110 | B91: EPICA Лак для волос 400мл сильной фиксации "STRONG" | C91: 1099.33 | D91: 1099.33 | F91: 0
A92: 131-913093 | B92: EPICA Мусс для нейтр.тёплых оттенков волос «COLD BLOND» 250 мл. | C92: 906.67 | D92: 906.67 | F92: 0
A93: 131-913062 | B93: EPICA Набор Deep Recover (шампунь 300мл + кондиционер 300мл + маска 250мл) | C93: 1473.33 | D93: 1473.33 | F93: 0
A94: 131-913064 | B94: EPICA Набор Intense Moisture (шампунь 300мл + кондиционер 300мл + маска 250мл) | C94: 1473.33 | D94: =C94-C94*$E$3/100 -> 1473.33 | F94: 0
A95: 131-913076 | B95: EPICA Набор Silk Waves (шампунь 300мл + кондиционер 300мл + спрей 300мл) | C95: 1473.33 | D95: 1473.33 | F95: 0
A96: 131-91417 | B96: EPICA Пудра для объема волос 35мл сильной фиксации VOL 100% | C96: 861.33 | D96: 861.33 | F96: 0
E97: ИТОГО: | F97: =SUM(F9:F96) -> 0

Sheet INSIGHT
B2: 109457 г. Москва,ул. Плеханова, дом 4,стр.3 ООО “Компания "Аквакосметика” тел. 8(495)785-99-54,785-99-53 многоканальный сайт: www.steck.ru, e-mail: prof@akva.ru
C3: Проставьте в зеленой ячейке вашу скидку | F3: %
B4: Прайс-лист INSIGHT ECO
A6: 2026-04-01
A7: Артикул | B7: Наименование | C7: Цена, с НДС, руб. | D7: Цена с вашей скидкой,руб | E7: Ваш Заказ | F7: Сумма Вашего заказа (с НДС)
A8: 465-3334126 | B8: INS DRY HAIR Кондиционер 100 мл увлаж. для сухих волос | C8: 479 | D8: =C8-C8*$E$3/100 -> 479 | F8: =E8*D8 -> 0
A9: 465-334014/1 | B9: INS ANTIOXIDANT Конд-р 400мл антиоксидант д/перегруж. волос | C9: 1316 | D9: 1316 | F9: 0
A10: 465-334015 | B10: INS ANTIOXIDANT Маска 250 мл антиоксидант защитная д/волос | C10: 1133.33 | D10: 1133.33 | F10: 0
A11: 465-334025/3 | B11: INS COLORED Маска 200мл д/окрашенных волос, 200мл | C11: 1133.33 | D11: 1133.33 | F11: 0
A12: 465-334026 | B12: INS COLORED Маска 500мл защитная д/ окрашенных волос 500 мл | C12: 1590 | D12: 1590 | F12: 0
A13: 465-334027/3 | B13: INS COLORED (Стекло) NEW Кондиционер 900 мл д/окраш волос | C13: 2085.33 | D13: 2085.33 | F13: 0
A14: 465-334030/3 | B14: INS COLORED (Стекло) NEW Шампунь 350мл защитный д/окрашенных волос | C14: 1280.67 | D14: 1280.67 | F14: 0
A15: 465-334032/1 | B15: INS DAILY USE Кондиционер 400мл д/ежедневного использования | C15: 1462 | D15: 1462 | F15: 0
A16: 465-334033 | B16: INS DAILY USE Маска 250мл д/ежедневного использования | C16: 1020 | D16: 1020 | F16: 0
A17: 465-334036/3 | B17: INS DAILY USE(Стекло) NEW Шампунь 350 мл д/ежедневного использования | C17: 1280.67 | D17: 1280.67 | F17: 0
A18: 465-334038/1 | B18: INS DAMAGED Кондиционер 400мл д/поврежденных волос | C18: 1316 | D18: 1316 | F18: 0
A19: 465-334039 | B19: INS DAMAGED Маска 250мл д/поврежденных волос | C19: 1020 | D19: 1020 | F19: 0
A20: 465-334040 | B20: INS DAMAGED Маска 500мл д/поврежденных волос | C20: 1768 | D20: 1768 | F20: 0
A21: 465-334041/3 | B21: INS DAMAGED HAIR (Стекло) NEW Шампунь 900мл д/восстановл.поврежденных волос | C21: 1938 | D21: 1938 | F21: 0
A22: 465-334043 | B22: INS DRY HAIR Маска 250мл увлаж. д/сухих волос | C22: 1020 | D22: 1020 | F22: 0
A23: 465-334044 | B23: INS DRY HAIR Маска 500мл увлаж. д/сухих волос | C23: 1590 | D23: 1590 | F23: 0
A24: 465-334046/1 | B24: INS DRY HAIR Кондиционер 400 мл увлаж. д/сухих волос | C24: 1316 | D24: =C24-C24*$E$3/100 -> 1316 | F24: =E24*D24 -> 0
A25: 465-334047/3 | B25: INS DRY HAIR (Стекло) NEW Шампунь 900мл увлажняющий д/сухих волос | C25: 1938 | D25: 1938 | F25: 0
A26: 465-334048/3 | B26: INS DRY HAIR (Стекло) NEW Шампунь 350мл д/увл. и питания сух.волос | C26: 1280.67 | D26: 1280.67 | F26: 0
A27: 465-334109 | B27: INS REPAIR Комплекс 50мл от секущ.кончиков восстанавливающий | C27: 1590 | D27: 1590 | F27: 0
A28: 465-334127 | B28: INS DAILY USE Шампунь 100 мл д/ежедневного использования | C28: 532.67 | D28: 532.67 | F28: 0
A29: 465-334128 | B29: INS DAILY USE Кондиционер 100мл д/ежедневного использования | C29: 479 | D29: 479 | F29: 0
A30: 465-334131 | B30: INS DAMAGED Шампунь 100мл д/поврежденных волос | C30: 479 | D30: 479 | F30: 0
A31: 465-334132 | B31: INS DAMAGED Кондиционер 100мл д/поврежденных волос | C31: 479 | D31: 479 | F31: 0
A32: 465-334133 | B32: INS COLORED Шампунь 100мл д/окрашенных волос | C32: 532.67 | D32: 532.67 | F32: 0
A33: 465-334134 | B33: INS COLORED Кондиционер 100 мл д/окрашенных волос | C33: 532.67 | D33: 532.67 | F33: 0
A34: 465-334306 | B34: INS VOLUMIZING Шампунь 400 мл для объема | C34: 1205.33 | D34: 1205.33 | F34: 0
A35: 465-334513 | B35: INS DAILY USE Несмываемый кондиционер 150мл для волос | C35: 826 | D35: 826 | F35: 0
A36: 465-334514/3 | B36: INS VOLUMIZING (Стекло) NEW Спрей 100мл. для прикорневого объема волос | C36: 1065.33 | D36: 1065.33 | F36: 0
A37: 465-IAO006/3352 | B37: INS ANTIOXIDANT Кондиционер 900мл антиоксидант д/перегруж волос | C37: 1877 | D37: 1877 | F37: 0
A38: 465-IDA015/3604 | B38: INS DAMAGED HAIR Кондиционер 900 мл д/поврежденных волос | C38: 1877 | D38: =C38-C38*$E$3/100 -> 1877 | F38: =E38*D38 -> 0
A39: 465-IDR001/3222 | B39: INS DRY HAIR Шампунь 900 мл увлажняющий д/сухих волос | C39: 1744 | D39: 1744 | F39: 0
A40: 465-IDR003/3277 | B40: INS DRY HAIR (Стекло) NEW Кондиционер 900мл увлажняющий д/сухих волос | C40: 2085.33 | D40: 2085.33 | F40: 0
A41: 465-IDU009/3444 | B41: INS DAILY USE Кондиционер 900 мл д/ежедн испол-ия | C41: 1877 | D41: 1877 | F41: 0
D42: ИТОГО: | F42: =SUM(F8:F41) -> 0

Sheet Infinity NEW
A1: 109457 г. Москва,ул. Плеханова, дом 4,стр.3 ООО “Компания "Аквакосметика” тел. 8(495)785-99-54,785-99-53 многоканальный
B4: ПРАЙС-ЛИСТ INFINITY | G4: %
A5: 2026-04-01
A6: Артикул | B6: Номенклатура | C6: Цена РРЦ в руб. с НДС | D6: Цена салон (база) руб. с НДС | E6: Цена с вашей скидкой,руб | F6: Заказ шт. | G6: Сумма, руб. с НДС с вашей скидкой
B8: INFINITY AQUA BOOST увлажнение
A9: 97614 | B9: Кондиционер увлажняющий Aqua Boost, 1000 мл, шт | C9: 1050 | D9: 600 | E9: =D9-D9*$F$4/100 -> 600 | G9: =F9*E9 -> 0
A10: 97621 | B10: Маска увлажняющая Aqua Boost 500 мл, шт | C10: 962.5 | D10: 550 | E10: =D10-D10*$F$4/100 -> 550 | G10: =F10*E10 -> 0
A11: 97607 | B11: Шампунь увлажняющий Aqua Boost, 1000 мл, шт | C11: 1050 | D11: 600 | E11: 600 | G11: 0
B12: INFINITY BI-PHASE двухфазные спреи | G12: 0
A13: 25213 | B13: Спрей двухфазный для восстановления поврежденных волос INFINITY Revival, 250 мл, шт | C13: 752.5 | D13: 430 | E13: 430 | G13: 0
A14: 52117 | B14: Спрей двухфазный для защиты цвета окрашенных волос INFINITY Color Fixer, 250 мл, шт | C14: 752.5 | D14: 430 | E14: 430 | G14: 0
A15: 52124 | B15: Спрей двухфазный Мультифункциональный для всех типов волос INFINITY ALL-IN-ONE, 250 мл, шт | C15: 752.5 | D15: 430 | E15: 430 | G15: 0
A16: 52100 | B16: Спрей двухфазный увлажняющий INFINITY Hydro Boost, 250 мл, шт | C16: 752.5 | D16: 430 | G16: 0
B17: INFINITY COLOR LOCK сохранение цвета | E17: 0 | G17: 0
A18: 97553 | B18: Кондиционер для окрашенных волос Color Lock, 1000 мл, шт | C18: 1050 | D18: 600 | E18: 600 | G18: 0
A19: 97560 | B19: Маска для окрашенных волос Color Lock, 500 мл, шт | C19: 962.5 | D19: 550 | G19: 0
A20: 97546 | B20: Шампунь для окрашенных волос Color Lock, 1000 мл, шт | C20: 1050 | D20: 600 | E20: 600 | G20: 0
B21: INFINITY EXPERT CARE салонный уход | E21: 0 | G21: 0
A22: 97539 | B22: Кондиционер Expert Care, 1000 мл, шт | C22: 1050 | D22: 600 | E22: 600 | G22: 0
A23: 97522 | B23: Шампунь Expert Care, 1000 мл, шт | C23: 1050 | D23: 600 | E23: 600 | G23: 0
B24: INFINITY PERFORMANCE Стайлинг | E24: 0 | G24: 0
A25: 96099 | B25: Лак д/волос сверхсильной (3) фиксации Infinity, 500 мл, шт | C25: 962.5 | D25: 550 | E25: 550 | G25: 0
A26: 96105 | B26: Лак д/волос сильной (2) фиксации Infinity, 500 мл, шт | C26: 962.5 | D26: 550 | E26: 550 | G26: 0
A27: 96082 | B27: Лак д/волос экстрасильной (4) фиксации Infinity, 500 мл, шт | C27: 962.5 | D27: 550 | G27: 0
A28: 25224 | B28: Лак жидкий с кератином сильной фиксации Performance, 250 мл, шт | C28: 1015 | D28: 580 | E28: 580 | G28: 0
A29: 50250 | B29: Мусс для волос подвижной фиксации, 300 мл, шт | C29: 1050 | D29: 600 | E29: 600 | G29: 0
A30: 50267 | B30: Мусс для укладки волос сильной фиксации, 300 мл, шт | C30: 1050 | D30: 600 | E30: 600 | G30: 0
A31: 42515 | B31: Спрей для создания текстуры с морской солью Infinity Performance, 250 мл, шт | C31: 437.5 | D31: 250 | G31: 0
A32: 25372 | B32: Сухой текстурирующий спрей Infinity Performance, 250 мл, шт | C32: 1032.5 | D32: 590 | E32: 590 | G32: 0
B33: INFINITY SERVICE PRO сервисные продукты | E33: 0 | G33: 0
A34: 97638 | B34: Плазма-стабилизатор цвета, 1000 мл, шт | C34: 1242.5 | D34: 710 | E34: 710 | G34: 0
A35: 53671 | B35: Препигментатор для волос Infinity Service Pro, 500 мл, шт | C35: 857.5 | D35: 490 | E35: 490 | G35: 0
A36: 97645 | B36: Шампунь глубокой очистки, 1000 мл INFINITY SERVICE PRO сервисные продукты Сoncept(Концепт), шт | C36: 857.5 | D36: 490 | E36: 490 | G36: 0
A37: 25114 | B37: Шампунь-стабилизатор цвета, 1000 мл, шт | C37: 857.5 | D37: 490 | G37: 0
B38: INFINITY ULTRA GLOSS оттеночные маски | E38: 0 | G38: 0
A39: 52063 | B39: Маска оттеночная infinity ultra gloss огненная медь, 250 мл, шт | C39: 682.5 | D39: 390 | E39: 390 | G39: 0
A40: 52094 | B40: Маска оттеночная infinity ultra gloss пепельный графит, 250 мл, шт | C40: 682.5 | D40: 390 | E40: 390 | G40: 0
A41: 52056 | B41: Маска оттеночная infinity ultra gloss сочный гранат, 250 мл, шт | C41: 682.5 | D41: 390 | E41: 390 | G41: 0
A42: 25208 | B42: Маска оттеночная infinity ultra gloss теплый мокко, 250 мл, шт | C42: 682.5 | D42: 390 | G42: 0
A43: 52070 | B43: Маска оттеночная infinity ultra gloss янтарный закат, 250 мл, шт | C43: 682.5 | D43: 390 | E43: 390 | G43: 0
B44: INFINITY VITALITY FORCE восстановление | E44: 0 | G44: 0
A45: 42514 | B45: Биокератиновый гель Vitality force, 200 мл, шт | C45: 1050 | D45: 600 | E45: 600 | G45: 0
A46: 97584 | B46: Кондиционер восстанавливающий Vitality force, 1000 мл, шт | C46: 1050 | D46: 600 | E46: 600 | G46: 0
A47: 97591 | B47: Маска восстанавливающая липидная Vitality force, 500 мл, шт | C47: 962.5 | D47: 550 | E47: 550 | G47: 0
A48: 97577 | B48: Шампунь восстанавливающий Vitality force, 1000 мл, шт | C48: 1050 | D48: 600 | E48: 600 | G48: 0
B49: INFINITY Активаторы | E49: 0 | G49: 0
A50: 97102 | B50: Активатор Excellence 1,5%, 1000 мл, шт | C50: 682.5 | D50: 390 | E50: 390 | G50: 0
A51: 50410 | B51: Активатор Excellence 1,5%, 150 мл, шт | C51: 210 | D51: 120 | E51: 120 | G51: 0
A52: 97072 | B52: Активатор Excellence 12%, 1000 мл, шт | C52: 682.5 | D52: 390 | E52: 390 | G52: 0
A53: 50427 | B53: Активатор Excellence 12%, 150 мл, шт | C53: 210 | D53: 120 | G53: 0
A54: 97119 | B54: Активатор Excellence 3%, 1000 мл, шт | C54: 682.5 | D54: 390 | E54: 390 | G54: 0
A55: 50434 | B55: Активатор Excellence 3%, 150 мл, шт | C55: 210 | D55: 120 | E55: 120 | G55: 0
A56: 97089 | B56: Активатор Excellence 6%, 1000 мл, шт | C56: 682.5 | D56: 390 | G56: 0
A57: 50441 | B57: Активатор Excellence 6%, 150 мл, шт | C57: 210 | D57: 120 | E57: 120 | G57: 0
A58: 97096 | B58: Активатор Excellence 9%, 1000 мл, шт | C58: 682.5 | D58: 390 | E58: 390 | G58: 0
A59: 50458 | B59: Активатор Excellence 9%, 150 мл, шт | C59: 210 | D59: 120 | E59: 120 | G59: 0
B60: INFINITY восстановитель цвета | E60: 0 | G60: 0
A61: 25512 | B61: Восстановитель цвета седых волос с пептидами Infinity, тон Пепельно-русый, 100 мл, шт | C61: 400.75 | D61: 229 | E61: 229 | G61: 0
A62: 25513 | B62: Восстановитель цвета седых волос с пептидами Infinity, тон Темно-русый, 100 мл, шт | C62: 400.75 | D62: 229 | E62: 229 | G62: 0
A63: 25514 | B63: Восстановитель цвета седых волос с пептидами Infinity, тон Шатен, 100 мл, шт | C63: 400.75 | D63: 229 | E63: 229 | G63: 0
B64: INFINITY Обесцвечивающие продукты | E64: 0 | G64: 0
A65: 97065 | B65: Порошок д/осветления волос Perfect Blue, 500 г, шт | C65: 1732.5 | D65: 990 | E65: 990 | G65: 0
A66: 97058 | B66: Порошок д/осветления волос Super white, 500 г, шт | C66: 1732.5 | D66: 990 | E66: 990 | G66: 0
B67: INFINITY Стойкая крем-краска для волос | E67: 0 | G67: 0
A68: 98208 | B68: 0.00A Щелочной корректор, 100 мл, шт | C68: 435.75 | D68: 249 | E68: 249 | G68: 0
A69: 98192 | B69: 0.00N Нейтральный Крем-корректор, 100 мл, шт | C69: 435.75 | D69: 249 | E69: 249 | G69: 0
A70: 57556 | B70: 1.0 Черный, 100 мл INFINITY, шт | C70: 435.75 | D70: 249 | E70: 249 | G70: 0
A71: 57693 | B71: 1.1 Индиго, 100 мл INFINITY, шт | C71: 435.75 | D71: 249 | E71: 249 | G71: 0
A72: 57488 | B72: 10.0 Очень светлый блондин, 100 мл INFINITY, шт | C72: 435.75 | D72: 249 | E72: 249 | G72: 0
A73: 57563 | B73: 10.00 Очень светлый блондин интенсивный, 100 мл INFINITY, шт | C73: 435.75 | D73: 249 | E73: 249 | G73: 0
A74: 58096 | B74: 10.06 Очень светлый блондин фиолетовый, 100 мл INFINITY, шт | C74: 435.75 | D74: 249 | E74: =D74-D74*$F$4/100 -> 249 | G74: =F74*E74 -> 0
A75: 57631 | B75: 10.1 Очень светлый блондин пепельный, 100 мл INFINITY, шт | C75: 435.75 | D75: 249 | E75: 249 | G75: 0
A76: 57846 | B76: 10.13 Очень светлый блондин пепельно-золотистый, 100 мл INFINITY, шт | C76: 435.75 | D76: 249 | E76: 249 | G76: 0
A77: 57761 | B77: 10.16 Очень светлый блондин пепельно-фиолетовый, 100 мл INFINITY, шт | C77: 435.75 | D77: 249 | E77: 249 | G77: 0
A78: 57808 | B78: 10.3 Очень светлый блондин золотистый, 100 мл INFINITY, шт | C78: 435.75 | D78: 249 | E78: 249 | G78: 0
A79: 57860 | B79: 10.37 Очень светлый блондин золотисто-коричневый, 100 мл INFINITY, шт | C79: 435.75 | D79: 249 | E79: 249 | G79: 0
A80: 58133 | B80: 10.65 Очень светлый блондин фиолетово-красный, 100 мл INFINITY, шт | C80: 435.75 | D80: 249 | E80: 249 | G80: 0
A81: 58171 | B81: 10.7 Очень светлый блондин коричневый, 100 мл INFINITY, шт | C81: 435.75 | D81: 249 | E81: 249 | G81: 0
A82: 58386 | B82: 10.77 Очень светлый блондин коричневый интенсивный, 100 мл INFINITY, шт | C82: 435.75 | D82: 249 | E82: 249 | G82: 0
A83: 58454 | B83: 10.8 Очень светлый блондин жемчужный, 100 мл INFINITY, шт | C83: 435.75 | D83: 249 | E83: 249 | G83: 0
A84: 94910 | B84: 10.85 Очень светлый блондин жемчужно-красный, 100 мл INFINITY, шт | C84: 435.75 | D84: 249 | E84: 249 | G84: 0
A85: 57471 | B85: 12.0 Экстра светлый блондин, 100 мл INFINITY, шт | C85: 435.75 | D85: 249 | E85: 249 | G85: 0
A86: 57624 | B86: 12.1 Экстра светлый блондин пепельный, 100 мл INFINITY, шт | C86: 435.75 | D86: 249 | E86: 249 | G86: 0
A87: 57839 | B87: 12.13 Экстра светлый блондин пепельно-золотистый, 100 мл INFINITY, шт | C87: 435.75 | D87: 249 | E87: 249 | G87: 0
A88: 57754 | B88: 12.16 Экстра светлый блондин пепельно-фиолетовый, 100 мл INFINITY, шт | C88: 435.75 | D88: 249 | E88: 249 | G88: 0
A89: 58126 | B89: 12.65 Экстра светлый фиолетово-красный, 100 мл INFINITY, шт | C89: 435.75 | D89: 249 | E89: 249 | G89: 0
A90: 58164 | B90: 12.7 Экстра светлый блондин коричневый, 100 мл INFINITY, шт | C90: 435.75 | D90: 249 | E90: 249 | G90: 0
A91: 58379 | B91: 12.77 Экстра светлый блондин коричневый интенсивный, 100 мл INFINITY, шт | C91: 435.75 | D91: 249 | E91: 249 | G91: 0
A92: 58447 | B92: 12.8 Экстра светлый блондин жемчужный, 100 мл INFINITY, шт | C92: 435.75 | D92: 249 | E92: 249 | G92: 0
A93: 57549 | B93: 3.0 Темный шатен, 100 мл INFINITY, шт | C93: 435.75 | D93: 249 | E93: 249 | G93: 0
A94: 58249 | B94: 3.7 Темный шатен коричневый, 100 мл INFINITY, шт | C94: 435.75 | D94: 249 | E94: 249 | G94: 0
A95: 57532 | B95: 4.0 Шатен, 100 мл INFINITY, шт | C95: 435.75 | D95: 249 | E95: 249 | G95: 0
A96: 58119 | B96: 4.6 Шатен фиолетовый, 100 мл INFINITY, шт | C96: 435.75 | D96: 249 | E96: 249 | G96: 0
A97: 58232 | B97: 4.7 Шатен коричневый, 100 мл INFINITY, шт | C97: 435.75 | D97: 249 | E97: 249 | G97: 0
A98: 58331 | B98: 4.73 Шатен коричнево-золотистый, 100 мл INFINITY, шт | C98: 435.75 | D98: 249 | E98: 249 | G98: 0
A99: 58362 | B99: 4.75 Шатен коричнево-красный, 100 мл INFINITY, шт | C99: 435.75 | D99: 249 | E99: 249 | G99: 0
A100: 58430 | B100: 4.77 Шатен коричневый интенсивный, 100 мл INFINITY, шт | C100: 435.75 | D100: 249 | E100: 249 | G100: 0
A101: 57525 | B101: 5.0 Темно-русый, 100 мл INFINITY, шт | C101: 435.75 | D101: 249 | E101: 249 | G101: 0
A102: 57617 | B102: 5.00 Темно-русый интенсивный, 100 мл INFINITY, шт | C102: 435.75 | D102: 249 | E102: 249 | G102: 0
A103: 57686 | B103: 5.1 Темно-русый пепельный, 100 мл INFINITY, шт | C103: 435.75 | D103: 249 | E103: 249 | G103: 0
A104: 57747 | B104: 5.11 Темно-русый интенсивно-пепельный, 100 мл INFINITY, шт | C104: 435.75 | D104: 249 | E104: 249 | G104: 0
A105: 95139 | B105: 5.4 Темно-русый медный, 100 мл INFINITY, шт | C105: 435.75 | D105: 249 | E105: 249 | G105: 0
A106: 58027 | B106: 5.45 Темно-русый медно-красный, 100 мл INFINITY, шт | C106: 435.75 | D106: 249 | E106: 249 | G106: 0
A107: 58089 | B107: 5.5 Темно-русый красный, 100 мл INFINITY, шт | C107: 435.75 | D107: 249 | E107: 249 | G107: 0
A108: 58157 | B108: 5.65 Темно-русый фиолетово-красный, 100 мл INFINITY, шт | C108: 435.75 | D108: 249 | E108: 249 | G108: 0
A109: 58225 | B109: 5.7 Темно-русый коричневый, 100 мл INFINITY, шт | C109: 435.75 | D109: 249 | E109: 249 | G109: 0
A110: 58300 | B110: 5.71 Темно-русый коричнево-пепельный, 100 мл INFINITY, шт | C110: 435.75 | D110: 249 | E110: 249 | G110: 0
A111: 90400 | B111: 5.73 Темно-русый коричнево-золотистый, 100 мл INFINITY, шт | C111: 435.75 | D111: 249 | E111: 249 | G111: 0
A112: 58355 | B112: 5.75 Темно-русый коричнево-красный, 100 мл INFINITY, шт | C112: 435.75 | D112: 249 | E112: 249 | G112: 0
A113: 58492 | B113: 5.86 Темно-русый жемчужно-фиолетовый, 100 мл INFINITY, шт | C113: 435.75 | D113: 249 | E113: 249 | G113: 0
A114: 57518 | B114: 6.0 Русый, 100 мл INFINITY, шт | C114: 435.75 | D114: 249 | E114: 249 | G114: 0
A115: 57600 | B115: 6.00 Русый интенсивный, 100 мл INFINITY, шт | C115: 435.75 | D115: 249 | E115: 249 | G115: 0
A116: 57679 | B116: 6.1 Русый пепельный, 100 мл INFINITY, шт | C116: 435.75 | D116: 249 | E116: 249 | G116: 0
A117: 57792 | B117: 6.18 Русый пепельно-жемчужный, 100 мл INFINITY, шт | C117: 435.75 | D117: 249 | E117: 249 | G117: 0
A118: 94903 | B118: 6.3 Русый золотистый, 100 мл INFINITY, шт | C118: 435.75 | D118: 249 | E118: 249 | G118: 0
A119: 57921 | B119: 6.34 Русый золотисто-медный, 100 мл INFINITY, шт | C119: 435.75 | D119: 249 | E119: 249 | G119: 0
A120: 57969 | B120: 6.4 Русый медный, 100 мл INFINITY, шт | C120: 435.75 | D120: 249 | E120: 249 | G120: 0
A121: 58010 | B121: 6.45 Русый медно-красный, 100 мл INFINITY, шт | C121: 435.75 | D121: 249 | E121: 249 | G121: 0
A122: 58102 | B122: 6.6 Русый фиолетовый, 100 мл INFINITY, шт | C122: 435.75 | D122: 249 | E122: 249 | G122: 0
A123: 58218 | B123: 6.7 Русый коричневый, 100 мл INFINITY, шт | C123: 435.75 | D123: 249 | E123: 249 | G123: 0
A124: 58294 | B124: 6.71 Русый коричнево-пепельный, 100 мл INFINITY, шт | C124: 435.75 | D124: 249 | E124: 249 | G124: 0
A125: 58324 | B125: 6.73 Русый коричнево-золотистый, 100 мл INFINITY, шт | C125: 435.75 | D125: 249 | E125: 249 | G125: 0
A126: 58485 | B126: 6.86 Русый жемчужно-фиолетовый, 100 мл INFINITY, шт | C126: 435.75 | D126: 249 | E126: 249 | G126: 0
A127: 57501 | B127: 7.0 Светло-русый, 100 мл INFINITY, шт | C127: 435.75 | D127: 249 | E127: 249 | G127: 0
A128: 57594 | B128: 7.00 Светло-русый интенсивный, 100 мл INFINITY, шт | C128: 435.75 | D128: 249 | E128: 249 | G128: 0
A129: 57662 | B129: 7.1 Светло-русый пепельный, 100 мл INFINITY, шт | C129: 435.75 | D129: 249 | E129: 249 | G129: 0
A130: 57723 | B130: 7.11 Светло-русый интенсивно-пепельный, 100 мл INFINITY, шт | C130: 435.75 | D130: 249 | E130: 249 | G130: 0
A131: 57785 | B131: 7.16 Светло-русый пепельно-фиолетовый, 100 мл INFINITY, шт | C131: 435.75 | D131: 249 | E131: 249 | G131: 0
A132: 57914 | B132: 7.34 Светло-русый золотисто-медный, 100 мл INFINITY, шт | C132: 435.75 | D132: 249 | E132: 249 | G132: 0
A133: 57952 | B133: 7.4 Светло-русый медный, 100 мл INFINITY, шт | C133: 435.75 | D133: 249 | E133: 249 | G133: 0
A134: 58003 | B134: 7.45 Светло-русый медно-красный, 100 мл INFINITY, шт | C134: 435.75 | D134: 249 | E134: 249 | G134: 0
A135: 58058 | B135: 7.48 Светло-русый медно-жемчужный, 100 мл INFINITY, шт | C135: 435.75 | D135: 249 | E135: 249 | G135: 0
A136: 58072 | B136: 7.5 Светло-русый красный, 100 мл INFINITY, шт | C136: 435.75 | D136: 249 | E136: 249 | G136: 0
A137: 58201 | B137: 7.7 Светло-русый коричневый, 100 мл INFINITY, шт | C137: 435.75 | D137: 249 | E137: 249 | G137: 0
A138: 58287 | B138: 7.71 Светло-русый коричнево-пепельный, 100 мл INFINITY, шт | C138: 435.75 | D138: 249 | E138: =D138-D138*$F$4/100 -> 249 | G138: =F138*E138 -> 0
A139: 58317 | B139: 7.73 Светло-русый коричнево-золотистый, 100 мл INFINITY, шт | C139: 435.75 | D139: 249 | E139: 249 | G139: 0
A140: 58348 | B140: 7.75 Светло-русый коричнево-красный, 100 мл INFINITY, шт | C140: 435.75 | D140: 249 | E140: 249 | G140: 0
A141: 94941 | B141: 7.76 Светло-русый коричнево-фиолетовый, 100 мл INFINITY, шт | C141: 435.75 | D141: 249 | E141: 249 | G141: 0
A142: 57495 | B142: 8.0 Блондин, 100 мл INFINITY, шт | C142: 435.75 | D142: 249 | E142: 249 | G142: 0
A143: 57587 | B143: 8.00 Блондин интенсивный, 100 мл INFINITY, шт | C143: 435.75 | D143: 249 | E143: 249 | G143: 0
A144: 57655 | B144: 8.1 Блондин пепельный, 100 мл INFINITY, шт | C144: 435.75 | D144: 249 | E144: 249 | G144: 0
A145: 57716 | B145: 8.11 Блондин интенсивно-пепельный, 100 мл INFINITY, шт | C145: 435.75 | D145: 249 | E145: 249 | G145: 0
A146: 57822 | B146: 8.3 Блондин золотистый, 100 мл INFINITY, шт | C146: 435.75 | D146: 249 | E146: 249 | G146: 0
A147: 57907 | B147: 8.34 Блондин золотисто-медный, 100 мл INFINITY, шт | C147: 435.75 | D147: 249 | E147: 249 | G147: 0
A148: 57884 | B148: 8.37 Блондин золотисто-коричневый, 100 мл INFINITY, шт | C148: 435.75 | D148: 249 | E148: 249 | G148: 0
A149: 57945 | B149: 8.4 Блондин медный, 100 мл INFINITY, шт | C149: 435.75 | D149: 249 | E149: 249 | G149: 0
A150: 57990 | B150: 8.44 Блондин медный интенсивный, 100 мл INFINITY, шт | C150: 435.75 | D150: 249 | E150: 249 | G150: 0
A151: 58041 | B151: 8.48 Блондин медно-жемчужный, 100 мл INFINITY, шт | C151: 435.75 | D151: 249 | E151: 249 | G151: 0
A152: 58065 | B152: 8.5 Блондин красный, 100 мл INFINITY, шт | C152: 435.75 | D152: 249 | E152: 249 | G152: 0
A153: 58195 | B153: 8.7 Блондин коричневый, 100 мл INFINITY, шт | C153: 435.75 | D153: 249 | E153: 249 | G153: 0
A154: 94934 | B154: 8.76 Блондин коричнево-фиолетовый, 100 мл INFINITY, шт | C154: 435.75 | D154: 249 | E154: =D154-D154*$F$4/100 -> 249 | G154: =F154*E154 -> 0
A155: 58393 | B155: 8.77 Блондин коричневый интенсивный, 100 мл INFINITY, шт | C155: 435.75 | D155: 249 | E155: 249 | G155: 0
A156: 58478 | B156: 8.8 Блондин жемчужный, 100 мл INFINITY, шт | C156: 435.75 | D156: 249 | E156: 249 | G156: 0
A157: 57464 | B157: 9.0 Светлый блондин, 100 мл INFINITY, шт | C157: 435.75 | D157: 249 | E157: 249 | G157: 0
A158: 57570 | B158: 9.00 Светлый блондин интенсивный, 100 мл INFINITY, шт | C158: 435.75 | D158: 249 | E158: 249 | G158: 0
A159: 57648 | B159: 9.1 Светлый блондин пепельный, 100 мл INFINITY, шт | C159: 435.75 | D159: 249 | E159: 249 | G159: 0
A160: 57709 | B160: 9.11 Светлый блондин интенсивно-пепельный, 100 мл INFINITY, шт | C160: 435.75 | D160: 249 | E160: 249 | G160: 0
A161: 57853 | B161: 9.13 Светлый блондин пепельно-золотистый, 100 мл INFINITY, шт | C161: 435.75 | D161: 249 | E161: 249 | G161: 0
A162: 57778 | B162: 9.16 Светлый блондин пепельно-фиолетовый, 100 мл INFINITY, шт | C162: 435.75 | D162: 249 | E162: 249 | G162: 0
A163: 57815 | B163: 9.3 Светлый блондин золотистый, 100 мл INFINITY, шт | C163: 435.75 | D163: 249 | E163: 249 | G163: 0
A164: 57891 | B164: 9.34 Светлый блондин золотисто-медный, 100 мл INFINITY, шт | C164: 435.75 | D164: 249 | E164: 249 | G164: 0
A165: 57877 | B165: 9.37 Светлый блондин золотисто-коричневый, 100 мл INFINITY, шт | C165: 435.75 | D165: 249 | E165: 249 | G165: 0
A166: 57983 | B166: 9.44 Светлый блондин медный интенсивный, 100 мл INFINITY, шт | C166: 435.75 | D166: 249 | E166: 249 | G166: 0
A167: 58034 | B167: 9.48 Светлый блондин медно-жемчужный, 100 мл INFINITY, шт | C167: 435.75 | D167: 249 | E167: 249 | G167: 0
A168: 58140 | B168: 9.65 Светлый блондин фиолетово-красный, 100 мл INFINITY, шт | C168: 435.75 | D168: 249 | E168: 249 | G168: 0
A169: 58188 | B169: 9.7 Светлый блондин коричневый, 100 мл INFINITY, шт | C169: 435.75 | D169: 249 | E169: =D169-D169*$F$4/100 -> 249 | G169: =F169*E169 -> 0
A170: 58263 | B170: 9.71 Светлый блондин коричнево-пепельный, 100 мл INFINITY, шт | C170: 435.75 | D170: 249 | E170: 249 | G170: 0
A171: 58461 | B171: 9.8 Светлый блондин жемчужный, 100 мл INFINITY, шт | C171: 435.75 | D171: 249 | E171: 249 | G171: 0
A172: 94927 | B172: 9.85 Светлый блондин жемчужно-красный, 100 мл INFINITY, шт | C172: 435.75 | D172: 249 | E172: 249 | G172: 0
A173: 98161 | B173: Микстон Зеленый, 100 мл, шт | C173: 435.75 | D173: 249 | E173: 249 | G173: 0
A174: 98185 | B174: Микстон Золотой, 100 мл, шт | C174: 435.75 | D174: 249 | E174: 249 | G174: 0
A175: 98123 | B175: Микстон Красный, 100 мл, шт | C175: 435.75 | D175: 249 | E175: 249 | G175: 0
A176: 98130 | B176: Микстон Медный, 100 мл, шт | C176: 435.75 | D176: 249 | E176: 249 | G176: 0
A177: 98178 | B177: Микстон Пепельный, 100 мл, шт | C177: 435.75 | D177: 249 | E177: 249 | G177: 0
A178: 98154 | B178: Микстон Синий, 100 мл, шт | C178: 435.75 | D178: 249 | E178: 249 | G178: 0
A179: 98147 | B179: Микстон Фиолетовый, 100 мл, шт | C179: 435.75 | D179: 249 | E179: 249 | G179: 0
F180: Итого | G180: =SUM(G9:G179) -> 0

Sheet CONCEPT
A1: 109457 г. Москва,ул. Плеханова, дом 4,стр.3 ООО “Компания "Аквакосметика” тел. 8(495)785-99-54,785-99-53 многоканальный
B4: ПРАЙС-ЛИСТ CONCEPT | F4: %
A5: 2026-04-01
A6: Артикул | B6: Наименование товаров | C6: Цена РРЦ | D6: Цена, с НДС, руб. | E6: Цена с вашей скидкой,руб | F6: ЗАКАЗ шт | G6: Сумма по заказу с вашей скидкой, руб
B8: ART OF THERAPY Scalp Balance от перхоти
A9: 92633 | B9: Шампунь против перхоти (Scalp Balance shampoo), 300 мл, шт | C9: 556.5 | D9: 350 | E9: =D9-D9*$E$4/100 -> 350 | G9: =F9*E9 -> 0
B10: ART OF THERAPY Way To Grow для активации роста волос
A11: 96570 | B11: Лосьон-активатор роста, 50 мл , шт | C11: 1192.5 | D11: 750 | E11: =D11-D11*$E$4/100 -> 750 | G11: =F11*E11 -> 0
A12: 93166 | B12: Тонизирующий кондиционер-активатор роста, 300 мл, шт | C12: 636 | D12: 400 | E12: 400 | G12: 0
A13: 93159 | B13: Шампунь-активатор роста, 300 мл, шт | C13: 556.5 | D13: 350 | E13: 350 | G13: 0
B14: ART OF THERAPY Сool fresh для жирной кожи головы
A15: 91094 | B15: Пилинг д/глубокого очищения кожи головы Sebo-control, 200 мл, шт | C15: 556.5 | D15: 350 | E15: 350 | G15: 0
A16: 91100 | B16: Регулирующий шампунь д/деликатного очищения кожи головы Sebo-control, 300мл, шт | C16: 556.5 | D16: 350 | E16: 350 | G16: 0
B17: BIOTIN SECRETS 00-LINE Стойкая крем-краска для волос с биотином
A18: 93784 | B18: 5.00 интенсивный тёмно-русый (intensive dark blond), 100 мл, шт | C18: 316.41 | D18: 199 | E18: 199 | G18: 0
A19: 93791 | B19: 6.00 интенсивный русый (intensive medium blond), 100 мл, шт | C19: 316.41 | D19: 199 | E19: 199 | G19: 0
A20: 93807 | B20: 7.00 интенсивный светло-русый (intensive blond), 100 мл, шт | C20: 316.41 | D20: 199 | E20: 199 | G20: 0
A21: 93814 | B21: 8.00 интенсивный блондин (intensive light blond), 100 мл, шт | C21: 316.41 | D21: 199 | E21: 199 | G21: 0
A22: 93777 | B22: 9.00 интенсивный светлый блондин (intensive very light blond), 100 мл, шт | C22: 316.41 | D22: 199 | E22: 199 | G22: 0
B23: BONDING SYSTEM уход с бондинг-комплексом
A24: 50380 | B24: Крем-шампунь BONDING SYSTEM, 400 мл, шт | C24: 683.7 | D24: 430 | E24: 430 | G24: 0
A25: 25040 | B25: Маска для глубокого восстановления волос BONDING SYSTEM, 400 мл, шт | C25: 683.7 | D25: 430 | E25: 430 | G25: 0
A26: 250397 | B26: Протеиновый концентрат BONDING SYSTEM, 10х10мл, шт | C26: 874.5 | D26: 550 | E26: 550 | G26: 0
B27: DETOX POWER уход
A28: 96419 | B28: Бессульфатный шампунь СИЛА ДЕТОКСА, 300 мл, шт | C28: 556.5 | D28: 350 | E28: 350 | G28: 0
A29: 96426 | B29: Энзимный пилинг СИЛА ДЕТОКСА, 140 мл, шт | C29: 397.5 | D29: 250 | E29: 250 | G29: 0
B30: NEXT LEVEL BLOND комплекс для создания и поддержания блонда
A31: 99625 | B31: Кондиционер для нейтрализации желтизны с пептидным комплексом NEXT LEVEL BLOND Платина, 1000 мл, шт | C31: 1335.6 | D31: 840 | E31: 840 | G31: 0
A32: 99632 | B32: Кондиционер для нейтрализации желтизны с пептидным комплексом NEXT LEVEL BLOND Платина, 300 мл, шт | C32: 715.5 | D32: 450 | E32: 450 | G32: 0
A33: 99595 | B33: Кондиционер для нейтрализации желтизны с пептидным комплексом NEXT LEVEL BLOND Розовое золото, 1000 , шт | C33: 1335.6 | D33: 840 | E33: 840 | G33: 0
A34: 99618 | B34: Кондиционер для нейтрализации желтизны с пептидным комплексом NEXT LEVEL BLOND Розовое золото, 300 м, шт | C34: 715.5 | D34: 450 | E34: 450 | G34: 0
A35: 99663 | B35: Маска восстанавливающая с пептидами NEXT LEVEL BLOND, 400 мл, шт | C35: 922.2 | D35: 580 | E35: 580 | G35: 0
A36: 91179 | B36: Шампунь Глубокое восстановление и нейтрализация желтизны NEXT LEVEL BLOND 300 мл, шт | C36: 636 | D36: 400 | E36: 400 | G36: 0
A37: 99649 | B37: Шампунь для нейтрализации желтизны с пептидным комплексом NEXT LEVEL BLOND Дымчатый Аметист, 1000 мл, шт | C37: 1176.6 | D37: 740 | E37: 740 | G37: 0
A38: 99656 | B38: Шампунь для нейтрализации желтизны с пептидным комплексом NEXT LEVEL BLOND Дымчатый Аметист, 300 мл, шт | C38: 636 | D38: 400 | E38: 400 | G38: 0
A39: 99571 | B39: Шампунь для нейтрализации желтизны с пептидным комплексом NEXT LEVEL BLOND Розовое золото, 1000 мл, шт | C39: 1176.6 | D39: 740 | E39: 740 | G39: 0
A40: 99571 | B40: Шампунь для нейтрализации желтизны с пептидным комплексом NEXT LEVEL BLOND Розовый кварц, 1000 мл, шт | C40: 1176.6 | D40: 740 | E40: 740 | G40: 0
A41: 99588 | B41: Шампунь для нейтрализации желтизны с пептидным комплексом NEXT LEVEL BLOND Розовый кварц, 300 мл, шт | C41: 636 | D41: 400 | E41: 400 | G41: 0
A42: 99564 | B42: Шампунь хелатный глубокой очистки NEXT LEVEL BLOND, 1000 мл, шт | C42: 922.2 | D42: 580 | E42: 580 | G42: 0
A43: 52886 | B43: Шампунь-индикатор после осветления Bleach Finder, 1000 мл, шт | C43: 922.2 | D43: 580 | E43: 580 | G43: 0
A44: 99670 | B44: Шампунь-фиксатор с бондинг комплексом NEXT LEVEL BLOND, 1000 мл, шт | C44: 922.2 | D44: 580 | E44: 580 | G44: 0
B45: PEPTIDE FORCE пептидное восстановление
A46: 99281 | B46: Pre-шампунь пептидный PEPTIDE FORCE, 240 мл, шт | C46: 461.1 | D46: 290 | E46: 290 | G46: 0
A47: 25227 | B47: Кондиционер молекулярное восстановление с пептидами PEPTIDE FORCE, 300 мл, шт | C47: 556.5 | D47: 350 | E47: 350 | G47: 0
A48: 99298 | B48: Маска пептидная восстанавливающая PEPTIDE FORCE, 100 мл, шт | C48: 461.1 | D48: 290 | E48: 290 | G48: 0
A49: 25226 | B49: Филлер для волос молекулярный восстанавливающий PEPTIDE FORCE, 100 мл, шт | C49: 461.1 | D49: 290 | E49: 290 | G49: 0
A50: 25228 | B50: Шампунь бессульфатный молекулярное восстановление с пептидами PEPTIDE FORCE, 300 мл, шт | C50: 461.1 | D50: 290 | E50: 290 | G50: 0
B51: Salon Total Basic Уход для всех типов волос
A52: 90608 | B52: Двухфазный спрей 10 в 1 perfect balance для тонких и нормальных волос, 240 мл, шт | C52: 540.6 | D52: 340 | E52: 340 | G52: 0
A53: 90677 | B53: Кондиционер универсальный для всех типов волос (Basic conditioner), 1000 мл, шт | C53: 922.2 | D53: 580 | E53: 580 | G53: 0
A54: 90660 | B54: Шампунь универсальный для всех типов волос (Basic shampoo),1000 мл, шт | C54: 842.7 | D54: 530 | E54: 530 | G54: 0
B55: Salon Total Colorsaver Уход за окрашенными волосами2021
A56: 90691 | B56: Бальзам-кондиционер для окрашенных волос (Сolorsaver conditioner), 1000 мл, шт | C56: 922.2 | D56: 580 | E56: 580 | G56: 0
A57: 90707 | B57: Бальзам-кондиционер для окрашенных волос (Сolorsaver conditioner), 300 мл, шт | C57: 556.5 | D57: 350 | E57: 350 | G57: 0
A58: 90714 | B58: Маска для окрашенных волос (Сolorsaver mask), 500 мл, шт | C58: 1001.7 | D58: 630 | E58: 630 | G58: 0
A59: 90721 | B59: Шампунь для окрашенных волос (Сolorsaver shampoo), 1000 мл, шт | C59: 842.7 | D59: 530 | E59: 530 | G59: 0
A60: 90738 | B60: Шампунь для окрашенных волос (Сolorsaver shampoo), 300 мл, шт | C60: 461.1 | D60: 290 | E60: 290 | G60: 0
B61: Salon Total Hydro Увлажняющие средства для волос 2021
A62: 90769 | B62: Кондиционер увлажняющий (Hydrobalance conditioner), 1000 мл, шт | C62: 922.2 | D62: 580 | E62: 580 | G62: 0
A63: 90776 | B63: Кондиционер увлажняющий (Hydrobalance conditioner), 300 мл, шт | C63: 556.5 | D63: 350 | E63: 350 | G63: 0
A64: 90783 | B64: Маска экстра-увлажнение (Hydrointension mask), 500 мл, шт | C64: 842.7 | D64: 530 | E64: 530 | G64: 0
A65: 90615 | B65: Спрей увлажняющий с термозащитой (hydro spray), 240 мл, шт | C65: 667.8 | D65: 420 | E65: 420 | G65: 0
A66: 90806 | B66: Шампунь увлажняющий (Hydrobalance shampoo), 1000 мл, шт | C66: 842.7 | D66: 530 | E66: 530 | G66: 0
A67: 90790 | B67: Шампунь увлажняющий (Hydrobalance shampoo), 300 мл, шт | C67: 461.1 | D67: 290 | E67: 290 | G67: 0
B68: Salon Total Repair Питание и восстановление волос 2021
A69: 90813 | B69: Кондиционер для восстановления волос (Nutri Keratin conditioner)2021, 1000 мл, шт | C69: 922.2 | D69: 580 | E69: 580 | G69: 0
A70: 90837 | B70: Кондиционер для восстановления волос (Nutri Keratin conditioner)2021, 300 мл, шт | C70: 556.5 | D70: 350 | E70: 350 | G70: 0
A71: 90844 | B71: Маска МЕГА-Уход д/слабых и поврежденных волос (MEGA-MASK)2021, 500 мл, шт | C71: 1256.1 | D71: 790 | E71: 790 | G71: 0
A72: 90639 | B72: Спрей – маска 17 в 1 восстанавливающий для повреждённых, сухих и ломких волос, 240 мл, шт | C72: 588.3 | D72: 370 | E72: 370 | G72: 0
A73: 90851 | B73: Шампунь для восстановления волос (Nutri Keratin shampoo)2021, 1000 мл, шт | C73: 842.7 | D73: 530 | E73: 530 | G73: 0
A74: 90875 | B74: Шампунь для восстановления волос (Nutri Keratin shampoo)2021, 300 мл, шт | C74: 461.1 | D74: 290 | E74: =D74-D74*$E$4/100 -> 290 | G74: =F74*E74 -> 0
B75: Salon Total Soft Care Деликатный уход для поврежденных волос
A76: 91834 | B76: Восстанавливающая маска Keratin&Honey, 500 мл, шт | C76: 842.7 | D76: 530 | E76: 530 | G76: 0
A77: 91247 | B77: Шампунь бессульфатный д/деликатного очищения поврежденных волос SOFT CARE, 1000 мл, шт | C77: 1081.2 | D77: 680 | E77: 680 | G77: 0
A78: 91254 | B78: Шампунь бессульфатный д/деликатного очищения поврежденных волос SOFT CARE, 300 мл, шт | C78: 588.3 | D78: 370 | E78: 370 | G78: 0
B79: Salon Total Volume Уход для придания объема волосам 2021
A80: 91803 | B80: Кондиционер для объема (Volume Up Conditioner)2021, 1000 мл, шт | C80: 922.2 | D80: 580 | E80: 580 | G80: 0
A81: 91810 | B81: Кондиционер для объема (Volume Up Conditioner)2021, 300 мл, шт | C81: 556.5 | D81: 350 | E81: 350 | G81: 0
A82: 90646 | B82: Спрей прикорневой объем (spray volume up ) 2021, 240 мл, шт | C82: 667.8 | D82: 420 | E82: 420 | G82: 0
A83: 91827 | B83: Шампунь для объема (Volume Up Shampoo)2021, 1000 мл, шт | C83: 842.7 | D83: 530 | E83: 530 | G83: 0
A84: 92145 | B84: Шампунь для объема (Volume Up Shampoo)2021, 300 мл, шт | C84: 461.1 | D84: 290 | E84: 290 | G84: 0
B85: Аксессуары
A86: 50298 | B86: Дозатор infinity magnus 28/410, 1000 мл, белый, шт | C86: 95.4 | D86: 60 | E86: 60 | G86: 0
A87: 53398 | B87: Дозатор infinity magnus 28/410, 1000 мл, черный, шт | C87: 95.4 | D87: 60 | E87: 60 | G87: 0
A88: 93395 | B88: Дозатор для флакона 1000 мл. (длина трубки 185 мм) 2021, шт | C88: 95.4 | D88: 60 | E88: 60 | G88: 0
B89: Для мужчин Concept Men (Концепт Мэн )2021
A90: 92619 | B90: Шампунь универсальный 4 в 1 для ежедневного применения 2021, 1000 мл, шт | C90: 954 | D90: 600 | E90: 600 | G90: 0
A91: 92602 | B91: Шампунь универсальный 4 в 1 для ежедневного применения 2021, 300 мл, шт | C91: 572.4 | D91: 360 | E91: 360 | G91: 0
B92: Защитные средства для кожи и волос PROFY TOUCH (Профи Тач) 2021
A93: 90585 | B93: Деликатное средство для удаления красителя с чувствительной кожи(Soft Skin Color Remover)2021, 140мл, шт | C93: 429.3 | D93: 270 | E93: 270 | G93: 0
A94: 57440 | B94: Контурный крем для защиты кожи при окрашивании волос (skin contour cream) 2021, 100 мл , шт | C94: 397.5 | D94: 250 | E94: 250 | G94: 0
A95: 94156 | B95: Сыворотка выравнивание и защита структуры волос перед окраш., 240 мл, шт | C95: 572.4 | D95: 360 | E95: 360 | G95: 0
A96: 90592 | B96: Успокаивающий лосьон для чувствит. кожи головы Calming lotion for sensetiv skin 2021, 140 мл, шт | C96: 429.3 | D96: 270 | E96: 270 | G96: 0
B97: Корректоры PROFY TOUCH, 100 мл
A98: 56931 | B98: 0.0A Щелочной корректор (Extra Light Corrector), 100 мл, шт | C98: 316.41 | D98: 199 | E98: 199 | G98: 0
A99: 56948 | B99: 0.0N Нейтральный корректор (Neutral Corrector), 100 мл, шт | C99: 316.41 | D99: 199 | E99: 199 | G99: 0
B100: Крем-краска для бровей и ресниц PROFY TOUCH (Профи Тач) 2021
A101: 90080 | B101: Графит 2021, 30/20 мл, шт | C101: 349.8 | D101: 220 | E101: 220 | G101: 0
A102: 90097 | B102: Коричневый 2021, 30/20 мл, шт | C102: 349.8 | D102: 220 | E102: 220 | G102: 0
A103: 90103 | B103: Черный 2021, 30/20 мл, шт | C103: 349.8 | D103: 220 | E103: 220 | G103: 0
B104: Крем-краска для бровей с эффектом Татуажа(Brows color cream Tatouage effect)2021
A105: 55941 | B105: Графит Эффект татуажа, 30+20 мл, шт | C105: 381.6 | D105: 240 | E105: 240 | G105: 0
A106: 90110 | B106: Коричневый Эффект татуажа 2021, 30+20 мл, шт | C106: 381.6 | D106: 240 | E106: 240 | G106: 0
A107: 90127 | B107: Черный Эффект татуажа 2021, 30+20 мл, шт | C107: 381.6 | D107: 240 | E107: 240 | G107: 0
B108: Крем-краска для волос без аммиака Софт Тач (no ammonia professional color-cream SOFT TOUCH)
A109: 55071 | B109: 1.0 Черный (Black), 100 мл, шт | C109: 523.11 | D109: 329 | E109: 329 | G109: 0
A110: 54999 | B110: 10.0 Ультра светлый блондин (Ultra Light Blond), 100 мл, шт | C110: 523.11 | D110: 329 | E110: 329 | G110: 0
A111: 55101 | B111: 10.1 Ультра светлый платиновый блондин (Ultra Light Platinum Blond), 100 мл, шт | C111: 523.11 | D111: 329 | E111: 329 | G111: 0
A112: 55132 | B112: 10.16 Ультра светлый блондин пепельно-фиолетовый (Ultra Light Ash Purple Blond), 100 мл, шт | C112: 523.11 | D112: 329 | E112: 329 | G112: 0
A113: 55170 | B113: 10.31 Ультра светлый блондин золотисто-пепельный (Ultra Light Golden Ash Blond), 100 мл, шт | C113: 523.11 | D113: 329 | E113: 329 | G113: 0
A114: 55200 | B114: 10.36 Ультра светлый блондин золотисто-фиолетовый (Ultra Light Golden Purple Blond), 100 мл, шт | C114: 523.11 | D114: 329 | E114: 329 | G114: 0
A115: 55088 | B115: 10.37 Ультра светлый блондин золотисто-коричневый (Ultra Light Golden Brown Blond), 100 мл, шт | C115: 523.11 | D115: 329 | E115: 329 | G115: 0
A116: 55224 | B116: 10.38 Ультра светлый блондин золотисто-перламутровый (Ultra Light Golden Pearl Blonde), 100 мл, шт | C116: 523.11 | D116: 329 | E116: 329 | G116: 0
A117: 55286 | B117: 10.58 Ультра светлый блондин розово-перламутровый (Ultra Light Pink Pearl Blond), 100 мл, шт | C117: 523.11 | D117: 329 | E117: 329 | G117: 0
A118: 55323 | B118: 10.65 Ультра-светлый блондин фиолетово-розовый (Ultra Light Purple Pink Blond), 100 мл, шт | C118: 523.11 | D118: 329 | E118: 329 | G118: 0
A119: 55354 | B119: 10.7 Ультра светлый блондин бежевый (Ultra Light Beige Blond), 100 мл, шт | C119: 523.11 | D119: 329 | E119: 329 | G119: 0
A120: 55392 | B120: 10.71 Ультра светлый блондин бежево-пепельный (Ultra Light Beige Ash Blond), 100 мл, шт | C120: 523.11 | D120: 329 | E120: 329 | G120: 0
A121: 55248 | B121: 10.74 Ультра светлый блондин коричнево-медный (Ultra Light Brown Coppery Blond), 100 мл, шт | C121: 523.11 | D121: 329 | E121: 329 | G121: 0
A122: 55446 | B122: 10.8 Ультра светлый блондин перламутровый (Ultra Light Pearl Blond), 100 мл, шт | C122: 523.11 | D122: 329 | E122: 329 | G122: 0
A123: 55477 | B123: 10.87 Ультра светлый блондин перламутрово-бежевый (Ultra Light Pearl Beige Blond), 100 мл, шт | C123: 523.11 | D123: 329 | E123: 329 | G123: 0
A124: 55460 | B124: 2.86 Черный жемчуг (Black Pearl), 100 мл, шт | C124: 523.11 | D124: 329 | E124: 329 | G124: 0
A125: 55064 | B125: 3.0 Темный шатен (Very Dark Brown), 100 мл, шт | C125: 523.11 | D125: 329 | E125: 329 | G125: 0
A126: 55057 | B126: 4.0 Шатен (Medium Brown), 100 мл , шт | C126: 523.11 | D126: 329 | E126: 329 | G126: 0
A127: 55316 | B127: 4.58 Шатен красно-перламутровый (Red Pearl Medium Brown), 100 мл, шт | C127: 523.11 | D127: 329 | E127: 329 | G127: 0
A128: 55415 | B128: 4.71 Шатен коричнево-пепельный (Ash Brown Medium Brown), 100 мл, шт | C128: 523.11 | D128: 329 | E128: 329 | G128: 0
A129: 55040 | B129: 5.0 Темный блондин (Dark Blond), 100 мл, шт | C129: 523.11 | D129: 329 | E129: 329 | G129: 0
A130: 55163 | B130: 5.16 Темный блондин пепельно-фиолетовый ( Darc Ash Purple Blond), 100 мл, шт | C130: 523.11 | D130: 329 | E130: 329 | G130: 0
A131: 55385 | B131: 5.7 Темный блондин коричневый (Dark Brown Blond), 100 мл, шт | C131: 523.11 | D131: 329 | E131: 329 | G131: 0
A132: 55033 | B132: 6.0 Средний блондин (Medium Blond), 100 мл, шт | C132: 523.11 | D132: 329 | E132: 329 | G132: 0
A133: 55125 | B133: 6.1 Средний блондин пепельный (Ash Medium Blond), 100 мл, шт | C133: 523.11 | D133: 329 | E133: 329 | G133: 0
A134: 55279 | B134: 6.4 Средний блондин медный (Coppery Medium Blond), 100 мл, шт | C134: 523.11 | D134: 329 | E134: 329 | G134: 0
A135: 55309 | B135: 6.58 Средний блондин красно-перламутровый (Red Pearl Medium Blond), 100 мл, шт | C135: 523.11 | D135: 329 | E135: 329 | G135: 0
A136: 55347 | B136: 6.688 Средний блондин фиолетово жемчужный интенсивный (Intensive Purple Pearl Medium Blond), 100 мл, шт | C136: 523.11 | D136: 329 | E136: 329 | G136: 0
A137: 55408 | B137: 6.71 Средний блондин коричнево-пепельный (Ash Brown Medium Blond), 100 мл, шт | C137: 523.11 | D137: 329 | E137: 329 | G137: 0
A138: 55491 | B138: 6.87 Средний блондин перламутрово-коричневый (Pearl Brown Medium Blond), 100 мл, шт | C138: 523.11 | D138: 329 | E138: =D138-D138*$E$4/100 -> 329 | G138: =F138*E138 -> 0
A139: 55026 | B139: 7.0 Блондин (Blond), 100 мл, шт | C139: 523.11 | D139: 329 | E139: 329 | G139: 0
A140: 55156 | B140: 7.16 Блондин пепельно-фиолетовый (Ash Purple Blond), 100 мл, шт | C140: 523.11 | D140: 329 | E140: 329 | G140: 0
A141: 55378 | B141: 7.7 Блондин бежевый (Beige Blonde), 100 мл, шт | C141: 523.11 | D141: 329 | E141: 329 | G141: 0
A142: 55439 | B142: 7.75 Блондин бежево-розовый (Beige Pink Blond), 100 мл, шт | C142: 523.11 | D142: 329 | E142: 329 | G142: 0
A143: 55019 | B143: 8.0 Светлый блондин (Light Blond), 100 мл, шт | C143: 523.11 | D143: 329 | E143: 329 | G143: 0
A144: 55118 | B144: 8.1 Светлый блондин пепельный (Ash Light Blond), 100 мл, шт | C144: 523.11 | D144: 329 | E144: 329 | G144: 0
A145: 55194 | B145: 8.31 Светлый блондин золотисто-пепельный (Light Golden Ash Blond), 100 мл, шт | C145: 523.11 | D145: 329 | E145: 329 | G145: 0
A146: 55262 | B146: 8.4 Светлый блондин медный (Coppery Light Blond), 100 мл, шт | C146: 523.11 | D146: 329 | E146: 329 | G146: 0
A147: 55453 | B147: 8.8 Светлый блондин перламутровый (Light Pearl Blond), 100 мл, шт | C147: 523.11 | D147: 329 | E147: 329 | G147: 0
A148: 55002 | B148: 9.0 Очень светлый блондин (Very Light Blond), 100 мл, шт | C148: 523.11 | D148: 329 | E148: 329 | G148: 0
A149: 55149 | B149: 9.16 Очень светлый блондин пепельно-фиолетовый (Very Light Ash Purple Blond), 100 мл, шт | C149: 523.11 | D149: 329 | E149: 329 | G149: 0
A150: 55187 | B150: 9.3 Очень светлый блондин золотистый (Very Light Golden Blond), 100 мл, шт | C150: 523.11 | D150: 329 | E150: 329 | G150: 0
A151: 55217 | B151: 9.36 Очень светлый блондин золотисто-фиолетовый (Very Light Golden Purple Blond), 100 мл, шт | C151: 523.11 | D151: 329 | E151: 329 | G151: 0
A152: 55095 | B152: 9.37 Очень светлый блондин золотисто-коричневый (Very Light Golden Brown Blond), 100 мл, шт | C152: 523.11 | D152: 329 | E152: 329 | G152: 0
A153: 55231 | B153: 9.38 Очень светлый блондин золотисто-перламутровый (Very Light Golden Pearl Blond), 100 мл, шт | C153: 523.11 | D153: 329 | E153: 329 | G153: 0
A154: 55255 | B154: 9.438 Очень светл блондин медный золот.-перламутровый (Very Light Coppery Golden Pearl Blond), 100мл, шт | C154: 523.11 | D154: 329 | E154: 329 | G154: 0
A155: 55293 | B155: 9.588 Очень светлый блондин розово-перламутровый (Very Light Pink Pearl Blond), 100 мл, шт | C155: 523.11 | D155: 329 | E155: 329 | G155: 0
A156: 55330 | B156: 9.68 Очень светлый блондин фиолетово - перламутровый (Very Light Purple Pearl Blonde ), 100 мл, шт | C156: 523.11 | D156: 329 | E156: 329 | G156: 0
A157: 55361 | B157: 9.7 Очень светлый блондин бежевый (Very Light Beige Blond), 100 мл, шт | C157: 523.11 | D157: 329 | E157: 329 | G157: 0
A158: 55422 | B158: 9.75 Очень светлый блондин бежево-розовый (Very Light Beige Pink Blond), 100 мл, шт | C158: 523.11 | D158: 329 | E158: 329 | G158: 0
A159: 55484 | B159: 9.87 Очень светлый блондин перламутрово-бежевый (Very Light Pearl Beige Blond), 100 мл, шт | C159: 523.11 | D159: 329 | E159: 329 | G159: 0
B160: Микстон PROFY TOUCH, 100 мл
A161: 56870 | B161: 0.2 Зеленый микстон (Green Mixtone), 100 мл, шт | C161: 316.41 | D161: 199 | E161: 199 | G161: 0
A162: 56887 | B162: 0.3 Золотой микстон (Golden Mixtone), 100 мл, шт | C162: 316.41 | D162: 199 | E162: 199 | G162: 0
A163: 56894 | B163: 0.4 Медный микстон (Copper Mixtone), 100 мл, шт | C163: 316.41 | D163: 199 | E163: 199 | G163: 0
A164: 56900 | B164: 0.5 Красный микстон (Red Mixtone), 100 мл, шт | C164: 316.41 | D164: 199 | E164: 199 | G164: 0
A165: 56917 | B165: 0.6 Синий микстон (Blue Mixtone), 100 мл, шт | C165: 316.41 | D165: 199 | E165: 199 | G165: 0
A166: 56924 | B166: 0.8 Фиолетовый микстон (Violet Mixtone), 100 мл, шт | C166: 316.41 | D166: 199 | E166: 199 | G166: 0
B167: Оксидант PROFY TOUCH 2021
A168: 92336 | B168: Крем-Оксидант 12% 2021, 1000 мл, шт | C168: 588.3 | D168: 370 | E168: 370 | G168: 0
A169: 92343 | B169: Крем-Оксидант 6% 2021, 1000 мл, шт | C169: 588.3 | D169: 370 | E169: 370 | G169: 0
A170: 92350 | B170: Крем-Оксидант 9% 2021, 1000 мл, шт | C170: 588.3 | D170: 370 | E170: 370 | G170: 0
A171: 92367 | B171: Окисляющая эмульсия 1,5% 2021, 1000 мл, шт | C171: 588.3 | D171: 370 | E171: 370 | G171: 0
A172: 92374 | B172: Окисляющая эмульсия 3% 2021, 1000 мл, шт | C172: 588.3 | D172: 370 | E172: 370 | G172: 0
B173: Оксидант PROFY TOUCH(Профи Тач)
A174: 57198 | B174: Крем-Оксидант 12%, 100 мл , шт | C174: 143.1 | D174: 90 | E174: 90 | G174: 0
A175: 57204 | B175: Крем-Оксидант 6%, 100 мл , шт | C175: 143.1 | D175: 90 | E175: 90 | G175: 0
A176: 57211 | B176: Крем-Оксидант 9%, 100 мл , шт | C176: 143.1 | D176: 90 | E176: 90 | G176: 0
A177: 57228 | B177: Окисляющая эмульсия 1,5%, 100 мл, шт | C177: 143.1 | D177: 90 | E177: 90 | G177: 0
A178: 57235 | B178: Окисляющая эмульсия 3%, 100 мл, шт | C178: 143.1 | D178: 90 | E178: 90 | G178: 0
B179: Оттеночные средства для нейтрализации желтизны ANTI-YELLOW 2021
A180: 94880 | B180: Бессульфатный шампунь д/нейтр.желтизны ICE BLOND, 1000 мл, шт | C180: 1256.1 | D180: 790 | E180: 790 | G180: 0
A181: 94897 | B181: Бессульфатный шампунь д/нейтр.желтизны ICE BLOND, 300 мл, шт | C181: 667.8 | D181: 420 | E181: 420 | G181: 0
A182: 91971 | B182: Оттеночный бальзам Эффект арктический блонд 2021, 1000 мл, шт | C182: 1335.6 | D182: 840 | E182: 840 | G182: 0
A183: 91636 | B183: Оттеночный бальзам Эффект арктический блонд 2021, 15 мл, шт | C183: 79.5 | D183: 50 | E183: 50 | G183: 0
A184: 91995 | B184: Оттеночный бальзам Эффект арктический блонд 2021, 300 мл, шт | C184: 667.8 | D184: 420 | E184: 420 | G184: 0
A185: 92008 | B185: Оттеночный бальзам Эффект жемчужный блонд 2021, 300 мл, шт | C185: 667.8 | D185: 420 | E185: 420 | G185: 0
A186: 95429 | B186: Оттеночный бальзам эффект жемчужный блонд, 1000 мл, шт | C186: 1335.6 | D186: 840 | E186: 840 | G186: 0
A187: 95436 | B187: Оттеночный бальзам эффект карамельный блонд, 1000 мл, шт | C187: 1335.6 | D187: 840 | E187: 840 | G187: 0
A188: 94088 | B188: Оттеночный бальзам эффект карамельный блонд, 300 мл, шт | C188: 667.8 | D188: 420 | E188: 420 | G188: 0
A189: 94002 | B189: Оттеночный бальзам Эффект пепельный блонд 2021, 1000 мл, шт | C189: 1335.6 | D189: 840 | E189: 840 | G189: 0
A190: 92015 | B190: Оттеночный бальзам Эффект пепельный блонд 2021, 300 мл, шт | C190: 667.8 | D190: 420 | E190: 420 | G190: 0
A191: 92039 | B191: Серебристый шампунь для светлых оттенков 2021, 1000 мл, шт | C191: 1160.7 | D191: 730 | E191: 730 | G191: 0
A192: 91988 | B192: Серебристый шампунь для светлых оттенков 2021, 300 мл, шт | C192: 588.3 | D192: 370 | E192: 370 | G192: 0
B193: Оттеночный бальзам обогащенный коллагеном Fresh Up 2022
A194: 25345 | B194: Оттеночный бальзам обогащенный коллагеном Глинтвейн, 250 мл, шт | C194: 842.7 | D194: 530 | E194: 530 | G194: 0
A195: 25344 | B195: Оттеночный бальзам обогащенный коллагеном Капучино, 250 мл, шт | C195: 842.7 | D195: 530 | E195: 530 | G195: 0
A196: 53466 | B196: Оттеночный бальзам обогащенный коллагеном Корица, 250 мл, шт | C196: 842.7 | D196: 530 | E196: 530 | G196: 0
A197: 94736 | B197: Оттеночный бальзам обогащенный коллагеном Красный, 250 мл, шт | C197: 842.7 | D197: 530 | E197: 530 | G197: 0
A198: 94729 | B198: Оттеночный бальзам обогащенный коллагеном Медный, 250 мл, шт | C198: 842.7 | D198: 530 | E198: 530 | G198: 0
A199: 94712 | B199: Оттеночный бальзам обогащенный коллагеном Пепельно-русый, 250 мл, шт | C199: 842.7 | D199: 530 | E199: 530 | G199: 0
A200: 94743 | B200: Оттеночный бальзам обогащенный коллагеном шоколадный, 250 мл, шт | C200: 842.7 | D200: 530 | E200: 530 | G200: 0
B201: Пигмент прямого действия Fashion Look 2021
A202: 90134 | B202: База нейтральная для смешивания (Neutral base)2021, 250мл, шт | C202: 842.7 | D202: 530 | E202: =D202-D202*$E$4/100 -> 530 | G202: =F202*E202 -> 0
A203: 90363 | B203: Бирюзовый пигмент прямого действия (direct pigment turquoise) 2021, 250мл, шт | C203: 842.7 | D203: 530 | E203: 530 | G203: 0
... 134 more rows

Sheet ConstantDelight
A3: 109457 г. Москва,ул. Плеханова, дом 4,стр.3 ООО “Компания "Аквакосметика” тел. 8(495)785-99-54,785-99-53 многоканальный
B6: ПРАЙС-ЛИСТ CONSTANT Delicht | C6: Проставьте в зеленой ячейке вашу скидку | F6: %
A7: 2026-04-01
A8: Артикул | B8: Наименование товаров | C8: Цена РРЦ с НДС, руб. | D8: Цена с НДС, руб | E8: Цена с вашей скидкой,руб | F8: ЗАКАЗ шт | G8: Сумма по заказу с вашей скидкой, руб
A10: НоменклатураАртикул | B10: Ценовая группа/ Номенклатура/ Характеристика номенклатуры | C10: РРЦ (руб.) (50%) | D10: Цена базовая (руб).
B12: 5 Magic Oil- уход и стайлинг
B13: Finishing
A14: CDMAG107 | B14: CD Воск на водной основе 100 мл | C14: 682.5 | D14: 455 | E14: =D14-D14*$E$6/100 -> 455 | G14: =F14*E14 -> 0
A15: CDMAG105 | B15: CD Гель фиксирующий для волос 100 мл | C15: 505.5 | D15: 337 | E15: 337 | G15: 0
A16: CDMAG104 | B16: CD Глина-воск для моделирования волос 100 мл | C16: 727.5 | D16: 485 | E16: 485 | G16: 0
A17: CDMAG106 | B17: CD Матовый воск для волос 100 мл | C17: 717 | D17: 478 | E17: 478 | G17: 0
A18: CDMAG103 | B18: CD Порошок для объема 5 гр | C18: 1075.5 | D18: 717 | E18: 717 | G18: 0
A19: CDMAG102 | B19: CD ЭКО-СПРЕЙ ДЛЯ БЛЕСКА ВОЛОС 300 мл | C19: 1177.5 | D19: 785 | E19: 785 | G19: 0
B20: Fixing | E20: 0 | G20: 0
A21: CDMAG101 | B21: CD ЭКО-ЛАК СИЛЬНОЙ ФИКСАЦИИ 300 мл | C21: 1051.5 | D21: 701 | E21: 701 | G21: 0
B22: Pre-Styling | E22: 0 | G22: 0
A23: LBT15750 | B23: CD Кондиционер 5 Масел 1000 мл | C23: 1387.5 | D23: 925 | E23: 925 | G23: 0
A24: LBT15749 | B24: CD Кондиционер 5 Масел 250 мл | C24: 705 | D24: 470 | E24: 470 | G24: 0
A25: LBT15767 | B25: CD Кристаллы 5 Масел 80 мл | C25: 958.5 | D25: 639 | E25: 639 | G25: 0
A26: LBT22827 | B26: CD ЛОСЬОН СПРЕЙ ДЛЯ ВЫПРЯМЛЕНИЯ ВОЛОС 7 DAYS 200 мл | C26: 1261.5 | D26: 841 | E26: 841 | G26: 0
A27: LBT22828 | B27: CD ЛОСЬОН СПРЕЙ С МОРСКОЙ СОЛЬЮ 250 мл | C27: 787.5 | D27: 525 | E27: 525 | G27: 0
A28: LBT15751V01 | B28: CD Маска 5 Масел 500 мл | C28: 1186.5 | D28: 791 | E28: 791 | G28: 0
A29: LBT16001 | B29: CD Сухой шампунь 5 Масел 100 мл | C29: 742.5 | D29: 495 | E29: 495 | G29: 0
A30: LBT16313 | B30: CD Шампунь PRE STYLING Интенсивное очищение 1000 мл | C30: 2008.5 | D30: 1339 | E30: 1339 | G30: 0
A31: LBT16312 | B31: CD Шампунь PRE STYLING Интенсивное очищение 250 мл | C31: 906 | D31: 604 | E31: 604 | G31: 0
A32: A9017 | B32: Дозатор для флакона 1000 мл цвет ЧЕРНЫЙ (линия 5 масел) | C32: 178.5 | D32: 119 | E32: 119 | G32: 0
B33: Styling | E33: 0 | G33: 0
A34: LBT15758 | B34: CD Гель для прямых и кудрявых волос 5 Масел 200 мл | C34: 1284 | D34: 856 | E34: 856 | G34: 0
A35: LBT22826 | B35: CD ЛОСЬОН СПРЕЙ ДЛЯ ПРИДАНИЯ ОБЪЕМА 200 мл | C35: 876 | D35: 584 | E35: 584 | G35: 0
A36: LBT22825 | B36: CD ЛОСЬОН СПРЕЙ ДЛЯ ТЕРМОЗАЩИТЫ 200 мл | C36: 970.5 | D36: 647 | E36: 647 | G36: 0
A37: LBT15754 | B37: CD Масло Уход и Стайлинг 10 В 1 /5 Масел 200 мл | C37: 790.5 | D37: 527 | E37: 527 | G37: 0
B38: Crazy Hair НОВИНКА | E38: 0 | G38: 0
A39: PL5158 | B39: CD ЛАК ДЛЯ ВОЛОС СИЛЬНОЙ ФИКСАЦИИ 300 мл | C39: 1650 | D39: 1100 | E39: 1100 | G39: 0
A40: PL5155 | B40: CD МУСС ДЛЯ ПРИДАНИЯ ОБЪЁМА ВОЛОСАМ 250 мл | C40: 1950 | D40: 1300 | E40: 1300 | G40: 0
A41: PL5156 | B41: CD СПРЕЙ ДЛЯ ПРИКОРНЕВОГО ОБЪЕМА ВОЛОС 200 мл | C41: 1650 | D41: 1100 | E41: 1100 | G41: 0
A42: CDCRA01 | B42: CD Спрей-блеск для волос GLOW MIST 250 мл | C42: 1554 | D42: 1036 | E42: 1036 | G42: 0
A43: PL5157 | B43: CD ТЕКСТУРИРУЮЩИЙ ВОСК-ТЯНУЧКА ДЛЯ ВОЛОС 100 мл | C43: 1650 | D43: 1100 | E43: 1100 | G43: 0
B44: Barber & Men's. | C44: РРЦ (100%) | E44: 0 | G44: 0
B45: Barber волосы | E45: 0 | G45: 0
A46: LBT16815 | B46: CD Барбер Воск для волос с матовым эффектом 100 мл | C46: 1928 | D46: 964 | E46: 964 | G46: 0
A47: CDJUST119 | B47: CD ВОСК-ПАСТА ДЛЯ КРЕАТИВНОГО МОДЕЛИРОВАНИЯ ВОЛОС 100 мл | C47: 2104 | D47: 1052 | E47: 1052 | G47: 0
A48: CDJUST112 | B48: CD ГЕЛЬ ДЛЯ ВОЛОС СВЕРХСИЛЬНОЙ ФИКСАЦИИ 100 мл | C48: 1726 | D48: 863 | E48: 863 | G48: 0
A49: LBT19696 | B49: CD Кондиционер для волос 1000 мл | C49: 2646 | D49: 1323 | E49: 1323 | G49: 0
A50: LBT19964 | B50: CD ЛОСЬОН ПРОТИВ ВЫПАДЕНИЯ ВОЛОС 100 мл | C50: 1690 | D50: 845 | E50: 845 | G50: 0
A51: CDJUST131 | B51: CD ПУДРА ДЛЯ ПРИКОРНЕВОГО ОБЪЕМА 8 ГР Барбер НОВИНКА | C51: 2660 | D51: 1330 | E51: 1330 | G51: 0
A52: CDJUST120 | B52: CD Солевой спрей для волос 250 мл | C52: 2056 | D52: 1028 | E52: 1028 | G52: 0
A53: LBT19689 | B53: CD ШАМПУНЬ ДЛЯ АКТИВНЫХ МУЖЧИН 250 мл | C53: 1490 | D53: 745 | E53: 745 | G53: 0
A54: LBT19692 | B54: CD ШАМПУНЬ ДЛЯ ЕЖЕДНЕВНОГО ПРИМЕНЕНИЯ 1000 мл | C54: 2490 | D54: 1245 | E54: 1245 | G54: 0
A55: LBT22999 | B55: CD ШАМПУНЬ ДЛЯ ЕЖЕДНЕВНОГО ПРИМЕНЕНИЯ 5000 мл | C55: 7632 | D55: 3816 | E55: 3816 | G55: 0
A56: LBT19688 | B56: CD Шампунь против выпадения волос 250 мл | C56: 1392 | D56: 696 | E56: 696 | G56: 0
A57: LBT19693 | B57: CD Шампунь против перхоти 250 мл | C57: 1240 | D57: 620 | E57: 620 | G57: 0
B58: Barber уход для лица | C58: РРЦ (100%) | E58: 0 | G58: 0
A59: CDJUST102 | B59: CD Бальзам после бритья 250 мл | C59: 1992 | D59: 996 | E59: 996 | G59: 0
A60: CDJUST104 | B60: CD Гель для бритья 250 мл | C60: 1144 | D60: 572 | E60: 572 | G60: 0
A61: LBT19691 | B61: CD Гель для бритья для точных контуров 150 мл | C61: 1168 | D61: 584 | E61: 584 | G61: 0
A62: CDJUST108 | B62: CD ЖИДКИЙ ВОСК ДЛЯ УКЛАДКИ ВОЛОС, УСОВ И БОРОДЫ 100 мл | C62: 1814 | D62: 907 | E62: 907 | G62: 0
A63: CDJUST115 | B63: CD ЖИДКИЙ ГЕЛЬ ДЛЯ ФОРМИРОВАНИЯ УСОВ И БОРОДЫ 100 мл | C63: 1734 | D63: 867 | E63: 867 | G63: 0
A64: CDJUST106 | B64: CD Крем для бритья 250 мл | C64: 1354 | D64: 677 | E64: 677 | G64: 0
A65: CDJUST101/250 | B65: CD Лосьон после бритья 250 мл | C65: 3800 | D65: 1900 | E65: 1900 | G65: 0
A66: CDJUST116 | B66: CD МАСЛО АРГАНЫ ДЛЯ БОРОДЫ И УСОВ 100 мл | C66: 2428 | D66: 1214 | E66: 1214 | G66: 0
A67: CDJUST105 | B67: CD Масло для ухода за бородой и усами 100 мл | C67: 1286 | D67: 643 | E67: 643 | G67: 0
A68: CDJUST121 | B68: CD Одеколон после бритья 400 мл НОВИНКА | C68: 5600 | D68: 2800 | E68: 2800 | G68: 0
A69: CDJUST113 | B69: CD ОСВЕЖАЮЩИЙ ЛОСЬОН ПОСЛЕ БРИТЬЯ №1 100 мл | C69: 1720 | D69: 860 | E69: 860 | G69: 0
A70: CDJUST114 | B70: CD ОСВЕЖАЮЩИЙ ЛОСЬОН ПОСЛЕ БРИТЬЯ №2 100 мл | C70: 1720 | D70: 860 | E70: 860 | G70: 0
A71: CDJUST111 | B71: CD СПЕЦИАЛЬНЫЙ ВОСК ДЛЯ БОРОДЫ И УСОВ 50 мл | C71: 1726 | D71: 863 | E71: 863 | G71: 0
A72: CDJUST110 | B72: CD ЧЕРНАЯ ПАСТА ДЛЯ УКЛАДКИ ВОЛОС 100 мл | C72: 2560 | D72: 1280 | E72: 1280 | G72: 0
A73: CDJUST109 | B73: CD ЧЕРНЫЙ ЖИДКИЙ ВОСК ДЛЯ УКЛАДКИ ВОЛОС, УСОВ И БОРОДЫ 100 мл | C73: 1670 | D73: 835 | E73: =D73-D73*$E$6/100 -> 835 | G73: 0
A74: LBT19690 | B74: CD ШАМПУНЬ ДЛЯ БОРОДЫ 200 мл | C74: 1244 | D74: 622 | E74: 622 | G74: 0
B75: Barber. Краска 50мл НОВИНКА | C75: РРЦ (100%) | E75: 0 | G75: 0
A76: LBT23388 | B76: CD 3/0 МЭН масло для окрашивания волос без аммиака темно-каштановый, 50 мл | C76: 640 | D76: 320 | E76: 320 | G76: 0
A77: LBT23389 | B77: CD 4/0 МЭН масло для окрашивания волос без аммиака каштановый, 50 мл | C77: 640 | D77: 320 | E77: 320 | G77: =F77*E77 -> 0
A78: LBT23384 | B78: CD 4/02 МЭН масло для окрашивания волос без аммиака каштановый натуральный пепельный, 50 мл | C78: 640 | D78: 320 | E78: 320 | G78: 0
A79: LBT23390 | B79: CD 5/0 МЭН масло для окрашивания волос без аммиака CD каштаново-русый, 50 мл | C79: 640 | D79: 320 | E79: 320 | G79: 0
A80: LBT23385 | B80: CD 5/02 МЭН масло для окрашивания волос без аммиака каштаново-русый натуральный пепельный, 50 мл | C80: 640 | D80: 320 | E80: 320 | G80: 0
A81: LBT23394 | B81: CD 5/14 МЭН масло для окрашивания волос без аммиака каштаново-русый сандре бежевый, 50 мл | C81: 640 | D81: 320 | E81: 320 | G81: 0
A82: LBT23391 | B82: CD 6/0 МЭН масло для окрашивания волос без аммиака светло-каштановый, 50 мл | C82: 640 | D82: 320 | E82: 320 | G82: 0
A83: LBT23395 | B83: CD 6/14 МЭН масло для окрашивания волос без аммиака светло-каштановый сандре бежевый, 50 мл | C83: 640 | D83: 320 | E83: 320 | G83: 0
A84: LBT23392 | B84: CD 7/0 МЭН масло для окрашивания волос без аммиака русый, 50 мл | C84: 640 | D84: 320 | E84: 320 | G84: 0
A85: LBT23386 | B85: CD 7/02 МЭН МЭН масло для окрашивания волос без аммиака русый натуральный пепельный, 50 мл | C85: 640 | D85: 320 | E85: 320 | G85: 0
A86: LBT23396 | B86: CD 7/14 МЭН масло для окрашивания волос без аммиака русый сандре бежевый, 50 мл | C86: 640 | D86: 320 | E86: 320 | G86: 0
A87: LBT23393 | B87: CD 8/0 МЭН масло для окрашивания волос без аммиака светло-русый, 50 мл | C87: 640 | D87: 320 | E87: 320 | G87: 0
A88: LBT23387 | B88: CD 8/02 МЭН масло для окрашивания волос без аммиака светло-русый натуральный пепельный, 50 мл | C88: 640 | D88: 320 | E88: 320 | G88: 0
A89: LBT23397 | B89: CD МЭН масло для окрашивания волос без аммиака ГРАФИТ, 50 мл | C89: 640 | D89: 320 | E89: 320 | G89: 0
B90: Repair | E90: 0 | G90: 0
A91: LBT21867 | B91: CD ЛИПИДНАЯ МАСКА INSTANT REPAIR ДЛЯ ВОЛОС 1000 мл | C91: 2547 | D91: 1698 | E91: 1698 | G91: 0
A92: LBT22039 | B92: CD Масло для обновления волос без утяжеления 50 мл | C92: 948 | D92: 632 | E92: 632 | G92: 0
A93: LBT23195 | B93: CD Силиконовая маска для волос ШЕЛКОВАЯ ЗАЩИТА 1000 мл НОВИНКА | C93: 2250 | D93: 1500 | E93: 1500 | G93: 0
A94: LBT23194 | B94: CD Силиконовая маска для волос ШЕЛКОВАЯ ЗАЩИТА 500 мл НОВИНКА | C94: 1470 | D94: 980 | E94: 980 | G94: 0
B95: Ампулы | E95: 0 | G95: 0
A96: CDFIA03 | B96: CD ЛОСЬОН ДЛЯ ВОЛОС ВОССТАНАВЛИВАЮЩИЙ С ГИАЛУРОНОВОЙ КИСЛОТОЙ, МАСЛОМ СЕМЯН ЛЬНА И МАКАДАМИИ 10 ампул по 10 мл | C96: 2019 | D96: 1346 | E96: 1346 | G96: 0
A97: CDFIA02 | B97: CD ЛОСЬОН ДЛЯ ВОЛОС ВОССТАНАВЛИВАЮЩИЙ С ГИДРОЛИЗОВАННЫМ КЕРАТИНОМ И ЛИПИДНЫМ КОМПЛЕКСОМ 10 ампул по 10 мл | C97: 2019 | D97: 1346 | E97: 1346 | G97: 0
A98: CDFIA01 | B98: CD ЛОСЬОН ПРОТИВ ВЫПАДЕНИЯ ВОЛОС С ПАНТЕНОЛОМ И ЭКСТРАКТОМ ПШЕНИЦЫ 10 ампул по 10 мл | C98: 2019 | D98: 1346 | E98: 1346 | G98: 0
B99: Восстановление волос | E99: 0 | G99: 0
A100: LBT12895 | B100: CD 12 в 1 эликсир для волос 200 мл | C100: 736.5 | D100: 491 | E100: 491 | G100: 0
A101: LBT17063 | B101: CD 2-х фазный увлажняющий кондиционер 400 мл | C101: 1438.5 | D101: 959 | E101: 959 | G101: 0
A102: LBT17229 | B102: CD Восстанавливающее масло 10X10 мл | C102: 2209.5 | D102: 1473 | E102: 1473 | G102: 0
A103: LBT17232 | B103: CD Восстанавливающий лосьон в ампулах 10*10 мл | C103: 2068.5 | D103: 1379 | E103: 1379 | G103: 0
A104: LBT17231 | B104: CD Восстанавливающий мусс с отрубями 250 мл | C104: 1623 | D104: 1082 | E104: 1082 | G104: 0
A105: LBT17580 | B105: CD КРЕМ ДЛЯ ВОЛОС HAIR PLASM 200 мл | C105: 1546.5 | D105: 1031 | E105: 1031 | G105: 0
A106: LBT20695 | B106: CD МОНОДОЗА МАСКА-СПРЕЙ ДЛЯ ВОЛОС 24 В 1 20 мл | C106: 261 | D106: 174 | E106: 174 | G106: 0
A107: LBT21579 | B107: CD УВЛАЖНЯЮЩАЯ, ВОССТАНАВЛИВАЮЩАЯ ДВУХФАЗНАЯ СЫВОРОТКА ДЛЯ ВОЛОС 200 мл | C107: 627 | D107: 418 | E107: 418 | G107: 0
A108: LBT22728 | B108: CD ФЛЭШ-ФЛЮИД SOS 12 СЕКУНД ДЛЯ ВОЛОС 100 мл | C108: 1227 | D108: 818 | E108: 818 | G108: 0
A109: LBT19701 | B109: CD ФЛЮИД С КОЛЛАГЕНОМ МОЛЕКУЛЯРНОЕ УВЛАЖНЕНИЕ ВОЛОС 200 мл | C109: 1041 | D109: 694 | E109: 694 | G109: 0
A110: LBT20645 | B110: CD Шампунь 12 в 1 для волос 250 мл | C110: 823.5 | D110: 549 | E110: 549 | G110: 0
A111: LBT19773 | B111: CD ЭКСТРАКТ КЕРАТИНА ПИТАНИЕ И СИЛА ВОЛОС 200 мл | C111: 1041 | D111: 694 | E111: 694 | G111: 0
B112: ДЕТСКАЯ СЕРИЯ | E112: 0 | G112: 0
A113: CDKIDS05 | B113: CD ДЕТСКИЙ ВОСК ДЛЯ ВОЛОС 100 МЛ | C113: 1306.5 | D113: 871 | E113: 871 | G113: 0
A114: CDKIDS08 | B114: CD ДЕТСКИЙ ЛОСЬОН ПОСЛЕ ЗАГАРА ДЛЯ КОЖИ 200 МЛ | C114: 1306.5 | D114: 871 | E114: 871 | G114: 0
A115: CDKIDS02 | B115: CD ДЕТСКИЙ СМЯГЧАЮЩИЙ И УВЛАЖНЯЮЩИЙ БАЛЬЗАМ ДЛЯ ЛЕГКОГО РАСЧЕСЫВАНИЯ ВОЛОС 200 МЛ | C115: 1269 | D115: 846 | E115: 846 | G115: 0
A116: CDKIDS03 | B116: CD ДЕТСКИЙ СПРЕЙ ДЛЯ ЛЕГКОГО РАСЧЕСЫВАНИЯ ВОЛОС 150 МЛ | C116: 1269 | D116: 846 | E116: 846 | G116: 0
A117: CDKIDS01 | B117: CD ДЕТСКИЙ УВЛАЖНЯЮЩИЙ ШАМПУНЬ ДЛЯ ЛЕГКОГО РАСЧЕСЫВАНИЯ ВОЛОС 200 МЛ | C117: 1269 | D117: 846 | E117: 846 | G117: 0
A118: CDKIDS06 | B118: CD ДЕТСКИЙ ШАМПУНЬ ДЛЯ ТЕЛА И ВОЛОС 200 МЛ | C118: 1269 | D118: 846 | E118: 846 | G118: 0
A119: CDKIDS04 | B119: CD НЕЖНЫЙ УВЛАЖНЯЮЩИЙ ШАМПУНЬ ДЛЯ ДЕТЕЙ 200 МЛ | C119: 1269 | D119: 846 | E119: 846 | G119: 0
A120: CDKIDS07 | B120: CD СОЛНЦЕЗАЩИТНЫЙ КРЕМ ДЛЯ ДЕТЕЙ С SPF 35 200 МЛ | C120: 2899.5 | D120: 1933 | E120: 1933 | G120: 0
B121: Крио Терапия | E121: 0 | G121: 0
A122: LBT19659 | B122: CD Активатор с гранулами мочевины 300 гр | C122: 3265.5 | D122: 2177 | E122: 2177 | G122: 0
A123: LBT19658 | B123: CD Маска с исландским мхом 1000 мл | C123: 4155 | D123: 2770 | E123: 2770 | G123: 0
A124: А3044 | B124: Пластиковая мерная ложечка для смешивания средств для волос | C124: 22.5 | D124: 15 | E124: 15 | G124: 0
B125: Лаки для волос | E125: 0 | G125: 0
A126: 15606 | B126: CD Лак для волос экстрасильной фиксации №3 400 мл без запаха ЧЕРНЫЙ | C126: 690 | D126: 460 | E126: 460 | G126: 0
A127: 15521 | B127: CD Сухой супер-лак для волос экстрасильной фиксации №4 400 мл без запаха ГОЛУБОЙ | C127: 690 | D127: 460 | E127: 460 | G127: 0
A128: 92419 | B128: CD Текстурирующий спрей-воск 250 мл | C128: 607.5 | D128: 405 | E128: 405 | G128: 0
B129: Окрашивание и осветление волос | E129: 0 | G129: 0
B130: Colorante per le sopracciglia - Краска для бровей | E130: 0 | G130: 0
A131: LBT19972 | B131: CD Крем-краска для бровей, коричневый 22 мл | C131: 781.5 | D131: 521 | E131: 521 | G131: 0
A132: LBT19971 | B132: CD Крем-краска для бровей, черный 22 мл | C132: 781.5 | D132: 521 | E132: 521 | G132: 0
B133: Crema Colorante Vit C - крем краска с витамином С, КАШЕМИРОМ И АЛОЭ ВЕРА 100 мл. | E133: 0 | G133: 0
A134: LBT19258 | B134: Д 0/00 крем-краска для волос с витамином С корректор цвета 100 мл | C134: 328.5 | D134: 219 | E134: 219 | G134: 0
A135: LBT19259 | B135: Д 0/11 крем-краска для волос с витамином С антижелтый микстон 100 мл | C135: 328.5 | D135: 219 | E135: 219 | G135: 0
A136: LBT19248 | B136: Д 0/22 крем-краска для волос с витамином С синий микстон 100 мл | C136: 328.5 | D136: 219 | E136: 219 | G136: 0
A137: LBT19249 | B137: Д 0/32 крем-краска для волос с витамином С сине-зеленый 100 мл | C137: 328.5 | D137: 219 | E137: =D137-D137*$E$6/100 -> 219 | G137: 0
A138: LBT19364 | B138: Д 0/33 крем-краска для волос с витамином С зеленый микстон 100 мл | C138: 328.5 | D138: 219 | E138: 219 | G138: 0
A139: LBT19250 | B139: Д 0/53 крем-краска для волос с витамином С лимон 100 мл | C139: 328.5 | D139: 219 | E139: 219 | G139: 0
A140: LBT19251 | B140: Д 0/55 крем-краска для волос с витамином С золотистый микстон 100 мл | C140: 328.5 | D140: 219 | E140: 219 | G140: 0
A141: LBT19252 | B141: Д 0/77 крем-краска для волос с витамином С медный 100 мл | C141: 328.5 | D141: 219 | E141: 219 | G141: =F141*E141 -> 0
A142: LBT19253 | B142: Д 0/88 крем-краска для волос с витамином С красный 100 мл | C142: 328.5 | D142: 219 | E142: 219 | G142: 0
A143: LBT19254 | B143: Д 0/89 Крем-краска для волос с витамином С маджента 100 мл | C143: 328.5 | D143: 219 | E143: 219 | G143: 0
A144: LBT19365 | B144: Д 0/98 крем-краска для волос с витамином С розовый микстон 100 мл | C144: 328.5 | D144: 219 | E144: 219 | G144: 0
A145: LBT19255 | B145: Д 0/99 крем-краска для волос с витамином С индиго-персидский микстон 100 мл | C145: 328.5 | D145: 219 | E145: 219 | G145: 0
A146: LBT19260 | B146: Д 1/0 крем-краска для волос с витамином С черный натуральный 100 мл | C146: 328.5 | D146: 219 | E146: 219 | G146: 0
A147: LBT19261 | B147: Д 1/1 крем-краска для волос с витамином С иссиня-черный 100 мл | C147: 328.5 | D147: 219 | E147: 219 | G147: 0
A148: LBT19262 | B148: Д 10/0 крем-краска для волос с витамином С светлый блондин натуральный 100 мл | C148: 328.5 | D148: 219 | E148: 219 | G148: 0
A149: LBT19263 | B149: Д 10/1 крем-краска для волос с витамином С светлый блондин сандре 100 мл | C149: 328.5 | D149: 219 | E149: 219 | G149: 0
A150: LBT22418 | B150: Д 10/19 крем-краска для волос с витамином С светлый блондин сандре фиолетовый 100 мл | C150: 328.5 | D150: 219 | E150: 219 | G150: 0
A151: LBT19264 | B151: Д 10/2 крем-краска для волос с витамином С светлый блондин пепельный 100 мл | C151: 328.5 | D151: 219 | E151: 219 | G151: 0
A152: LBT22428 | B152: Д 10/29 крем-краска для волос с витамином С светлый блондин пепельно-фиолетовый 100 мл | C152: 328.5 | D152: 219 | E152: 219 | G152: 0
A153: LBT19266 | B153: Д 10/41 крем-краска для волос с витамином С светлый блондин бежевый сандре 100 мл | C153: 328.5 | D153: 219 | E153: 219 | G153: 0
A154: LBT19267 | B154: Д 10/42 крем-краска для волос с витамином С светлый блондин бежево-пепельный 100 мл | C154: 328.5 | D154: 219 | E154: 219 | G154: 0
A155: LBT22422 | B155: Д 10/69 крем-краска для волос с витамином С светлый блондин шоколадно-фиолетовый 100 мл | C155: 328.5 | D155: 219 | E155: 219 | G155: 0
A156: LBT19268 | B156: Д 11/1 крем-краска для волос с витамином С экстра светлый блондин сандре 100 мл | C156: 328.5 | D156: 219 | E156: 219 | G156: 0
A157: LBT19269 | B157: Д 11/91 крем-краска для волос с витамином С экстра светлый блондин фиолетовый сандре 100 мл | C157: 328.5 | D157: 219 | E157: 219 | G157: 0
A158: LBT19270 | B158: Д 12/0 крем-краска для волос с витамином С специальный блондин натуральный 100 мл | C158: 328.5 | D158: 219 | E158: 219 | G158: 0
A159: LBT19271 | B159: Д 12/19 крем-краска для волос с витамином С специальный блондин сандре фиолетовый 100 мл | C159: 328.5 | D159: 219 | E159: 219 | G159: 0
A160: LBT19274 | B160: Д 12/98 крем-краска для волос с витамином С специальный блондин фиолетово-красный 100 мл | C160: 328.5 | D160: 219 | E160: 219 | G160: 0
A161: LBT19275 | B161: Д 3/0 крем-краска для волос с витамином С темно-коричневый натуральный 100 мл | C161: 328.5 | D161: 219 | E161: 219 | G161: 0
A162: LBT19276 | B162: Д 4/0 крем-краска для волос с витамином С средне-коричневый натуральный 100 мл | C162: 328.5 | D162: 219 | E162: 219 | G162: 0
A163: LBT19351 | B163: Д 4/14 крем-краска для волос с витамином С средне-коричневый сандре бежевый 100 мл | C163: 328.5 | D163: 219 | E163: 219 | G163: 0
A164: LBT19347 | B164: Д 4/16 Крем-краска для волос с витамином С средне-коричневый сандре шоколадный 100 мл | C164: 328.5 | D164: 219 | E164: 219 | G164: 0
A165: LBT19278 | B165: Д 4/60 крем-краска для волос с витамином С средне-коричневый шоколадно-натуральный 100 мл | C165: 328.5 | D165: 219 | E165: 219 | G165: 0
A166: LBT19279 | B166: Д 4/62 крем-краска для волос с витамином С средне-коричневый шоколадно-пепельный 100 мл | C166: 328.5 | D166: 219 | E166: 219 | G166: 0
A167: LBT19282 | B167: Д 5/0 крем-краска для волос с витамином С светло-коричневый натуральный 100 мл | C167: 328.5 | D167: 219 | E167: 219 | G167: 0
A168: LBT19316 | B168: Д 5/00 крем-краска для волос с витамином С светло-коричневый натуральный экстра 100 мл | C168: 328.5 | D168: 219 | E168: 219 | G168: 0
A169: LBT19325 | B169: Д 5/1 крем-краска для волос с витамином С светло-коричневый сандре 100 мл | C169: 328.5 | D169: 219 | E169: 219 | G169: 0
A170: LBT19350 | B170: Д 5/14 крем-краска для волос с витамином С светло-коричневый сандре бежевый 100 мл | C170: 328.5 | D170: 219 | E170: 219 | G170: 0
A171: LBT19346 | B171: Д 5/16 крем-краска для волос с витамином С светло-коричневый сандре шоколадный 100 мл | C171: 328.5 | D171: 219 | E171: 219 | G171: 0
A172: LBT19283 | B172: Д 5/4 крем-краска для волос с витамином С светло-коричневый бежевый 100 мл | C172: 328.5 | D172: 219 | E172: 219 | G172: 0
A173: LBT19284 | B173: Д 5/62 крем-краска для волос с витамином С светло-коричневый шоколадно-пепельный 100 мл | C173: 328.5 | D173: 219 | E173: 219 | G173: 0
A174: LBT19328 | B174: Д 5/65 крем-краска для волос с витамином С светло-коричневый шоколадно-золотистый 100 мл | C174: 328.5 | D174: 219 | E174: 219 | G174: 0
A175: LBT19288 | B175: Д 6/0 крем-краска для волос с витамином С темно-русый натуральный 100 мл | C175: 328.5 | D175: 219 | E175: 219 | G175: 0
A176: LBT19317 | B176: Д 6/00 крем-краска для волос с витамином С темно русый натуральный экстра 100 мл | C176: 328.5 | D176: 219 | E176: 219 | G176: 0
A177: LBT19289 | B177: Д 6/1 крем-краска для волос с витамином С темно-русый сандре 100 мл | C177: 328.5 | D177: 219 | E177: 219 | G177: 0
A178: LBT19349 | B178: Д 6/14 крем-краска для волос с витамином С темно-русый сандре бежевый 100 мл | C178: 328.5 | D178: 219 | E178: 219 | G178: 0
A179: LBT19345 | B179: Д 6/16 крем-краска для волос с витамином С темно-русый сандре шоколадный 100 мл | C179: 328.5 | D179: 219 | E179: 219 | G179: 0
A180: LBT22417 | B180: Д 6/2 крем-краска для волос с витамином C темно-русый пепельный 100 мл | C180: 328.5 | D180: 219 | E180: 219 | G180: 0
A181: LBT22425 | B181: Д 6/22 крем-краска для волос с витамином C темно-русый пепельный экстра 100 мл | C181: 328.5 | D181: 219 | E181: 219 | G181: 0
A182: LBT19290 | B182: Д 6/6 крем-краска для волос с витамином С темно-русый шоколадный 100 мл | C182: 328.5 | D182: 219 | E182: 219 | G182: 0
A183: LBT19333 | B183: Д 6/60 крем-краска для волос с витамином С темно-русый шоколадно-натуральный 100 мл | C183: 328.5 | D183: 219 | E183: 219 | G183: 0
A184: LBT19291 | B184: Д 6/62 крем-краска для волос с витамином С темно-русый шоколадно-пепельный 100 мл | C184: 328.5 | D184: 219 | E184: 219 | G184: 0
A185: LBT19327 | B185: Д 6/65 крем-краска для волос с витамином С темно-русый шоколадно-золотистый 100 мл | C185: 328.5 | D185: 219 | E185: 219 | G185: 0
A186: LBT19334 | B186: Д 6/67 крем-краска для волос с витамином С темно-русый шоколадно-медный 100 мл | C186: 328.5 | D186: 219 | E186: 219 | G186: 0
A187: LBT19292 | B187: Д 6/77 крем-краска для волос с витамином С темно-русый медный экстра 100 мл | C187: 328.5 | D187: 219 | E187: 219 | G187: 0
A188: LBT19293 | B188: Д 7/0 крем-краска для волос с витамином С средне-русый натуральный 100 мл | C188: 328.5 | D188: 219 | E188: 219 | G188: 0
A189: LBT19318 | B189: Д 7/00 крем-краска для волос с витамином С средне-русый натуральный экстра 100 мл | C189: 328.5 | D189: 219 | E189: 219 | G189: 0
A190: LBT19324 | B190: Д 7/1 крем-краска для волос с витамином С средне-русый сандре 100 мл | C190: 328.5 | D190: 219 | E190: 219 | G190: 0
A191: LBT19348 | B191: Д 7/14 крем-краска для волос с витамином С средне-русый сандре бежевый 100 мл | C191: 328.5 | D191: 219 | E191: 219 | G191: 0
A192: LBT19329 | B192: Д 7/16 крем-краска для волос с витамином С средне-русый сандре шоколадный 100 мл | C192: 328.5 | D192: 219 | E192: 219 | G192: 0
A193: LBT22423 | B193: Д 7/2 крем-краска для волос с витамином C средне-русый пепельный 100 мл | C193: 328.5 | D193: 219 | E193: 219 | G193: 0
A194: LBT19294 | B194: Д 7/4 крем-краска для волос с витамином С средне-русый бежевый 100 мл | C194: 328.5 | D194: 219 | E194: 219 | G194: 0
A195: LBT19295 | B195: Д 7/6 крем-краска для волос с витамином С средне-русый шоколадный 100 мл | C195: 328.5 | D195: 219 | E195: 219 | G195: 0
A196: LBT19332 | B196: Д 7/60 крем-краска для волос с витамином С средне-русый шоколадно-натуральный 100 мл | C196: 328.5 | D196: 219 | E196: 219 | G196: 0
A197: LBT19322 | B197: Д 7/62 крем-краска для волос с витамином С средне-русый шоколадно-пепельный 100 мл | C197: 328.5 | D197: 219 | E197: 219 | G197: 0
A198: LBT19296 | B198: Д 7/65 крем-краска для волос с витамином С средне-русый шоколадно-золотистый 100 мл | C198: 328.5 | D198: 219 | E198: 219 | G198: 0
A199: LBT19297 | B199: Д 7/67 крем-краска для волос с витамином С средне-русый шоколадно-медный 100 мл | C199: 328.5 | D199: 219 | E199: 219 | G199: 0
A200: LBT22424 | B200: Д 7/69 крем-краска для волос с витамином C средне-русый шоколадно-фиолетовый 100 мл | C200: 328.5 | D200: 219 | E200: 219 | G200: 0
A201: LBT19298 | B201: Д 7/7 крем-краска для волос с витамином С средне-русый медный 100 мл | C201: 328.5 | D201: 219 | E201: =D201-D201*$E$6/100 -> 219 | G201: 0
A202: LBT19299 | B202: Д 7/77 крем-краска для волос с витамином С средне-русый медный экстра 100 мл | C202: 328.5 | D202: 219 | E202: 219 | G202: 0
A203: LBT19300 | B203: Д 8/0 крем-краска для волос с витамином С светло-русый натуральный 100 мл | C203: 328.5 | D203: 219 | E203: 219 | G203: 0
A204: LBT19319 | B204: Д 8/00 крем-краска для волос с витамином С светло русый науральный экстра 100 мл | C204: 328.5 | D204: 219 | E204: 219 | G204: 0
A205: LBT19352 | B205: Д 8/05 крем-краска для волос с витамином С светло-русый натурально золотистый 100 мл | C205: 328.5 | D205: 219 | E205: 219 | G205: =F205*E205 -> 0
A206: LBT19301 | B206: Д 8/1 крем-краска для волос с витамином С светло-русый сандре 100 мл | C206: 328.5 | D206: 219 | E206: 219 | G206: 0
... 287 more rows

Sheet Domix
A1: Ваш торговый представитель______________________
A2: моб. Тел._________________________________________
A3: 109457 г. Москва,ул. Плеханова, дом 4,стр.3 ООО “Компания "Аквакосметика” тел. 8(495)785-99-54,785-99-53 многоканальный
F6: ПРАЙС DOMIX | I6: Проставьте в зеленой ячейке вашу скидку | L6: %
A8: 2026-04-01
A9: Арт.ед.тов. | B9: ШК ед. тов. | C9: ШК блок | D9: ШК гоф.кор. | E9: Бренд | F9: Наименование | G9: Объём | H9: Кол-во в коробе | I9: Цены руб. с НДС | J9: Цена с вашей скидкой,руб | K9: ЗАКАЗ шт | L9: Сумма по заказу с вашей скидкой, руб
F11: Вспомогательные жидкости DOMIX GREEN PROFESSIONAL для ногтевого сервиса
A12: 898263 | F12: DGP Nail prep 3 в 1. Обезжириватель ногтевой пластины, средство для снятия липкого слоя и лака с ногтей | G12: 1л | H12: 6 | I12: 479.88 | J12: 479.88 | L12: =K12*J12 -> 0
A13: 898362 | F13: DGP Nail prep 3 в 1. Обезжириватель ногтевой пластины, средство для снятия липкого слоя и лака с ногтей | G13: 500 мл | H13: 9 | I13: 287.93 | J13: 287.93 | L13: =K13*J13 -> 0
A14: 402636 | F14: DGP Nail prep 3 в 1. Обезжириватель ногтевой пластины, средство для снятия липкого слоя и лака с ногтей | G14: 255 мл | H14: 19 | I14: 223.53 | J14: 223.53 | L14: 0
A15: 898379 | F15: DGP Nail prep 3 в 1. Обезжириватель ногтевой пластины, средство для снятия липкого слоя и лака с ногтей | G15: 200 мл | H15: 12 | I15: 145.9 | J15: 145.9 | L15: 0
A16: 101983 | F16: DGP Nail polish remover with acetone. Средство для снятия всех видов лака с ногтей с ацетоном | G16: 1 л | H16: 6 | I16: 302.9 | J16: 302.9 | L16: 0
A17: 104670 | F17: DGP Nail polish remover with acetone. Средство для снятия всех видов лака с ногтей с ацетоном | G17: 500 мл | H17: 9 | I17: 181.72 | J17: 181.72 | L17: 0
A18: 386309 | F18: DGP Nail polish remover with aсetone. Средство для снятия всех видов лака с ногтей с ацетоном | G18: 255 мл | H18: 19 | I18: 146.91 | J18: 146.91 | L18: 0
A19: 103512 | F19: DGP Nail polish remover with aсetone. Средство для снятия всех видов лака с ногтей с ацетоном | G19: 200 мл | H19: 12 | I19: 93.44 | J19: 93.44 | L19: 0
A20: 101969 | F20: DGP Nail polish remover non acetone. Средство для снятия лака с ногтей без ацетона | G20: 1 л | H20: 6 | I20: 443.15 | J20: 443.15 | L20: 0
A21: 104793 | F21: DGP Nail polish remover non acetone. Средство для снятия лака с ногтей без ацетона | G21: 500 мл | H21: 9 | I21: 265.88 | J21: 265.88 | L21: 0
A22: 386293 | F22: DGP Nail polish remover non aсetone. Средство для снятия лака с ногтей без ацетона | G22: 255 мл | H22: 19 | I22: 202.67 | J22: 202.67 | L22: 0
A23: 103673 | F23: DGP Nail polish remover non aсetone. Средство для снятия лака с ногтей без ацетона | G23: 200 мл | H23: 12 | I23: 136.76 | J23: 136.76 | L23: 0
A24: 103383 | F24: DGP Gel varnish remover. Средство для снятия гель - лака | G24: 1 л | H24: 6 | I24: 404.59 | J24: 404.59 | L24: 0
A25: 104779 | F25: DGP Gel varnish remover. Средство для снятия гель-лака | G25: 500 мл | H25: 9 | I25: 242.77 | J25: 242.77 | L25: 0
A26: 386583 | F26: DGP Gel varnish remover. Средство для снятия гель -лака | G26: 255 мл | H26: 19 | I26: 191.4 | J26: 191.4 | L26: 0
A27: 103659 | F27: DGP Gel varnish remover. Средство для снятия гель - лака | G27: 200 мл | H27: 12 | I27: 124.86 | J27: 124.86 | L27: 0
A28: 104939 | F28: DGP Nail Prep lux 2 в 1. Обезжириватель ногтевой пластины и средство для снятия липкого слоя (без растворителей) | G28: 1 л | H28: 6 | I28: 548.39 | J28: 548.39 | L28: 0
A29: 104694 | F29: DGP Nail Prep lux 2 в 1. Обезжириватель ногтевой пластины и средство для снятия липкого слоя (без растворителей) | G29: 500 мл | H29: 9 | I29: 329.04 | J29: 329.04 | L29: 0
A30: 386316 | F30: DGP Nail Prep lux 2 в 1. Обезжириватель ногтевой пластины и средство для снятия липкого слоя (без растворителей) | G30: 255 мл | H30: 19 | I30: 251.43 | J30: 251.43 | L30: 0
A31: 109323 | F31: DGP Nail Prep lux 2 в 1. Обезжириватель ногтевой пластины и средство для снятия липкого слоя (без растворителей) | G31: 200 мл | H31: 12 | I31: 169.21 | J31: 169.21 | L31: 0
A32: 388303 | F32: DGP Nail Prep lux 2 в 1. Спрей. Обезжириватель ногтевой пластины и средство для снятия липкого слоя (без растворителей) | G32: 150 мл | H32: 9 | I32: 153.04 | J32: 153.04 | L32: 0
A33: 408102 | F33: DGP Nail Prep lux 2 в 1. Дегидратор с ароматом манго | G33: 150 мл | H33: 9 | I33: 179.68 | J33: 179.68 | L33: 0
A34: 102041 | F34: DGP Tip remover. Средство для растворения акрила и снятия искусственных ногтей, гель-лака и биогеля | G34: 1 л | H34: 6 | I34: 357.59 | J34: 357.59 | L34: 0
A35: 104717 | F35: DGP Tip remover. Средство для растворения акрила и снятия искусственных ногтей, гель-лака и биогеля | G35: 500 мл | H35: 9 | I35: 214.53 | J35: 214.53 | L35: 0
A36: 103574 | F36: DGP Tip remover. Средство для растворения акрила и снятия искусственных ногтей, гель-лака и биогеля | G36: 200 мл | H36: 12 | I36: 110.34 | J36: 110.34 | L36: 0
A37: 102089 | F37: DGP Brush cleaner 2 в 1. Жидкость для снятия лака и акрила с натуральных поверхностей и кистей | G37: 1 л | H37: 6 | I37: 516.18 | J37: 516.18 | L37: 0
A38: 104755 | F38: DGP Brush cleaner 2 в 1. Жидкость для снятия лака и акрила с натуральных поверхностей и кистей | G38: 500 мл | H38: 9 | I38: 309.69 | J38: 309.69 | L38: 0
A40: 387573 | F40: DGP Салфетки безворсовые для обезжиривания ногтевой пластины и снятия липкого слоя D 60 мм (перфорированные) | G40: 250 шт. | H40: 11 | I40: 247.26 | J40: 247.26 | L40: 0
A41: 107619 | F41: DGP Салфетки безворсовые для искусственных маникюрных и педикюрных покрытий D 60 мм | G41: 400 шт. | H41: 12 | I41: 178.46 | J41: 178.46 | L41: 0
A43: 899512 | F43: DGP Жидкое лезвие - спрей-кератолитик. Для сухого педикюра | G43: 200 мл | H43: 9 | I43: 577.39 | J43: 577.39 | L43: 0
A44: 406443 | F44: DGP Жидкое лезвие - кератолитик нового поколения | G44: 250 мл | H44: 8 | I44: 744.32 | J44: 744.32 | L44: 0
A45: 898188 | F45: DGP Жидкое лезвие - пенный экспресс размягчитель для разрыхления и удаления натоптышей и огрубевшей кожи стоп | G45: 260 мл | H45: 14 | I45: 616.46 | J45: 616.46 | L45: 0
A46: 403848 | F46: DGP Набор для удаления натоптышей и огрубевшей кожи стоп ( 898188 DGP Жидкое лезвие - пенный экспресс размягчитель для разрыхления и удаления натоптышей и огрубевшей кожи стоп (260мл) + 890717 DGP Тёрка абразивная педикюрная Light) | H46: 12 | I46: 616.46 | J46: 616.46 | L46: 0
A47: 389331 | F47: DGP Жидкое лезвие - гель-кератолитик для подготовки к педикюру с аллантоином | G47: 250 мл | H47: 12 | I47: 506.86 | J47: 506.86 | L47: 0
A48: 104045 | F48: DGP Жидкое лезвие - для удаления натоптышей и уплотнений кожи стоп, локального применения | G48: 1 л | H48: 6 | I48: 1554.54 | J48: 1554.54 | L48: 0
A49: 103833 | F49: DGP Жидкое лезвие - для удаления натоптышей и уплотнений кожи стоп, локального применения | G49: 70 мл | H49: 6 | I49: 345.43 | J49: 345.43 | L49: 0
A50: 107626 | F50: DGP Жидкое лезвие - для ванночек. Средство для ускоренной подготовки к маникюру и педикюру | G50: 3 л | H50: 1 | I50: 1155.46 | J50: 1155.46 | L50: 0
A51: 104915 | F51: DGP Жидкое лезвие - для ванночек. Средство для ускоренной подготовки к маникюру и педикюру | G51: 500 мл | H51: 6 | I51: 311.97 | J51: 311.97 | L51: 0
A52: 106384 | F52: DGP Жидкое лезвие - в саше. Экспресс размягчитель для разрыхления и удаления натоптышей и огрубевшей кожи стоп | G52: 17 мл | H52: 10 блоков в коробе * 20 шт. в блоке. (200 шт./короб) | I52: 61.59 | J52: 61.59 | L52: 0
F53: Нейтрализатор кератолитиков DOMIX GREEN PROFESSIONAL
A54: 109491 | F54: DGP Универсальный нейтрализатор кератолитиков | G54: 150 мл | H54: 9 | I54: 246.87 | J54: 246.87 | L54: 0
A56: 409826 | F56: DGP Пенка очищающая антибактериальная | G56: 260 мл | H56: 14 | I56: 427.15 | J56: 427.15 | L56: 0
A57: 402360 | F57: DGP Membrane Oil. Молекулярное масло | G57: 100 мл | H57: 12 | I57: 782.52 | J57: 782.52 | L57: 0
F58: Средства DOMIX GREEN PROFESSIONAL от грибка
A59: 894197 | F59: DGP Лосьон-спрей для комплексной обработки ногтей и кожи стоп. Профессиональный уход от грибка | G59: 150 мл | H59: 12 | I59: 626.4 | J59: 626.4 | L59: 0
A60: 894203 | F60: DGP Средство для ногтей. Профессиональный уход от грибка | G60: 18 мл | H60: 24 | I60: 228.59 | J60: 228.59 | L60: 0
A61: 894210 | F61: DGP Лак для ногтей. Профессиональный уход от грибка | G61: 17 мл | H61: 30 | I61: 294.73 | J61: 294.73 | L61: 0
A63: 106766 | F63: DGP База для маникюра | G63: 17 мл | H63: 8 блоков в коробе * 6 шт. в блоке. (48 шт./короб) | I63: 382.67 | J63: 382.67 | L63: 0
A64: 106803 | F64: DGP Экспресс-сушка лака для ногтей | G64: 17 мл | H64: 8 блоков в коробе * 6 шт. в блоке. (48 шт./короб) | I64: 394.09 | J64: 394.09 | L64: 0
A65: 106841 | F65: DGP Верхнее покрытие для маникюра | G65: 17 мл | H65: 8 блоков в коробе * 6 шт. в блоке. (48 шт./короб) | I65: 382.67 | J65: 382.67 | L65: 0
A66: 106902 | F66: DGP Универсальное укрепляющее средство для ногтей | G66: 17 мл | H66: 8 блоков в коробе * 6 шт. в блоке. (48 шт./короб) | I66: 382.67 | J66: 382.67 | L66: 0
A67: 106964 | F67: DGP Средство для размягчения и удаления кутикулы | G67: 17 мл | H67: 8 блоков в коробе * 6 шт. в блоке. (48 шт./короб) | I67: 315.59 | J67: 315.59 | L67: 0
A68: 106988 | F68: DGP Масло авокадо для ногтей и кутикулы | G68: 17 мл | H68: 8 блоков в коробе * 6 шт. в блоке. (48 шт./короб) | I68: 279.33 | J68: 279.33 | L68: 0
A69: 107008 | F69: DGP Масло виноградной косточки для ногтей и кутикулы | G69: 17 мл | H69: 8 блоков в коробе * 6 шт. в блоке. (48 шт./короб) | I69: 279.33 | J69: 279.33 | L69: 0
A70: 107022 | F70: DGP Масло миндальное для ногтей и кутикулы | G70: 17 мл | H70: 8 блоков в коробе * 6 шт. в блоке. (48 шт./короб) | I70: 279.33 | J70: 279.33 | L70: 0
A71: 109484 | F71: DGP Размягчитель ногтевой пластины | G71: 18 мл | H71: 5 блоков в коробе * 8 шт. в блоке (40 шт./короб) | I71: 300.96 | J71: 300.96 | L71: 0
A73: 405583 | F73: DGP Сухое молекулярное масло для ногтей для сухой кожи | G73: 30 мл | H73: 20 | I73: 388.05 | J73: 388.05 | L73: 0
A74: 403541 | F74: DGP Сухое молекулярное масло для ногтей для влажной кожи | G74: 30 мл | H74: 20 | I74: 349.23 | J74: 349.23 | L74: 0
A75: 103284 | F75: DGP Масло авокадо для ногтей и кутикулы | G75: 75 мл | H75: 12 | I75: 314.62 | J75: 314.62 | L75: 0
A76: 381663 | F76: DGP Масло авокадо для ногтей и кутикулы | G76: 75 мл | H76: 12 | I76: 314.62 | J76: 314.62 | L76: 0
A77: 103420 | F77: DGP Масло виноградной косточки для ногтей и кутикулы | G77: 75 мл | H77: 12 | I77: 314.62 | J77: 314.62 | L77: =K77*J77 -> 0
A78: 381687 | F78: DGP Масло виноградной косточки для ногтей и кутикулы | G78: 75 мл | H78: 12 | I78: 314.62 | J78: 314.62 | L78: 0
A79: 103406 | F79: DGP Масло миндальное для ногтей и кутикулы | G79: 75 мл | H79: 12 | I79: 314.62 | J79: 314.62 | L79: 0
A80: 381649 | F80: DGP Масло миндальное для ногтей и кутикулы | G80: 75 мл | H80: 12 | I80: 314.62 | J80: 314.62 | L80: 0
A81: 401769 | F81: DGP Масло для кутикулы "Ежевика" | G81: 75 мл | H81: 12 | I81: 192.82 | J81: 192.82 | L81: 0
A82: 401820 | F82: DGP Масло для кутикулы "Арбуз" | G82: 75 мл | H82: 12 | I82: 192.82 | J82: 192.82 | L82: 0
A83: 401844 | F83: DGP Масло для кутикулы "Манго" | G83: 75 мл | H83: 12 | I83: 192.82 | J83: 192.82 | L83: 0
A84: 401868 | F84: DGP Масло для кутикулы "Фейхоа" | G84: 75 мл | H84: 12 | I84: 192.82 | J84: 192.82 | L84: 0
A85: 387702 | F85: DGP Cuticle remover lux. Средство для удаления кутикулы | G85: 113 мл | H85: 20 | I85: 448.24 | J85: 448.24 | L85: 0
A86: 104069 | F86: DGP Cuticle remover. Средство для удаления кутикулы | G86: 1 л | H86: 6 | I86: 1681.77 | J86: 1681.77 | L86: 0
A87: 107572 | F87: DGP Cuticle remover. Средство для удаления кутикулы | G87: 500 мл | H87: 9 | I87: 1009.07 | J87: 1009.07 | L87: 0
A88: 109132 | F88: DGP Cuticle remover. Средство для удаления кутикулы | G88: 200 мл | H88: 14 | I88: 513.62 | J88: 513.62 | L88: 0
A89: 103260 | F89: DGP Cuticle remover. Средство для удаления кутикулы | G89: 75 мл | H89: 12 | I89: 332.89 | J89: 332.89 | L89: 0
A90: 381625 | F90: DGP Cuticle remover. Средство для удаления кутикулы | G90: 75 мл | H90: 12 | I90: 346.3 | J90: 346.3 | L90: 0
A91: 103222 | F91: DGP Cuticle remover. Средство для удаления кутикулы | G91: 70 мл | H91: 15 | I91: 263.41 | J91: 263.41 | L91: 0
A92: 405507 | F92: DGP Тальк для маникюра и педикюра | G92: 45 г | H92: 12 | I92: 162.38 | J92: 162.38 | L92: 0
A93: 406771 | F93: DGP Тальк для маникюра и педикюра | G93: 25 г | H93: 15 | I93: 105.31 | J93: 105.31 | L93: 0
A94: 103499 | F94: DGP Разбавитель лака | G94: 70 мл | H94: 6 | I94: 99.45 | J94: 99.45 | L94: 0
A95: 104618 | F95: DGP Капля-сушка | G95: 75 мл | H95: 12 | I95: 734.96 | J95: 734.96 | L95: 0
A96: 109873 | F96: DGP Экспресс-сушка | G96: 150 мл | H96: 9 | I96: 828.85 | J96: 828.85 | L96: 0
A97: 104632 | F97: DGP Экспресс высыхание | G97: 75 мл | H97: 12 | I97: 554.45 | J97: 554.45 | L97: 0
A98: 103758 | F98: DGP База под лак | G98: 75 мл | H98: 12 | I98: 521.11 | J98: 521.11 | L98: 0
A99: 103765 | F99: DGP Верхнее покрытие | G99: 75 мл | H99: 12 | I99: 521.11 | J99: 521.11 | L99: 0
F100: Кремы DOMIX GREEN PROFESSIONAL
A101: 406122 | F101: DGP Мист для рук | G101: 100 мл | H101: 14 | I101: 177.59 | J101: 177.59 | L101: 0
A102: 406405 | F102: DGP Крем-суфле "Манго" | G102: 500 мл | H102: 3 | I102: 525.44 | J102: 525.44 | L102: 0
A103: 107244 | F103: DGP Крем для рук и ногтей с кератином, маслом чайного дерева и коллоидным серебром | G103: 1 л | H103: 6 | I103: 585.25 | J103: 585.25 | L103: 0
A104: 102638 | F104: DGP Крем для рук и ногтей с кератином, маслом чайного дерева и коллоидным серебром | G104: 500мл | H104: 12 | I104: 351.17 | J104: 351.17 | L104: 0
A105: 107237 | F105: DGP Крем для рук и ногтей с кератином, маслом чайного дерева и коллоидным серебром | G105: 250 мл | H105: 12 | I105: 210.66 | J105: 210.66 | L105: 0
A106: 107206 | F106: DGP Крем для рук питательный с ромашкой, тысячелистником и коллоидным серебром | G106: 1 л | H106: 6 | I106: 619.06 | J106: 619.06 | L106: 0
A107: 107350 | F107: DGP Крем для рук питательный с ромашкой, тысячелистником и коллоидным серебром | G107: 500мл | H107: 12 | I107: 371.45 | J107: 371.45 | L107: 0
A108: 107190 | F108: DGP Крем для рук питательный с ромашкой, тысячелистником и коллоидным серебром | G108: 250 мл | H108: 12 | I108: 222.86 | J108: 222.86 | L108: 0
A109: 408256 | F109: DGP Крем-флюид увлажняющий | G109: 1 л | H109: 6 | I109: 775.3 | J109: 775.3 | L109: 0
A110: 408270 | F110: DGP Крем-флюид увлажняющий | G110: 500 мл | H110: 12 | I110: 465.18 | J110: 465.18 | L110: 0
A111: 408294 | F111: DGP Крем-флюид увлажняющий | G111: 250 мл | H111: 12 | I111: 279.1 | J111: 279.1 | L111: 0
A112: 107220 | F112: DGP Крем для ног размягчающий мозоли с лимоном, ланолином и коллоидным серебром | G112: 1 л | H112: 6 | I112: 650.56 | J112: 650.56 | L112: 0
A113: 102652 | F113: DGP Крем для ног размягчающий мозоли с лимоном, ланолином и коллоидным серебром | G113: 500мл | H113: 12 | I113: 390.36 | J113: 390.36 | L113: 0
A114: 107213 | F114: DGP Крем для ног размягчающий мозоли с лимоном, ланолином и коллоидным серебром | G114: 250 мл | H114: 12 | I114: 234.22 | J114: 234.22 | L114: 0
A115: 107183 | F115: DGP Крем для ног от трещин и ссадин с витаминами А, E, F, D-пантенолом и коллоидным серебром | G115: 1 л | H115: 6 | I115: 659.79 | J115: 659.79 | L115: 0
A116: 107336 | F116: DGP Крем для ног от трещин и ссадин с витаминами А, E, F, D-пантенолом и коллоидным серебром | G116: 500мл | H116: 12 | I116: 395.88 | J116: 395.88 | L116: 0
A117: 107176 | F117: DGP Крем для ног от трещин и ссадин с витаминами А, E, F, D-пантенолом и коллоидным серебром | G117: 250 мл | H117: 12 | I117: 237.56 | J117: 237.56 | L117: 0
A118: 403282 | F118: DGP Крем для ног дезодорирующий с серебром и маслом чайного дерева | G118: 500мл | H118: 4 | I118: 997.48 | J118: 997.48 | L118: 0
A119: 387726 | F119: DGP Крем для ног "Гидробаланс" с мочевиной, аллантоином, ланолином, маслом сафлоровым, пгэ прополиса, витамином Е, D-пантенолом | G119: 250 мл | H119: 12 | I119: 310.37 | J119: 310.37 | L119: 0
F120: Парфюмированная линейка DOMIX PERFUMER
A121: 406733 | F121: PERFUMER Бальзам | G121: 100 мл | H121: 5 | I121: 327.26 | J121: 327.26 | L121: 0
A122: 408126 | F122: PERFUMER Бальзам Мини | G122: 18 мл | H122: 3 блока в коробе * 10 шт. в блоке (30 шт./короб) | I122: 92.49 | J122: 92.49 | L122: 0
A123: 406757 | F123: PERFUMER Молочко | G123: 100 мл | H123: 5 | I123: 310.9 | J123: 310.9 | L123: 0
A124: 408164 | F124: PERFUMER Молочко Мини | G124: 18 мл | H124: 3 блока в коробе * 10 шт. в блоке (30 шт./короб) | I124: 87.86 | J124: 87.86 | L124: 0
A125: 406726 | F125: PERFUMER Флюид | G125: 100 мл | H125: 5 | I125: 305.31 | J125: 305.31 | L125: 0
A126: 408096 | F126: PERFUMER Флюид Мини | G126: 18 мл | H126: 3 блока в коробе * 10 шт. в блоке (30 шт./короб) | I126: 86.27 | J126: 86.27 | L126: 0
A127: 406740 | F127: PERFUMER Лосьон | G127: 100 мл | H127: 5 | I127: 305.23 | J127: 305.23 | L127: 0
A128: 408140 | F128: PERFUMER Лосьон Мини | G128: 18 мл | H128: 3 блока в коробе * 10 шт. в блоке (30 шт./короб) | I128: 86.26 | J128: 86.26 | L128: 0
A129: 408188 | F129: PERFUMER Набор Мини (асс. 4 шт.) | G129: 1 шт | H129: 20 | I129: 314.54 | J129: 314.54 | L129: 0
A130: 406764 | F130: PERFUMER Мист | G130: 100 мл | H130: 5 | I130: 308.08 | J130: 308.08 | L130: 0
F131: Средства DOMIX GREEN PROFESSIONAL для парафинотерапии
A132: 895682 | F132: DGP Крем-парафин с маслом ши и ланолином | G132: 500 мл | H132: 3 | I132: 768.18 | J132: 768.18 | L132: 0
A133: 405521 | F133: DGP Крем-парафин с маслом ши и ланолином | G133: 60 мл | H133: 12 | I133: 161.01 | J133: 161.01 | L133: 0
A134: 403411 | F134: DGP Крем-парафин "Зефир" с витаминами A, E, F | G134: 500 мл | H134: 3 | I134: 765.78 | J134: 765.78 | L134: 0
A135: 404265 | F135: DGP Крем-парафин "Зефир" с витаминами A, E, F | G135: 200 мл | H135: 6 | I135: 389.81 | J135: 389.81 | L135: 0
A136: 405484 | F136: DGP Крем-парафин "Зефир" с витаминами A, E, F | G136: 60 мл | H136: 12 | I136: 189.2 | J136: 189.2 | L136: 0
A137: 403428 | F137: DGP Крем-парафин "Сладкий апельсин" с аминокислотами шелка | G137: 500 мл | H137: 3 | I137: 762.67 | J137: 762.67 | L137: 0
A138: 404272 | F138: DGP Крем-парафин "Сладкий апельсин" с аминокислотами шелка | G138: 200 мл | H138: 6 | I138: 388.21 | J138: 388.21 | L138: 0
A139: 405477 | F139: DGP Крем-парафин "Сладкий апельсин" с аминокислотами шелка | G139: 60 мл | H139: 12 | I139: 188.43 | J139: 188.43 | L139: 0
F140: Средства DOMIX GREEN PROFESSIONAL для горячего маникюра
A141: 109200 | F141: DGP Лосьон для горячего маникюра | G141: 500 мл | H141: 6 | I141: 457.64 | J141: 457.64 | L141: =K141*J141 -> 0
A143: 109316 | F143: DGP Соль морская размягчающая для маникюрных и педикюрных ванночек | G143: 500 г | H143: 3 | I143: 238.3 | J143: 238.3 | L143: 0
A144: 387696 | F144: DGP Солевой коктейль с экстрактом шиповника и карбамидом для укрепления хрупких, ломких ногтей | G144: 600 г | H144: 3 | I144: 326.12 | J144: 326.12 | L144: 0
A145: 387689 | F145: DGP Солевой коктейль с экстрактом ламинарии и карбамидом для восстановления истончённых, ослабленных ногтей | G145: 600 г | H145: 3 | I145: 329.94 | J145: 329.94 | L145: 0
F146: Кремы DOMIX GREEN PROFESSIONAL Sensational Solution для рук и тела
A147: 108807 | F147: DGP Крем для рук и тела витаминный Cranberry | G147: 260 мл | H147: 8 | I147: 317.09 | J147: 317.09 | L147: 0
A148: 108814 | F148: DGP Крем для рук и тела восстанавливающий Grapefruit & Honeysuckle | G148: 260 мл | H148: 8 | I148: 317.09 | J148: 317.09 | L148: 0
A149: 108784 | F149: DGP Крем для рук и тела выравнивающий тон кожи Tangerine & Lemongrass | G149: 260 мл | H149: 8 | I149: 317.09 | J149: 317.09 | L149: 0
A150: 108746 | F150: DGP Крем для рук и тела питательный Mango & Coconut | G150: 260 мл | H150: 8 | I150: 317.09 | J150: 317.09 | L150: 0
A151: 108760 | F151: DGP Крем для рук и тела тонизирующий Lavender & Jojoba | G151: 260 мл | H151: 8 | I151: 317.09 | J151: 317.09 | L151: 0
A152: 108753 | F152: DGP Крем для рук и тела увлажняющий Black Cherry & Nutmeg | G152: 260 мл | H152: 8 | I152: 317.09 | J152: 317.09 | L152: 0
A153: 108791 | F153: DGP Крем для рук и тела укрепляющий Citrus & Green Tea | G153: 260 мл | H153: 8 | I153: 317.09 | J153: 317.09 | L153: 0
A154: 108777 | F154: DGP Крем для рук и тела успокаивающий Wildflower & Camomile | G154: 260 мл | H154: 8 | I154: 317.09 | J154: 317.09 | L154: 0
F155: Скрабы DOMIX GREEN PROFESSIONAL
A156: 103338 | F156: DGP Крем-скраб с серебром | G156: 500мл | H156: 6 | I156: 504.77 | J156: 504.77 | L156: 0
A157: 103246 | F157: DGP Гель-скраб с серебром | G157: 500мл | H157: 6 | I157: 542.51 | J157: 542.51 | L157: 0
A159: 106377 | F159: DGP Тёрка абразивная педикюрная фасонная двусторонняя | G159: - | H159: 15 | I159: 119.9 | J159: 119.9 | L159: 0
A160: 106360 | F160: DGP Тёрка абразивная педикюрная фигурная двусторонняя | G160: - | H160: 15 | I160: 89.11 | J160: 89.11 | L160: 0
A161: 106353 | F161: DGP Тёрка абразивная педикюрная прямая двусторонняя | G161: - | H161: 15 | I161: 89.11 | J161: 89.11 | L161: 0
A162: 106346 | F162: DGP Тёрка абразивная педикюрная малая двусторонняя | G162: - | H162: 15 | I162: 81.6 | J162: 81.6 | L162: 0
A163: 381762 | F163: DGP Тёрка абразивная педикюрная Slim | G163: - | H163: 25 | I163: 167.79 | J163: 167.79 | L163: 0
A164: 381779 | F164: DGP Тёрка абразивная педикюрная Easy | G164: - | H164: 25 | I164: 167.79 | J164: 167.79 | L164: 0
A165: 890717 | F165: DGP Тёрка абразивная педикюрная Light | G165: - | H165: 60 | I165: 100.74 | J165: 100.74 | L165: 0
A166: 108968 | F166: DGP Тёрка абразивная педикюрная Eco | G166: - | H166: 25 | I166: 158.33 | J166: 158.33 | L166: 0
A167: 109392 | F167: DGP Тёрка абразивная педикюрная Optima | G167: - | H167: 50 | I167: 100.74 | J167: 100.74 | L167: 0
A168: 108982 | F168: DGP Тёрка абразивная педикюрная Lux + 6 сменных абразивов (80/150) в комплекте | G168: - | H168: 14 | I168: 341.82 | J168: 341.82 | L168: 0
A169: 109002 | F169: DGP Комплект сменных абразивов, зернистость 60, для педикюрной пилки-тёрки | G169: 10 шт. | H169: 33 | I169: 222.76 | J169: 222.76 | L169: 0
A170: 109026 | F170: DGP Комплект сменных абразивов, зернистость 80, для педикюрной пилки-тёрки | G170: 10 шт. | H170: 33 | I170: 222.76 | J170: 222.76 | L170: 0
A171: 109040 | F171: DGP Комплект сменных абразивов, зернистость 100, для педикюрной пилки-тёрки | G171: 10 шт. | H171: 33 | I171: 222.76 | J171: 222.76 | L171: 0
A172: 109064 | F172: DGP Комплект сменных абразивов, зернистость 120, для педикюрной пилки-тёрки | G172: 10 шт. | H172: 33 | I172: 222.76 | J172: 222.76 | L172: 0
A173: 109088 | F173: DGP Комплект сменных абразивов, зернистость 150, для педикюрной пилки-тёрки | G173: 10 шт. | H173: 33 | I173: 222.76 | J173: 222.76 | L173: 0
A174: 109101 | F174: DGP Комплект сменных абразивов, зернистость 180, для педикюрной пилки-тёрки | G174: 10 шт. | H174: 33 | I174: 222.76 | J174: 222.76 | L174: 0
A175: 387443 | F175: DGP Тёрка фасонная абразивная педикюрная двусторонняя. Цвет фуксия | H175: 25 | I175: 119.25 | J175: 119.25 | L175: 0
A176: 387467 | F176: DGP Тёрка фасонная абразивная педикюрная двусторонняя. Цвет белый | H176: 25 | I176: 104.96 | J176: 104.96 | L176: 0
A177: 387481 | F177: DGP Тёрка фасонная абразивная педикюрная двусторонняя. Цвет бирюзовый | H177: 25 | I177: 104.96 | J177: 104.96 | L177: 0
A178: 387504 | F178: DGP Тёрка фасонная абразивная педикюрная двусторонняя. Цвет желтый | H178: 25 | I178: 104.96 | J178: 104.96 | L178: 0
A179: 388822 | F179: DGP Тёрка фасонная абразивная педикюрная двусторонняя. Цвет чёрный | H179: 25 | I179: 104.96 | J179: 104.96 | L179: 0
A180: 387962 | F180: DGP Тёрка-основа фасонная пластиковая педикюрная двусторонняя без абразива | H180: 25 | I180: 42 | J180: 42 | L180: 0
A181: 385678 | F181: DGP Тёрка абразивная педикюрная двусторонняя. Цвет белый | H181: 25 | I181: 127.02 | J181: 127.02 | L181: 0
A182: 385692 | F182: DGP Тёрка абразивная педикюрная двусторонняя. Цвет жёлтый | H182: 25 | I182: 127.26 | J182: 127.26 | L182: 0
A183: 385715 | F183: DGP Тёрка абразивная педикюрная двусторонняя. Цвет бирюзовый | H183: 25 | I183: 127.13 | J183: 127.13 | L183: 0
A184: 385739 | F184: DGP Тёрка абразивная педикюрная двусторонняя. Цвет фуксия | H184: 25 | I184: 128.04 | J184: 128.04 | L184: 0
A185: 388846 | F185: DGP Тёрка абразивная педикюрная двусторонняя. Цвет чёрный | H185: 25 | I185: 126.88 | J185: 126.88 | L185: 0
A186: 899505 | F186: DGP Металлическая основа для педикюрной терки МО-9 | H186: - | I186: 731.44 | J186: 731.44 | L186: 0
A187: 402247 | F187: DGP Комплект сменных абразивов для тёрки-основы MО-9, зернистость 60 | G187: 10 шт. | H187: 33 | I187: 219.96 | J187: 219.96 | L187: 0
A188: 402254 | F188: DGP Комплект сменных абразивов для тёрки-основы MО-9, зернистость 80 | G188: 10 шт. | H188: 33 | I188: 219.96 | J188: 219.96 | L188: 0
A189: 402261 | F189: DGP Комплект сменных абразивов для тёрки-основы MО-9, зернистость 100 | G189: 10 шт. | H189: 33 | I189: 219.96 | J189: 219.96 | L189: 0
A190: 402285 | F190: DGP Комплект сменных абразивов для тёрки-основы MО-9, зернистость 120 | G190: 10 шт. | H190: 33 | I190: 219.96 | J190: 219.96 | L190: 0
A191: 402292 | F191: DGP Комплект сменных абразивов для тёрки-основы MО-9, зернистость 150 | G191: 10 шт. | H191: 33 | I191: 219.96 | J191: 219.96 | L191: 0
A192: 402308 | F192: DGP Комплект сменных абразивов для тёрки-основы MО-9, зернистость 180 | G192: 10 шт. | H192: 33 | I192: 219.96 | J192: 219.96 | L192: 0
A193: 890762 | F193: DGP Комплект сменных абразивов для тёрки-основы Maxi, зернистость 60 | G193: 10 шт. | H193: 33 | I193: 209.58 | J193: 209.58 | L193: 0
A194: 890786 | F194: DGP Комплект сменных абразивов для тёрки-основы Maxi, зернистость 80 | G194: 10 шт. | H194: 33 | I194: 209.58 | J194: 209.58 | L194: 0
A195: 890809 | F195: DGP Комплект сменных абразивов для тёрки-основы Maxi, зернистость 100 | G195: 10 шт. | H195: 33 | I195: 209.58 | J195: 209.58 | L195: 0
A196: 890823 | F196: DGP Комплект сменных абразивов для тёрки-основы Maxi, зернистость 120 | G196: 10 шт. | H196: 33 | I196: 209.58 | J196: 209.58 | L196: 0
A197: 890847 | F197: DGP Комплект сменных абразивов для тёрки-основы Maxi, зернистость 150 | G197: 10 шт. | H197: 33 | I197: 209.58 | J197: 209.58 | L197: 0
A198: 890861 | F198: DGP Комплект сменных абразивов для тёрки-основы Maxi, зернистость 180 | G198: 10 шт. | H198: 33 | I198: 209.58 | J198: 209.58 | L198: 0
A199: 387580 | F199: DGP Крафт-пакеты белые 100х250 для стерилизации и хранения инструментов | G199: 100 шт в пачке | H199: 10 | I199: 481.03 | J199: 481.03 | L199: 0
A200: 387603 | F200: DGP Крафт-пакеты коричневые 100х250 для стерилизации и хранения инструментов | G200: 100 шт в пачке | H200: 10 | I200: 453.76 | J200: 453.76 | L200: 0
A201: 388945 | F201: DGP Крафт-пакеты белые 100х200 для стерилизации и хранения инструментов | G201: 100 шт в пачке | H201: 10 | I201: 447.11 | J201: 447.11 | L201: 0
A202: 388983 | F202: DGP Крафт-пакеты коричневые 100х200 для стерилизации и хранения инструментов | G202: 100 шт в пачке | H202: 10 | I202: 391.61 | J202: 391.61 | L202: 0
A203: 388969 | F203: DGP Крафт-пакеты белые 75х150 для стерилизации и хранения инструментов | G203: 100 шт в пачке | H203: 40 | I203: 342.27 | J203: 342.27 | L203: 0
A204: 389003 | F204: DGP Крафт-пакеты коричневые 75х150 для стерилизации и хранения инструментов | G204: 100 шт в пачке | H204: 40 | I204: 317.6 | J204: 317.6 | L204: 0
A205: 890885 | F205: DGP Комплект для педикюра большой | H205: 9 | I205: 125.12 | J205: 125.12 | L205: =K205*J205 -> 0
A207: 103451 | F207: DGP Шампунь очищающий/обезжиривающий "Лилия и миндальное молочко" | G207: 5 л | H207: 1 | I207: 642.12 | J207: 642.12 | L207: 0
A208: 109286 | F208: DGP Шампунь универсальный | G208: 5 л | H208: 1 | I208: 1170.4 | J208: 1170.4 | L208: 0
F209: Разбавитель для лака
A210: 100870 | F210: Разбавитель для лака | G210: 15 мл | H210: 24 | I210: 64.41 | J210: 64.41 | L210: 0
K211: Итого
B262: DAP Воск для депиляции "Мохито" полимерный в гранулах для всех зон | C262: 730 г | D262: 4
... 78 more rows

Sheet Schwarzkopf
A1: Ваш торговый представитель______________________
A2: моб. Тел._________________________________________
A3: 109457 г. Москва,ул. Плеханова, дом 4,стр.3 ООО “Компания "Аквакосметика” тел. 8(495)785-99-54,785-99-53 многоканальный сайт: www.steck.ru, e-mail: prof@akva.ru
B4: ПРАЙС-ЛИСТ SCHWARZKOPF PROFESSIONAL
A6: 2026-04-01
A7: Артикул | B7: Наименование товара | C7: Цена с НДС | D7: ЗАКАЗ шт | E7: Сумма по заказу с вашей скидкой, руб
B8: Срок годности отмечен в скобках. При сроке менее 3-х месяцев скидка - 30%
A9: 098-1-1688979 | B9: Игора Роял Абс 5-60 краска д/в Светлый коричневый шоколадный натур 60мл | C9: 630.34 | E9: =D9*C9 -> 0
A10: 098-1-1688987 | B10: Игора Роял 9-7 краска д/в Блондин медный 60мл (З) | C10: 599.59 | E10: 0
A11: 098-1-1688995 | B11: Игора Роял 9-0 краска д/в Блондин натуральный 60мл | C11: 599.59 | E11: 0
A12: 098-1-1688997 | B12: Игора Роял 9,5-4 краска д/в Светл блонд пастел беж 60мл | C12: 599.59 | E12: 0
A13: 098-1-1689007 | B13: Игора Роял 8-1 краска д/в Светлый русый сандрэ 60мл | C13: 599.59 | E13: 0
A14: 098-1-1689021 | B14: Игора Роял 6-77 краска д/в Темный русый медн экстра 60мл | C14: 599.59 | E14: 0
A15: 098-1-1689027 | B15: Игора Роял 6-4 краска д/в Темный русый бежевый 60мл(З) | C15: 599.59 | E15: 0
A16: 098-1-1689029 | B16: Игора(08.26) Роял 6-1 краска д/в Темный русый сандрэ 60мл | C16: 599.59 | E16: 0
A17: 098-1-1689035 | B17: Игора Роял 5-7 краска д/в Светлый корич медный 60мл | C17: 599.59 | E17: 0
A18: 098-1-1689042 | B18: Игора Роял 5-4 краска д/в Св коричневый бежевый 60мл (З) | C18: 599.59 | E18: 0
A19: 098-1-1689043 | B19: Игора Роял 5-1 краска д/в Светлый коричсандрэ 60мл | C19: 599.59 | E19: 0
A20: 098-1-1689070 | B20: Игора Роял 1-0 краска д/в(07.26) Черный натуральный 60мл | C20: 599.59 | E20: 0
A21: 098-1-1689078 | B21: Игора Роял 0-11 краска д/в Анти-желтый микстон 60мл | C21: 599.59 | E21: 0
A22: 098-1-1887949 | B22: Игора Роял Абс 6-50 краска д/в Темно русый золот.натур 60мл(З) | C22: 630.34 | E22: 0
A23: 098-1-1888717 | B23: Игора Роял Абс AgeBlend 6-460 краска д/в Тем рус беж шок 60мл | C23: 630.34 | E23: 0
A24: 098-1-2093773 | B24: Игора Роял Highlifts 12-2 краска д/в спец блонд пепельный | C24: 630.34 | E24: 0
A25: 098-1-2680003 | B25: Игора Роял Абс 9-460 краска д/в Блонд беж шокол нат 60мл | C25: 649.44 | E25: 0
A26: 098-1-2682995 | B26: Игора Роял 5-16 краска д/в Светлый коричневый сандрэ шоколадный 60мл | C26: 599.59 | E26: 0
A27: 098-1-2683358 | B27: Игора Роял 7-21 краска д/в Сред. русый пепельный сандрэ 60 мл | C27: 599.59 | E27: 0
A28: 098-1-2683640 | B28: Игора Роял 9-24 краска д/в Блондин пепельный бежевый 60мл | C28: 599.59 | E28: 0
A29: 098-1-2684107 | B29: Игора Роял 8-19 краска д/в Светлый русый сандрэ фиолетовый 60мл | C29: 599.59 | E29: 0
A30: 098-1-2684127 | B30: Игора Роял 8-21 краска д/в Светлый русый пепельный сандрэ 60 мл | C30: 599.59 | E30: 0
A31: 098-1-2684399 | B31: Игора Роял 7-24 краска д/в Сред. русый пепельный бежевый 60мл | C31: 599.59 | E31: 0
A32: 099-6-1503980 | B32: СИЛУЭТ Спрей сверхсильной фикс. 200мл (черный) СРОК 07.2026 | C32: 996 | E32: 0
A33: 099-6-1581304 | B33: СИЛУЭТ Лак ультрасильн фиксации 500мл (черный классик) | C33: 1015 | E33: 0
A34: 099-7-1634436 | B34: ОКСИГЕНТА 6% Игора 1000мл (БОЛЬШАЯ) | C34: 1260.68 | E34: 0
A35: 099-7-1847101 | B35: ОКСИГЕНТА 3% Игора 1000мл (БОЛЬШАЯ) | C35: 1260.68 | E35: 0
A36: 099-7-1847105 | B36: ОКСИГЕНТА 9% Игора 1000мл (БОЛЬШАЯ) | C36: 1260.68 | E36: 0
A37: 099-87-1580492 | B37: Проф. ЛАК сверхсил. фикс. 500мл ГОЛУБОЙ | C37: 1055 | E37: 0
D38: Итого | E38: =SUM(E9:E37) -> 0

Sheet LONDA
A1: Ваш торговый представитель______________________
A2: моб. Тел._________________________________________
A3: 109457 г. Москва,ул. Плеханова, дом 4,стр.3 ООО “Компания "Аквакосметика” тел. 8(495)785-99-54,785-99-53 многоканальный сайт: www.steck.ru, e-mail: prof@akva.ru
B5: ПРАЙС-ЛИСТ LONDA professional | D5: 0 | E5: %
A6: 2026-04-01 | B6: Срок годности отмечен в скобках. При сроке менее 3-х месяцев скидка - 30%
A7: Артикул | B7: Наименование | C7: Цена в рублях c НДС | D7: Цена с вашей скидкой,руб | E7: ЗАКАЗ шт | F7: Сумма по заказу с вашей скидкой, руб
A9: 0990-1-179513 | B9: LP(4.27) инт.тон. 8/07 extra-coverage cветлый блонд натур-корич | C9: 496 | D9: =C9-C9*$D$5/100 -> 496 | F9: =E9*D9 -> 0
A10: 0990-1-180267 | B10: LP(10.26) Краска д/волос 0/45 медно-красный миксто 60мл(З) | C10: 496 | D10: 496 | F10: 0
A11: 0990-1-237121 | B11: LP (10.27) Краска д/волос 7/37 золот.корич 60мл | C11: 496 | D11: 496 | F11: 0
A12: 0990-1-237145 | B12: LP (03.27) Краска д/волос 6/46 темный блонд медно-фиолетовый 60мл | C12: 496 | D12: 496 | F12: 0
A13: 0990-1-237183 | B13: LP (03.27) Краска д/волос 7/3 блондин золот 60мл | C13: 496 | D13: 496 | F13: 0
A14: 0990-1-237190 | B14: LP(05.27) Краска д/волос 6/4 темн.блонд медный 60мл | C14: 496 | D14: 496 | F14: 0
A15: 0990-1-237206 | B15: LP (12.26) Краска д/волос 7/41 медн.пепельн 60мл | C15: 496 | D15: 496 | F15: 0
A16: 0990-1-237213 | B16: LP (11.27) Краска д/волос 7/4 блон.медн 60мл | C16: 496 | D16: 496 | F16: 0
A17: 0990-1-237237 | B17: LP (10.27) Краска д/волос 8/73 корич.золот 60мл | C17: 496 | D17: 496 | F17: 0
A18: 0990-1-237251 | B18: LP (01.27) Краска д/волос 6/41 темн.блонд пепельн 60мл | C18: 496 | D18: 496 | F18: 0
A19: 0990-1-237275 | B19: LP (11.27 / 03.28) Краска д/волос 8/45 светлый блонд медно-красный 60мл(З) | C19: 496 | D19: 496 | F19: 0
A20: 0990-1-237305 | B20: LP (02.27) Краска д/волос 8/4 медный 60мл(З) | C20: 496 | D20: 496 | F20: 0
A21: 0990-1-237312 | B21: LP (08.27) Краска д/волос 8/41 кедр 60мл | C21: 496 | D21: 496 | F21: 0
A22: 0990-1-237329 | B22: LP (01.27 / 06.27) Краска д/волос 6/3 темный блонд.золот 60мл | C22: 496 | D22: 496 | F22: 0
A23: 0990-1-237381 | B23: LP (07.27 / 09.27) Краска д/волос 9/1 блонд пепельн 60мл | C23: 496 | D23: 496 | F23: 0
A24: 0990-1-237497 | B24: LP(11.27) Краска д/волос 6/0 темный блонд 60мл | C24: 496 | D24: 496 | F24: 0
A25: 0990-1-237510 | B25: LP(02.28) Краска д/волос 0/11интенсивный пепельный микстон 60мл | C25: 527 | D25: 527 | F25: 0
A26: 0990-1-237589 | B26: LP(08.26) Краска д/волос 10/1 яркий пепельн.блондин 60мл | C26: 496 | D26: 496 | F26: 0
A27: 0990-1-237602 | B27: LP(08.26) Краска д/волос 5/07 натурально-коричневый 60мл(З) | C27: 496 | D27: 496 | F27: 0
A28: 0990-1-237626 | B28: LP(08.26) Краска д/волос 5/7 шатен коричн 60мл (С) | C28: 444.96 | D28: 444.96 | F28: 0
A29: 0990-1-237633 | B29: LP(07.26) Краска д/волос 4/75 шатен корич.красн.60мл | C29: 496 | D29: 496 | F29: 0
A30: 0990-1-237657 | B30: LP(06.28) Краска д/волос 0/66 интенсивный фиолетовый микстон 60мл | C30: 527 | D30: 527 | F30: 0
A31: 0990-1-237664 | B31: LP(06.27)Краска д/волос 6/07 натурально коричневый 60мл | C31: 496 | D31: 496 | F31: 0
A32: 0990-1-237671 | B32: LP (04.27 / 09.27) Краска д/волос 7/74 блонд коричнево-медный 60мл | C32: 496 | D32: 496 | F32: 0
A33: 0990-1-237855 | B33: LP(07.26) Краска д/волос 12/1 блонд.пепельн.60мл | C33: 496 | D33: 496 | F33: 0
A34: 0990-1-237909 | B34: LP (11.26 / 10.27) Краска д/волос 7/77 блонд интенсивно коричневый 60мл | C34: 496 | D34: 496 | F34: 0
A35: 0990-1-237923 | B35: LP (10.27) Краска д/волос 8/ светлый блонд натуральный 60мл(З) | C35: 496 | D35: 496 | F35: 0
A36: 0990-1-237947 | B36: LP(01.27) Краска д/волос 5/74 св шатен коричнево-медный 60мл | C36: 496 | D36: 496 | F36: 0
A37: 0990-1-237954 | B37: LP(10.26) Краска д/волос 6/ темный блонд натуральный 60мл | C37: 444.96 | D37: 444.96 | F37: 0
A38: 0990-1-237961 | B38: LP (04.27) Краска д/волос 9/38 блон.золот.перлам 60мл (С) | C38: 496 | D38: 496 | F38: 0
A39: 0990-1-237985 | B39: LP (09.27) Краска д/волос 8/96 светлый блонд сандрэ фиолетовый | C39: 496 | D39: 496 | F39: 0
A40: 0990-1-238012 | B40: LP (04.27) Краска д/волос 8/44 светлый блонд интенсивно-медный60мл | C40: 496 | D40: 496 | F40: 0
A41: 0990-1-238043 | B41: LP(06.27) Краска д/волос 10/96 крем-краска яркий блонд жемчужный 60мл | C41: 496 | D41: =C41-C41*$D$5/100 -> 496 | F41: =E41*D41 -> 0
A42: 0990-1-238067 | B42: LP (04.27) Краска д/волос 9/7 свет.блон.корич 60мл | C42: 496 | D42: 496 | F42: 0
A43: 0990-1-238074 | B43: LP(01.28) Краска д/волос 5/1 светлый шатен пепельный 60мл(З) | C43: 496 | D43: 496 | F43: 0
A44: 0990-1-238081 | B44: LP (07.27) Краска д/волос 9/ очень светлый блонд натуральный 60мл | C44: 496 | D44: 496 | F44: 0
A45: 0990-1-238128 | B45: LP (11.26 / 06.27) Краска д/волос 7/18 жаренный миндаль 60мл | C45: 496 | D45: 496 | F45: 0
A46: 0990-1-238159 | B46: LP (09.27) Краска д/волос 9/60 оч. св. блонд фиолетово-натуральный | C46: 496 | D46: 496 | F46: 0
A47: 0990-1-238166 | B47: LP (05.27) Краска д/волос 7/81 блонд жемчужно-пепельный 60мл | C47: 496 | D47: 496 | F47: 0
A48: 0990-1-238180 | B48: LP (04.27) Краска д/волос 8/69 светлый блонд фиолетовый сандрэ 60мл | C48: 496 | D48: 496 | F48: 0
A49: 0990-1-238197 | B49: LP (05.27) Краска д/волос 9/17 ванильный мусс | C49: 496 | D49: 496 | F49: 0
A50: 0990-1-238203 | B50: LP (07.28) Краска д/волос 6/81 темн блонд жемч-пепел 60мл | C50: 527 | D50: 527 | F50: 0
A51: 0990-1-238241 | B51: LP (09.26 / 06.27) Краска д/волос 8/65 холодный розовый 60мл | C51: 496 | D51: 496 | F51: 0
A52: 0990-1-238296 | B52: LP(02.28) Краска д/волос 6/06 призматический фиолетовый 60мл | C52: 444.96 | D52: 444.96 | F52: 0
A53: 0990-1-238326 | B53: LP (06.27) Краска д/волос 7/16 пудровый фиолетовый 60мл | C53: 496 | D53: 496 | F53: 0
A54: 0990-179469 | B54: LP(05.27) инт.тон. 7/7 блонд коричневый 60мл | C54: 496 | D54: 496 | F54: 0
A55: 0990-181301 | B55: LP(04.27) инт.тон. 4/07 extra-coverag шатен натурально-корич | C55: 496 | D55: 496 | F55: 0
A56: 0990-2-117400 | B56: LP(08.26) инт.тон. 0/68 фиолетово-синий микстон 60мл | C56: 496 | D56: 496 | F56: 0
A57: 0990-2-180311 | B57: LP(08.26) инт.тон. 9/96 призматический пудрово-розовый 60мл | C57: 496 | D57: 496 | F57: 0
A58: 0990-2-181011 | B58: LP (02.27)инт.тон. 2/0 черный д 60мл(З) | C58: 496 | D58: 496 | F58: 0
A59: 0990-2-181059 | B59: LP(07.27) инт.тон. 10/0 яркий блонд 60мл | C59: 496 | D59: 496 | F59: 0
A60: 0990-2-181080 | B60: LP (08.27) инт.тон. 4/77 шатен интенсивно-коричневый 60мл | C60: 496 | D60: 496 | F60: 0
A61: 0990-2-181103 | B61: LP (12.27) инт.тон. 10/73 яркий блонд корич-золот 60мл | C61: 496 | D61: 496 | F61: 0
A62: 0990-2-181110 | B62: LP инт.тон. 4/0 шатен 60мл | C62: 527 | D62: 527 | F62: 0
A63: 0990-2-181127 | B63: LP(06.27) инт.тон. 5/0 светлый шатен 60мл | C63: 527 | D63: 527 | F63: 0
A64: 0990-2-181165 | B64: LP(06.28) инт.тон. 5/71 светлый шатен корич-пепел 60мл | C64: 527 | D64: 527 | F64: 0
A65: 0990-2-181233 | B65: LP(06.28) инт.тон. 7/0 блонд 60мл | C65: 496 | D65: 496 | F65: 0
A66: 0990-2-181271 | B66: LP(05.28) инт.тон. 6/77 темный блонд интенс-коричн 60мл | C66: 527 | D66: 527 | F66: 0
A67: 0990-2-181318 | B67: LP(11.26) инт.тон. 8/3 светлый блонд золотистый 60мл | C67: 496 | D67: 496 | F67: 0
A68: 0990-237268 | B68: LP (08.26 / 04.27) Краска д/волос 7/38 золот.жемч 60мл | C68: 496 | D68: 496 | F68: 0
A69: 0990-238173 | B69: LP(03.27) Краска д/волос 6/16 темн блонд пепельно-фиолетовый 60мл | C69: 496 | D69: 496 | F69: 0
A70: 0990-3-571928 | B70: LP (03.27) Окислительная эмульсия 4% 60мл | C70: 184.01 | D70: 184.01 | F70: 0
A71: 0990-3-601168 | B71: LP (03.27) Окислительная эмульсия 3% 60мл | C71: 184 | D71: 184 | F71: 0
A72: 0990-3-606705 | B72: LP (06.27) Окислительная эмульсия 1,9% (тон) 1л | C72: 946.6 | D72: 946.6 | F72: 0
A73: 0990-3-606729 | B73: LP (07.26 / 04.27 / 06.27) Окислительная эмульсия 4% (тон) 1л | C73: 973.63 | D73: =C73-C73*$D$5/100 -> 973.63 | F73: =E73*D73 -> 0
A74: 0990-3-606743 | B74: LP (06.27) Окислительная эмульсия 12% 1л | C74: 895.58 | D74: 895.58 | F74: 0
A75: 0990-3-606767 | B75: LP (07.27) Окислительная эмульсия 3% 1л | C75: 910.59 | D75: 910.59 | F75: 0
A76: 0990-3-606781 | B76: LP (04.27) Окислительная эмульсия 6% 1л | C76: 959.23 | D76: 959.23 | F76: 0
A77: 0990-3-606804 | B77: LP (07.26 / 09.26 / 06.27) Окислительная эмульсия 9% 1л | C77: 937.62 | D77: 937.62 | F77: 0
A78: 0990-3-607191 | B78: LP (11.26) Окислительная эмульсия 9%, 60мл | C78: 201.6 | D78: 201.6 | F78: 0
A79: 0990-486949 | B79: LP (05.27) SLEEK SMOOTHER Средство д/разглаж волос 750мл (З) | C79: 2107.88 | D79: 2107.88 | F79: 0
A80: 0990-562254 | B80: LP Velvet Oil Шампунь с аргановым маслом 250мл | C80: 773.28 | D80: 773.28 | F80: 0
A81: 0990-563541 | B81: LP (03.27) Velvet Oil Проф.ср-во 750мл с аргановым маслом | C81: 2609 | D81: 2609 | F81: 0
A82: 0990-573632 | B82: LP(06.26) COLOR RADIANCE Спрей-кондиционер д/окр.волос 250мл | C82: 1075.2 | D82: 1075.2 | F82: 0
A83: 0990-604299 | B83: LP(11.26) DEEP MOISTURE Конд-р увлажняющий 1л | C83: 2228.61 | D83: 2228.61 | F83: 0
A84: 0990-604381 | B84: LP (09.26) COLOR RADIANCE Кондиционер д/окр.волос 1л | C84: 2066.77 | D84: 2066.77 | F84: 0
A85: 0990-605173 | B85: LP DEEP MOISTURE Шампунь увлажняющий 1л | C85: 1689.05 | D85: 1689.05 | F85: 0
A86: 0990-605258 | B86: LP(07.26) COLOR RADIANCE Шампунь д/окр.волос 1л | C86: 1725.08 | D86: 1725.08 | F86: 0
A87: 0990-605272 | B87: LP (07.27) COLOR RADIANCE Шампунь д/окр.волос 250мл | C87: 635.01 | D87: 635.01 | F87: 0
A88: 0990-605296 | B88: LP(07.26) DEEP MOISTURE Конд-р увлажняющий 250мл | C88: 1102.78 | D88: 1102.78 | F88: 0
A89: 0990-605333 | B89: LP(10.26/12.26) IMPRESSIVE VOLUME Шампунь д/объема 1л | C89: 1630.04 | D89: 1630.04 | F89: 0
A90: 0990-605357 | B90: LP (04.27 / 06.27 / 11.26) INTENSIVE CLEANSER Шампунь1000мл глубоко очищающий | C90: 1658.66 | D90: 1658.66 | F90: 0
A91: 0990-605371 | B91: LP (07.27) VISIBLE REPAIR Средство д/восст. повр.волос 750мл | C91: 2008.23 | D91: 2008.23 | F91: 0
A92: 0990-605593 | B92: LP (09.27) Стайлинг ENHANCE Пена д/уклад норм фик 250мл | C92: 875.6 | D92: 875.6 | F92: 0
A93: 0990-606132 | B93: LP (04.27) Стайлинг LIFT IT Мусс д/прикорн объема сил фик 200мл | C93: 1009.08 | D93: 1009.08 | F93: 0
A94: 0990-606880 | B94: LP (09.26) DEEP MOISTURE Спрей-кондиционер увлажняющий 250мл | C94: 1068.82 | D94: 1068.82 | F94: 0
A95: 0990-607009 | B95: LP (09.27) Стайлинг SWAP IT Гель д/укладки экстрасил.фикс 100мл | C95: 777.99 | D95: 777.99 | F95: 0
A96: 0990-685281 | B96: LP (03.26) Осветляющая пудра 2*500 г. в коробке СРОК 03.26 | C96: 3780.89 | D96: 3780.89 | F96: 0
A97: 0990-685342 | B97: LP (06.27) Осветляющая пудра 500г. в банке | C97: 3533.33 | D97: 3533.33 | F97: 0
A98: 0990-734723 | B98: LP (02.27) Стайлинг LAYER UP Лак д/в подвижной фиксации 500мл (З) | C98: 801.54 | D98: 801.54 | F98: 0
A99: 0990-734969 | B99: LP (05.27) Стайлинг SHAPE IT Спрей б/аэрозоля подвижной фиксации | C99: 1092.96 | D99: 1092.96 | F99: 0
A100: 0990-768568 | B100: LP (02.27) Стайлинг LOCK IT Лак 300мл д/волос экстремальной фиксац. | C100: 918.64 | D100: 918.64 | F100: 0
A101: 0990-768575 | B101: LP (08.26 / 03.27) Стайлинг FIX IT Лак д/волос 500мл сил фиксации | C101: 1231.2 | D101: 1231.2 | F101: 0
A102: 0990-768599 | B102: LP (10.26) Стайлинг FIX IT Лак д/волос 300мл сил фиксации | C102: 982.53 | D102: 982.53 | F102: 0
A103: 0990-770110 | B103: LP (09.26 / 10.26 / 12.26) Стайлинг START OFF Лак 500мл экстрасильной фиксации | C103: 1072.43 | D103: 1072.43 | F103: 0
A104: 0990-81507543 | B104: (У)LP (12.27 / 04.28) Velvet Oil Масло аргановое 100мл | C104: 1100 | D104: 1100 | F104: 0
A105: 0990-81644899 | B105: LP (11.26) CHANGE OVER Пластичная паста норм фиксации 75мл | C105: 833.33 | D105: =C105-C105*$D$5/100 -> 833.33 | F105: =E105*D105 -> 0
E106: Итого | F106: =SUM(F9:F105) -> 0

Sheet KAPOUS
A1: Ваш торговый представитель______________________
A2: моб. Тел._________________________________________
A3: 109457 г. Москва,ул. Плеханова, дом 4,стр.3 ООО “Компания "Аквакосметика” тел. 8(495)785-99-54,785-99-53 многоканальный сайт: www.steck.ru, e-mail: prof@akva.ru
A6: 2026-04-01 | B6: ПРАЙС-ЛИСТ KAPOUS PROFESSIONAL | C6: Проставьте в зеленой ячейке вашу скидку | E6: %
A7: Артикул | B7: Наименование товара | C7: Цена с НДС | D7: Цена с вашей скидкой,руб | E7: ЗАКАЗ шт | F7: Сумма по заказу с вашей скидкой, руб
B9: Co-Wash
A10: 2474 | B10: Моющий кондиционер «Co-Wash» для нормальных и чувствительных волос, 300 мл | C10: 411.25 | D10: =C10-C10*$D$6/100 -> 411.25 | F10: =D10*E10 -> 0
A11: 2475 | B11: Моющий кондиционер «Co-Wash» для окрашенных волос, 300 мл | C11: 411.25 | D11: 411.25 | F11: =D11*E11 -> 0
A12: 2476 | B12: Моющий кондиционер «Co-Wash» для сухих и поврежденных волос, 300 мл | C12: 411.25 | D12: 411.25 | F12: =D12*E12 -> 0
B13: KaPlex | D13: 0 | F13: =D13*E13 -> 0
A14: 2231 | B14: Восстанавливающий комплекс «KaPlex», Крем «KaPlex2», 500 мл | C14: 748.75 | D14: 748.75 | F14: =D14*E14 -> 0
B15: Re:vive | D15: 0 | F15: 0
A16: 2556 | B16: Маска для глубокого восстановления «Re:vive», 400 мл | C16: 886.25 | D16: 886.25 | F16: 0
A17: 2558 | B17: Спрей для глубокого восстановления «Re:vive», 150 мл | C17: 348.75 | D17: 348.75 | F17: 0
A18: 2557 | B18: Филлер для глубокого восстановления «Re:vive», 150 мл | C18: 498.75 | D18: 498.75 | F18: 0
A19: 2555 | B19: Шампунь для глубокого восстановления «Re:vive», 400 мл | C19: 773.75 | D19: 773.75 | F19: 0
B20: Urban | D20: 0 | F20: =D20*E20 -> 0
A21: 2560 | B21: LC 0.00 Осло, Полуперманентный жидкий краситель для волос «Urban», 60 мл | C21: 411.25 | D21: 411.25 | F21: 0
A22: 2561 | B22: LC 10.01 Хельсинки, Полуперманентный жидкий краситель для волос «Urban», 60 мл | C22: 411.25 | D22: 411.25 | F22: 0
A23: 2562 | B23: LC 10.02 Рейкьявик, Полуперманентный жидкий краситель для волос «Urban», 60 мл | C23: 411.25 | D23: 411.25 | F23: =D23*E23 -> 0
A24: 2572 | B24: LC 10.1 Берлин, Полуперманентный жидкий краситель для волос «Urban», 60 мл | C24: 411.25 | D24: 411.25 | F24: 0
A25: 2574 | B25: LC 10.2 Москва, Полуперманентный жидкий краситель для волос «Urban», 60 мл | C25: 411.25 | D25: 411.25 | F25: 0
A26: 2580 | B26: LC 10.23 Копенгаген, Полуперманентный жидкий краситель для волос «Urban», 60 мл | C26: 411.25 | D26: 411.25 | F26: 0
A27: 2569 | B27: LC 4.8 Лиссабон, Полуперманентный жидкий краситель для волос «Urban», 60 мл | C27: 411.25 | D27: 411.25 | F27: 0
A28: 2565 | B28: LC 5.12 Мадрид, Полуперманентный жидкий краситель для волос «Urban», 60 мл | C28: 411.25 | D28: 411.25 | F28: 0
A29: 2563 | B29: LC 5.32 София, Полуперманентный жидкий краситель для волос «Urban», 60 мл | C29: 411.25 | D29: 411.25 | F29: 0
A30: 2575 | B30: LC 6.44 Монако, Полуперманентный жидкий краситель для волос «Urban», 60 мл | C30: 411.25 | D30: 411.25 | F30: 0
A31: 2570 | B31: LC 6.8 Париж, Полуперманентный жидкий краситель для волос «Urban», 60 мл | C31: 411.25 | D31: 411.25 | F31: 0
A32: 2566 | B32: LC 7.12 Брюссель, Полуперманентный жидкий краситель для волос «Urban», 60 мл | C32: 411.25 | D32: 411.25 | F32: 0
A33: 2577 | B33: LC 7.23 Варшава, Полуперманентный жидкий краситель для волос «Urban», 60 мл | C33: 411.25 | D33: 411.25 | F33: 0
A34: 2564 | B34: LC 7.32 Прага, Полуперманентный жидкий краситель для волос «Urban», 60 мл | C34: 411.25 | D34: 411.25 | F34: 0
A35: 2567 | B35: LC 8.12 Амстердам, Полуперманентный жидкий краситель для волос «Urban», 60 мл | C35: 411.25 | D35: 411.25 | F35: 0
A36: 2581 | B36: LC 8.13 Афины, Полуперманентный жидкий краситель для волос «Urban», 60 мл | C36: 411.25 | D36: 411.25 | F36: 0
A37: 2578 | B37: LC 8.23 Берн, Полуперманентный жидкий краситель для волос «Urban», 60 мл | C37: 411.25 | D37: 411.25 | F37: 0
A38: 2576 | B38: LC 8.44 Дублин, Полуперманентный жидкий краситель для волос «Urban», 60 мл | C38: 411.25 | D38: 411.25 | F38: 0
A39: 2571 | B39: LC 9.1 Вена, Полуперманентный жидкий краситель для волос «Urban», 60 мл | C39: 411.25 | D39: 411.25 | F39: 0
A40: 2568 | B40: LC 9.12 Стокгольм, Полуперманентный жидкий краситель для волос «Urban», 60 мл | C40: 411.25 | D40: 411.25 | F40: 0
A41: 2582 | B41: LC 9.13 Лондон, Полуперманентный жидкий краситель для волос «Urban», 60 мл | C41: 411.25 | D41: 411.25 | F41: 0
A42: 2573 | B42: LC 9.2 Рим, Полуперманентный жидкий краситель для волос «Urban», 60 мл | C42: 411.25 | D42: 411.25 | F42: 0
A43: 2579 | B43: LC 9.23 Любляна, Полуперманентный жидкий краситель для волос «Urban», 60 мл | C43: 411.25 | D43: 411.25 | F43: =D43*E43 -> 0
A44: 2837 | B44: Проявитель для красителя «Urban», 60 мл | C44: 111.25 | D44: 111.25 | F44: 0
A45: 2838 | B45: Проявитель для красителя «Urban», 420 мл | C45: 411.25 | D45: 411.25 | F45: 0
B46: Дёготь | D46: 0 | F46: 0
A47: 2834 | B47: Бальзам для волос с Дёгтем, 300 мл | C47: 436.25 | D47: 436.25 | F47: 0
A48: 2833 | B48: Беcсульфатный шампунь для волос с Дёгтем, 300 мл | C48: 411.25 | D48: 411.25 | F48: 0
B49: Защитные средства для волос | D49: 0 | F49: 0
A50: 2485 | B50: Защитный крем «Protect Point» для волос и кожи головы, 150 мл | C50: 573.75 | D50: 573.75 | F50: 0
A51: 2956 | B51: Защитное масло для кожи головы «Safe Point», 50 мл | C51: 311.25 | D51: 311.25 | F51: 0
A52: 2396 | B52: Мусс-реструктурант «Start Point» с пшеничными отрубями, 250 мл | C52: 773.75 | D52: 773.75 | F52: =D52*E52 -> 0
A53: 865 | B53: Эликсир-стабилизатор цвета «Final point», 100 мл | D53: 0 | F53: 0
B54: Мицеллярный шампунь и бальзам | D54: 0 | F54: =D54*E54 -> 0
A55: 2918 | B55: Мицеллярный бальзам, 300 мл | C55: 448.75 | D55: 448.75 | F55: 0
A56: 2917 | B56: Мицеллярный шампунь, 300 мл | C56: 411.25 | D56: 411.25 | F56: =D56*E56 -> 0
B57: Оттеночные шампуни,бальзамы | D57: 0 | F57: 0
A58: 1 | B58: Оттеночный бальзам для волос «Life Color», гранатовый красный, 200 мл | C58: 861.25 | D58: 861.25 | F58: 0
A59: 2819 | B59: Оттеночный бальзам для волос «Life Color», графитовый серый, 200 мл | C59: 861.25 | D59: 861.25 | F59: 0
A60: 3 | B60: Оттеночный бальзам для волос «Life Color», коричневый, 200 мл | C60: 861.25 | D60: 861.25 | F60: 0
A61: 2 | B61: Оттеночный бальзам для волос «Life Color», медный, 200 мл | C61: 861.25 | D61: 861.25 | F61: 0
A62: 5 | B62: Оттеночный бальзам для волос «Life Color», фиолетовый, 200 мл | D62: 0 | F62: 0
A63: 10 | B63: Оттеночный шампунь для волос «Life Color», гранатовый красный, 200 мл | C63: 786.25 | D63: 786.25 | F63: 0
A64: 2820 | B64: Оттеночный шампунь для волос «Life Color», графитовый серый, 200 мл | C64: 786.25 | D64: 786.25 | F64: 0
A65: 12 | B65: Оттеночный шампунь для волос «Life Color», коричневый, 200 мл | C65: 786.25 | D65: 786.25 | F65: 0
A66: 11 | B66: Оттеночный шампунь для волос «Life Color», медный, 200 мл | C66: 786.25 | D66: 786.25 | F66: 0
A67: 7 | B67: Оттеночный шампунь для волос «Life Color», фиолетовый, 200 мл | D67: 0 | F67: 0
B68: Прямые пигменты Rainbow | D68: =C68-C68*$D$6/100 -> 0 | F68: =D68*E68 -> 0
B69: 150 мл | D69: 0 | F69: 0
A70: 2899 | B70: Краситель прямого действия для волос «Rainbow», Желтый, 150 мл | C70: 573.75 | D70: 573.75 | F70: 0
A71: 2900 | B71: Краситель прямого действия для волос «Rainbow», Зеленый, 150 мл | C71: 573.75 | D71: 573.75 | F71: 0
A72: 2901 | B72: Краситель прямого действия для волос «Rainbow», Красный, 150 мл | C72: 573.75 | D72: 573.75 | F72: 0
A73: 2902 | B73: Краситель прямого действия для волос «Rainbow», Оранжевый, 150 мл | C73: 573.75 | D73: 573.75 | F73: 0
A74: 2903 | B74: Краситель прямого действия для волос «Rainbow», Прозрачный, 150 мл | C74: 573.75 | D74: 573.75 | F74: 0
A75: 2904 | B75: Краситель прямого действия для волос «Rainbow», Синий, 150 мл | C75: 573.75 | D75: 573.75 | F75: 0
A76: 2905 | B76: Краситель прямого действия для волос «Rainbow», Фиолетовый, 150 мл | C76: 573.75 | D76: 573.75 | F76: 0
A77: 2906 | B77: Краситель прямого действия для волос «Rainbow», Фуксия, 150 мл | C77: 573.75 | D77: 573.75 | F77: 0
B78: Серия "Detox" | D78: 0 | F78: 0
A79: 3045 | B79: Бальзам для волос с Сельдереем и маслом семени Льна, 300 мл | C79: 411.25 | D79: 411.25 | F79: 0
A80: 3046 | B80: Бальзам для волос с Сельдереем и маслом семени Льна, 750 мл | C80: 811.25 | D80: 811.25 | F80: 0
A81: 3047 | B81: Маска для волос с Сельдереем и маслом семени Льна, 750 мл | C81: 823.75 | D81: 823.75 | F81: 0
A82: 3043 | B82: Шампунь для волос с Сельдереем и маслом семени Льна, 300 мл | C82: 398.75 | D82: =C82-C82*$D$6/100 -> 398.75 | F82: 0
A83: 3044 | B83: Шампунь для волос с Сельдереем и маслом семени Льна, 750 мл | C83: 798.75 | D83: 798.75 | F83: 0
B84: Серия Arganoil | D84: 0 | F84: 0
B85: Осветляющие средства Arganoil | D85: 0 | F85: 0
A86: 2546 | B86: Обесцвечивающий порошок с маслом арганы для волос, 30 г | C86: 161.25 | D86: 161.25 | F86: 0
B87: Уход Arganoil | D87: 0 | F87: 0
A88: 2777 | B88: Бальзам с маслом арганы, 300 мл | C88: 461.25 | D88: 461.25 | F88: 0
A89: 2779 | B89: Бальзам с маслом арганы, 750 мл | C89: 811.25 | D89: 811.25 | F89: 0
A90: 2772 | B90: Маска с маслом арганы, 750 мл | C90: 898.75 | D90: 898.75 | F90: 0
A91: 2825 | B91: Масло арганы для волос, 80 мл | C91: 673.75 | D91: 673.75 | F91: 0
A92: 323 | B92: Увлажняющая сыворотка с маслом арганы, 200 мл | C92: 611.25 | D92: 611.25 | F92: 0
A93: 320 | B93: Увлажняющий шампунь с маслом арганы, 300 мл | C93: 411.25 | D93: 411.25 | F93: 0
A94: 2778 | B94: Увлажняющий шампунь с маслом арганы, 750 мл | C94: 773.75 | D94: 773.75 | F94: 0
B95: Серия Biotin Energy | D95: 0 | F95: 0
A96: 326 | B96: Лосьон с биотином для укрепления и стимуляции роста волос, 100 мл | C96: 623.75 | D96: 623.75 | F96: 0
A97: 327 | B97: Маска с биотином для укрепления и стимуляции роста волос, 250 мл | C97: 761.25 | D97: 761.25 | F97: =D97*E97 -> 0
A98: 2776 | B98: Маска с биотином для укрепления и стимуляции роста волос, 750 мл | C98: 2237.5 | D98: 2237.5 | F98: 0
A99: 328 | B99: Укрепляющая сыворотка с биотином для стимуляции роста волос, 200 мл | C99: 573.75 | D99: 573.75 | F99: 0
A100: 619 | B100: Флюид для секущихся кончиков волос с биотином, 80 мл | C100: 598.75 | D100: 598.75 | F100: 0
A101: 325 | B101: Шампунь с биотином для укрепления и стимуляции роста волос, 250 мл | C101: 661.25 | D101: 661.25 | F101: 0
A102: 2787 | B102: Шампунь с биотином для укрепления и стимуляции роста волос, 750 мл | C102: 1862.5 | D102: 1862.5 | F102: 0
B103: Серия Kapous Blond Bar | D103: 0 | F103: 0
B104: Крем-краска Blond Bar | D104: 0 | F104: 0
A105: 2322 | B105: BB 000 Прозрачный, крем-краска для волос с экстрактом жемчуга, 100 мл | C105: 373.75 | D105: 373.75 | F105: 0
A106: 2323 | B106: BB 001 Снежная королева, крем-краска для волос с экстрактом жемчуга, 100 мл | C106: 373.75 | D106: 373.75 | F106: 0
A107: 2325 | B107: BB 002 Черничное безе, крем-краска для волос с экстрактом жемчуга, 100 мл | C107: 373.75 | D107: 373.75 | F107: 0
A108: 2335 | B108: BB 01 Корректор пепельный, крем-краска для волос с экстрактом жемчуга, 100 мл | C108: 373.75 | D108: 373.75 | F108: 0
A109: 2324 | B109: BB 011 Дымчатый сандрэ, крем-краска для волос с экстрактом жемчуга, 100 мл | C109: 373.75 | D109: 373.75 | F109: 0
A110: 2327 | B110: BB 012 Ледяной жасмин, крем-краска для волос с экстрактом жемчуга, 100 мл | C110: 373.75 | D110: 373.75 | F110: 0
A111: 2328 | B111: BB 017 Алмазное серебро, крем-краска для волос с экстрактом жемчуга, 100 мл | C111: 373.75 | D111: 373.75 | F111: 0
A112: 2336 | B112: BB 02 Корректор фиолетовый, крем-краска для волос с экстрактом жемчуга, 100 мл | C112: 373.75 | D112: 373.75 | F112: 0
A113: 2329 | B113: BB 021 Альпийский снег, крем-краска для волос с экстрактом жемчуга, 100 мл | C113: 373.75 | D113: 373.75 | F113: 0
A114: 2326 | B114: BB 022 Пудровый сапфир, крем-краска для волос с экстрактом жемчуга, 100 мл | C114: 373.75 | D114: 373.75 | F114: 0
A115: 2330 | B115: BB 023 Перламутровое утро, крем-краска для волос с экстрактом жемчуга, 100 мл | C115: 373.75 | D115: 373.75 | F115: 0
A116: 2331 | B116: BB 026 Млечный путь, крем-краска для волос с экстрактом жемчуга, 100 мл | C116: 373.75 | D116: 373.75 | F116: 0
A117: 2337 | B117: BB 03 Корректор золотой, крем-краска для волос с экстрактом жемчуга, 100 мл | C117: 373.75 | D117: 373.75 | F117: 0
A118: 2332 | B118: BB 032 Сливочная панна-котта, крем-краска для волос с экстрактом жемчуга, 100 мл | C118: 373.75 | D118: 373.75 | F118: 0
A119: 2333 | B119: BB 036 Медовая роса, крем-краска для волос с экстрактом жемчуга, 100 мл | C119: 373.75 | D119: 373.75 | F119: 0
A120: 2338 | B120: BB 04 Корректор медный, крем-краска для волос с экстрактом жемчуга, 100 мл | C120: 373.75 | D120: 373.75 | F120: 0
A121: 2339 | B121: BB 06 Корректор красный, крем-краска для волос с экстрактом жемчуга, 100 мл | C121: 373.75 | D121: 373.75 | F121: 0
A122: 2334 | B122: BB 062 Малиновое суфле, крем-краска для волос с экстрактом жемчуга, 100 мл | C122: 373.75 | D122: 373.75 | F122: 0
A123: 2340 | B123: BB 07 Корректор синий, крем-краска для волос с экстрактом жемчуга, 100 мл | C123: 373.75 | D123: 373.75 | F123: 0
A124: 2315 | B124: BB 1000 Натуральный, крем-краска для волос с экстрактом жемчуга, 100 мл | C124: 373.75 | D124: 373.75 | F124: 0
A125: 2314 | B125: BB 1002 Перламутровый, крем-краска для волос с экстрактом жемчуга, 100 мл | C125: 373.75 | D125: 373.75 | F125: 0
A126: 2316 | B126: BB 1011 Серебристый пепельный, крем-краска для волос с экстрактом жемчуга, 100 мл | C126: 373.75 | D126: 373.75 | F126: 0
A127: 2317 | B127: BB 1012 Пепельный перламутровый, крем-краска для волос с экстрактом жемчуга, 100 мл | C127: 373.75 | D127: 373.75 | F127: 0
A128: 2313 | B128: BB 1022 Интенсивный перламутровый, крем-краска для волос с экстрактом жемчуга, 100 мл | C128: 373.75 | D128: =C128-C128*$D$6/100 -> 373.75 | F128: 0
A129: 2319 | B129: BB 1023 Перламутровый золотистый, крем-краска для волос с экстрактом жемчуга, 100 мл | C129: 373.75 | D129: 373.75 | F129: 0
A130: 2321 | B130: BB 1032 Бежевый перламутровый, крем-краска для волос с экстрактом жемчуга, 100 мл | C130: 373.75 | D130: 373.75 | F130: 0
A131: 2320 | B131: BB 1036 Золотистый розовый, крем-краска для волос с экстрактом жемчуга, 100 мл | C131: 373.75 | D131: 373.75 | F131: 0
A132: 2318 | B132: BB 1062 Розовый перламутровый, крем-краска для волос с экстрактом жемчуга, 100 мл | C132: 373.75 | D132: 373.75 | F132: 0
B133: Оксиданты Kapous Blond Bar | D133: 0 | F133: 0
B134: 1000 мл | D134: 0 | F134: 0
A135: 2462 | B135: Кремообразная окислительная эмульсия «Blond Cremoxon» с экстрактом Жемчуга серии “Blond Bar” 1,5%, 1000 мл | C135: 473.75 | D135: 473.75 | F135: 0
A136: 2467 | B136: Кремообразная окислительная эмульсия «Blond Cremoxon» с экстрактом Жемчуга серии “Blond Bar” 12%, 1000 мл | C136: 473.75 | D136: 473.75 | F136: 0
A137: 2464 | B137: Кремообразная окислительная эмульсия «Blond Cremoxon» с экстрактом Жемчуга серии “Blond Bar” 3%, 1000 мл | C137: 473.75 | D137: 473.75 | F137: 0
A138: 2465 | B138: Кремообразная окислительная эмульсия «Blond Cremoxon» с экстрактом Жемчуга серии “Blond Bar” 6%, 1000 мл | C138: 473.75 | D138: 473.75 | F138: 0
A139: 2466 | B139: Кремообразная окислительная эмульсия «Blond Cremoxon» с экстрактом Жемчуга серии “Blond Bar” 9%, 1000 мл | C139: 473.75 | D139: 473.75 | F139: 0
A140: 2463 | B140: Кремообразная окислительная эмульсия «Blond Cremoxon» с экстрактом Жемчуга серии “Blond Bar” Активатор, 1000 мл | C140: 473.75 | D140: 473.75 | F140: 0
B141: 200 мл | D141: 0 | F141: 0
A142: 2468 | B142: Кремообразная окислительная эмульсия «Blond Cremoxon» с экстрактом Жемчуга серии “Blond Bar” 1,5%, 200 мл | C142: 173.75 | D142: 173.75 | F142: 0
A143: 2473 | B143: Кремообразная окислительная эмульсия «Blond Cremoxon» с экстрактом Жемчуга серии “Blond Bar” 12%, 200 мл | C143: 173.75 | D143: 173.75 | F143: 0
A144: 2470 | B144: Кремообразная окислительная эмульсия «Blond Cremoxon» с экстрактом Жемчуга серии “Blond Bar” 3%, 200 мл | C144: 173.75 | D144: 173.75 | F144: 0
A145: 2471 | B145: Кремообразная окислительная эмульсия «Blond Cremoxon» с экстрактом Жемчуга серии “Blond Bar” 6%, 200 мл | C145: 173.75 | D145: 173.75 | F145: 0
A146: 2472 | B146: Кремообразная окислительная эмульсия «Blond Cremoxon» с экстрактом Жемчуга серии “Blond Bar” 9%, 200 мл | C146: 173.75 | D146: 173.75 | F146: 0
A147: 2469 | B147: Кремообразная окислительная эмульсия «Blond Cremoxon» с экстрактом Жемчуга серии “Blond Bar” Активатор, 200 мл | C147: 173.75 | D147: 173.75 | F147: 0
B148: Осветляющие средства Kapous Blond Bar | D148: 0 | F148: 0
A149: 1713 | B149: Обесцвечивающая пудра для открытых техник «Kapoyage», 250 г | C149: 836.25 | D149: 836.25 | F149: =D149*E149 -> 0
A150: 2549 | B150: Обесцвечивающая пудра с антижелтым эффектом, 30 г | C150: 211.25 | D150: 211.25 | F150: 0
A151: 1301 | B151: Обесцвечивающая пудра с антижелтым эффектом, 500 г | C151: 1061.25 | D151: 1061.25 | F151: 0
A152: 2548 | B152: Обесцвечивающая пудра с защитным комплексом 9+, 30 г | C152: 173.75 | D152: 173.75 | F152: 0
A153: 1712 | B153: Обесцвечивающая пудра с защитным комплексом 9+, 500 г | C153: 948.75 | D153: 948.75 | F153: 0
A154: 2547 | B154: Обесцвечивающий порошок «All tech» с антижелтым эффектом, 30 г | C154: 161.25 | D154: 161.25 | F154: 0
A155: 2488 | B155: Обесцвечивающий порошок «All tech» с антижелтым эффектом, 500 г | C155: 1111.25 | D155: 1111.25 | F155: 0
A156: 1589 | B156: Ультра-обесцвечивающая паста, 500 г | C156: 1612.5 | D156: 1612.5 | F156: 0
B157: Оттеночные средства | D157: 0 | F157: 0
A158: 2397 | B158: Оттеночный мусс фиолетовый, 250 мл | C158: 748.75 | D158: 748.75 | F158: 0
B159: Оттеночные шампуни и бальзамы 300 мл | D159: 0 | F159: 0
A160: 3199 | B160: Питательный оттеночный шампунь для оттенков блонд, Пепельный, 300 мл | C160: 698.75 | D160: 698.75 | F160: 0
A161: 3194 | B161: Питательный оттеночный шампунь для оттенков блонд, Серебро, 300 мл | C161: 698.75 | D161: 698.75 | F161: 0
B162: Бальзамы 200 мл | D162: 0 | F162: 0
A163: 1693 | B163: Питательный оттеночный бальзам для оттенков блонд, Бежевый, 200 мл | C163: 536.25 | D163: 536.25 | F163: 0
A164: 1691 | B164: Питательный оттеночный бальзам для оттенков блонд, Пепельный, 200 мл | C164: 536.25 | D164: 536.25 | F164: 0
A165: 1686 | B165: Питательный оттеночный бальзам для оттенков блонд, Перламутровый, 200 мл | C165: 536.25 | D165: 536.25 | F165: 0
A166: 1687 | B166: Питательный оттеночный бальзам для оттенков блонд, Песочный, 200 мл | C166: 536.25 | D166: 536.25 | F166: 0
A167: 1692 | B167: Питательный оттеночный бальзам для оттенков блонд, Платиновый, 200 мл | C167: 536.25 | D167: 536.25 | F167: 0
A168: 1690 | B168: Питательный оттеночный бальзам для оттенков блонд, Розовый, 200 мл | C168: 536.25 | D168: 536.25 | F168: 0
A169: 1688 | B169: Питательный оттеночный бальзам для оттенков блонд, Серебро, 200 мл | C169: 536.25 | D169: 536.25 | F169: 0
A170: 1689 | B170: Питательный оттеночный бальзам для оттенков блонд, Стальной, 200 мл | C170: 536.25 | D170: 536.25 | F170: 0
B171: Шампуни 200 мл | D171: 0 | F171: 0
A172: 2700 | B172: Питательный оттеночный шампунь для оттенков блонд, Бежевый, 200 мл | C172: 498.75 | D172: 498.75 | F172: 0
A173: 2693 | B173: Питательный оттеночный шампунь для оттенков блонд, Перламутровый, 200 мл | C173: 498.75 | D173: 498.75 | F173: 0
A174: 2694 | B174: Питательный оттеночный шампунь для оттенков блонд, Песочный, 200 мл | C174: 498.75 | D174: 498.75 | F174: 0
A175: 2699 | B175: Питательный оттеночный шампунь для оттенков блонд, Платиновый, 200 мл | C175: 498.75 | D175: 498.75 | F175: 0
A176: 2697 | B176: Питательный оттеночный шампунь для оттенков блонд, Розовый, 200 мл | C176: 498.75 | D176: 498.75 | F176: 0
A177: 2696 | B177: Питательный оттеночный шампунь для оттенков блонд, Стальной, 200 мл | C177: 498.75 | D177: 498.75 | F177: 0
B178: Уход Kapous Blond Bar | D178: 0 | F178: 0
A179: 2559 | B179: Двухфазная сыворотка для волос с антижелтым эффектом, 200 мл | C179: 736.25 | D179: 736.25 | F179: 0
A180: 2618 | B180: Двухфазная сыворотка для волос с антижелтым эффектом, 500 мл | C180: 823.75 | D180: 823.75 | F180: 0
A181: 2929 | B181: Маска с антижелтым эффектом, 300 мл | C181: 548.75 | D181: 548.75 | F181: 0
A182: 2928 | B182: Маска с антижелтым эффектом, 750 мл | C182: 1362.5 | D182: 1362.5 | F182: 0
A183: 1670 | B183: Освежающий бальзам для волос оттенков блонд, 300 мл | C183: 436.25 | D183: 436.25 | F183: 0
A184: 2927 | B184: Освежающий бальзам для волос оттенков блонд, 750 мл | C184: 886.25 | D184: 886.25 | F184: 0
A185: 1671 | B185: Освежающий шампунь для волос оттенков блонд, 300 мл | C185: 373.75 | D185: 373.75 | F185: 0
A186: 2926 | B186: Освежающий шампунь для волос оттенков блонд, 750 мл | C186: 861.25 | D186: 861.25 | F186: 0
A187: 2931 | B187: Шампунь с антижелтым эффектом, 300 мл | C187: 511.25 | D187: 511.25 | F187: 0
A188: 2930 | B188: Шампунь с антижелтым эффектом, 750 мл | C188: 1362.5 | D188: 1362.5 | F188: 0
B189: Серия Brilliants gloss | D189: 0 | F189: 0
A190: 570 | B190: Блеск-бальзам для волос «Brilliants gloss», 250 мл | C190: 548.75 | D190: 548.75 | F190: 0
A191: 2933 | B191: Блеск-бальзам для волос «Brilliants gloss», 750 мл | C191: 1737.5 | D191: 1737.5 | F191: 0
A192: 3009 | B192: Блеск-маска для волос «Brilliants gloss», 750 мл | C192: 1862.5 | D192: =C192-C192*$D$6/100 -> 1862.5 | F192: 0
A193: 569 | B193: Блеск-шампунь для волос «Brilliants gloss», 250 мл | C193: 523.75 | D193: 523.75 | F193: 0
A194: 2932 | B194: Блеск-шампунь для волос «Brilliants gloss», 750 мл | C194: 1612.5 | D194: 1612.5 | F194: 0
A195: 2622 | B195: Увлажняющая блеск-сыворотка для волос «Brilliants gloss», 200 мл | C195: 598.75 | D195: 598.75 | F195: 0
A196: 3039 | B196: Увлажняющая блеск-сыворотка для волос «Brilliants gloss», 500 мл | C196: 686.25 | D196: 686.25 | F196: 0
B197: Серия Gentlemen | D197: 0 | F197: =D197*E197 -> 0
A198: 597 | B198: Гель-краска для волос для мужчин без аммония, 3-темно-коричневый, 40 мл+40 мл | C198: 373.75 | D198: 373.75 | F198: 0
A199: 598 | B199: Гель-краска для волос для мужчин без аммония, 4-коричневый, 40 мл+40 мл | C199: 373.75 | D199: 373.75 | F199: 0
A200: 599 | B200: Гель-краска для волос для мужчин без аммония, 6-светло-коричневый, 40 мл+40 мл | C200: 373.75 | D200: 373.75 | F200: 0
A201: 1694 | B201: Гель-краска для волос для мужчин без аммония, 7.1 темный блондин пепельный, 40 мл+40 мл | C201: 373.75 | D201: 373.75 | F201: 0
A202: 923 | B202: Мужская пена для бритья 3 effect, 300 мл | C202: 498.75 | D202: 498.75 | F202: 0
A203: 3032 | B203: Мужской бальзам с Ментолом, 250 мл | C203: 386.25 | D203: 386.25 | F203: 0
... 579 more rows

Sheet Selective
A1: Ваш торговый представитель______________________
A2: моб. Тел._________________________________________
A3: 109457 г. Москва,ул. Плеханова, дом 4,стр.3 ООО “Компания "Аквакосметика” тел. 8(495)785-99-54,785-99-53 многоканальный сайт: www.steck.ru, e-mail: prof@akva.ru
C4: ПРАЙС-ЛИСТ
C5: SELECTIVE PROFESSIONAL
F6: Проставьте Вашу скидку | J6: %
A7: 2026-04-01
A8: Артикул | B8: штрих-код | C8: Наименование | D8: Объем, мл. | E8: кол-во шт в коробке | F8: Цена, руб. | G8: Цена с Вашей скидкой | H8: Заказ | I8: Итого
C10: КРАСИТЕЛИ И ТЕХНИЧЕСКИЕ СРЕДСТВА SELECTIVE PROFESSIONAL
A11: 1358004 | B11: 8027483580043 | C11: 4.0 Каштановый | D11: 60 | E11: 24 | F11: 1013 | G11: =F11-F11*$I$6/100 -> 1013 | I11: =H11*G11 -> 0
A12: 1358005 | B12: 8027483580050 | C12: 5.0 Светло каштановый | D12: 60 | E12: 24 | F12: 1013 | G12: =F12-F12*$I$6/100 -> 1013 | I12: 0
A13: 1358006 | B13: 8027483580067 | C13: 6.0 Темный Блондин | D13: 60 | E13: 24 | F13: 1013 | G13: 1013 | I13: 0
A14: 1358007 | B14: 8027483580074 | C14: 7.0 Блондин | D14: 60 | E14: 24 | F14: 1013 | G14: 1013 | I14: 0
A15: 1358008 | B15: 8027483580081 | C15: 8.0 Светлый Блондин | D15: 60 | E15: 24 | F15: 1013 | G15: 1013 | I15: 0
A16: 1358009 | B16: 8027483580098 | C16: 9.0 Очень Светлый Блондин | D16: 60 | E16: 24 | F16: 1013 | G16: 1013 | I16: 0
A17: 1358010 | B17: 8027483580104 | C17: 10.0 Экстра Светлый Блондин | D17: 60 | E17: 24 | F17: 1013 | G17: 1013 | I17: 0
A18: 13581012 | B18: 8027483810126 | C18: 10.12 Экстра светлый блондин пепельно ирисовый | D18: 60 | E18: 24 | F18: 1013 | G18: 1013 | I18: 0
A19: 13581021 | B19: 8027483810218 | C19: 10.21 Экстра светлый блондин ирисово пепельный | D19: 60 | E19: 24 | F19: 1013 | G19: 1013 | I19: 0
A20: 13581031 | B20: 8027483810317 | C20: 10.31 Экстра светлый блондин золотисто пепельный | D20: 60 | E20: 24 | F20: 1013 | G20: 1013 | I20: 0
A21: 1358091 | B21: 8027483580913 | C21: 9.1 Очень светлый блондин пепельный | D21: 60 | E21: 24 | F21: 1013 | G21: 1013 | I21: 0
A22: 1358913 | B22: 8027483589138 | C22: 9.13 Очень светлый блондин пепельно золотистый | D22: 60 | E22: 24 | F22: 1013 | G22: 1013 | I22: 0
A23: 1358092 | B23: 8027483580920 | C23: 9.2 Очень светлый блондин ирисовый | D23: 60 | E23: 24 | F23: 1013 | G23: 1013 | I23: 0
A24: 1358093 | B24: 8027483580937 | C24: 9.3 Очень светлый блондин золотистый | D24: 60 | E24: 24 | F24: 1013 | G24: 1013 | I24: 0
A25: 1358931 | B25: 8027483589312 | C25: 9.31 Очень светлый блондин золотисто пепельный | D25: 60 | E25: 24 | F25: 1013 | G25: 1013 | I25: 0
A26: 1358935 | B26: 8027483589350 | C26: 9.35 Очень светлый блондин золотисто махагоновый | D26: 60 | E26: 24 | F26: 1013 | G26: 1013 | I26: 0
A27: 1358081 | B27: 8027483580814 | C27: 8.1 Светлый блондин пепельный | D27: 60 | E27: 24 | F27: 1013 | G27: 1013 | I27: 0
A28: 1358071 | B28: 8027483580715 | C28: 7.1 Блондин пепельный | D28: 60 | E28: 24 | F28: 1013 | G28: 1013 | I28: 0
A29: 1358000 | B29: 8027483580005 | C29: CLEAR Бесцветный | D29: 60 | E29: 24 | F29: 1013 | G29: 1013 | I29: 0
A30: 1359005 | B30: 8027483990026 | C30: Специальный активатор Glow Liquid Color DEVELOPER (5 vol.) 1,5% | D30: 1000 | E30: 12 | F30: 1092 | G30: 1092 | I30: 0
A31: 1359105 | B31: 8027483591056 | C31: Специальный активатор Glow Liquid Color DEVELOPER (5 vol.) 1,5% | D31: 100 | E31: 24 | F31: 610 | G31: 610 | I31: 0
A32: 1399002RU | B32: 8027483590059 | C32: Набор "Taste Pro kit Bleach": "Glow Liquid Color" тон 7.1, 60 мл. + 1 шт. тон 9.35, 60 мл. +1 шт. тон 10.12, 60 мл. + 1 шт. тон CLEAR, 60 мл. + 2 шт. (5 vol.) 1,5% "Glow Liquid Color. DEVELOPER", 100 мл.+1 шт. "Decolorvit FREE HAND", 400 гр.+ 2 шт. "Active Use", 6% (20 vol.), 100 мл.+1 шт. Хелатирующий спрей "N.0 CHELATING SPRAY", 250 мл.+ 1 шт. Реструктурирующий флюид "X BOND FLUID", 125 мл. | E32: 3 | F32: 11062 | G32: 11062 | I32: 0
A33: 1395802 | B33: 8027483958026 | C33: Набор TASTE KIT TONE: Пробник ONCARE COLOR BLOCK Шампунь+Кондиционер, 10+10 мл - 1 шт. + Жидкий тонирующий краситель Glow Liquid Color, 60 мл: тон 9.1 - 1 шт + тон 9.3 - 1 шт. + тон 10.12 - 1 шт. + тон 10.31 - 1 шт. + специальный активатор (5 vol.) 1,5% DEVELOPER", 100 мл - 2 шт. + Бумажная брошюра | E33: 6 | F33: 3597 | G33: 3597 | I33: 0
C34: COLOREVO - перманентная крем-краска, содержит питательные и ухаживающие компоненты. Палитра состоит из 212 нюансов, включая 81 концептуальный рецепт. | G34: 0 | I34: 0
A35: 841000 | B35: 80906971 | C35: COLOREVO GLITCH COLOR - крем-краска для цветного мелирования | D35: 100 | E35: 60 | F35: 946 | G35: 946 | I35: 0
A36: 841001 | B36: 80773085 | C36: ОКСИГЕНТЫ COLOREVO | D36: 100 | E36: 60 | F36: 946 | G36: 946 | I36: 0
A37: 841011 | B37: 80923466 | C37: REVERSO - перманентная крем-краска, без аммиака и PPD, обогащенная эксклюзивной фреш-смесью SUPERFOOD. Палитра состоит из 87 нюансов, включая 13 концептуальных коктейлей. | D37: 100 | E37: 60 | F37: 946 | G37: 946 | I37: 0
A38: 8410171 | B38: 80807087 | C38: ТОНЕРЫ | D38: 100 | E38: 60 | F38: 946 | G38: 946 | I38: 0
A39: 841003 | B39: 80961314 | C39: ОКСИГЕНТЫ REVERSO | D39: 100 | E39: 60 | F39: 946 | G39: 946 | I39: 0
A40: 84010 | B40: 80878193 | C40: OLIGOMINERALCREAM - стойкая крем-краска для волос с олигоминеральными элементами в составе маслом крамбе и коллагеном | D40: 100 | E40: 60 | F40: 946 | G40: 946 | I40: 0
A41: 84101 | B41: 80806493 | C41: ОКСИГЕНТЫ OLIGOMINERALCREAM | D41: 100 | E41: 60 | F41: 946 | G41: 946 | I41: 0
A42: 841017 | B42: 80779940 | C42: ПРЯМЫЕ ПИГМЕНТЫ thePIGMENTS | D42: 100 | E42: 60 | F42: 946 | G42: 946 | I42: 0
A43: 84102 | B43: 80791478 | C43: ВСПОМОГАТЕЛЬНЫЕ СРЕДСТВА | D43: 100 | E43: 60 | F43: 946 | G43: 946 | I43: 0
A44: 84103 | B44: 80838364 | C44: СРЕДСТВА ДЛЯ ОБЕСЦВЕЧИВАНИЯ И ДЕКАПИРОВАНИЯ ВОЛОС | D44: 100 | E44: 60 | F44: 946 | G44: 946 | I44: 0
A45: 84104 | B45: 80796190 | C45: DECOLORVIT - полноценная линия продуктов для осветления до 9 тонов, во всех техниках, для получения любых результатов. | D45: 100 | E45: 60 | F45: 946 | G45: 946 | I45: 0
A46: 13841081 | B46: 80996439 | C46: POWERPLEX - комплекс для технических процедур и обесцвечивания с защитным эффектом | D46: 100 | E46: 60 | F46: 946 | G46: 946 | I46: 0
A47: 84009 | B47: 80923473 | C47: ХИМИЧЕСКАЯ ЗАВИВКА | D47: 100 | E47: 60 | F47: 946 | G47: 946 | I47: 0
A48: 849001 | B48: 80816836 | C48: ЛИНИЯ CURLLOVER NEW | D48: 100 | E48: 60 | F48: 946 | G48: 946 | I48: 0
A49: 138490010 | B49: 80843566 | C49: BLUE WAVE - перманентная завивка, с протеинами кератина | D49: 100 | E49: 60 | F49: 946 | G49: 946 | I49: 0
A50: 84091 | B50: 80906933 | C50: REBUILDING TREATMENT - программа реконструкции волос на основе гиалуроновой кислоты | D50: 100 | E50: 60 | F50: 946 | G50: 946 | I50: 0
A51: 84911 | B51: 80810797 | C51: RISANA - восстанавливающий уход с муцином улитки | D51: 100 | E51: 60 | F51: 946 | G51: 946 | I51: 0
A52: 84917 | B52: 80770404 | C52: HEMP SUBLIME - увлажняющий уход на основе масла семян конопли | D52: 100 | E52: 60 | F52: 946 | G52: 946 | I52: 0
A53: 84092 | B53: 80806431 | C53: ЛИНИЯ ONCARE | D53: 100 | E53: 60 | F53: 946 | G53: 946 | I53: 0
A54: 84923 | B54: 80806400 | C54: COLOR BLOCK - защита цвета для окрашенных волос | D54: 100 | E54: 60 | F54: 946 | G54: 946 | I54: 0
A55: 84927 | B55: 80899747 | C55: BLACK - роскошное восстановление | D55: 100 | E55: 60 | F55: 946 | G55: 946 | I55: 0
A56: 84093 | B56: 80791461 | C56: NOYELLOW - уход для светлых, обесцвеченных и седых волос | D56: 100 | E56: 60 | F56: 946 | G56: 946 | I56: 0
A57: 84933 | B57: 80868378 | C57: BEBLOND - для ламинирования волос | D57: 100 | E57: 60 | F57: 946 | G57: 946 | I57: 0
A58: 1384981 | B58: 80918974 | C58: CURLLOVER - уход за кудрявыми и вьющимися волосами | D58: 100 | E58: 60 | F58: 946 | G58: 946 | I58: 0
A59: 84008 | B59: 80837565 | C59: ONCARE DAILY - увлажнение для всех типов волос | D59: 100 | E59: 60 | F59: 946 | G59: 946 | I59: 0
A60: 84800 | B60: 80791492 | C60: ONCARE REFILL - объем для тонких волос | D60: 100 | E60: 60 | F60: 946 | G60: 946 | I60: 0
A61: 13848001 | B61: 80828990 | C61: ONCARE REPAIR - восстановление для ослабленных и ломких волос | D61: 100 | E61: 60 | F61: 946 | G61: 946 | I61: 0
A62: 84081 | B62: 80796183 | C62: ONCARE SMOOTH - разглаживание для длинных и непослушных волос | D62: 100 | E62: 60 | F62: 946 | G62: 946 | I62: 0
A63: 84811 | B63: 80838166 | C63: α KERATIN - для четкого контура и против влажности | D63: 100 | E63: 60 | F63: 946 | G63: 946 | I63: 0
A64: 84815 | B64: 80820949 | C64: ONCARE SCALP - решение деликатных проблем кожи головы | D64: 100 | E64: 60 | F64: 946 | G64: 946 | I64: 0
A65: 84823 | B65: 80806417 | C65: СРЕДСТВА ДЛЯ УКЛАДКИ ВОЛОС - NOW NEXT GENERATION !!NEW!! | D65: 100 | E65: 60 | F65: 946 | G65: 946 | I65: 0
A66: 84824 | B66: 80887188 | C66: ЛИНИЯ ARTISTIC FLAIR | D66: 100 | E66: 60 | F66: 946 | G66: 946 | I66: 0
A67: 84827 | B67: 80887119 | C67: МУЖСКАЯ ЛИНИЯ - CEMANI | D67: 100 | E67: 60 | F67: 946 | G67: 946 | I67: 0
A68: 84083 | B68: 80878131 | C68: СРЕДСТВА ДЛЯ УКЛАДКИ ВОЛОС - NOW NEXT GENERATION | D68: 100 | E68: 60 | F68: 946 | G68: 946 | I68: 0
A69: 84831 | B69: 80906964 | C69: АКСЕССУАРЫ БЕЗ ЛОГОТИПА НА ПРОДАЖУ (СКИДКА 25%) | D69: 100 | E69: 60 | F69: 946 | G69: 946 | I69: 0
A70: 84833 | B70: 80799771 | C70: 8.33 Светлый блондин золотистый интенсивный | D70: 100 | E70: 60 | F70: 946 | G70: 946 | I70: 0
A71: 84834 | B71: 80878155 | C71: 8.34 Светлый блондин золотисто-медный используется в "концептуальных оттенках" | D71: 100 | E71: 60 | F71: 946 | G71: 946 | I71: 0
A72: 84084 | B72: 80837541 | C72: 8.4 Светлый блондин медный используется в "концептуальных оттенках" | D72: 100 | E72: 60 | F72: 946 | G72: 946 | I72: 0
A73: 84843 | B73: 80774983 | C73: 8.43 Светлый блондин медно-золотистый | D73: 100 | E73: 60 | F73: 946 | G73: 946 | I73: 0
A74: 84844 | B74: 80961338 | C74: 8.44 Светлый блондин медно-интенсивный используется в "концептуальных оттенках" | D74: 100 | E74: 60 | F74: 946 | G74: 946 | I74: 0
A75: 84846 | B75: 80768609 | C75: 8.46 Светлый блондин медно-красный | D75: 100 | E75: 60 | F75: 946 | G75: 946 | I75: =H75*G75 -> 0
A76: 84086 | B76: 80875666 | C76: 8.6 Светлый блондин красный | D76: 100 | E76: 60 | F76: 946 | G76: =F76-F76*$I$6/100 -> 946 | I76: 0
A77: 1384881 | B77: 80918943 | C77: 8.81 Светлый блондин ирисово-пепельный | D77: 100 | E77: 60 | F77: 946 | G77: 946 | I77: 0
A78: 84007 | B78: 80923404 | C78: 7.0 Блондин | D78: 100 | E78: 60 | F78: 946 | G78: 946 | I78: 0
A79: 84700 | B79: 80773078 | C79: 7.00 Блондин глубокий | D79: 100 | E79: 60 | F79: 946 | G79: 946 | I79: 0
A80: 13847001 | B80: 80828945 | C80: 7.001 Блондин интенсивный пепельный | D80: 100 | E80: 60 | F80: 946 | G80: 946 | I80: 0
A81: 84704 | B81: 80838395 | C81: 7.04 Блондин "Табак" | D81: 100 | E81: 60 | F81: 946 | G81: 946 | I81: 0
A82: 84705 | B82: 80899730 | C82: 7.05 Блондин "Фундук" используется в "концептуальных оттенках" | D82: 100 | E82: 60 | F82: 946 | G82: 946 | I82: 0
A83: 84071 | B83: 80796176 | C83: 7.1 Блондин пепельный используется в "концептуальных оттенках" | D83: 100 | E83: 60 | F83: 946 | G83: 946 | I83: 0
A84: 84711 | B84: 80838180 | C84: 7.11 Блондин пепельный интенсивный | D84: 100 | E84: 60 | F84: 946 | G84: 946 | I84: 0
A85: 84715 | B85: 80820963 | C85: 7.15 Блондин "ладан" | D85: 100 | E85: 60 | F85: 946 | G85: 946 | I85: 0
A86: 84072 | B86: 80961383 | C86: 7.2 Блондин бежевый используется в "концептуальных оттенках" | D86: 100 | E86: 60 | F86: 946 | G86: 946 | I86: 0
A87: 84073 | B87: 80961376 | C87: 7.3 Блондин золотистый используется в "концептуальных оттенках" | D87: 100 | E87: 60 | F87: 946 | G87: 946 | I87: 0
A88: 84731 | B88: 80927457 | C88: 7.31 Блондин "Бисквит" используется в "концептуальных оттенках" | D88: 100 | E88: 60 | F88: 946 | G88: 946 | I88: 0
A89: 84734 | B89: 80773054 | C89: 7.34 Блондин золотисто-медный | D89: 100 | E89: 60 | F89: 946 | G89: 946 | I89: 0
A90: 84074 | B90: 80807025 | C90: 7.4 Блондин медный используется в "концептуальных оттенках" | D90: 100 | E90: 60 | F90: 946 | G90: 946 | I90: 0
A91: 84743 | B91: 80975687 | C91: 7.43 Блондин медно-золотистый | D91: 100 | E91: 60 | F91: 946 | G91: 946 | I91: 0
A92: 84744 | B92: 80796145 | C92: 7.44 Блондин медный интенсивный используется в "концептуальных оттенках" | D92: 100 | E92: 60 | F92: 946 | G92: 946 | I92: 0
A93: 84745 | B93: 80926306 | C93: 7.45 Блондин "Корица" | D93: 100 | E93: 60 | F93: 946 | G93: 946 | I93: 0
A94: 84751 | B94: 80779995 | C94: 7.51 Блондин "Грецкий орех" используется в "концептуальных оттенках" | D94: 100 | E94: 60 | F94: 946 | G94: 946 | I94: 0
A95: 84764 | B95: 80899723 | C95: 7.64 Блондин медный интенсивный используется в "концептуальных оттенках" | D95: 100 | E95: 60 | F95: 946 | G95: 946 | I95: 0
A96: 84765 | B96: 80803904 | C96: 7.65 Блондин красно-махагоновый | D96: 100 | E96: 60 | F96: 946 | G96: 946 | I96: 0
A97: 84766 | B97: 80927471 | C97: 7.66 Блондин красный интенсивный используется в "концептуальных оттенках" | D97: 100 | E97: 60 | F97: 946 | G97: 946 | I97: 0
A98: 84767 | B98: 80887102 | C98: 7.67 Блондин красно-фиолетовый используется в "концептуальных оттенках" | D98: 100 | E98: 60 | F98: 946 | G98: 946 | I98: 0
A99: 1384781 | B99: 80900733 | C99: 7.81 Блондин ирисово-пепельный | D99: 100 | E99: 60 | F99: 946 | G99: 946 | I99: 0
A100: 84006 | B100: 80807094 | C100: 6.0 Темный блондин | D100: 100 | E100: 60 | F100: 946 | G100: 946 | I100: 0
A101: 84600 | B101: 80796169 | C101: 6.00 Темный блондин интенсивный используется в "концептуальных оттенках" | D101: 100 | E101: 60 | F101: 946 | G101: 946 | I101: 0
A102: 13846001 | B102: 80791676 | C102: 6.001 Тёмный блондин интенсивный пепельный | D102: 100 | E102: 60 | F102: 946 | G102: 946 | I102: 0
A103: 84601 | B103: 80961369 | C103: 6.01 Темный блондин натурально-пепельный используется в "концептуальных оттенках" | D103: 100 | E103: 60 | F103: 946 | G103: 946 | I103: 0
A104: 84603 | B104: 80837596 | C104: 6.03 Темный блондин натурально-золотистый используется в "концептуальных оттенках" | D104: 100 | E104: 60 | F104: 946 | G104: 946 | I104: 0
A105: 84605 | B105: 80887126 | C105: 6.05 Темный блондин "Земля Сиены" используется в "концептуальных оттенках" | D105: 100 | E105: 60 | F105: 946 | G105: 946 | I105: 0
A106: 84611 | B106: 80879053 | C106: 6.11 Темный блондин пепельный интенсивный | D106: 100 | E106: 60 | F106: 946 | G106: 946 | I106: 0
A107: 84615 | B107: 80894957 | C107: 6.15 Темный блондин "Трюфель" | D107: 100 | E107: 60 | F107: 946 | G107: 946 | I107: 0
A108: 84623 | B108: 80791454 | C108: 6.23 Темный блондин бежево-золотистый используется в "концептуальных оттенках" | D108: 100 | E108: 60 | F108: 946 | G108: 946 | I108: 0
A109: 84063 | B109: 80807070 | C109: 6.3 Темный блондин золотистый | D109: 100 | E109: 60 | F109: 946 | G109: 946 | I109: 0
A110: 84631 | B110: 80774242 | C110: 6.31 Темный блондин "Глина" | D110: 100 | E110: 60 | F110: 946 | G110: 946 | I110: 0
A111: 84634 | B111: 80796152 | C111: 6.34 Темный блондин золотисто-медный | D111: 100 | E111: 60 | F111: 946 | G111: 946 | I111: 0
A112: 84635 | B112: 80887140 | C112: 6.35 Темный блондин "Шоколад" | D112: 100 | E112: 60 | F112: 946 | G112: 946 | I112: 0
A113: 84064 | B113: 80837510 | C113: 6.4 Темный блондин медный используется в "концептуальных оттенках" | D113: 100 | E113: 60 | F113: 946 | G113: 946 | I113: 0
A114: 84643 | B114: 80773009 | C114: 6.43 Темный блондин медный золотистый используется в "концептуальных оттенках" | D114: 100 | E114: 60 | F114: 946 | G114: 946 | I114: 0
A115: 84645 | B115: 80838371 | C115: 6.45 Темный блондин "Терракота" используется в "концептуальных оттенках" | D115: 100 | E115: 60 | F115: 946 | G115: 946 | I115: 0
A116: 84646 | B116: 80899709 | C116: 6.46 Темный блондин медно-красный используется в "концептуальных оттенках" | D116: 100 | E116: 60 | F116: 946 | G116: 946 | I116: 0
A117: 84065 | B117: 80927464 | C117: 6.5 Темный блондин махагоновый используется в "концептуальных оттенках" | D117: 100 | E117: 60 | F117: 946 | G117: 946 | I117: 0
A118: 84651 | B118: 80807032 | C118: 6.51 Темный блондин "Шоколад с орехом" используется в "концептуальных оттенках" | D118: 100 | E118: 60 | F118: 946 | G118: 946 | I118: 0
A119: 84666 | B119: 80796114 | C119: 6.66 Блондин красный интенсивный | D119: 100 | E119: 60 | F119: 946 | G119: 946 | I119: 0
A120: 84067 | B120: 80770466 | C120: 6.7 Темный блондин фиолетовый | D120: 100 | E120: 60 | F120: 946 | G120: 946 | I120: 0
A121: 84005 | B121: 80773016 | C121: 5.0 Светло-каштановый | D121: 100 | E121: 60 | F121: 946 | G121: 946 | I121: 0
A122: 84500 | B122: 80878124 | C122: 5.00 Светло-каштановый интенсивный используется в "концептуальных оттенках" | D122: 100 | E122: 60 | F122: 946 | G122: 946 | I122: 0
A123: 13845001 | B123: 80791621 | C123: 5.001 Светло-каштановый интенсивный пепельный | D123: 100 | E123: 60 | F123: 946 | G123: 946 | I123: 0
A124: 84503 | B124: 80779957 | C124: 5.03 Светло-каштановый натурально-золотистый | D124: 100 | E124: 60 | F124: 946 | G124: 946 | I124: 0
A125: 84505 | B125: 80899778 | C125: 5.05 Светло-каштановый "Каштан" | D125: 100 | E125: 60 | F125: 946 | G125: 946 | I125: 0
A126: 84506 | B126: 80773023 | C126: 5.06 Светло-каштановый "Холодный кофе" | D126: 100 | E126: 60 | F126: 946 | G126: 946 | I126: 0
A127: 84051 | B127: 80906919 | C127: 5.1 Светло-каштановый пепельный используется в "концептуальных оттенках" | D127: 100 | E127: 60 | F127: 946 | G127: 946 | I127: 0
A128: 84515 | B128: 80820918 | C128: 5.15 Cветло-каштановый "Кожа" | D128: 100 | E128: 60 | F128: 946 | G128: 946 | I128: 0
A129: 84055 | B129: 80923497 | C129: 5.5 Светло-каштановый махагоновый используется в "концептуальных оттенках" | D129: 100 | E129: 60 | F129: 946 | G129: 946 | I129: 0
A130: 84551 | B130: 80774235 | C130: 5.51 Светло-каштановый "Венге" используется в "концептуальных оттенках" | D130: 100 | E130: 60 | F130: 946 | G130: 946 | I130: 0
A131: 84565 | B131: 80807018 | C131: 5.65 Светло-каштановый красно-махагоновый | D131: 100 | E131: 60 | F131: 946 | G131: 946 | I131: 0
A132: 84566 | B132: 80837534 | C132: 5.66 Светло-каштановый красный интенсивный используется в "концептуальных оттенках" | D132: 100 | E132: 60 | F132: 946 | G132: 946 | I132: 0
A133: 84567 | B133: 80838333 | C133: 5.67 Светло-каштановый красно-фиолетовый используется в "концептуальных оттенках" | D133: 100 | E133: 60 | F133: 946 | G133: 946 | I133: 0
A134: 84057 | B134: 80796428 | C134: 5.7 Светло-каштановый фиолетовый используется в "концептуальных оттенках" | D134: 100 | E134: 60 | F134: 946 | G134: 946 | I134: 0
A135: 84004 | B135: 80899396 | C135: 4.0 Каштановый | D135: 100 | E135: 60 | F135: 946 | G135: 946 | I135: 0
A136: 84400 | B136: 80923428 | C136: 4.00 Каштановый интенсивный используется в "концептуальных оттенках" | D136: 100 | E136: 60 | F136: 946 | G136: 946 | I136: 0
A137: 13844001 | B137: 80775157 | C137: 4.001 Каштановый интенсивный пепельный | D137: 100 | E137: 60 | F137: 946 | G137: 946 | I137: 0
A138: 84406 | B138: 80975632 | C138: 4.06 Каштановый "Выжженная земля" используется в "концептуальных оттенках" | D138: 100 | E138: 60 | F138: 946 | G138: 946 | I138: 0
A139: 84415 | B139: 80806639 | C139: 4.15 каштановый "вулкан" | D139: 100 | E139: 60 | F139: 946 | G139: 946 | I139: =H139*G139 -> 0
A140: 84431 | B140: 80899792 | C140: 4.31 Каштановый "Можжевельник" используется в "концептуальных оттенках" | D140: 100 | E140: 60 | F140: 946 | G140: =F140-F140*$I$6/100 -> 946 | I140: 0
A141: 84435 | B141: 80906902 | C141: 4.35 Каштановый "Кокос" | D141: 100 | E141: 60 | F141: 946 | G141: 946 | I141: 0
A142: 84045 | B142: 80825654 | C142: 4.5 Каштановый махагоновый используется в "концептуальных оттенках" | D142: 100 | E142: 60 | F142: 946 | G142: 946 | I142: 0
A143: 84451 | B143: 80927440 | C143: 4.51 Каштановый "Темный шоколад" используется в "концептуальных оттенках" | D143: 100 | E143: 60 | F143: 946 | G143: 946 | I143: 0
A144: 84465 | B144: 80773092 | C144: 4.65 Каштановый красно-махагоновый используется в "концептуальных оттенках" | D144: 100 | E144: 60 | F144: 946 | G144: 946 | I144: 0
A145: 84047 | B145: 80983453 | C145: 4.7 Каштановый фиолетовый | D145: 100 | E145: 60 | F145: 946 | G145: 946 | I145: 0
A146: 84003 | B146: 80773061 | C146: 3.0 Темно-каштановый | D146: 100 | E146: 60 | F146: 946 | G146: 946 | I146: 0
A147: 84300 | B147: 80906940 | C147: 3.00 Темно-каштановый интенсивный | D147: 100 | E147: 60 | F147: 946 | G147: 946 | I147: 0
A148: 84305 | B148: 80926344 | C148: 3.05 Темно-каштановый "Какао" | D148: 100 | E148: 60 | F148: 946 | G148: 946 | I148: 0
A149: 84002 | B149: 80807001 | C149: 2.0 Брюнет | D149: 100 | E149: 60 | F149: 946 | G149: 946 | I149: 0
A150: 84001 | B150: 80966487 | C150: 1.0 Черный | D150: 100 | E150: 60 | F150: 946 | G150: 946 | I150: 0
A151: 84011 | B151: 80906957 | C151: 1.1 Черно-синий | D151: 100 | E151: 60 | F151: 946 | G151: 946 | I151: 0
A152: 84900 | B152: 80889441 | C152: 0.00 Нейтральный используется в "концептуальных оттенках" | D152: 100 | E152: 60 | F152: 946 | G152: 946 | I152: 0
A153: 84902 | B153: 80774211 | C153: 0.1 Синий используется в "концептуальных оттенках" | D153: 100 | E153: 60 | F153: 946 | G153: 946 | I153: 0
A154: 84903 | B154: 80838357 | C154: 0.11 Пепельный интенсивный используется в "концептуальных оттенках" | D154: 100 | E154: 60 | F154: 946 | G154: 946 | I154: 0
A155: 84904 | B155: 80825692 | C155: 0.3 Желтый используется в "концептуальных оттенках" | D155: 100 | E155: 60 | F155: 946 | G155: 946 | I155: 0
A156: 84905 | B156: 80975663 | C156: 0.66 Красный интенсивный используется в "концептуальных оттенках" | D156: 100 | E156: 60 | F156: 946 | G156: 946 | I156: 0
A157: 84906 | B157: 80899716 | C157: 0.77 Фиолетовый интенсивный используется в "концептуальных оттенках" | D157: 100 | E157: 60 | F157: 946 | G157: 946 | I157: 0
A158: 84901 | B158: 80927426 | C158: CS Корректор осветления используется в "концептуальных оттенках" | D158: 100 | E158: 60 | F158: 946 | G158: 946 | I158: 0
C159: COLOREVO GLITCH COLOR - крем-краска для цветного мелирования | G159: 0 | I159: 0
A160: 84998 | B160: 80878186 | C160: Glitch Rame Медный | D160: 60 | E160: 60 | F160: 1226 | G160: 1226 | I160: 0
A161: 84999 | B161: 80899365 | C161: Glitch Rosso Красный | D161: 60 | E161: 60 | F161: 1226 | G161: 1226 | I161: 0
C162: ОКСИГЕНТЫ COLOREVO | G162: 0 | I162: 0
A163: 85010 | B163: 8027483850108 | C163: Оксигент "ColorEVO" 3% (10vol) эмульсия окислительная | D163: 1000 | E163: 12 | F163: 939 | G163: 939 | I163: 0
A164: 85020 | B164: 8027483850207 | C164: Оксигент "ColorEVO" 6% (20vol) эмульсия окислительная | D164: 1000 | E164: 12 | F164: 939 | G164: 939 | I164: 0
A165: 85030 | B165: 8027483850306 | C165: Оксигент "ColorEVO" 9% (30 vol) эмульсия окислительная | D165: 1000 | E165: 12 | F165: 939 | G165: 939 | I165: 0
A166: 85040 | B166: 8027483850405 | C166: Оксигент "ColorEVO" 12 % (40vol) эмульсия окислительная | D166: 1000 | E166: 12 | F166: 939 | G166: 939 | I166: 0
A167: 20812 | B167: 8027483208121 | C167: Оксигент "ColorEVO" 3 % (10vol) эмульсия окислительная | D167: 100 | E167: 24 | F167: 232 | G167: 232 | I167: 0
A168: 20822 | B168: 8027483208220 | C168: Оксигент "ColorEVO" 6 % (20vol) эмульсия окислительная | D168: 100 | E168: 24 | F168: 232 | G168: 232 | I168: 0
A169: 20832 | B169: 8027483208329 | C169: Оксигент "ColorEVO" 9 % (30vol) эмульсия окислительная | D169: 100 | E169: 24 | F169: 232 | G169: 232 | I169: 0
A170: 20842 | B170: 8027483208428 | C170: Оксигент "ColorEVO" 12% (40vol) эмульсия окислительная | D170: 100 | E170: 24 | F170: 232 | G170: 232 | I170: 0
C171: REVERSO - перманентная крем-краска, без аммиака и PPD, обогащенная эксклюзивной фреш-смесью SUPERFOOD. Палитра состоит из 87 нюансов, включая 13 концептуальных коктейлей. | G171: 0 | I171: 0
A172: 891000 | B172: 80946786 | C172: 1000 "Reverso Hair Color" Блондин ультра натуральный | D172: 100 | E172: 30 | F172: 1098 | G172: 1098 | I172: 0
A173: 891001 | B173: 80861645 | C173: 1001 "Reverso Hair Color" Блондин ультра пепельный | D173: 100 | E173: 30 | F173: 1098 | G173: 1098 | I173: 0
A174: 891011 | B174: 80691075 | C174: 1011 "Reverso Hair Color" Блондин ультра пепельный интенсивный | D174: 100 | E174: 30 | F174: 1098 | G174: 1098 | I174: 0
A175: 89010 | B175: 80899419 | C175: 10.0 "Reverso Hair Color" Экстра светлый блондин | D175: 100 | E175: 30 | F175: 1098 | G175: 1098 | I175: 0
A176: 89101 | B176: 80845157 | C176: 10.1 "Reverso Hair Color" Экстра светлый блондин пепельный | D176: 100 | E176: 30 | F176: 1098 | G176: 1098 | I176: 0
A177: 89102 | B177: 80858331 | C177: 10.2 "Reverso Hair Color" Экстра светлый блондин бежевый | D177: 100 | E177: 30 | F177: 1098 | G177: 1098 | I177: 0
A178: 89009 | B178: 80849179 | C178: 9.0 "Reverso Hair Color" Очень светлый блондин | D178: 100 | E178: 30 | F178: 1098 | G178: 1098 | I178: 0
A179: 89091 | B179: 80858843 | C179: 9.1 "Reverso Hair Color" Очень светлый блондин пепельный | D179: 100 | E179: 30 | F179: 1098 | G179: 1098 | I179: 0
A180: 89913 | B180: 80974208 | C180: 9.13 "Reverso Hair Color" Очень светлый блондин "Манилкара" | D180: 100 | E180: 30 | F180: 1098 | G180: 1098 | I180: 0
A181: 89917 | B181: 80801665 | C181: 9.17 "Reverso Hair Color" Очень светлый блондин "Дайкон" | D181: 100 | E181: 30 | F181: 1098 | G181: 1098 | I181: 0
A182: 89092 | B182: 80861683 | C182: 9.2 "Reverso Hair Color" Очень светлый блондин бежевый | D182: 100 | E182: 30 | F182: 1098 | G182: 1098 | I182: 0
A183: 89093 | B183: 80858393 | C183: 9.3 "Reverso Hair Color" Очень светлый блондин золотистый | D183: 100 | E183: 30 | F183: 1098 | G183: 1098 | I183: 0
A184: 89008 | B184: 80861652 | C184: 8.0 "Reverso Hair Color" Светлый блондин | D184: 100 | E184: 30 | F184: 1098 | G184: 1098 | I184: 0
A185: 89800 | B185: 80805304 | C185: 8.00 "Reverso Hair Color" Светлый блондин интенсивный | D185: 100 | E185: 30 | F185: 1098 | G185: 1098 | I185: 0
A186: 89081 | B186: 80862406 | C186: 8.1 "Reverso Hair Color" Светлый блондин пепельный | D186: 100 | E186: 30 | F186: 1098 | G186: 1098 | I186: 0
A187: 89813 | B187: 80927587 | C187: 8.13 "Reverso Hair Color" Светлый блондин "Дуриан" | D187: 100 | E187: 30 | F187: 1098 | G187: 1098 | I187: 0
A188: 89823 | B188: 80691051 | C188: 8.23 "Reverso Hair Color" Светлый блондин бежево-золотистый | D188: 100 | E188: 30 | F188: 1098 | G188: 1098 | I188: 0
A189: 89827 | B189: 80950172 | C189: 8.27 "Reverso Hair Color" Светлый блондин "Питайа" | D189: 100 | E189: 30 | F189: 1098 | G189: 1098 | I189: 0
A190: 89083 | B190: 80849148 | C190: 8.3 "Reverso Hair Color" Светлый блондин золотистый | D190: 100 | E190: 30 | F190: 1098 | G190: 1098 | I190: 0
A191: 89831 | B191: 80926436 | C191: 8.31 "Reverso Hair Color" Светлый блондин "Имбирь" | D191: 100 | E191: 30 | F191: 1098 | G191: 1098 | I191: 0
A192: 89084 | B192: 80858881 | C192: 8.4 "Reverso Hair Color" Светлый блондин медный | D192: 100 | E192: 30 | F192: 1098 | G192: 1098 | I192: 0
A193: 89007 | B193: 80862444 | C193: 7.0 "Reverso Hair Color" Блондин | D193: 100 | E193: 30 | F193: 1098 | G193: 1098 | I193: 0
A194: 89700 | B194: 80852674 | C194: 7.00 "Reverso Hair Color" Блондин интенсивный | D194: 100 | E194: 30 | F194: 1098 | G194: 1098 | I194: 0
